Workbook

Sheet Project 관련 정보
B3: 프로젝트 | D3: (단위: 원)
B4: 매출(계약) 정보 | C4: Total | D4: 용역 | F4: SAP S/W | G4: 기타 S/W | H4: H/W | I4: 기타 (이자 등)
B5: 매출 | C5: =SUM(D5,F5:I5) -> 150000000 | D5: 150000000
B6: (외부) 원가 | C6: =SUM(D6,F6:I6) -> 0 | D6: 0
B7: 차액▶ | C7: =C5-C6 -> 150000000 | D7: =D5-D6 -> 150000000 | F7: 0 | G7: 0 | H7: 0 | I7: 0
B10: 매출 Code | F10: Plan 작성여부 | G10: =IF(Plan_집계표!AW45>0,"YES","NO") -> YES | H10: Plan 작성일 | I10: 2022-09-13
B11: Project Job Code | F11: Actual 작성여부 | G11: =IF(Actual_집계표!AW49>0,"YES","NO") -> YES | H11: Actual 최종 수정일
B12: 고객사 명 | D12: 유한양행
C13: (* 매출고객이 BSG Family사일 경우) | H13: Plan | I13: Actual | J13: Plan - Actual
B14: 고객사 code | F14: 프로젝트 (사외)용역 매출액 (원) | H14: ='Plan vs. Actual'!H10 -> 150000000 | I14: ='Plan vs. Actual'!I10 -> 150000000 | J14: =H14-I14 -> 0
B15: Project 명 (계약서 참조) | D15: 유한양행 자사 쇼핑몰 구축 프로젝트 | F15: 사외인력 용역 원가 Total (원) | H15: ='Plan vs. Actual'!H11 -> 0 | I15: ='Plan vs. Actual'!I11 -> 0 | J15: =H15-I15 -> 0
B16: Project 기간 | C16: 시작일자 | D16: 2022-09-13 | F16: 사내용역 원가 (내부거래) | G16: TOTAL | H16: ='Plan vs. Actual'!H12 -> 0 | I16: ='Plan vs. Actual'!I12 -> 0 | J16: 0
C17: 종료일자 | D17: 2023-01-31 | G17: BP_OUTS | H17: ='Plan vs. Actual'!H13 -> 0 | I17: ='Plan vs. Actual'!I13 -> 0 | J17: 0
B18: 주관 SBU | D18: BP_OUTS | G18: BP_CLD | H18: ='Plan vs. Actual'!H14 -> 0 | I18: ='Plan vs. Actual'!I14 -> 0 | J18: 0
B19: 매출귀속 SBU | C19: BP_OUTS | D19: =IF(COUNTIF(Plan_집계표!$BT$15:$BT$44,C19)>0,"YES","NO") -> YES | G19: CON_BDC | H19: ='Plan vs. Actual'!H15 -> 0 | I19: ='Plan vs. Actual'!I15 -> 0 | J19: =H19-I19 -> 0
C20: BP_CLD | D20: =IF(COUNTIF(Plan_집계표!$BT$15:$BT$44,C20)>0,"YES","NO") -> NO | G20: CON_DT | H20: ='Plan vs. Actual'!H16 -> 0 | I20: ='Plan vs. Actual'!I16 -> 0 | J20: 0
C21: BP_AWS | D21: =IF(COUNTIF(Plan_집계표!$BT$15:$BT$44,C21)>0,"YES","NO") -> NO | G21: HR_CONS | H21: ='Plan vs. Actual'!H17 -> 0 | I21: ='Plan vs. Actual'!I17 -> 0 | J21: 0
C22: CON_BDC | D22: =IF(COUNTIF(Plan_집계표!$BT$15:$BT$44,C22)>0,"YES","NO") -> NO | G22: BP_AWS | H22: ='Plan vs. Actual'!H18 -> 0 | I22: ='Plan vs. Actual'!I18 -> 0 | J22: =H22-I22 -> 0
C23: CON_DT | D23: =IF(COUNTIF(Plan_집계표!$BT$15:$BT$44,C23)>0,"YES","NO") -> NO | G23: EMGT_GB | H23: ='Plan vs. Actual'!H19 -> 0 | I23: ='Plan vs. Actual'!I19 -> 0 | J23: 0
C24: HR_CONS | D24: =IF(COUNTIF(Plan_집계표!$BT$15:$BT$44,C24)>0,"YES","NO") -> NO | G24: EMGT_EE | H24: ='Plan vs. Actual'!H20 -> 0 | I24: ='Plan vs. Actual'!I20 -> 0 | J24: 0
C25: EMGT_GB | D25: =IF(COUNTIF(Plan_집계표!$BT$15:$BT$44,C25)>0,"YES","NO") -> NO | G25: ETC1 | H25: ='Plan vs. Actual'!H21 -> 0 | I25: ='Plan vs. Actual'!I21 -> 0 | J25: 0
C26: EMGT_EE | D26: =IF(COUNTIF(Plan_집계표!$BT$15:$BT$44,C26)>0,"YES","NO") -> NO | G26: ETC2 | H26: ='Plan vs. Actual'!H22 -> 0 | I26: ='Plan vs. Actual'!I22 -> 0 | J26: =H26-I26 -> 0
C27: ETC1 | D27: =IF(COUNTIF(Plan_집계표!$BT$15:$BT$44,C27)>0,"YES","NO") -> NO | G27: ETC3 | H27: ='Plan vs. Actual'!H23 -> 0 | I27: ='Plan vs. Actual'!I23 -> 0 | J27: 0
C28: ETC2 | D28: =IF(COUNTIF(Plan_집계표!$BT$15:$BT$44,C28)>0,"YES","NO") -> NO | G28: ETC4 | H28: ='Plan vs. Actual'!H24 -> 0 | I28: ='Plan vs. Actual'!I24 -> 0 | J28: 0
B29: 서비스 분야 | C29: Service Domain 1 | D29: New Implementation Project
C30: Service Domain 2 (High-Value) | F30: 사외용역 원가 귀속 SBU | G30: BP_OUTS | H30: =IF(SUM('Plan_외주인력 원가 배부'!F164:W164,'Plan_외주인력 원가 배부'!F334:W334)>0,"YES","NO") -> NO
C31: Service Domain 3 (N/W & IT Infra) | G31: BP_CLD | H31: =IF(SUM('Plan_외주인력 원가 배부'!F165:W165,'Plan_외주인력 원가 배부'!F335:W335)>0,"YES","NO") -> NO
C32: Solution Domain 1 | D32: SAP A1 (ERP) | G32: CON_BDC | H32: =IF(SUM('Plan_외주인력 원가 배부'!F166:W166,'Plan_외주인력 원가 배부'!F336:W336)>0,"YES","NO") -> NO
C33: Solution Domain 2 | G33: CON_DT | H33: =IF(SUM('Plan_외주인력 원가 배부'!F167:W167,'Plan_외주인력 원가 배부'!F337:W337)>0,"YES","NO") -> NO
C34: Solution Domain 3 | G34: PW_CONS | H34: =IF(SUM('Plan_외주인력 원가 배부'!F168:W168,'Plan_외주인력 원가 배부'!F338:W338)>0,"YES","NO") -> NO
C35: Solution Domain 4 | G35: BP_AWS | H35: =IF(SUM('Plan_외주인력 원가 배부'!F169:W169,'Plan_외주인력 원가 배부'!F339:W339)>0,"YES","NO") -> NO
C36: Others | G36: EMGT_GB | H36: =IF(SUM('Plan_외주인력 원가 배부'!F170:W170,'Plan_외주인력 원가 배부'!F340:W340)>0,"YES","NO") -> NO
B37: Project Manager | D37: 최종찬 | G37: EMGT_EE | H37: =IF(SUM('Plan_외주인력 원가 배부'!F171:W171,'Plan_외주인력 원가 배부'!F341:W341)>0,"YES","NO") -> NO
B38: Project Job Code 승인자 | D38: 최종찬 | G38: ETC1 | H38: =IF(SUM('Plan_외주인력 원가 배부'!F172:W172,'Plan_외주인력 원가 배부'!F342:W342)>0,"YES","NO") -> NO
B39: 계약서 ID code | G39: ETC2 | H39: =IF(SUM('Plan_외주인력 원가 배부'!F173:W173,'Plan_외주인력 원가 배부'!F343:W343)>0,"YES","NO") -> NO
B40: 수주 실적 귀속 영업대표 1 | G40: ETC3 | H40: =IF(SUM('Plan_외주인력 원가 배부'!F174:W174,'Plan_외주인력 원가 배부'!F344:W344)>0,"YES","NO") -> NO
B41: 수주 실적 귀속 영업대표 2 | G41: ETC4 | H41: =IF(SUM('Plan_외주인력 원가 배부'!F175:W175,'Plan_외주인력 원가 배부'!F345:W345)>0,"YES","NO") -> NO
B42: 수주 실적 귀속 영업대표 3

Sheet 투입인력 단가
H2: ▶ 투입인력 단가 및 속성 Table
C3: Plan확정 Flag ▶ | D3: 계획확정
H6: Actual 투입여부 | I6: No. | J6: 컨설팅 영역분류 | K6: 컨설팅 영역분류 | L6: Remarks | M6: 직급 (경력) (연차) | N6: 이름 | O6: Daily 단가 (원) | P6: 매출 귀속 SBU | Q6: 인력 Sourcing MAIN 채널 | R6: 인력 Sourcing SUB 채널 (MAIN 채널이 '내부거래'인경우) | S6: [매출귀속 SBU <-> MAIN 채널] 내부거래/외주계약 단가 (원 / Day) | T6: [MAIN 채널 <-> SUB 채널] 내부거래/외주계약 단가 (원 / Day) | V6: 외주계약 인력별 투입공수 | W6: 외주계약 컨설턴트 지급금액 합계 (원) | X6: 외주계약 컨설턴트 소속 조직 (거래처 명) | Y6: 거래처별 지급 비용 합계 (원)
C7: Plan 집계표 copy용 | D7: Actual 집계표 copy용 | E7: 기 마감월 이내에 Actual 투입여부 확인
E8: ▼ | J8: Level 1 | K8: Level 2
C10: =IF(H10="추가투입", 0, IF(H10="",0, COUNTIF($H$10:H10,"Plan")+COUNTIF($H$10:H10,"투입취소"))) -> 1 | D10: =IF(H10="투입취소", 0, IF(H10="",0, COUNTIF($H$10:H10,"Plan")+COUNTIF($H$10:H10,"추가투입"))) -> 1 | E10: =IFERROR(VLOOKUP(D10,Actual_집계표!$C$19:$E$48,3,FALSE),"-") -> 투입NO | H10: Plan | I10: 1 | J10: AM | K10: PM | L10: 자사 | M10: S부장 | N10: 최종찬 | O10: 800000 | P10: BP_OUTS | Q10: 매출 귀속 SBU 자체 인력 | W10: =IF(Q10=MASTER!$D$4,V10*S10, IF(R10=MASTER!$F$4,V10*T10,0)) -> 0 | Y10: =IF(COUNTIF(X11:X$49,X10)=0,SUMIF(X$6:X$49,X10,W$6:W$49),"") -> 0
C11: =IF(H11="추가투입", 0, IF(H11="",0, COUNTIF($H$10:H11,"Plan")+COUNTIF($H$10:H11,"투입취소"))) -> 2 | D11: =IF(H11="투입취소", 0, IF(H11="",0, COUNTIF($H$10:H11,"Plan")+COUNTIF($H$10:H11,"추가투입"))) -> 2 | E11: =IFERROR(VLOOKUP(D11,Actual_집계표!$C$19:$E$48,3,FALSE),"-") -> 투입NO | H11: Plan | I11: 2 | J11: 모듈 | K11: MM | L11: 자사 | M11: 이사 | N11: 김진영 | O11: 800000 | P11: BP_OUTS | Q11: 매출 귀속 SBU 자체 인력 | W11: =IF(Q11=MASTER!$D$4,V11*S11, IF(R11=MASTER!$F$4,V11*T11,0)) -> 0 | Y11: =IF(COUNTIF(X12:X$49,X11)=0,SUMIF(X$6:X$49,X11,W$6:W$49),"") -> 0
C12: =IF(H12="추가투입", 0, IF(H12="",0, COUNTIF($H$10:H12,"Plan")+COUNTIF($H$10:H12,"투입취소"))) -> 3 | D12: =IF(H12="투입취소", 0, IF(H12="",0, COUNTIF($H$10:H12,"Plan")+COUNTIF($H$10:H12,"추가투입"))) -> 3 | E12: =IFERROR(VLOOKUP(D12,Actual_집계표!$C$19:$E$48,3,FALSE),"-") -> 투입NO | H12: Plan | I12: 3 | J12: 모듈 | K12: SD | L12: 자사 | M12: S부장 | N12: 김정훈 | O12: 800000 | P12: BP_OUTS | Q12: 매출 귀속 SBU 자체 인력 | W12: =IF(Q12=MASTER!$D$4,V12*S12, IF(R12=MASTER!$F$4,V12*T12,0)) -> 0 | Y12: =IF(COUNTIF(X13:X$49,X12)=0,SUMIF(X$6:X$49,X12,W$6:W$49),"") -> 0
C13: =IF(H13="추가투입", 0, IF(H13="",0, COUNTIF($H$10:H13,"Plan")+COUNTIF($H$10:H13,"투입취소"))) -> 4 | D13: =IF(H13="투입취소", 0, IF(H13="",0, COUNTIF($H$10:H13,"Plan")+COUNTIF($H$10:H13,"추가투입"))) -> 4 | E13: =IFERROR(VLOOKUP(D13,Actual_집계표!$C$19:$E$48,3,FALSE),"-") -> 투입NO | H13: Plan | I13: 4 | J13: 모듈 | K13: FI | L13: 자사 | M13: S부장 | N13: 한진웅 | O13: 800000 | P13: BP_OUTS | Q13: 매출 귀속 SBU 자체 인력 | W13: =IF(Q13=MASTER!$D$4,V13*S13, IF(R13=MASTER!$F$4,V13*T13,0)) -> 0 | Y13: =IF(COUNTIF(X14:X$49,X13)=0,SUMIF(X$6:X$49,X13,W$6:W$49),"") -> 0
C14: =IF(H14="추가투입", 0, IF(H14="",0, COUNTIF($H$10:H14,"Plan")+COUNTIF($H$10:H14,"투입취소"))) -> 5 | D14: =IF(H14="투입취소", 0, IF(H14="",0, COUNTIF($H$10:H14,"Plan")+COUNTIF($H$10:H14,"추가투입"))) -> 5 | E14: =IFERROR(VLOOKUP(D14,Actual_집계표!$C$19:$E$48,3,FALSE),"-") -> 투입NO | H14: Plan | I14: 5 | J14: 모듈 | K14: PO | L14: 자사 | M14: S부장 | N14: 장재국 | O14: 800000 | P14: BP_OUTS | Q14: 매출 귀속 SBU 자체 인력 | W14: =IF(Q14=MASTER!$D$4,V14*S14, IF(R14=MASTER!$F$4,V14*T14,0)) -> 0 | Y14: =IF(COUNTIF(X15:X$49,X14)=0,SUMIF(X$6:X$49,X14,W$6:W$49),"") -> 0
C15: =IF(H15="추가투입", 0, IF(H15="",0, COUNTIF($H$10:H15,"Plan")+COUNTIF($H$10:H15,"투입취소"))) -> 6 | D15: =IF(H15="투입취소", 0, IF(H15="",0, COUNTIF($H$10:H15,"Plan")+COUNTIF($H$10:H15,"추가투입"))) -> 6 | E15: =IFERROR(VLOOKUP(D15,Actual_집계표!$C$19:$E$48,3,FALSE),"-") -> 투입NO | H15: Plan | I15: 6 | J15: 모듈 | K15: ABAP | L15: 자사 | M15: 과장 | N15: 권순현 | O15: 650000 | P15: BP_OUTS | Q15: 매출 귀속 SBU 자체 인력 | W15: =IF(Q15=MASTER!$D$4,V15*S15, IF(R15=MASTER!$F$4,V15*T15,0)) -> 0 | Y15: =IF(COUNTIF(X16:X$49,X15)=0,SUMIF(X$6:X$49,X15,W$6:W$49),"") -> 0
C16: =IF(H16="추가투입", 0, IF(H16="",0, COUNTIF($H$10:H16,"Plan")+COUNTIF($H$10:H16,"투입취소"))) -> 7 | D16: =IF(H16="투입취소", 0, IF(H16="",0, COUNTIF($H$10:H16,"Plan")+COUNTIF($H$10:H16,"추가투입"))) -> 7 | E16: =IFERROR(VLOOKUP(D16,Actual_집계표!$C$19:$E$48,3,FALSE),"-") -> 투입NO | H16: Plan | I16: 7 | J16: 모듈 | K16: ABAP | L16: 자사 | M16: S부장 | N16: 이종석 | O16: 650000 | P16: BP_OUTS | Q16: 매출 귀속 SBU 자체 인력 | W16: =IF(Q16=MASTER!$D$4,V16*S16, IF(R16=MASTER!$F$4,V16*T16,0)) -> 0 | Y16: =IF(COUNTIF(X17:X$49,X16)=0,SUMIF(X$6:X$49,X16,W$6:W$49),"") -> 0
C17: =IF(H17="추가투입", 0, IF(H17="",0, COUNTIF($H$10:H17,"Plan")+COUNTIF($H$10:H17,"투입취소"))) -> 0 | D17: =IF(H17="투입취소", 0, IF(H17="",0, COUNTIF($H$10:H17,"Plan")+COUNTIF($H$10:H17,"추가투입"))) -> 0 | E17: =IFERROR(VLOOKUP(D17,Actual_집계표!$C$19:$E$48,3,FALSE),"-") -> - | I17: 8 | W17: =IF(Q17=MASTER!$D$4,V17*S17, IF(R17=MASTER!$F$4,V17*T17,0)) -> 0 | Y17: =IF(COUNTIF(X18:X$49,X17)=0,SUMIF(X$6:X$49,X17,W$6:W$49),"") -> 0
C18: =IF(H18="추가투입", 0, IF(H18="",0, COUNTIF($H$10:H18,"Plan")+COUNTIF($H$10:H18,"투입취소"))) -> 0 | D18: =IF(H18="투입취소", 0, IF(H18="",0, COUNTIF($H$10:H18,"Plan")+COUNTIF($H$10:H18,"추가투입"))) -> 0 | E18: =IFERROR(VLOOKUP(D18,Actual_집계표!$C$19:$E$48,3,FALSE),"-") -> - | I18: 9 | W18: =IF(Q18=MASTER!$D$4,V18*S18, IF(R18=MASTER!$F$4,V18*T18,0)) -> 0 | Y18: =IF(COUNTIF(X19:X$49,X18)=0,SUMIF(X$6:X$49,X18,W$6:W$49),"") -> 0
C19: =IF(H19="추가투입", 0, IF(H19="",0, COUNTIF($H$10:H19,"Plan")+COUNTIF($H$10:H19,"투입취소"))) -> 0 | D19: =IF(H19="투입취소", 0, IF(H19="",0, COUNTIF($H$10:H19,"Plan")+COUNTIF($H$10:H19,"추가투입"))) -> 0 | E19: =IFERROR(VLOOKUP(D19,Actual_집계표!$C$19:$E$48,3,FALSE),"-") -> - | I19: 10 | W19: =IF(Q19=MASTER!$D$4,V19*S19, IF(R19=MASTER!$F$4,V19*T19,0)) -> 0 | Y19: =IF(COUNTIF(X20:X$49,X19)=0,SUMIF(X$6:X$49,X19,W$6:W$49),"") -> 0
C20: =IF(H20="추가투입", 0, IF(H20="",0, COUNTIF($H$10:H20,"Plan")+COUNTIF($H$10:H20,"투입취소"))) -> 0 | D20: =IF(H20="투입취소", 0, IF(H20="",0, COUNTIF($H$10:H20,"Plan")+COUNTIF($H$10:H20,"추가투입"))) -> 0 | E20: =IFERROR(VLOOKUP(D20,Actual_집계표!$C$19:$E$48,3,FALSE),"-") -> - | I20: 11 | W20: =IF(Q20=MASTER!$D$4,V20*S20, IF(R20=MASTER!$F$4,V20*T20,0)) -> 0 | Y20: =IF(COUNTIF(X21:X$49,X20)=0,SUMIF(X$6:X$49,X20,W$6:W$49),"") -> 0
C21: =IF(H21="추가투입", 0, IF(H21="",0, COUNTIF($H$10:H21,"Plan")+COUNTIF($H$10:H21,"투입취소"))) -> 0 | D21: =IF(H21="투입취소", 0, IF(H21="",0, COUNTIF($H$10:H21,"Plan")+COUNTIF($H$10:H21,"추가투입"))) -> 0 | E21: =IFERROR(VLOOKUP(D21,Actual_집계표!$C$19:$E$48,3,FALSE),"-") -> - | I21: 12 | W21: =IF(Q21=MASTER!$D$4,V21*S21, IF(R21=MASTER!$F$4,V21*T21,0)) -> 0 | Y21: =IF(COUNTIF(X22:X$49,X21)=0,SUMIF(X$6:X$49,X21,W$6:W$49),"") -> 0
C22: =IF(H22="추가투입", 0, IF(H22="",0, COUNTIF($H$10:H22,"Plan")+COUNTIF($H$10:H22,"투입취소"))) -> 0 | D22: =IF(H22="투입취소", 0, IF(H22="",0, COUNTIF($H$10:H22,"Plan")+COUNTIF($H$10:H22,"추가투입"))) -> 0 | E22: =IFERROR(VLOOKUP(D22,Actual_집계표!$C$19:$E$48,3,FALSE),"-") -> - | I22: 13 | W22: =IF(Q22=MASTER!$D$4,V22*S22, IF(R22=MASTER!$F$4,V22*T22,0)) -> 0 | Y22: =IF(COUNTIF(X23:X$49,X22)=0,SUMIF(X$6:X$49,X22,W$6:W$49),"") -> 0
C23: =IF(H23="추가투입", 0, IF(H23="",0, COUNTIF($H$10:H23,"Plan")+COUNTIF($H$10:H23,"투입취소"))) -> 0 | D23: =IF(H23="투입취소", 0, IF(H23="",0, COUNTIF($H$10:H23,"Plan")+COUNTIF($H$10:H23,"추가투입"))) -> 0 | E23: =IFERROR(VLOOKUP(D23,Actual_집계표!$C$19:$E$48,3,FALSE),"-") -> - | I23: 14 | W23: =IF(Q23=MASTER!$D$4,V23*S23, IF(R23=MASTER!$F$4,V23*T23,0)) -> 0 | Y23: =IF(COUNTIF(X24:X$49,X23)=0,SUMIF(X$6:X$49,X23,W$6:W$49),"") -> 0
C24: =IF(H24="추가투입", 0, IF(H24="",0, COUNTIF($H$10:H24,"Plan")+COUNTIF($H$10:H24,"투입취소"))) -> 0 | D24: =IF(H24="투입취소", 0, IF(H24="",0, COUNTIF($H$10:H24,"Plan")+COUNTIF($H$10:H24,"추가투입"))) -> 0 | E24: =IFERROR(VLOOKUP(D24,Actual_집계표!$C$19:$E$48,3,FALSE),"-") -> - | I24: 15 | W24: =IF(Q24=MASTER!$D$4,V24*S24, IF(R24=MASTER!$F$4,V24*T24,0)) -> 0 | Y24: =IF(COUNTIF(X25:X$49,X24)=0,SUMIF(X$6:X$49,X24,W$6:W$49),"") -> 0
C25: =IF(H25="추가투입", 0, IF(H25="",0, COUNTIF($H$10:H25,"Plan")+COUNTIF($H$10:H25,"투입취소"))) -> 0 | D25: =IF(H25="투입취소", 0, IF(H25="",0, COUNTIF($H$10:H25,"Plan")+COUNTIF($H$10:H25,"추가투입"))) -> 0 | E25: =IFERROR(VLOOKUP(D25,Actual_집계표!$C$19:$E$48,3,FALSE),"-") -> - | I25: 16 | W25: =IF(Q25=MASTER!$D$4,V25*S25, IF(R25=MASTER!$F$4,V25*T25,0)) -> 0 | Y25: =IF(COUNTIF(X26:X$49,X25)=0,SUMIF(X$6:X$49,X25,W$6:W$49),"") -> 0
C26: =IF(H26="추가투입", 0, IF(H26="",0, COUNTIF($H$10:H26,"Plan")+COUNTIF($H$10:H26,"투입취소"))) -> 0 | D26: =IF(H26="투입취소", 0, IF(H26="",0, COUNTIF($H$10:H26,"Plan")+COUNTIF($H$10:H26,"추가투입"))) -> 0 | E26: =IFERROR(VLOOKUP(D26,Actual_집계표!$C$19:$E$48,3,FALSE),"-") -> - | I26: 17 | W26: =IF(Q26=MASTER!$D$4,V26*S26, IF(R26=MASTER!$F$4,V26*T26,0)) -> 0 | Y26: =IF(COUNTIF(X27:X$49,X26)=0,SUMIF(X$6:X$49,X26,W$6:W$49),"") -> 0
C27: =IF(H27="추가투입", 0, IF(H27="",0, COUNTIF($H$10:H27,"Plan")+COUNTIF($H$10:H27,"투입취소"))) -> 0 | D27: =IF(H27="투입취소", 0, IF(H27="",0, COUNTIF($H$10:H27,"Plan")+COUNTIF($H$10:H27,"추가투입"))) -> 0 | E27: =IFERROR(VLOOKUP(D27,Actual_집계표!$C$19:$E$48,3,FALSE),"-") -> - | I27: 18 | W27: =IF(Q27=MASTER!$D$4,V27*S27, IF(R27=MASTER!$F$4,V27*T27,0)) -> 0 | Y27: =IF(COUNTIF(X28:X$49,X27)=0,SUMIF(X$6:X$49,X27,W$6:W$49),"") -> 0
C28: =IF(H28="추가투입", 0, IF(H28="",0, COUNTIF($H$10:H28,"Plan")+COUNTIF($H$10:H28,"투입취소"))) -> 0 | D28: =IF(H28="투입취소", 0, IF(H28="",0, COUNTIF($H$10:H28,"Plan")+COUNTIF($H$10:H28,"추가투입"))) -> 0 | E28: =IFERROR(VLOOKUP(D28,Actual_집계표!$C$19:$E$48,3,FALSE),"-") -> - | I28: 19 | W28: =IF(Q28=MASTER!$D$4,V28*S28, IF(R28=MASTER!$F$4,V28*T28,0)) -> 0 | Y28: =IF(COUNTIF(X29:X$49,X28)=0,SUMIF(X$6:X$49,X28,W$6:W$49),"") -> 0
C29: =IF(H29="추가투입", 0, IF(H29="",0, COUNTIF($H$10:H29,"Plan")+COUNTIF($H$10:H29,"투입취소"))) -> 0 | D29: =IF(H29="투입취소", 0, IF(H29="",0, COUNTIF($H$10:H29,"Plan")+COUNTIF($H$10:H29,"추가투입"))) -> 0 | E29: =IFERROR(VLOOKUP(D29,Actual_집계표!$C$19:$E$48,3,FALSE),"-") -> - | I29: 20 | W29: =IF(Q29=MASTER!$D$4,V29*S29, IF(R29=MASTER!$F$4,V29*T29,0)) -> 0 | Y29: =IF(COUNTIF(X30:X$49,X29)=0,SUMIF(X$6:X$49,X29,W$6:W$49),"") -> 0
C30: =IF(H30="추가투입", 0, IF(H30="",0, COUNTIF($H$10:H30,"Plan")+COUNTIF($H$10:H30,"투입취소"))) -> 0 | D30: =IF(H30="투입취소", 0, IF(H30="",0, COUNTIF($H$10:H30,"Plan")+COUNTIF($H$10:H30,"추가투입"))) -> 0 | E30: =IFERROR(VLOOKUP(D30,Actual_집계표!$C$19:$E$48,3,FALSE),"-") -> - | I30: 21 | W30: =IF(Q30=MASTER!$D$4,V30*S30, IF(R30=MASTER!$F$4,V30*T30,0)) -> 0 | Y30: =IF(COUNTIF(X31:X$49,X30)=0,SUMIF(X$6:X$49,X30,W$6:W$49),"") -> 0
C31: =IF(H31="추가투입", 0, IF(H31="",0, COUNTIF($H$10:H31,"Plan")+COUNTIF($H$10:H31,"투입취소"))) -> 0 | D31: =IF(H31="투입취소", 0, IF(H31="",0, COUNTIF($H$10:H31,"Plan")+COUNTIF($H$10:H31,"추가투입"))) -> 0 | E31: =IFERROR(VLOOKUP(D31,Actual_집계표!$C$19:$E$48,3,FALSE),"-") -> - | I31: 22 | W31: =IF(Q31=MASTER!$D$4,V31*S31, IF(R31=MASTER!$F$4,V31*T31,0)) -> 0 | Y31: =IF(COUNTIF(X32:X$49,X31)=0,SUMIF(X$6:X$49,X31,W$6:W$49),"") -> 0
C32: =IF(H32="추가투입", 0, IF(H32="",0, COUNTIF($H$10:H32,"Plan")+COUNTIF($H$10:H32,"투입취소"))) -> 0 | D32: =IF(H32="투입취소", 0, IF(H32="",0, COUNTIF($H$10:H32,"Plan")+COUNTIF($H$10:H32,"추가투입"))) -> 0 | E32: =IFERROR(VLOOKUP(D32,Actual_집계표!$C$19:$E$48,3,FALSE),"-") -> - | I32: 23 | W32: =IF(Q32=MASTER!$D$4,V32*S32, IF(R32=MASTER!$F$4,V32*T32,0)) -> 0 | Y32: =IF(COUNTIF(X33:X$49,X32)=0,SUMIF(X$6:X$49,X32,W$6:W$49),"") -> 0
C33: =IF(H33="추가투입", 0, IF(H33="",0, COUNTIF($H$10:H33,"Plan")+COUNTIF($H$10:H33,"투입취소"))) -> 0 | D33: =IF(H33="투입취소", 0, IF(H33="",0, COUNTIF($H$10:H33,"Plan")+COUNTIF($H$10:H33,"추가투입"))) -> 0 | E33: =IFERROR(VLOOKUP(D33,Actual_집계표!$C$19:$E$48,3,FALSE),"-") -> - | I33: 24 | W33: =IF(Q33=MASTER!$D$4,V33*S33, IF(R33=MASTER!$F$4,V33*T33,0)) -> 0 | Y33: =IF(COUNTIF(X34:X$49,X33)=0,SUMIF(X$6:X$49,X33,W$6:W$49),"") -> 0
C34: =IF(H34="추가투입", 0, IF(H34="",0, COUNTIF($H$10:H34,"Plan")+COUNTIF($H$10:H34,"투입취소"))) -> 0 | D34: =IF(H34="투입취소", 0, IF(H34="",0, COUNTIF($H$10:H34,"Plan")+COUNTIF($H$10:H34,"추가투입"))) -> 0 | E34: =IFERROR(VLOOKUP(D34,Actual_집계표!$C$19:$E$48,3,FALSE),"-") -> - | I34: 25 | W34: =IF(Q34=MASTER!$D$4,V34*S34, IF(R34=MASTER!$F$4,V34*T34,0)) -> 0 | Y34: =IF(COUNTIF(X35:X$49,X34)=0,SUMIF(X$6:X$49,X34,W$6:W$49),"") -> 0
C35: =IF(H35="추가투입", 0, IF(H35="",0, COUNTIF($H$10:H35,"Plan")+COUNTIF($H$10:H35,"투입취소"))) -> 0 | D35: =IF(H35="투입취소", 0, IF(H35="",0, COUNTIF($H$10:H35,"Plan")+COUNTIF($H$10:H35,"추가투입"))) -> 0 | E35: =IFERROR(VLOOKUP(D35,Actual_집계표!$C$19:$E$48,3,FALSE),"-") -> - | I35: 26 | W35: =IF(Q35=MASTER!$D$4,V35*S35, IF(R35=MASTER!$F$4,V35*T35,0)) -> 0 | Y35: =IF(COUNTIF(X36:X$49,X35)=0,SUMIF(X$6:X$49,X35,W$6:W$49),"") -> 0
C36: =IF(H36="추가투입", 0, IF(H36="",0, COUNTIF($H$10:H36,"Plan")+COUNTIF($H$10:H36,"투입취소"))) -> 0 | D36: =IF(H36="투입취소", 0, IF(H36="",0, COUNTIF($H$10:H36,"Plan")+COUNTIF($H$10:H36,"추가투입"))) -> 0 | E36: =IFERROR(VLOOKUP(D36,Actual_집계표!$C$19:$E$48,3,FALSE),"-") -> - | I36: 27 | W36: =IF(Q36=MASTER!$D$4,V36*S36, IF(R36=MASTER!$F$4,V36*T36,0)) -> 0 | Y36: =IF(COUNTIF(X37:X$49,X36)=0,SUMIF(X$6:X$49,X36,W$6:W$49),"") -> 0
C37: =IF(H37="추가투입", 0, IF(H37="",0, COUNTIF($H$10:H37,"Plan")+COUNTIF($H$10:H37,"투입취소"))) -> 0 | D37: =IF(H37="투입취소", 0, IF(H37="",0, COUNTIF($H$10:H37,"Plan")+COUNTIF($H$10:H37,"추가투입"))) -> 0 | E37: =IFERROR(VLOOKUP(D37,Actual_집계표!$C$19:$E$48,3,FALSE),"-") -> - | I37: 28 | W37: =IF(Q37=MASTER!$D$4,V37*S37, IF(R37=MASTER!$F$4,V37*T37,0)) -> 0 | Y37: =IF(COUNTIF(X38:X$49,X37)=0,SUMIF(X$6:X$49,X37,W$6:W$49),"") -> 0
C38: =IF(H38="추가투입", 0, IF(H38="",0, COUNTIF($H$10:H38,"Plan")+COUNTIF($H$10:H38,"투입취소"))) -> 0 | D38: =IF(H38="투입취소", 0, IF(H38="",0, COUNTIF($H$10:H38,"Plan")+COUNTIF($H$10:H38,"추가투입"))) -> 0 | E38: =IFERROR(VLOOKUP(D38,Actual_집계표!$C$19:$E$48,3,FALSE),"-") -> - | I38: 29 | W38: =IF(Q38=MASTER!$D$4,V38*S38, IF(R38=MASTER!$F$4,V38*T38,0)) -> 0 | Y38: =IF(COUNTIF(X39:X$49,X38)=0,SUMIF(X$6:X$49,X38,W$6:W$49),"") -> 0
C39: =IF(H39="추가투입", 0, IF(H39="",0, COUNTIF($H$10:H39,"Plan")+COUNTIF($H$10:H39,"투입취소"))) -> 0 | D39: =IF(H39="투입취소", 0, IF(H39="",0, COUNTIF($H$10:H39,"Plan")+COUNTIF($H$10:H39,"추가투입"))) -> 0 | E39: =IFERROR(VLOOKUP(D39,Actual_집계표!$C$19:$E$48,3,FALSE),"-") -> - | I39: 30 | W39: =IF(Q39=MASTER!$D$4,V39*S39, IF(R39=MASTER!$F$4,V39*T39,0)) -> 0 | Y39: =IF(COUNTIF(X40:X$49,X39)=0,SUMIF(X$6:X$49,X39,W$6:W$49),"") -> 0
C40: =IF(H40="추가투입", 0, IF(H40="",0, COUNTIF($H$10:H40,"Plan")+COUNTIF($H$10:H40,"투입취소"))) -> 0 | D40: =IF(H40="투입취소", 0, IF(H40="",0, COUNTIF($H$10:H40,"Plan")+COUNTIF($H$10:H40,"추가투입"))) -> 0 | E40: =IFERROR(VLOOKUP(D40,Actual_집계표!$C$19:$E$48,3,FALSE),"-") -> - | I40: 31 | W40: =IF(Q40=MASTER!$D$4,V40*S40, IF(R40=MASTER!$F$4,V40*T40,0)) -> 0 | Y40: =IF(COUNTIF(X41:X$49,X40)=0,SUMIF(X$6:X$49,X40,W$6:W$49),"") -> 0
C41: =IF(H41="추가투입", 0, IF(H41="",0, COUNTIF($H$10:H41,"Plan")+COUNTIF($H$10:H41,"투입취소"))) -> 0 | D41: =IF(H41="투입취소", 0, IF(H41="",0, COUNTIF($H$10:H41,"Plan")+COUNTIF($H$10:H41,"추가투입"))) -> 0 | E41: =IFERROR(VLOOKUP(D41,Actual_집계표!$C$19:$E$48,3,FALSE),"-") -> - | I41: 32 | W41: =IF(Q41=MASTER!$D$4,V41*S41, IF(R41=MASTER!$F$4,V41*T41,0)) -> 0 | Y41: =IF(COUNTIF(X42:X$49,X41)=0,SUMIF(X$6:X$49,X41,W$6:W$49),"") -> 0
C42: =IF(H42="추가투입", 0, IF(H42="",0, COUNTIF($H$10:H42,"Plan")+COUNTIF($H$10:H42,"투입취소"))) -> 0 | D42: =IF(H42="투입취소", 0, IF(H42="",0, COUNTIF($H$10:H42,"Plan")+COUNTIF($H$10:H42,"추가투입"))) -> 0 | E42: =IFERROR(VLOOKUP(D42,Actual_집계표!$C$19:$E$48,3,FALSE),"-") -> - | I42: 33 | W42: =IF(Q42=MASTER!$D$4,V42*S42, IF(R42=MASTER!$F$4,V42*T42,0)) -> 0 | Y42: =IF(COUNTIF(X43:X$49,X42)=0,SUMIF(X$6:X$49,X42,W$6:W$49),"") -> 0
C43: =IF(H43="추가투입", 0, IF(H43="",0, COUNTIF($H$10:H43,"Plan")+COUNTIF($H$10:H43,"투입취소"))) -> 0 | D43: =IF(H43="투입취소", 0, IF(H43="",0, COUNTIF($H$10:H43,"Plan")+COUNTIF($H$10:H43,"추가투입"))) -> 0 | E43: =IFERROR(VLOOKUP(D43,Actual_집계표!$C$19:$E$48,3,FALSE),"-") -> - | I43: 34 | W43: =IF(Q43=MASTER!$D$4,V43*S43, IF(R43=MASTER!$F$4,V43*T43,0)) -> 0 | Y43: =IF(COUNTIF(X44:X$49,X43)=0,SUMIF(X$6:X$49,X43,W$6:W$49),"") -> 0
C44: =IF(H44="추가투입", 0, IF(H44="",0, COUNTIF($H$10:H44,"Plan")+COUNTIF($H$10:H44,"투입취소"))) -> 0 | D44: =IF(H44="투입취소", 0, IF(H44="",0, COUNTIF($H$10:H44,"Plan")+COUNTIF($H$10:H44,"추가투입"))) -> 0 | E44: =IFERROR(VLOOKUP(D44,Actual_집계표!$C$19:$E$48,3,FALSE),"-") -> - | I44: 35 | W44: =IF(Q44=MASTER!$D$4,V44*S44, IF(R44=MASTER!$F$4,V44*T44,0)) -> 0 | Y44: =IF(COUNTIF(X45:X$49,X44)=0,SUMIF(X$6:X$49,X44,W$6:W$49),"") -> 0
C45: =IF(H45="추가투입", 0, IF(H45="",0, COUNTIF($H$10:H45,"Plan")+COUNTIF($H$10:H45,"투입취소"))) -> 0 | D45: =IF(H45="투입취소", 0, IF(H45="",0, COUNTIF($H$10:H45,"Plan")+COUNTIF($H$10:H45,"추가투입"))) -> 0 | E45: =IFERROR(VLOOKUP(D45,Actual_집계표!$C$19:$E$48,3,FALSE),"-") -> - | I45: 36 | W45: =IF(Q45=MASTER!$D$4,V45*S45, IF(R45=MASTER!$F$4,V45*T45,0)) -> 0 | Y45: =IF(COUNTIF(X46:X$49,X45)=0,SUMIF(X$6:X$49,X45,W$6:W$49),"") -> 0
C46: =IF(H46="추가투입", 0, IF(H46="",0, COUNTIF($H$10:H46,"Plan")+COUNTIF($H$10:H46,"투입취소"))) -> 0 | D46: =IF(H46="투입취소", 0, IF(H46="",0, COUNTIF($H$10:H46,"Plan")+COUNTIF($H$10:H46,"추가투입"))) -> 0 | E46: =IFERROR(VLOOKUP(D46,Actual_집계표!$C$19:$E$48,3,FALSE),"-") -> - | I46: 37 | W46: =IF(Q46=MASTER!$D$4,V46*S46, IF(R46=MASTER!$F$4,V46*T46,0)) -> 0 | Y46: =IF(COUNTIF(X47:X$49,X46)=0,SUMIF(X$6:X$49,X46,W$6:W$49),"") -> 0
C47: =IF(H47="추가투입", 0, IF(H47="",0, COUNTIF($H$10:H47,"Plan")+COUNTIF($H$10:H47,"투입취소"))) -> 0 | D47: =IF(H47="투입취소", 0, IF(H47="",0, COUNTIF($H$10:H47,"Plan")+COUNTIF($H$10:H47,"추가투입"))) -> 0 | E47: =IFERROR(VLOOKUP(D47,Actual_집계표!$C$19:$E$48,3,FALSE),"-") -> - | I47: 38 | W47: =IF(Q47=MASTER!$D$4,V47*S47, IF(R47=MASTER!$F$4,V47*T47,0)) -> 0 | Y47: =IF(COUNTIF(X48:X$49,X47)=0,SUMIF(X$6:X$49,X47,W$6:W$49),"") -> 0
C48: =IF(H48="추가투입", 0, IF(H48="",0, COUNTIF($H$10:H48,"Plan")+COUNTIF($H$10:H48,"투입취소"))) -> 0 | D48: =IF(H48="투입취소", 0, IF(H48="",0, COUNTIF($H$10:H48,"Plan")+COUNTIF($H$10:H48,"추가투입"))) -> 0 | E48: =IFERROR(VLOOKUP(D48,Actual_집계표!$C$19:$E$48,3,FALSE),"-") -> - | I48: 39 | W48: =IF(Q48=MASTER!$D$4,V48*S48, IF(R48=MASTER!$F$4,V48*T48,0)) -> 0 | Y48: =IF(COUNTIF(X49:X$49,X48)=0,SUMIF(X$6:X$49,X48,W$6:W$49),"") -> 0
C49: =IF(H49="추가투입", 0, IF(H49="",0, COUNTIF($H$10:H49,"Plan")+COUNTIF($H$10:H49,"투입취소"))) -> 0 | D49: =IF(H49="투입취소", 0, IF(H49="",0, COUNTIF($H$10:H49,"Plan")+COUNTIF($H$10:H49,"추가투입"))) -> 0 | E49: =IFERROR(VLOOKUP(D49,Actual_집계표!$C$19:$E$48,3,FALSE),"-") -> - | I49: 40 | W49: =IF(Q49=MASTER!$D$4,V49*S49, IF(R49=MASTER!$F$4,V49*T49,0)) -> 0 | Y49: =IF(COUNTIF(X$50:X50,X49)=0,SUMIF(X$6:X$49,X49,W$6:W$49),"") -> 0
W50: =SUM(W10:W49) -> 0 | X50: TOTAL | Y50: =SUM(Y10:Y49) -> 0

Sheet Plan_집계표
I2: 프로젝트 전체 Plan vs. Actual
H3: (단위: 원) | I3: Plan | J3: Actual | K3: Plan - Actual | O3: (Plan) Special D/C | S3: =BA48 -> 2550000
H4: 총 용역 매출액 | I4: ='Plan vs. Actual'!H10 -> 150000000 | J4: ='Plan vs. Actual'!I10 -> 150000000 | K4: ='Plan vs. Actual'!J10 -> 0
H5: 사외용역 원가 | I5: ='Plan vs. Actual'!H11 -> 0 | J5: ='Plan vs. Actual'!I11 -> 0 | K5: ='Plan vs. Actual'!J11 -> 0
H6: 사내용역 원가 | I6: ='Plan vs. Actual'!H12 -> 0 | J6: ='Plan vs. Actual'!I12 -> 0 | K6: ='Plan vs. Actual'!J12 -> 0
H8: ='Project 관련 정보'!D5 -> 150000000 | I8: 최초 작성 여부 | J8: 최초작성아님 | N8: =Actual_집계표!N9 -> 0 | P8: =Actual_집계표!P9 -> 0 | R8: =Actual_집계표!R9 -> 0 | T8: =Actual_집계표!T9 -> 0 | V8: =Actual_집계표!V9 -> 0 | X8: =Actual_집계표!X9 -> 1 | Z8: =Actual_집계표!Z9 -> 1 | AB8: =Actual_집계표!AB9 -> 1 | AD8: =Actual_집계표!AD9 -> 1 | AF8: =Actual_집계표!AF9 -> 1 | AH8: =Actual_집계표!AH9 -> 1 | AJ8: =Actual_집계표!AJ9 -> 1 | AL8: =Actual_집계표!AL9 -> 1 | AN8: =Actual_집계표!AN9 -> 1 | AP8: =Actual_집계표!AP9 -> 1 | AR8: =Actual_집계표!AR9 -> 1 | AT8: =Actual_집계표!AT9 -> 1 | AV8: =Actual_집계표!AV9 -> 1
H9: ='Project 관련 정보'!D6 -> 0 | I9: Plan 수정 여부 | J9: Plan수정
G11: No. | H11: 컨설팅 영역분류 | I11: 컨설팅 영역분류 | J11: Remarks | K11: 직급 (경력) (연차) | L11: 이름 | M11: 투입일정 (Man/Day) | AW11: Total 투입 M/D | AZ11: 계약 가격 | BB11: 프로젝트 경비 (원) | BT11: 매출 귀속 SBU | BU11: 인력 Sourcing MAIN 채널 | BV11: 인력 Sourcing SUB 채널 (MAIN 채널이 '내부거래'인경우) | BW11: [매출귀속 SBU <-> MAIN 채널] 내부거래/외주계약 단가 (원 / Day) | BX11: [MAIN 채널 <-> SUB 채널] 내부거래/외주계약 단가 (원 / Day) | BZ11: 외주계약 컨설턴트 지급금액 합계 (원) | CA11: 외주계약 컨설턴트 소속 조직 (거래처 명) | CB11: 거래처별 지급 비용 합계 (원) | CH11: 투입일정 (Man/Day) - Billable M/D 추출 | DA11: 전체 Project 용역 매출액 (원) = 용역 매출액 (단가 * Billable MD) + Project경비 | DT11: 1차 - 내부거래 / 외주계약 단가 기준 매출액 = 내부거래 단가 (or 외주계약 단가) * Billable MD | EM11: 2차 - 내부거래 / 외주계약 단가 기준 매출액 = 내부거래 단가 (or 외주계약 단가) * Billable MD
N12: M1 | P12: M2 | R12: M3 | T12: M4 | V12: M5 | X12: M6 | Z12: M7 | AB12: M8 | AD12: M9 | AF12: M10 | AH12: M11 | AJ12: M12 | AL12: M13 | AN12: M14 | AP12: M15 | AR12: M16 | AT12: M17 | AV12: M18 | AW12: Total | AX12: Billable | AY12: Non -Billable | AZ12: Daily 단가 (원) | BA12: 합계 (원) | BB12: M1 | BC12: M2 | BD12: M3 | BE12: M4 | BF12: M5 | BG12: M6 | BH12: M7 | BI12: M8 | BJ12: M9 | BK12: M10 | BL12: M11 | BM12: M12 | BN12: M13 | BO12: M14 | BP12: M15 | BQ12: M16 | BR12: M17 | BS12: M18 | CH12: M1 | CI12: M2 | CJ12: M3 | CK12: M4 | CL12: M5 | CM12: M6 | CN12: M7 | CO12: M8 | CP12: M9 | CQ12: M10 | CR12: M11 | CS12: M12 | CT12: M13 | CU12: M14 | CV12: M15 | CW12: M16 | CX12: M17 | CY12: M18 | DA12: M1 | DB12: M2 | DC12: M3 | DD12: M4 | DE12: M5 | DF12: M6 | DG12: M7 | DH12: M8 | DI12: M9 | DJ12: M10 | DK12: M11 | DL12: M12 | DM12: M13 | DN12: M14 | DO12: M15 | DP12: M16 | DQ12: M17 | DR12: M18 | DS12: FLAG | DT12: M1 | DU12: M2 | DV12: M3 | DW12: M4 | DX12: M5 | DY12: M6 | DZ12: M7 | EA12: M8 | EB12: M9 | EC12: M10 | ED12: M11 | EE12: M12 | EF12: M13 | EG12: M14 | EH12: M15 | EI12: M16 | EJ12: M17 | EK12: M18 | EM12: M1 | EN12: M2 | EO12: M3 | EP12: M4 | EQ12: M5 | ER12: M6 | ES12: M7 | ET12: M8 | EU12: M9 | EV12: M10 | EW12: M11 | EX12: M12 | EY12: M13 | EZ12: M14 | FA12: M15 | FB12: M16 | FC12: M17 | FD12: M18
H13: Level 1 | I13: Level 2 | N13: =YEAR('Project 관련 정보'!D16) -> 2022 | P13: =IF(OR(AND(N13=YEAR('Project 관련 정보'!$D$17),N14=MONTH('Project 관련 정보'!$D$17)),N13=""),"",YEAR(EDATE('Project 관련 정보'!$D$16,1))) -> 2022 | R13: =IF(OR(AND(P13=YEAR('Project 관련 정보'!$D$17),P14=MONTH('Project 관련 정보'!$D$17)),P13=""),"",YEAR(EDATE('Project 관련 정보'!$D$16,2))) -> 2022 | T13: =IF(OR(AND(R13=YEAR('Project 관련 정보'!$D$17),R14=MONTH('Project 관련 정보'!$D$17)),R13=""),"",YEAR(EDATE('Project 관련 정보'!$D$16,3))) -> 2022 | V13: =IF(OR(AND(T13=YEAR('Project 관련 정보'!$D$17),T14=MONTH('Project 관련 정보'!$D$17)),T13=""),"",YEAR(EDATE('Project 관련 정보'!$D$16,4))) -> 2023 | X13: =IF(OR(AND(V13=YEAR('Project 관련 정보'!$D$17),V14=MONTH('Project 관련 정보'!$D$17)),V13=""),"",YEAR(EDATE('Project 관련 정보'!$D$16,5))) ->  | Z13: =IF(OR(AND(X13=YEAR('Project 관련 정보'!$D$17),X14=MONTH('Project 관련 정보'!$D$17)),X13=""),"",YEAR(EDATE('Project 관련 정보'!$D$16,6))) ->  | AB13: =IF(OR(AND(Z13=YEAR('Project 관련 정보'!$D$17),Z14=MONTH('Project 관련 정보'!$D$17)),Z13=""),"",YEAR(EDATE('Project 관련 정보'!$D$16,7))) ->  | AD13: =IF(OR(AND(AB13=YEAR('Project 관련 정보'!$D$17),AB14=MONTH('Project 관련 정보'!$D$17)),AB13=""),"",YEAR(EDATE('Project 관련 정보'!$D$16,8))) ->  | AF13: =IF(OR(AND(AD13=YEAR('Project 관련 정보'!$D$17),AD14=MONTH('Project 관련 정보'!$D$17)),AD13=""),"",YEAR(EDATE('Project 관련 정보'!$D$16,9))) ->  | AH13: =IF(OR(AND(AF13=YEAR('Project 관련 정보'!$D$17),AF14=MONTH('Project 관련 정보'!$D$17)),AF13=""),"",YEAR(EDATE('Project 관련 정보'!$D$16,10))) ->  | AJ13: =IF(OR(AND(AH13=YEAR('Project 관련 정보'!$D$17),AH14=MONTH('Project 관련 정보'!$D$17)),AH13=""),"",YEAR(EDATE('Project 관련 정보'!$D$16,11))) ->  | AL13: =IF(OR(AND(AJ13=YEAR('Project 관련 정보'!$D$17),AJ14=MONTH('Project 관련 정보'!$D$17)),AJ13=""),"",YEAR(EDATE('Project 관련 정보'!$D$16,12))) ->  | AN13: =IF(OR(AND(AL13=YEAR('Project 관련 정보'!$D$17),AL14=MONTH('Project 관련 정보'!$D$17)),AL13=""),"",YEAR(EDATE('Project 관련 정보'!$D$16,13))) ->  | AP13: =IF(OR(AND(AN13=YEAR('Project 관련 정보'!$D$17),AN14=MONTH('Project 관련 정보'!$D$17)),AN13=""),"",YEAR(EDATE('Project 관련 정보'!$D$16,14))) ->  | AR13: =IF(OR(AND(AP13=YEAR('Project 관련 정보'!$D$17),AP14=MONTH('Project 관련 정보'!$D$17)),AP13=""),"",YEAR(EDATE('Project 관련 정보'!$D$16,15))) ->  | AT13: =IF(OR(AND(AR13=YEAR('Project 관련 정보'!$D$17),AR14=MONTH('Project 관련 정보'!$D$17)),AR13=""),"",YEAR(EDATE('Project 관련 정보'!$D$16,16))) ->  | AV13: =IF(OR(AND(AT13=YEAR('Project 관련 정보'!$D$17),AT14=MONTH('Project 관련 정보'!$D$17)),AT13=""),"",YEAR(EDATE('Project 관련 정보'!$D$16,17))) ->  | BB13: =N13 -> 2022 | BC13: =P13 -> 2022 | BD13: =R13 -> 2022 | BE13: =T13 -> 2022 | BF13: =V13 -> 2023 | BG13: =X13 ->  | BH13: =Z13 ->  | BI13: =AB13 ->  | BJ13: =AD13 ->  | BK13: =AF13 ->  | BL13: =AH13 ->  | BM13: =AJ13 ->  | BN13: =AL13 ->  | BO13: =AN13 ->  | BP13: =AP13 ->  | BQ13: =AR13 ->  | BR13: =AT13 ->  | BS13: =AV13 -> 
D14: 투입여부 | N14: =MONTH('Project 관련 정보'!D16) -> 9 | P14: =IF(OR(AND(N13=YEAR('Project 관련 정보'!$D$17),N14=MONTH('Project 관련 정보'!$D$17)),N14=""),"",MONTH(EDATE('Project 관련 정보'!$D$16,1))) -> 10 | R14: =IF(OR(AND(P13=YEAR('Project 관련 정보'!$D$17),P14=MONTH('Project 관련 정보'!$D$17)),P14=""),"",MONTH(EDATE('Project 관련 정보'!$D$16,2))) -> 11 | T14: =IF(OR(AND(R13=YEAR('Project 관련 정보'!$D$17),R14=MONTH('Project 관련 정보'!$D$17)),R14=""),"",MONTH(EDATE('Project 관련 정보'!$D$16,3))) -> 12 | V14: =IF(OR(AND(T13=YEAR('Project 관련 정보'!$D$17),T14=MONTH('Project 관련 정보'!$D$17)),T14=""),"",MONTH(EDATE('Project 관련 정보'!$D$16,4))) -> 1 | X14: =IF(OR(AND(V13=YEAR('Project 관련 정보'!$D$17),V14=MONTH('Project 관련 정보'!$D$17)),V14=""),"",MONTH(EDATE('Project 관련 정보'!$D$16,5))) ->  | Z14: =IF(OR(AND(X13=YEAR('Project 관련 정보'!$D$17),X14=MONTH('Project 관련 정보'!$D$17)),X14=""),"",MONTH(EDATE('Project 관련 정보'!$D$16,6))) ->  | AB14: =IF(OR(AND(Z13=YEAR('Project 관련 정보'!$D$17),Z14=MONTH('Project 관련 정보'!$D$17)),Z14=""),"",MONTH(EDATE('Project 관련 정보'!$D$16,7))) ->  | AD14: =IF(OR(AND(AB13=YEAR('Project 관련 정보'!$D$17),AB14=MONTH('Project 관련 정보'!$D$17)),AB14=""),"",MONTH(EDATE('Project 관련 정보'!$D$16,8))) ->  | AF14: =IF(OR(AND(AD13=YEAR('Project 관련 정보'!$D$17),AD14=MONTH('Project 관련 정보'!$D$17)),AD14=""),"",MONTH(EDATE('Project 관련 정보'!$D$16,9))) ->  | AH14: =IF(OR(AND(AF13=YEAR('Project 관련 정보'!$D$17),AF14=MONTH('Project 관련 정보'!$D$17)),AF14=""),"",MONTH(EDATE('Project 관련 정보'!$D$16,10))) ->  | AJ14: =IF(OR(AND(AH13=YEAR('Project 관련 정보'!$D$17),AH14=MONTH('Project 관련 정보'!$D$17)),AH14=""),"",MONTH(EDATE('Project 관련 정보'!$D$16,11))) ->  | AL14: =IF(OR(AND(AJ13=YEAR('Project 관련 정보'!$D$17),AJ14=MONTH('Project 관련 정보'!$D$17)),AJ14=""),"",MONTH(EDATE('Project 관련 정보'!$D$16,12))) ->  | AN14: =IF(OR(AND(AL13=YEAR('Project 관련 정보'!$D$17),AL14=MONTH('Project 관련 정보'!$D$17)),AL14=""),"",MONTH(EDATE('Project 관련 정보'!$D$16,13))) ->  | AP14: =IF(OR(AND(AN13=YEAR('Project 관련 정보'!$D$17),AN14=MONTH('Project 관련 정보'!$D$17)),AN14=""),"",MONTH(EDATE('Project 관련 정보'!$D$16,14))) ->  | AR14: =IF(OR(AND(AP13=YEAR('Project 관련 정보'!$D$17),AP14=MONTH('Project 관련 정보'!$D$17)),AP14=""),"",MONTH(EDATE('Project 관련 정보'!$D$16,15))) ->  | AT14: =IF(OR(AND(AR13=YEAR('Project 관련 정보'!$D$17),AR14=MONTH('Project 관련 정보'!$D$17)),AR14=""),"",MONTH(EDATE('Project 관련 정보'!$D$16,16))) ->  | AV14: =IF(OR(AND(AT13=YEAR('Project 관련 정보'!$D$17),AT14=MONTH('Project 관련 정보'!$D$17)),AT14=""),"",MONTH(EDATE('Project 관련 정보'!$D$16,17))) ->  | BB14: =N14 -> 9 | BC14: =P14 -> 10 | BD14: =R14 -> 11 | BE14: =T14 -> 12 | BF14: =V14 -> 1 | BG14: =X14 ->  | BH14: =Z14 ->  | BI14: =AB14 ->  | BJ14: =AD14 ->  | BK14: =AF14 ->  | BL14: =AH14 ->  | BM14: =AJ14 ->  | BN14: =AL14 ->  | BO14: =AN14 ->  | BP14: =AP14 ->  | BQ14: =AR14 ->  | BR14: =AT14 ->  | BS14: =AV14 -> 
D15: =IF( ISERROR(VLOOKUP(G15,'투입인력 단가'!$C$10:$E$49,3,FALSE)), "No Item", IF( VLOOKUP(G15,'투입인력 단가'!$C$10:$E$49,3,FALSE)="-", "투입취소", VLOOKUP(G15,'투입인력 단가'!$C$10:$E$49,3,FALSE))) -> 투입NO | G15: 1 | H15: =CLEAN(IFERROR(VLOOKUP(G15,'투입인력 단가'!$C$10:$Y$49,8,FALSE),"")) -> AM | I15: =CLEAN(IFERROR(VLOOKUP(G15,'투입인력 단가'!$C$10:$Y$49,9,FALSE),"")) -> PM | J15: =CLEAN(IFERROR(VLOOKUP(G15,'투입인력 단가'!$C$10:$Y$49,10,FALSE),"")) -> 자사 | K15: =CLEAN(IFERROR(VLOOKUP(G15,'투입인력 단가'!$C$10:$Y$49,11,FALSE),"")) -> S부장 | L15: =CLEAN(IFERROR(VLOOKUP(G15,'투입인력 단가'!$C$10:$Y$49,12,FALSE),"")) -> 최종찬 | N15: 4 | P15: 4 | R15: 4 | T15: 4 | V15: 4 | AW15: =SUM(N15:AV15) -> 20 | AX15: =SUM(CH15:CY15) -> 20 | AY15: =AW15-AX15 -> 0 | AZ15: =IFERROR(VLOOKUP(G15,'투입인력 단가'!$C$10:$Y$49,13,FALSE),0) -> 800000 | BA15: =AX15*AZ15 -> 16000000 | BT15: =CLEAN(IFERROR(VLOOKUP(G15,'투입인력 단가'!$C$10:$Y$49,14,FALSE),"")) -> BP_OUTS | BU15: =CLEAN(IFERROR(VLOOKUP(G15,'투입인력 단가'!$C$10:$Y$49,15,FALSE),"")) -> 매출 귀속 SBU 자체 인력 | BV15: =CLEAN(IFERROR(VLOOKUP(G15,'투입인력 단가'!$C$10:$Y$49,16,FALSE),"")) ->  | BW15: =IFERROR(VLOOKUP(G15,'투입인력 단가'!$C$10:$Y$49,17,FALSE),0) -> 0 | BX15: =IFERROR(VLOOKUP(G15,'투입인력 단가'!$C$10:$Y$49,18,FALSE),0) -> 0 | BZ15: =IF(BU15=MASTER!$D$4,AW15*BW15, IF(BV15=MASTER!$F$4,AW15*BX15,0)) -> 0 | CA15: =CLEAN(IFERROR(VLOOKUP(G15,'투입인력 단가'!$C$10:$Y$49,22,FALSE),"")) ->  | CB15: =IF(COUNTIF(CA16:CA$44,CA15)=0,SUMIF(CA$15:CA$44,CA15,BZ$15:BZ$44),"") ->  | CH15: =IF(M15="N",0,N15) -> 4 | CI15: =IF(O15="N",0,P15) -> 4 | CJ15: =IF(Q15="N",0,R15) -> 4 | CK15: =IF(S15="N",0,T15) -> 4 | CL15: =IF(U15="N",0,V15) -> 4 | CM15: =IF(W15="N",0,X15) -> 0 | CN15: =IF(Y15="N",0,Z15) -> 0 | CO15: =IF(AA15="N",0,AB15) -> 0 | CP15: =IF(AC15="N",0,AD15) -> 0 | CQ15: =IF(AE15="N",0,AF15) -> 0 | CR15: =IF(AG15="N",0,AH15) -> 0 | CS15: =IF(AI15="N",0,AJ15) -> 0 | CT15: =IF(AK15="N",0,AL15) -> 0 | CU15: =IF(AM15="N",0,AN15) -> 0 | CV15: =IF(AO15="N",0,AP15) -> 0 | CW15: =IF(AQ15="N",0,AR15) -> 0 | CX15: =IF(AS15="N",0,AT15) -> 0 | CY15: =IF(AU15="N",0,AV15) -> 0 | DA15: =$AZ15*CH15+BB15 -> 3200000 | DB15: =$AZ$15*CI15+BC15 -> 3200000 | DC15: 3200000 | DD15: 3200000 | DE15: 3200000 | DF15: 0 | DG15: 0 | DH15: 0 | DI15: 0 | DJ15: 0 | DK15: 0 | DL15: 0 | DM15: 0 | DN15: 0 | DO15: 0 | DP15: 0 | DQ15: 0 | DR15: 0 | DS15: =CONCATENATE(BT15,BU15,BV15) -> BP_OUTS매출 귀속 SBU 자체 인력 | DT15: =$BW15*N15 -> 0 | DU15: =$BW15*P15 -> 0 | DV15: =$BW15*R15 -> 0 | DW15: =$BW15*T15 -> 0 | DX15: =$BW15*V15 -> 0 | DY15: =$BW15*X15 -> 0 | DZ15: =$BW15*Z15 -> 0 | EA15: =$BW15*AB15 -> 0 | EB15: =$BW15*AD15 -> 0 | EC15: =$BW15*AF15 -> 0 | ED15: =$BW15*AH15 -> 0 | EE15: =$BW15*AJ15 -> 0 | EF15: =$BW15*AL15 -> 0 | EG15: =$BW15*AN15 -> 0 | EH15: =$BW15*AP15 -> 0 | EI15: =$BW15*AR15 -> 0 | EJ15: =$BW15*AT15 -> 0 | EK15: =$BW15*AV15 -> 0 | EM15: =$BX15*N15 -> 0 | EN15: =$BX15*P15 -> 0 | EO15: =$BX15*R15 -> 0 | EP15: =$BX15*T15 -> 0 | EQ15: =$BX15*V15 -> 0 | ER15: =$BX15*X15 -> 0 | ES15: =$BX15*Z15 -> 0 | ET15: =$BX15*AB15 -> 0 | EU15: =$BX15*AD15 -> 0 | EV15: =$BX15*AF15 -> 0 | EW15: =$BX15*AH15 -> 0 | EX15: =$BX15*AJ15 -> 0 | EY15: =$BX15*AL15 -> 0 | EZ15: =$BX15*AN15 -> 0 | FA15: =$BX15*AP15 -> 0 | FB15: =$BX15*AR15 -> 0 | FC15: =$BX15*AT15 -> 0 | FD15: =$BX15*AV15 -> 0
D16: =IF( ISERROR(VLOOKUP(G16,'투입인력 단가'!$C$10:$E$49,3,FALSE)), "No Item", IF( VLOOKUP(G16,'투입인력 단가'!$C$10:$E$49,3,FALSE)="-", "투입취소", VLOOKUP(G16,'투입인력 단가'!$C$10:$E$49,3,FALSE))) -> 투입NO | G16: 2 | H16: =CLEAN(IFERROR(VLOOKUP(G16,'투입인력 단가'!$C$10:$Y$49,8,FALSE),"")) -> 모듈 | I16: =CLEAN(IFERROR(VLOOKUP(G16,'투입인력 단가'!$C$10:$Y$49,9,FALSE),"")) -> MM | J16: =CLEAN(IFERROR(VLOOKUP(G16,'투입인력 단가'!$C$10:$Y$49,10,FALSE),"")) -> 자사 | K16: =CLEAN(IFERROR(VLOOKUP(G16,'투입인력 단가'!$C$10:$Y$49,11,FALSE),"")) -> 이사 | L16: =CLEAN(IFERROR(VLOOKUP(G16,'투입인력 단가'!$C$10:$Y$49,12,FALSE),"")) -> 김진영 | N16: 6 | P16: 4 | R16: 4 | T16: 4 | V16: 2 | AW16: =SUM(N16:AV16) -> 20 | AX16: =SUM(CH16:CY16) -> 20 | AY16: =AW16-AX16 -> 0 | AZ16: =IFERROR(VLOOKUP(G16,'투입인력 단가'!$C$10:$Y$49,13,FALSE),0) -> 800000 | BA16: =AX16*AZ16 -> 16000000 | BT16: =CLEAN(IFERROR(VLOOKUP(G16,'투입인력 단가'!$C$10:$Y$49,14,FALSE),"")) -> BP_OUTS | BU16: =CLEAN(IFERROR(VLOOKUP(G16,'투입인력 단가'!$C$10:$Y$49,15,FALSE),"")) -> 매출 귀속 SBU 자체 인력 | BV16: =CLEAN(IFERROR(VLOOKUP(G16,'투입인력 단가'!$C$10:$Y$49,16,FALSE),"")) ->  | BW16: =IFERROR(VLOOKUP(G16,'투입인력 단가'!$C$10:$Y$49,17,FALSE),0) -> 0 | BX16: =IFERROR(VLOOKUP(G16,'투입인력 단가'!$C$10:$Y$49,18,FALSE),0) -> 0 | BZ16: =IF(BU16=MASTER!$D$4,AW16*BW16, IF(BV16=MASTER!$F$4,AW16*BX16,0)) -> 0 | CA16: =CLEAN(IFERROR(VLOOKUP(G16,'투입인력 단가'!$C$10:$Y$49,22,FALSE),"")) ->  | CB16: =IF(COUNTIF(CA17:CA$44,CA16)=0,SUMIF(CA$15:CA$44,CA16,BZ$15:BZ$44),"") ->  | CH16: 6 | CI16: 4 | CJ16: 4 | CK16: 4 | CL16: 2 | CM16: 0 | CN16: 0 | CO16: 0 | CP16: 0 | CQ16: 0 | CR16: 0 | CS16: 0 | CT16: 0 | CU16: 0 | CV16: 0 | CW16: 0 | CX16: 0 | CY16: 0 | DA16: =$AZ$16*CH16+BB16 -> 4800000 | DB16: 3200000 | DC16: 3200000 | DD16: 3200000 | DE16: 1600000 | DF16: 0 | DG16: 0 | DH16: 0 | DI16: 0 | DJ16: 0 | DK16: 0 | DL16: 0 | DM16: 0 | DN16: 0 | DO16: 0 | DP16: 0 | DQ16: 0 | DR16: 0 | DS16: =CONCATENATE(BT16,BU16,BV16) -> BP_OUTS매출 귀속 SBU 자체 인력 | DT16: =$BW16*N16 -> 0 | DU16: =$BW16*P16 -> 0 | DV16: =$BW16*R16 -> 0 | DW16: =$BW16*T16 -> 0 | DX16: =$BW16*V16 -> 0 | DY16: =$BW16*X16 -> 0 | DZ16: =$BW16*Z16 -> 0 | EA16: =$BW16*AB16 -> 0 | EB16: =$BW16*AD16 -> 0 | EC16: =$BW16*AF16 -> 0 | ED16: =$BW16*AH16 -> 0 | EE16: =$BW16*AJ16 -> 0 | EF16: =$BW16*AL16 -> 0 | EG16: =$BW16*AN16 -> 0 | EH16: =$BW16*AP16 -> 0 | EI16: =$BW16*AR16 -> 0 | EJ16: =$BW16*AT16 -> 0 | EK16: =$BW16*AV16 -> 0 | EM16: =$BX16*N16 -> 0 | EN16: =$BX16*P16 -> 0 | EO16: =$BX16*R16 -> 0 | EP16: =$BX16*T16 -> 0 | EQ16: =$BX16*V16 -> 0 | ER16: =$BX16*X16 -> 0 | ES16: =$BX16*Z16 -> 0 | ET16: =$BX16*AB16 -> 0 | EU16: =$BX16*AD16 -> 0 | EV16: =$BX16*AF16 -> 0 | EW16: =$BX16*AH16 -> 0 | EX16: =$BX16*AJ16 -> 0 | EY16: =$BX16*AL16 -> 0 | EZ16: =$BX16*AN16 -> 0 | FA16: =$BX16*AP16 -> 0 | FB16: =$BX16*AR16 -> 0 | FC16: =$BX16*AT16 -> 0 | FD16: =$BX16*AV16 -> 0
D17: =IF( ISERROR(VLOOKUP(G17,'투입인력 단가'!$C$10:$E$49,3,FALSE)), "No Item", IF( VLOOKUP(G17,'투입인력 단가'!$C$10:$E$49,3,FALSE)="-", "투입취소", VLOOKUP(G17,'투입인력 단가'!$C$10:$E$49,3,FALSE))) -> 투입NO | G17: 3 | H17: =CLEAN(IFERROR(VLOOKUP(G17,'투입인력 단가'!$C$10:$Y$49,8,FALSE),"")) -> 모듈 | I17: =CLEAN(IFERROR(VLOOKUP(G17,'투입인력 단가'!$C$10:$Y$49,9,FALSE),"")) -> SD | J17: =CLEAN(IFERROR(VLOOKUP(G17,'투입인력 단가'!$C$10:$Y$49,10,FALSE),"")) -> 자사 | K17: =CLEAN(IFERROR(VLOOKUP(G17,'투입인력 단가'!$C$10:$Y$49,11,FALSE),"")) -> S부장 | L17: =CLEAN(IFERROR(VLOOKUP(G17,'투입인력 단가'!$C$10:$Y$49,12,FALSE),"")) -> 김정훈 | N17: 9 | P17: 8 | R17: 8 | T17: 8 | V17: 5 | AW17: 38 | AX17: 38 | AY17: 0 | AZ17: =IFERROR(VLOOKUP(G17,'투입인력 단가'!$C$10:$Y$49,13,FALSE),0) -> 800000 | BA17: 30400000 | BT17: =CLEAN(IFERROR(VLOOKUP(G17,'투입인력 단가'!$C$10:$Y$49,14,FALSE),"")) -> BP_OUTS | BU17: =CLEAN(IFERROR(VLOOKUP(G17,'투입인력 단가'!$C$10:$Y$49,15,FALSE),"")) -> 매출 귀속 SBU 자체 인력 | BV17: =CLEAN(IFERROR(VLOOKUP(G17,'투입인력 단가'!$C$10:$Y$49,16,FALSE),"")) ->  | BW17: =IFERROR(VLOOKUP(G17,'투입인력 단가'!$C$10:$Y$49,17,FALSE),0) -> 0 | BX17: =IFERROR(VLOOKUP(G17,'투입인력 단가'!$C$10:$Y$49,18,FALSE),0) -> 0 | BZ17: =IF(BU17=MASTER!$D$4,AW17*BW17, IF(BV17=MASTER!$F$4,AW17*BX17,0)) -> 0 | CA17: =CLEAN(IFERROR(VLOOKUP(G17,'투입인력 단가'!$C$10:$Y$49,22,FALSE),"")) ->  | CB17: =IF(COUNTIF(CA18:CA$44,CA17)=0,SUMIF(CA$15:CA$44,CA17,BZ$15:BZ$44),"") ->  | CH17: 9 | CI17: 8 | CJ17: 8 | CK17: 8 | CL17: 5 | CM17: 0 | CN17: 0 | CO17: 0 | CP17: 0 | CQ17: 0 | CR17: 0 | CS17: 0 | CT17: 0 | CU17: 0 | CV17: 0 | CW17: 0 | CX17: 0 | CY17: 0 | DA17: =$AZ$17*CH17+BB17 -> 7200000 | DB17: 6400000 | DC17: 6400000 | DD17: 6400000 | DE17: 4000000 | DF17: 0 | DG17: 0 | DH17: 0 | DI17: 0 | DJ17: 0 | DK17: 0 | DL17: 0 | DM17: 0 | DN17: 0 | DO17: 0 | DP17: 0 | DQ17: 0 | DR17: 0 | DS17: BP_OUTS매출 귀속 SBU 자체 인력 | DT17: 0 | DU17: 0 | DV17: 0 | DW17: 0 | DX17: 0 | DY17: 0 | DZ17: 0 | EA17: 0 | EB17: 0 | EC17: 0 | ED17: 0 | EE17: 0 | EF17: 0 | EG17: 0 | EH17: 0 | EI17: 0 | EJ17: 0 | EK17: 0 | EM17: 0 | EN17: 0 | EO17: 0 | EP17: 0 | EQ17: 0 | ER17: 0 | ES17: 0 | ET17: 0 | EU17: 0 | EV17: 0 | EW17: 0 | EX17: 0 | EY17: 0 | EZ17: 0 | FA17: 0 | FB17: 0 | FC17: 0 | FD17: 0
D18: =IF( ISERROR(VLOOKUP(G18,'투입인력 단가'!$C$10:$E$49,3,FALSE)), "No Item", IF( VLOOKUP(G18,'투입인력 단가'!$C$10:$E$49,3,FALSE)="-", "투입취소", VLOOKUP(G18,'투입인력 단가'!$C$10:$E$49,3,FALSE))) -> 투입NO | G18: 4 | H18: =CLEAN(IFERROR(VLOOKUP(G18,'투입인력 단가'!$C$10:$Y$49,8,FALSE),"")) -> 모듈 | I18: =CLEAN(IFERROR(VLOOKUP(G18,'투입인력 단가'!$C$10:$Y$49,9,FALSE),"")) -> FI | J18: =CLEAN(IFERROR(VLOOKUP(G18,'투입인력 단가'!$C$10:$Y$49,10,FALSE),"")) -> 자사 | K18: =CLEAN(IFERROR(VLOOKUP(G18,'투입인력 단가'!$C$10:$Y$49,11,FALSE),"")) -> S부장 | L18: =CLEAN(IFERROR(VLOOKUP(G18,'투입인력 단가'!$C$10:$Y$49,12,FALSE),"")) -> 한진웅 | N18: 6 | P18: 4 | R18: 4 | T18: 4 | V18: 2 | AW18: 20 | AX18: 20 | AY18: 0 | AZ18: =IFERROR(VLOOKUP(G18,'투입인력 단가'!$C$10:$Y$49,13,FALSE),0) -> 800000 | BA18: 16000000 | BT18: =CLEAN(IFERROR(VLOOKUP(G18,'투입인력 단가'!$C$10:$Y$49,14,FALSE),"")) -> BP_OUTS | BU18: =CLEAN(IFERROR(VLOOKUP(G18,'투입인력 단가'!$C$10:$Y$49,15,FALSE),"")) -> 매출 귀속 SBU 자체 인력 | BV18: =CLEAN(IFERROR(VLOOKUP(G18,'투입인력 단가'!$C$10:$Y$49,16,FALSE),"")) ->  | BW18: =IFERROR(VLOOKUP(G18,'투입인력 단가'!$C$10:$Y$49,17,FALSE),0) -> 0 | BX18: =IFERROR(VLOOKUP(G18,'투입인력 단가'!$C$10:$Y$49,18,FALSE),0) -> 0 | BZ18: =IF(BU18=MASTER!$D$4,AW18*BW18, IF(BV18=MASTER!$F$4,AW18*BX18,0)) -> 0 | CA18: =CLEAN(IFERROR(VLOOKUP(G18,'투입인력 단가'!$C$10:$Y$49,22,FALSE),"")) ->  | CB18: =IF(COUNTIF(CA19:CA$44,CA18)=0,SUMIF(CA$15:CA$44,CA18,BZ$15:BZ$44),"") ->  | CH18: 6 | CI18: 4 | CJ18: 4 | CK18: 4 | CL18: 2 | CM18: 0 | CN18: 0 | CO18: 0 | CP18: 0 | CQ18: 0 | CR18: 0 | CS18: 0 | CT18: 0 | CU18: 0 | CV18: 0 | CW18: 0 | CX18: 0 | CY18: 0 | DA18: =$AZ$18*CH18+BB18 -> 4800000 | DB18: 3200000 | DC18: 3200000 | DD18: 3200000 | DE18: 1600000 | DF18: 0 | DG18: 0 | DH18: 0 | DI18: 0 | DJ18: 0 | DK18: 0 | DL18: 0 | DM18: 0 | DN18: 0 | DO18: 0 | DP18: 0 | DQ18: 0 | DR18: 0 | DS18: BP_OUTS매출 귀속 SBU 자체 인력 | DT18: 0 | DU18: 0 | DV18: 0 | DW18: 0 | DX18: 0 | DY18: 0 | DZ18: 0 | EA18: 0 | EB18: 0 | EC18: 0 | ED18: 0 | EE18: 0 | EF18: 0 | EG18: 0 | EH18: 0 | EI18: 0 | EJ18: 0 | EK18: 0 | EM18: 0 | EN18: 0 | EO18: 0 | EP18: 0 | EQ18: 0 | ER18: 0 | ES18: 0 | ET18: 0 | EU18: 0 | EV18: 0 | EW18: 0 | EX18: 0 | EY18: 0 | EZ18: 0 | FA18: 0 | FB18: 0 | FC18: 0 | FD18: 0
D19: =IF( ISERROR(VLOOKUP(G19,'투입인력 단가'!$C$10:$E$49,3,FALSE)), "No Item", IF( VLOOKUP(G19,'투입인력 단가'!$C$10:$E$49,3,FALSE)="-", "투입취소", VLOOKUP(G19,'투입인력 단가'!$C$10:$E$49,3,FALSE))) -> 투입NO | G19: 5 | H19: =CLEAN(IFERROR(VLOOKUP(G19,'투입인력 단가'!$C$10:$Y$49,8,FALSE),"")) -> 모듈 | I19: =CLEAN(IFERROR(VLOOKUP(G19,'투입인력 단가'!$C$10:$Y$49,9,FALSE),"")) -> PO | J19: =CLEAN(IFERROR(VLOOKUP(G19,'투입인력 단가'!$C$10:$Y$49,10,FALSE),"")) -> 자사 | K19: =CLEAN(IFERROR(VLOOKUP(G19,'투입인력 단가'!$C$10:$Y$49,11,FALSE),"")) -> S부장 | L19: =CLEAN(IFERROR(VLOOKUP(G19,'투입인력 단가'!$C$10:$Y$49,12,FALSE),"")) -> 장재국 | N19: 2 | P19: 12 | R19: 8 | AW19: 22 | AX19: 22 | AY19: 0 | AZ19: =IFERROR(VLOOKUP(G19,'투입인력 단가'!$C$10:$Y$49,13,FALSE),0) -> 800000 | BA19: 17600000 | BT19: =CLEAN(IFERROR(VLOOKUP(G19,'투입인력 단가'!$C$10:$Y$49,14,FALSE),"")) -> BP_OUTS | BU19: =CLEAN(IFERROR(VLOOKUP(G19,'투입인력 단가'!$C$10:$Y$49,15,FALSE),"")) -> 매출 귀속 SBU 자체 인력 | BV19: =CLEAN(IFERROR(VLOOKUP(G19,'투입인력 단가'!$C$10:$Y$49,16,FALSE),"")) ->  | BW19: =IFERROR(VLOOKUP(G19,'투입인력 단가'!$C$10:$Y$49,17,FALSE),0) -> 0 | BX19: =IFERROR(VLOOKUP(G19,'투입인력 단가'!$C$10:$Y$49,18,FALSE),0) -> 0 | BZ19: =IF(BU19=MASTER!$D$4,AW19*BW19, IF(BV19=MASTER!$F$4,AW19*BX19,0)) -> 0 | CA19: =CLEAN(IFERROR(VLOOKUP(G19,'투입인력 단가'!$C$10:$Y$49,22,FALSE),"")) ->  | CB19: =IF(COUNTIF(CA20:CA$44,CA19)=0,SUMIF(CA$15:CA$44,CA19,BZ$15:BZ$44),"") ->  | CH19: 2 | CI19: 12 | CJ19: 8 | CK19: 0 | CL19: 0 | CM19: 0 | CN19: 0 | CO19: 0 | CP19: 0 | CQ19: 0 | CR19: 0 | CS19: 0 | CT19: 0 | CU19: 0 | CV19: 0 | CW19: 0 | CX19: 0 | CY19: 0 | DA19: =$AZ$19*CH19+BB19 -> 1600000 | DB19: 9600000 | DC19: 6400000 | DD19: 0 | DE19: 0 | DF19: 0 | DG19: 0 | DH19: 0 | DI19: 0 | DJ19: 0 | DK19: 0 | DL19: 0 | DM19: 0 | DN19: 0 | DO19: 0 | DP19: 0 | DQ19: 0 | DR19: 0 | DS19: BP_OUTS매출 귀속 SBU 자체 인력 | DT19: 0 | DU19: 0 | DV19: 0 | DW19: 0 | DX19: 0 | DY19: 0 | DZ19: 0 | EA19: 0 | EB19: 0 | EC19: 0 | ED19: 0 | EE19: 0 | EF19: 0 | EG19: 0 | EH19: 0 | EI19: 0 | EJ19: 0 | EK19: 0 | EM19: 0 | EN19: 0 | EO19: 0 | EP19: 0 | EQ19: 0 | ER19: 0 | ES19: 0 | ET19: 0 | EU19: 0 | EV19: 0 | EW19: 0 | EX19: 0 | EY19: 0 | EZ19: 0 | FA19: 0 | FB19: 0 | FC19: 0 | FD19: 0
D20: =IF( ISERROR(VLOOKUP(G20,'투입인력 단가'!$C$10:$E$49,3,FALSE)), "No Item", IF( VLOOKUP(G20,'투입인력 단가'!$C$10:$E$49,3,FALSE)="-", "투입취소", VLOOKUP(G20,'투입인력 단가'!$C$10:$E$49,3,FALSE))) -> 투입NO | G20: 6 | H20: =CLEAN(IFERROR(VLOOKUP(G20,'투입인력 단가'!$C$10:$Y$49,8,FALSE),"")) -> 모듈 | I20: =CLEAN(IFERROR(VLOOKUP(G20,'투입인력 단가'!$C$10:$Y$49,9,FALSE),"")) -> ABAP | J20: =CLEAN(IFERROR(VLOOKUP(G20,'투입인력 단가'!$C$10:$Y$49,10,FALSE),"")) -> 자사 | K20: =CLEAN(IFERROR(VLOOKUP(G20,'투입인력 단가'!$C$10:$Y$49,11,FALSE),"")) -> 과장 | L20: =CLEAN(IFERROR(VLOOKUP(G20,'투입인력 단가'!$C$10:$Y$49,12,FALSE),"")) -> 권순현 | N20: 5 | P20: 20 | R20: 18 | T20: 16 | V20: 7 | AW20: 66 | AX20: 66 | AY20: 0 | AZ20: =IFERROR(VLOOKUP(G20,'투입인력 단가'!$C$10:$Y$49,13,FALSE),0) -> 650000 | BA20: 42900000 | BT20: =CLEAN(IFERROR(VLOOKUP(G20,'투입인력 단가'!$C$10:$Y$49,14,FALSE),"")) -> BP_OUTS | BU20: =CLEAN(IFERROR(VLOOKUP(G20,'투입인력 단가'!$C$10:$Y$49,15,FALSE),"")) -> 매출 귀속 SBU 자체 인력 | BV20: =CLEAN(IFERROR(VLOOKUP(G20,'투입인력 단가'!$C$10:$Y$49,16,FALSE),"")) ->  | BW20: =IFERROR(VLOOKUP(G20,'투입인력 단가'!$C$10:$Y$49,17,FALSE),0) -> 0 | BX20: =IFERROR(VLOOKUP(G20,'투입인력 단가'!$C$10:$Y$49,18,FALSE),0) -> 0 | BZ20: =IF(BU20=MASTER!$D$4,AW20*BW20, IF(BV20=MASTER!$F$4,AW20*BX20,0)) -> 0 | CA20: =CLEAN(IFERROR(VLOOKUP(G20,'투입인력 단가'!$C$10:$Y$49,22,FALSE),"")) ->  | CB20: =IF(COUNTIF(CA21:CA$44,CA20)=0,SUMIF(CA$15:CA$44,CA20,BZ$15:BZ$44),"") ->  | CH20: 5 | CI20: 20 | CJ20: 18 | CK20: 16 | CL20: 7 | CM20: 0 | CN20: 0 | CO20: 0 | CP20: 0 | CQ20: 0 | CR20: 0 | CS20: 0 | CT20: 0 | CU20: 0 | CV20: 0 | CW20: 0 | CX20: 0 | CY20: 0 | DA20: =$AZ$20*CH20+BB20 -> 3250000 | DB20: 13000000 | DC20: 11700000 | DD20: 10400000 | DE20: 4550000 | DF20: 0 | DG20: 0 | DH20: 0 | DI20: 0 | DJ20: 0 | DK20: 0 | DL20: 0 | DM20: 0 | DN20: 0 | DO20: 0 | DP20: 0 | DQ20: 0 | DR20: 0 | DS20: BP_OUTS매출 귀속 SBU 자체 인력 | DT20: 0 | DU20: 0 | DV20: 0 | DW20: 0 | DX20: 0 | DY20: 0 | DZ20: 0 | EA20: 0 | EB20: 0 | EC20: 0 | ED20: 0 | EE20: 0 | EF20: 0 | EG20: 0 | EH20: 0 | EI20: 0 | EJ20: 0 | EK20: 0 | EM20: 0 | EN20: 0 | EO20: 0 | EP20: 0 | EQ20: 0 | ER20: 0 | ES20: 0 | ET20: 0 | EU20: 0 | EV20: 0 | EW20: 0 | EX20: 0 | EY20: 0 | EZ20: 0 | FA20: 0 | FB20: 0 | FC20: 0 | FD20: 0
D21: =IF( ISERROR(VLOOKUP(G21,'투입인력 단가'!$C$10:$E$49,3,FALSE)), "No Item", IF( VLOOKUP(G21,'투입인력 단가'!$C$10:$E$49,3,FALSE)="-", "투입취소", VLOOKUP(G21,'투입인력 단가'!$C$10:$E$49,3,FALSE))) -> 투입NO | G21: 7 | H21: =CLEAN(IFERROR(VLOOKUP(G21,'투입인력 단가'!$C$10:$Y$49,8,FALSE),"")) -> 모듈 | I21: =CLEAN(IFERROR(VLOOKUP(G21,'투입인력 단가'!$C$10:$Y$49,9,FALSE),"")) -> ABAP | J21: =CLEAN(IFERROR(VLOOKUP(G21,'투입인력 단가'!$C$10:$Y$49,10,FALSE),"")) -> 자사 | K21: =CLEAN(IFERROR(VLOOKUP(G21,'투입인력 단가'!$C$10:$Y$49,11,FALSE),"")) -> S부장 | L21: =CLEAN(IFERROR(VLOOKUP(G21,'투입인력 단가'!$C$10:$Y$49,12,FALSE),"")) -> 이종석 | N21: 2 | P21: 8 | R21: 6 | T21: 4 | V21: 1 | AW21: 21 | AX21: 21 | AY21: 0 | AZ21: =IFERROR(VLOOKUP(G21,'투입인력 단가'!$C$10:$Y$49,13,FALSE),0) -> 650000 | BA21: 13650000 | BT21: =CLEAN(IFERROR(VLOOKUP(G21,'투입인력 단가'!$C$10:$Y$49,14,FALSE),"")) -> BP_OUTS | BU21: =CLEAN(IFERROR(VLOOKUP(G21,'투입인력 단가'!$C$10:$Y$49,15,FALSE),"")) -> 매출 귀속 SBU 자체 인력 | BV21: =CLEAN(IFERROR(VLOOKUP(G21,'투입인력 단가'!$C$10:$Y$49,16,FALSE),"")) ->  | BW21: =IFERROR(VLOOKUP(G21,'투입인력 단가'!$C$10:$Y$49,17,FALSE),0) -> 0 | BX21: =IFERROR(VLOOKUP(G21,'투입인력 단가'!$C$10:$Y$49,18,FALSE),0) -> 0 | BZ21: =IF(BU21=MASTER!$D$4,AW21*BW21, IF(BV21=MASTER!$F$4,AW21*BX21,0)) -> 0 | CA21: =CLEAN(IFERROR(VLOOKUP(G21,'투입인력 단가'!$C$10:$Y$49,22,FALSE),"")) ->  | CB21: =IF(COUNTIF(CA22:CA$44,CA21)=0,SUMIF(CA$15:CA$44,CA21,BZ$15:BZ$44),"") ->  | CH21: 2 | CI21: 8 | CJ21: 6 | CK21: 4 | CL21: 1 | CM21: 0 | CN21: 0 | CO21: 0 | CP21: 0 | CQ21: 0 | CR21: 0 | CS21: 0 | CT21: 0 | CU21: 0 | CV21: 0 | CW21: 0 | CX21: 0 | CY21: 0 | DA21: =$AZ$21*CH21+BB21 -> 1300000 | DB21: 5200000 | DC21: 3900000 | DD21: 2600000 | DE21: 650000 | DF21: 0 | DG21: 0 | DH21: 0 | DI21: 0 | DJ21: 0 | DK21: 0 | DL21: 0 | DM21: 0 | DN21: 0 | DO21: 0 | DP21: 0 | DQ21: 0 | DR21: 0 | DS21: BP_OUTS매출 귀속 SBU 자체 인력 | DT21: 0 | DU21: 0 | DV21: 0 | DW21: 0 | DX21: 0 | DY21: 0 | DZ21: 0 | EA21: 0 | EB21: 0 | EC21: 0 | ED21: 0 | EE21: 0 | EF21: 0 | EG21: 0 | EH21: 0 | EI21: 0 | EJ21: 0 | EK21: 0 | EM21: 0 | EN21: 0 | EO21: 0 | EP21: 0 | EQ21: 0 | ER21: 0 | ES21: 0 | ET21: 0 | EU21: 0 | EV21: 0 | EW21: 0 | EX21: 0 | EY21: 0 | EZ21: 0 | FA21: 0 | FB21: 0 | FC21: 0 | FD21: 0
D22: =IF( ISERROR(VLOOKUP(G22,'투입인력 단가'!$C$10:$E$49,3,FALSE)), "No Item", IF( VLOOKUP(G22,'투입인력 단가'!$C$10:$E$49,3,FALSE)="-", "투입취소", VLOOKUP(G22,'투입인력 단가'!$C$10:$E$49,3,FALSE))) -> No Item | G22: 8 | H22: =CLEAN(IFERROR(VLOOKUP(G22,'투입인력 단가'!$C$10:$Y$49,8,FALSE),"")) ->  | I22: =CLEAN(IFERROR(VLOOKUP(G22,'투입인력 단가'!$C$10:$Y$49,9,FALSE),"")) ->  | J22: =CLEAN(IFERROR(VLOOKUP(G22,'투입인력 단가'!$C$10:$Y$49,10,FALSE),"")) ->  | K22: =CLEAN(IFERROR(VLOOKUP(G22,'투입인력 단가'!$C$10:$Y$49,11,FALSE),"")) ->  | L22: =CLEAN(IFERROR(VLOOKUP(G22,'투입인력 단가'!$C$10:$Y$49,12,FALSE),"")) ->  | AW22: 0 | AX22: 0 | AY22: 0 | AZ22: =IFERROR(VLOOKUP(G22,'투입인력 단가'!$C$10:$Y$49,13,FALSE),0) -> 0 | BA22: 0 | BT22: =CLEAN(IFERROR(VLOOKUP(G22,'투입인력 단가'!$C$10:$Y$49,14,FALSE),"")) ->  | BU22: =CLEAN(IFERROR(VLOOKUP(G22,'투입인력 단가'!$C$10:$Y$49,15,FALSE),"")) ->  | BV22: =CLEAN(IFERROR(VLOOKUP(G22,'투입인력 단가'!$C$10:$Y$49,16,FALSE),"")) ->  | BW22: =IFERROR(VLOOKUP(G22,'투입인력 단가'!$C$10:$Y$49,17,FALSE),0) -> 0 | BX22: =IFERROR(VLOOKUP(G22,'투입인력 단가'!$C$10:$Y$49,18,FALSE),0) -> 0 | BZ22: =IF(BU22=MASTER!$D$4,AW22*BW22, IF(BV22=MASTER!$F$4,AW22*BX22,0)) -> 0 | CA22: =CLEAN(IFERROR(VLOOKUP(G22,'투입인력 단가'!$C$10:$Y$49,22,FALSE),"")) ->  | CB22: =IF(COUNTIF(CA23:CA$44,CA22)=0,SUMIF(CA$15:CA$44,CA22,BZ$15:BZ$44),"") ->  | CH22: 0 | CI22: 0 | CJ22: 0 | CK22: 0 | CL22: 0 | CM22: 0 | CN22: 0 | CO22: 0 | CP22: 0 | CQ22: 0 | CR22: 0 | CS22: 0 | CT22: 0 | CU22: 0 | CV22: 0 | CW22: 0 | CX22: 0 | CY22: 0 | DA22: =$AZ$22*CH22+BB22 -> 0 | DB22: 0 | DC22: 0 | DD22: 0 | DE22: 0 | DF22: 0 | DG22: 0 | DH22: 0 | DI22: 0 | DJ22: 0 | DK22: 0 | DL22: 0 | DM22: 0 | DN22: 0 | DO22: 0 | DP22: 0 | DQ22: 0 | DR22: 0 | DT22: 0 | DU22: 0 | DV22: 0 | DW22: 0 | DX22: 0 | DY22: 0 | DZ22: 0 | EA22: 0 | EB22: 0 | EC22: 0 | ED22: 0 | EE22: 0 | EF22: 0 | EG22: 0 | EH22: 0 | EI22: 0 | EJ22: 0 | EK22: 0 | EM22: 0 | EN22: 0 | EO22: 0 | EP22: 0 | EQ22: 0 | ER22: 0 | ES22: 0 | ET22: 0 | EU22: 0 | EV22: 0 | EW22: 0 | EX22: 0 | EY22: 0 | EZ22: 0 | FA22: 0 | FB22: 0 | FC22: 0 | FD22: 0
D23: =IF( ISERROR(VLOOKUP(G23,'투입인력 단가'!$C$10:$E$49,3,FALSE)), "No Item", IF( VLOOKUP(G23,'투입인력 단가'!$C$10:$E$49,3,FALSE)="-", "투입취소", VLOOKUP(G23,'투입인력 단가'!$C$10:$E$49,3,FALSE))) -> No Item | G23: 9 | H23: =CLEAN(IFERROR(VLOOKUP(G23,'투입인력 단가'!$C$10:$Y$49,8,FALSE),"")) ->  | I23: =CLEAN(IFERROR(VLOOKUP(G23,'투입인력 단가'!$C$10:$Y$49,9,FALSE),"")) ->  | J23: =CLEAN(IFERROR(VLOOKUP(G23,'투입인력 단가'!$C$10:$Y$49,10,FALSE),"")) ->  | K23: =CLEAN(IFERROR(VLOOKUP(G23,'투입인력 단가'!$C$10:$Y$49,11,FALSE),"")) ->  | L23: =CLEAN(IFERROR(VLOOKUP(G23,'투입인력 단가'!$C$10:$Y$49,12,FALSE),"")) ->  | AW23: 0 | AX23: 0 | AY23: 0 | AZ23: =IFERROR(VLOOKUP(G23,'투입인력 단가'!$C$10:$Y$49,13,FALSE),0) -> 0 | BA23: 0 | BT23: =CLEAN(IFERROR(VLOOKUP(G23,'투입인력 단가'!$C$10:$Y$49,14,FALSE),"")) ->  | BU23: =CLEAN(IFERROR(VLOOKUP(G23,'투입인력 단가'!$C$10:$Y$49,15,FALSE),"")) ->  | BV23: =CLEAN(IFERROR(VLOOKUP(G23,'투입인력 단가'!$C$10:$Y$49,16,FALSE),"")) ->  | BW23: =IFERROR(VLOOKUP(G23,'투입인력 단가'!$C$10:$Y$49,17,FALSE),0) -> 0 | BX23: =IFERROR(VLOOKUP(G23,'투입인력 단가'!$C$10:$Y$49,18,FALSE),0) -> 0 | BZ23: =IF(BU23=MASTER!$D$4,AW23*BW23, IF(BV23=MASTER!$F$4,AW23*BX23,0)) -> 0 | CA23: =CLEAN(IFERROR(VLOOKUP(G23,'투입인력 단가'!$C$10:$Y$49,22,FALSE),"")) ->  | CB23: =IF(COUNTIF(CA24:CA$44,CA23)=0,SUMIF(CA$15:CA$44,CA23,BZ$15:BZ$44),"") ->  | CH23: 0 | CI23: 0 | CJ23: 0 | CK23: 0 | CL23: 0 | CM23: 0 | CN23: 0 | CO23: 0 | CP23: 0 | CQ23: 0 | CR23: 0 | CS23: 0 | CT23: 0 | CU23: 0 | CV23: 0 | CW23: 0 | CX23: 0 | CY23: 0 | DA23: =$AZ$23*CH23+BB23 -> 0 | DB23: 0 | DC23: 0 | DD23: 0 | DE23: 0 | DF23: 0 | DG23: 0 | DH23: 0 | DI23: 0 | DJ23: 0 | DK23: 0 | DL23: 0 | DM23: 0 | DN23: 0 | DO23: 0 | DP23: 0 | DQ23: 0 | DR23: 0 | DT23: 0 | DU23: 0 | DV23: 0 | DW23: 0 | DX23: 0 | DY23: 0 | DZ23: 0 | EA23: 0 | EB23: 0 | EC23: 0 | ED23: 0 | EE23: 0 | EF23: 0 | EG23: 0 | EH23: 0 | EI23: 0 | EJ23: 0 | EK23: 0 | EM23: 0 | EN23: 0 | EO23: 0 | EP23: 0 | EQ23: 0 | ER23: 0 | ES23: 0 | ET23: 0 | EU23: 0 | EV23: 0 | EW23: 0 | EX23: 0 | EY23: 0 | EZ23: 0 | FA23: 0 | FB23: 0 | FC23: 0 | FD23: 0
D24: =IF( ISERROR(VLOOKUP(G24,'투입인력 단가'!$C$10:$E$49,3,FALSE)), "No Item", IF( VLOOKUP(G24,'투입인력 단가'!$C$10:$E$49,3,FALSE)="-", "투입취소", VLOOKUP(G24,'투입인력 단가'!$C$10:$E$49,3,FALSE))) -> No Item | G24: 10 | H24: =CLEAN(IFERROR(VLOOKUP(G24,'투입인력 단가'!$C$10:$Y$49,8,FALSE),"")) ->  | I24: =CLEAN(IFERROR(VLOOKUP(G24,'투입인력 단가'!$C$10:$Y$49,9,FALSE),"")) ->  | J24: =CLEAN(IFERROR(VLOOKUP(G24,'투입인력 단가'!$C$10:$Y$49,10,FALSE),"")) ->  | K24: =CLEAN(IFERROR(VLOOKUP(G24,'투입인력 단가'!$C$10:$Y$49,11,FALSE),"")) ->  | L24: =CLEAN(IFERROR(VLOOKUP(G24,'투입인력 단가'!$C$10:$Y$49,12,FALSE),"")) ->  | AW24: 0 | AX24: 0 | AY24: 0 | AZ24: =IFERROR(VLOOKUP(G24,'투입인력 단가'!$C$10:$Y$49,13,FALSE),0) -> 0 | BA24: 0 | BT24: =CLEAN(IFERROR(VLOOKUP(G24,'투입인력 단가'!$C$10:$Y$49,14,FALSE),"")) ->  | BU24: =CLEAN(IFERROR(VLOOKUP(G24,'투입인력 단가'!$C$10:$Y$49,15,FALSE),"")) ->  | BV24: =CLEAN(IFERROR(VLOOKUP(G24,'투입인력 단가'!$C$10:$Y$49,16,FALSE),"")) ->  | BW24: =IFERROR(VLOOKUP(G24,'투입인력 단가'!$C$10:$Y$49,17,FALSE),0) -> 0 | BX24: =IFERROR(VLOOKUP(G24,'투입인력 단가'!$C$10:$Y$49,18,FALSE),0) -> 0 | BZ24: =IF(BU24=MASTER!$D$4,AW24*BW24, IF(BV24=MASTER!$F$4,AW24*BX24,0)) -> 0 | CA24: =CLEAN(IFERROR(VLOOKUP(G24,'투입인력 단가'!$C$10:$Y$49,22,FALSE),"")) ->  | CB24: =IF(COUNTIF(CA25:CA$44,CA24)=0,SUMIF(CA$15:CA$44,CA24,BZ$15:BZ$44),"") ->  | CH24: 0 | CI24: 0 | CJ24: 0 | CK24: 0 | CL24: 0 | CM24: 0 | CN24: 0 | CO24: 0 | CP24: 0 | CQ24: 0 | CR24: 0 | CS24: 0 | CT24: 0 | CU24: 0 | CV24: 0 | CW24: 0 | CX24: 0 | CY24: 0 | DA24: =$AZ$24*CH24+BB24 -> 0 | DB24: 0 | DC24: 0 | DD24: 0 | DE24: 0 | DF24: 0 | DG24: 0 | DH24: 0 | DI24: 0 | DJ24: 0 | DK24: 0 | DL24: 0 | DM24: 0 | DN24: 0 | DO24: 0 | DP24: 0 | DQ24: 0 | DR24: 0 | DT24: 0 | DU24: 0 | DV24: 0 | DW24: 0 | DX24: 0 | DY24: 0 | DZ24: 0 | EA24: 0 | EB24: 0 | EC24: 0 | ED24: 0 | EE24: 0 | EF24: 0 | EG24: 0 | EH24: 0 | EI24: 0 | EJ24: 0 | EK24: 0 | EM24: 0 | EN24: 0 | EO24: 0 | EP24: 0 | EQ24: 0 | ER24: 0 | ES24: 0 | ET24: 0 | EU24: 0 | EV24: 0 | EW24: 0 | EX24: 0 | EY24: 0 | EZ24: 0 | FA24: 0 | FB24: 0 | FC24: 0 | FD24: 0
D25: =IF( ISERROR(VLOOKUP(G25,'투입인력 단가'!$C$10:$E$49,3,FALSE)), "No Item", IF( VLOOKUP(G25,'투입인력 단가'!$C$10:$E$49,3,FALSE)="-", "투입취소", VLOOKUP(G25,'투입인력 단가'!$C$10:$E$49,3,FALSE))) -> No Item | G25: 11 | H25: =CLEAN(IFERROR(VLOOKUP(G25,'투입인력 단가'!$C$10:$Y$49,8,FALSE),"")) ->  | I25: =CLEAN(IFERROR(VLOOKUP(G25,'투입인력 단가'!$C$10:$Y$49,9,FALSE),"")) ->  | J25: =CLEAN(IFERROR(VLOOKUP(G25,'투입인력 단가'!$C$10:$Y$49,10,FALSE),"")) ->  | K25: =CLEAN(IFERROR(VLOOKUP(G25,'투입인력 단가'!$C$10:$Y$49,11,FALSE),"")) ->  | L25: =CLEAN(IFERROR(VLOOKUP(G25,'투입인력 단가'!$C$10:$Y$49,12,FALSE),"")) ->  | AW25: 0 | AX25: 0 | AY25: 0 | AZ25: =IFERROR(VLOOKUP(G25,'투입인력 단가'!$C$10:$Y$49,13,FALSE),0) -> 0 | BA25: 0 | BT25: =CLEAN(IFERROR(VLOOKUP(G25,'투입인력 단가'!$C$10:$Y$49,14,FALSE),"")) ->  | BU25: =CLEAN(IFERROR(VLOOKUP(G25,'투입인력 단가'!$C$10:$Y$49,15,FALSE),"")) ->  | BV25: =CLEAN(IFERROR(VLOOKUP(G25,'투입인력 단가'!$C$10:$Y$49,16,FALSE),"")) ->  | BW25: =IFERROR(VLOOKUP(G25,'투입인력 단가'!$C$10:$Y$49,17,FALSE),0) -> 0 | BX25: =IFERROR(VLOOKUP(G25,'투입인력 단가'!$C$10:$Y$49,18,FALSE),0) -> 0 | BZ25: =IF(BU25=MASTER!$D$4,AW25*BW25, IF(BV25=MASTER!$F$4,AW25*BX25,0)) -> 0 | CA25: =CLEAN(IFERROR(VLOOKUP(G25,'투입인력 단가'!$C$10:$Y$49,22,FALSE),"")) ->  | CB25: =IF(COUNTIF(CA26:CA$44,CA25)=0,SUMIF(CA$15:CA$44,CA25,BZ$15:BZ$44),"") ->  | CH25: 0 | CI25: 0 | CJ25: 0 | CK25: 0 | CL25: 0 | CM25: 0 | CN25: 0 | CO25: 0 | CP25: 0 | CQ25: 0 | CR25: 0 | CS25: 0 | CT25: 0 | CU25: 0 | CV25: 0 | CW25: 0 | CX25: 0 | CY25: 0 | DA25: =$AZ$25*CH25+BB25 -> 0 | DB25: 0 | DC25: 0 | DD25: 0 | DE25: 0 | DF25: 0 | DG25: 0 | DH25: 0 | DI25: 0 | DJ25: 0 | DK25: 0 | DL25: 0 | DM25: 0 | DN25: 0 | DO25: 0 | DP25: 0 | DQ25: 0 | DR25: 0 | DT25: 0 | DU25: 0 | DV25: 0 | DW25: 0 | DX25: 0 | DY25: 0 | DZ25: 0 | EA25: 0 | EB25: 0 | EC25: 0 | ED25: 0 | EE25: 0 | EF25: 0 | EG25: 0 | EH25: 0 | EI25: 0 | EJ25: 0 | EK25: 0 | EM25: 0 | EN25: 0 | EO25: 0 | EP25: 0 | EQ25: 0 | ER25: 0 | ES25: 0 | ET25: 0 | EU25: 0 | EV25: 0 | EW25: 0 | EX25: 0 | EY25: 0 | EZ25: 0 | FA25: 0 | FB25: 0 | FC25: 0 | FD25: 0
D26: =IF( ISERROR(VLOOKUP(G26,'투입인력 단가'!$C$10:$E$49,3,FALSE)), "No Item", IF( VLOOKUP(G26,'투입인력 단가'!$C$10:$E$49,3,FALSE)="-", "투입취소", VLOOKUP(G26,'투입인력 단가'!$C$10:$E$49,3,FALSE))) -> No Item | G26: 12 | H26: =CLEAN(IFERROR(VLOOKUP(G26,'투입인력 단가'!$C$10:$Y$49,8,FALSE),"")) ->  | I26: =CLEAN(IFERROR(VLOOKUP(G26,'투입인력 단가'!$C$10:$Y$49,9,FALSE),"")) ->  | J26: =CLEAN(IFERROR(VLOOKUP(G26,'투입인력 단가'!$C$10:$Y$49,10,FALSE),"")) ->  | K26: =CLEAN(IFERROR(VLOOKUP(G26,'투입인력 단가'!$C$10:$Y$49,11,FALSE),"")) ->  | L26: =CLEAN(IFERROR(VLOOKUP(G26,'투입인력 단가'!$C$10:$Y$49,12,FALSE),"")) ->  | AW26: 0 | AX26: 0 | AY26: 0 | AZ26: =IFERROR(VLOOKUP(G26,'투입인력 단가'!$C$10:$Y$49,13,FALSE),0) -> 0 | BA26: 0 | BT26: =CLEAN(IFERROR(VLOOKUP(G26,'투입인력 단가'!$C$10:$Y$49,14,FALSE),"")) ->  | BU26: =CLEAN(IFERROR(VLOOKUP(G26,'투입인력 단가'!$C$10:$Y$49,15,FALSE),"")) ->  | BV26: =CLEAN(IFERROR(VLOOKUP(G26,'투입인력 단가'!$C$10:$Y$49,16,FALSE),"")) ->  | BW26: =IFERROR(VLOOKUP(G26,'투입인력 단가'!$C$10:$Y$49,17,FALSE),0) -> 0 | BX26: =IFERROR(VLOOKUP(G26,'투입인력 단가'!$C$10:$Y$49,18,FALSE),0) -> 0 | BZ26: =IF(BU26=MASTER!$D$4,AW26*BW26, IF(BV26=MASTER!$F$4,AW26*BX26,0)) -> 0 | CA26: =CLEAN(IFERROR(VLOOKUP(G26,'투입인력 단가'!$C$10:$Y$49,22,FALSE),"")) ->  | CB26: =IF(COUNTIF(CA27:CA$44,CA26)=0,SUMIF(CA$15:CA$44,CA26,BZ$15:BZ$44),"") ->  | CH26: 0 | CI26: 0 | CJ26: 0 | CK26: 0 | CL26: 0 | CM26: 0 | CN26: 0 | CO26: 0 | CP26: 0 | CQ26: 0 | CR26: 0 | CS26: 0 | CT26: 0 | CU26: 0 | CV26: 0 | CW26: 0 | CX26: 0 | CY26: 0 | DA26: =$AZ$26*CH26+BB26 -> 0 | DB26: 0 | DC26: 0 | DD26: 0 | DE26: 0 | DF26: 0 | DG26: 0 | DH26: 0 | DI26: 0 | DJ26: 0 | DK26: 0 | DL26: 0 | DM26: 0 | DN26: 0 | DO26: 0 | DP26: 0 | DQ26: 0 | DR26: 0 | DT26: 0 | DU26: 0 | DV26: 0 | DW26: 0 | DX26: 0 | DY26: 0 | DZ26: 0 | EA26: 0 | EB26: 0 | EC26: 0 | ED26: 0 | EE26: 0 | EF26: 0 | EG26: 0 | EH26: 0 | EI26: 0 | EJ26: 0 | EK26: 0 | EM26: 0 | EN26: 0 | EO26: 0 | EP26: 0 | EQ26: 0 | ER26: 0 | ES26: 0 | ET26: 0 | EU26: 0 | EV26: 0 | EW26: 0 | EX26: 0 | EY26: 0 | EZ26: 0 | FA26: 0 | FB26: 0 | FC26: 0 | FD26: 0
D27: =IF( ISERROR(VLOOKUP(G27,'투입인력 단가'!$C$10:$E$49,3,FALSE)), "No Item", IF( VLOOKUP(G27,'투입인력 단가'!$C$10:$E$49,3,FALSE)="-", "투입취소", VLOOKUP(G27,'투입인력 단가'!$C$10:$E$49,3,FALSE))) -> No Item | G27: 13 | H27: =CLEAN(IFERROR(VLOOKUP(G27,'투입인력 단가'!$C$10:$Y$49,8,FALSE),"")) ->  | I27: =CLEAN(IFERROR(VLOOKUP(G27,'투입인력 단가'!$C$10:$Y$49,9,FALSE),"")) ->  | J27: =CLEAN(IFERROR(VLOOKUP(G27,'투입인력 단가'!$C$10:$Y$49,10,FALSE),"")) ->  | K27: =CLEAN(IFERROR(VLOOKUP(G27,'투입인력 단가'!$C$10:$Y$49,11,FALSE),"")) ->  | L27: =CLEAN(IFERROR(VLOOKUP(G27,'투입인력 단가'!$C$10:$Y$49,12,FALSE),"")) ->  | AW27: 0 | AX27: 0 | AY27: 0 | AZ27: =IFERROR(VLOOKUP(G27,'투입인력 단가'!$C$10:$Y$49,13,FALSE),0) -> 0 | BA27: 0 | BT27: =CLEAN(IFERROR(VLOOKUP(G27,'투입인력 단가'!$C$10:$Y$49,14,FALSE),"")) ->  | BU27: =CLEAN(IFERROR(VLOOKUP(G27,'투입인력 단가'!$C$10:$Y$49,15,FALSE),"")) ->  | BV27: =CLEAN(IFERROR(VLOOKUP(G27,'투입인력 단가'!$C$10:$Y$49,16,FALSE),"")) ->  | BW27: =IFERROR(VLOOKUP(G27,'투입인력 단가'!$C$10:$Y$49,17,FALSE),0) -> 0 | BX27: =IFERROR(VLOOKUP(G27,'투입인력 단가'!$C$10:$Y$49,18,FALSE),0) -> 0 | BZ27: =IF(BU27=MASTER!$D$4,AW27*BW27, IF(BV27=MASTER!$F$4,AW27*BX27,0)) -> 0 | CA27: =CLEAN(IFERROR(VLOOKUP(G27,'투입인력 단가'!$C$10:$Y$49,22,FALSE),"")) ->  | CB27: =IF(COUNTIF(CA28:CA$44,CA27)=0,SUMIF(CA$15:CA$44,CA27,BZ$15:BZ$44),"") ->  | CH27: 0 | CI27: 0 | CJ27: 0 | CK27: 0 | CL27: 0 | CM27: 0 | CN27: 0 | CO27: 0 | CP27: 0 | CQ27: 0 | CR27: 0 | CS27: 0 | CT27: 0 | CU27: 0 | CV27: 0 | CW27: 0 | CX27: 0 | CY27: 0 | DA27: =$AZ$27*CH27+BB27 -> 0 | DB27: 0 | DC27: 0 | DD27: 0 | DE27: 0 | DF27: 0 | DG27: 0 | DH27: 0 | DI27: 0 | DJ27: 0 | DK27: 0 | DL27: 0 | DM27: 0 | DN27: 0 | DO27: 0 | DP27: 0 | DQ27: 0 | DR27: 0 | DT27: 0 | DU27: 0 | DV27: 0 | DW27: 0 | DX27: 0 | DY27: 0 | DZ27: 0 | EA27: 0 | EB27: 0 | EC27: 0 | ED27: 0 | EE27: 0 | EF27: 0 | EG27: 0 | EH27: 0 | EI27: 0 | EJ27: 0 | EK27: 0 | EM27: 0 | EN27: 0 | EO27: 0 | EP27: 0 | EQ27: 0 | ER27: 0 | ES27: 0 | ET27: 0 | EU27: 0 | EV27: 0 | EW27: 0 | EX27: 0 | EY27: 0 | EZ27: 0 | FA27: 0 | FB27: 0 | FC27: 0 | FD27: 0
D28: =IF( ISERROR(VLOOKUP(G28,'투입인력 단가'!$C$10:$E$49,3,FALSE)), "No Item", IF( VLOOKUP(G28,'투입인력 단가'!$C$10:$E$49,3,FALSE)="-", "투입취소", VLOOKUP(G28,'투입인력 단가'!$C$10:$E$49,3,FALSE))) -> No Item | G28: 14 | H28: =CLEAN(IFERROR(VLOOKUP(G28,'투입인력 단가'!$C$10:$Y$49,8,FALSE),"")) ->  | I28: =CLEAN(IFERROR(VLOOKUP(G28,'투입인력 단가'!$C$10:$Y$49,9,FALSE),"")) ->  | J28: =CLEAN(IFERROR(VLOOKUP(G28,'투입인력 단가'!$C$10:$Y$49,10,FALSE),"")) ->  | K28: =CLEAN(IFERROR(VLOOKUP(G28,'투입인력 단가'!$C$10:$Y$49,11,FALSE),"")) ->  | L28: =CLEAN(IFERROR(VLOOKUP(G28,'투입인력 단가'!$C$10:$Y$49,12,FALSE),"")) ->  | AW28: 0 | AX28: 0 | AY28: 0 | AZ28: =IFERROR(VLOOKUP(G28,'투입인력 단가'!$C$10:$Y$49,13,FALSE),0) -> 0 | BA28: 0 | BT28: =CLEAN(IFERROR(VLOOKUP(G28,'투입인력 단가'!$C$10:$Y$49,14,FALSE),"")) ->  | BU28: =CLEAN(IFERROR(VLOOKUP(G28,'투입인력 단가'!$C$10:$Y$49,15,FALSE),"")) ->  | BV28: =CLEAN(IFERROR(VLOOKUP(G28,'투입인력 단가'!$C$10:$Y$49,16,FALSE),"")) ->  | BW28: =IFERROR(VLOOKUP(G28,'투입인력 단가'!$C$10:$Y$49,17,FALSE),0) -> 0 | BX28: =IFERROR(VLOOKUP(G28,'투입인력 단가'!$C$10:$Y$49,18,FALSE),0) -> 0 | BZ28: =IF(BU28=MASTER!$D$4,AW28*BW28, IF(BV28=MASTER!$F$4,AW28*BX28,0)) -> 0 | CA28: =CLEAN(IFERROR(VLOOKUP(G28,'투입인력 단가'!$C$10:$Y$49,22,FALSE),"")) ->  | CB28: =IF(COUNTIF(CA29:CA$44,CA28)=0,SUMIF(CA$15:CA$44,CA28,BZ$15:BZ$44),"") ->  | CH28: 0 | CI28: 0 | CJ28: 0 | CK28: 0 | CL28: 0 | CM28: 0 | CN28: 0 | CO28: 0 | CP28: 0 | CQ28: 0 | CR28: 0 | CS28: 0 | CT28: 0 | CU28: 0 | CV28: 0 | CW28: 0 | CX28: 0 | CY28: 0 | DA28: =$AZ$28*CH28+BB28 -> 0 | DB28: 0 | DC28: 0 | DD28: 0 | DE28: 0 | DF28: 0 | DG28: 0 | DH28: 0 | DI28: 0 | DJ28: 0 | DK28: 0 | DL28: 0 | DM28: 0 | DN28: 0 | DO28: 0 | DP28: 0 | DQ28: 0 | DR28: 0 | DT28: 0 | DU28: 0 | DV28: 0 | DW28: 0 | DX28: 0 | DY28: 0 | DZ28: 0 | EA28: 0 | EB28: 0 | EC28: 0 | ED28: 0 | EE28: 0 | EF28: 0 | EG28: 0 | EH28: 0 | EI28: 0 | EJ28: 0 | EK28: 0 | EM28: 0 | EN28: 0 | EO28: 0 | EP28: 0 | EQ28: 0 | ER28: 0 | ES28: 0 | ET28: 0 | EU28: 0 | EV28: 0 | EW28: 0 | EX28: 0 | EY28: 0 | EZ28: 0 | FA28: 0 | FB28: 0 | FC28: 0 | FD28: 0
D29: =IF( ISERROR(VLOOKUP(G29,'투입인력 단가'!$C$10:$E$49,3,FALSE)), "No Item", IF( VLOOKUP(G29,'투입인력 단가'!$C$10:$E$49,3,FALSE)="-", "투입취소", VLOOKUP(G29,'투입인력 단가'!$C$10:$E$49,3,FALSE))) -> No Item | G29: 15 | H29: =CLEAN(IFERROR(VLOOKUP(G29,'투입인력 단가'!$C$10:$Y$49,8,FALSE),"")) ->  | I29: =CLEAN(IFERROR(VLOOKUP(G29,'투입인력 단가'!$C$10:$Y$49,9,FALSE),"")) ->  | J29: =CLEAN(IFERROR(VLOOKUP(G29,'투입인력 단가'!$C$10:$Y$49,10,FALSE),"")) ->  | K29: =CLEAN(IFERROR(VLOOKUP(G29,'투입인력 단가'!$C$10:$Y$49,11,FALSE),"")) ->  | L29: =CLEAN(IFERROR(VLOOKUP(G29,'투입인력 단가'!$C$10:$Y$49,12,FALSE),"")) ->  | AW29: 0 | AX29: 0 | AY29: 0 | AZ29: =IFERROR(VLOOKUP(G29,'투입인력 단가'!$C$10:$Y$49,13,FALSE),0) -> 0 | BA29: 0 | BT29: =CLEAN(IFERROR(VLOOKUP(G29,'투입인력 단가'!$C$10:$Y$49,14,FALSE),"")) ->  | BU29: =CLEAN(IFERROR(VLOOKUP(G29,'투입인력 단가'!$C$10:$Y$49,15,FALSE),"")) ->  | BV29: =CLEAN(IFERROR(VLOOKUP(G29,'투입인력 단가'!$C$10:$Y$49,16,FALSE),"")) ->  | BW29: =IFERROR(VLOOKUP(G29,'투입인력 단가'!$C$10:$Y$49,17,FALSE),0) -> 0 | BX29: =IFERROR(VLOOKUP(G29,'투입인력 단가'!$C$10:$Y$49,18,FALSE),0) -> 0 | BZ29: =IF(BU29=MASTER!$D$4,AW29*BW29, IF(BV29=MASTER!$F$4,AW29*BX29,0)) -> 0 | CA29: =CLEAN(IFERROR(VLOOKUP(G29,'투입인력 단가'!$C$10:$Y$49,22,FALSE),"")) ->  | CB29: =IF(COUNTIF(CA30:CA$44,CA29)=0,SUMIF(CA$15:CA$44,CA29,BZ$15:BZ$44),"") ->  | CH29: 0 | CI29: 0 | CJ29: 0 | CK29: 0 | CL29: 0 | CM29: 0 | CN29: 0 | CO29: 0 | CP29: 0 | CQ29: 0 | CR29: 0 | CS29: 0 | CT29: 0 | CU29: 0 | CV29: 0 | CW29: 0 | CX29: 0 | CY29: 0 | DA29: =$AZ$29*CH29+BB29 -> 0 | DB29: 0 | DC29: 0 | DD29: 0 | DE29: 0 | DF29: 0 | DG29: 0 | DH29: 0 | DI29: 0 | DJ29: 0 | DK29: 0 | DL29: 0 | DM29: 0 | DN29: 0 | DO29: 0 | DP29: 0 | DQ29: 0 | DR29: 0 | DT29: 0 | DU29: 0 | DV29: 0 | DW29: 0 | DX29: 0 | DY29: 0 | DZ29: 0 | EA29: 0 | EB29: 0 | EC29: 0 | ED29: 0 | EE29: 0 | EF29: 0 | EG29: 0 | EH29: 0 | EI29: 0 | EJ29: 0 | EK29: 0 | EM29: 0 | EN29: 0 | EO29: 0 | EP29: 0 | EQ29: 0 | ER29: 0 | ES29: 0 | ET29: 0 | EU29: 0 | EV29: 0 | EW29: 0 | EX29: 0 | EY29: 0 | EZ29: 0 | FA29: 0 | FB29: 0 | FC29: 0 | FD29: 0
D30: =IF( ISERROR(VLOOKUP(G30,'투입인력 단가'!$C$10:$E$49,3,FALSE)), "No Item", IF( VLOOKUP(G30,'투입인력 단가'!$C$10:$E$49,3,FALSE)="-", "투입취소", VLOOKUP(G30,'투입인력 단가'!$C$10:$E$49,3,FALSE))) -> No Item | G30: 16 | H30: =CLEAN(IFERROR(VLOOKUP(G30,'투입인력 단가'!$C$10:$Y$49,8,FALSE),"")) ->  | I30: =CLEAN(IFERROR(VLOOKUP(G30,'투입인력 단가'!$C$10:$Y$49,9,FALSE),"")) ->  | J30: =CLEAN(IFERROR(VLOOKUP(G30,'투입인력 단가'!$C$10:$Y$49,10,FALSE),"")) ->  | K30: =CLEAN(IFERROR(VLOOKUP(G30,'투입인력 단가'!$C$10:$Y$49,11,FALSE),"")) ->  | L30: =CLEAN(IFERROR(VLOOKUP(G30,'투입인력 단가'!$C$10:$Y$49,12,FALSE),"")) ->  | AW30: 0 | AX30: 0 | AY30: 0 | AZ30: =IFERROR(VLOOKUP(G30,'투입인력 단가'!$C$10:$Y$49,13,FALSE),0) -> 0 | BA30: 0 | BT30: =CLEAN(IFERROR(VLOOKUP(G30,'투입인력 단가'!$C$10:$Y$49,14,FALSE),"")) ->  | BU30: =CLEAN(IFERROR(VLOOKUP(G30,'투입인력 단가'!$C$10:$Y$49,15,FALSE),"")) ->  | BV30: =CLEAN(IFERROR(VLOOKUP(G30,'투입인력 단가'!$C$10:$Y$49,16,FALSE),"")) ->  | BW30: =IFERROR(VLOOKUP(G30,'투입인력 단가'!$C$10:$Y$49,17,FALSE),0) -> 0 | BX30: =IFERROR(VLOOKUP(G30,'투입인력 단가'!$C$10:$Y$49,18,FALSE),0) -> 0 | BZ30: =IF(BU30=MASTER!$D$4,AW30*BW30, IF(BV30=MASTER!$F$4,AW30*BX30,0)) -> 0 | CA30: =CLEAN(IFERROR(VLOOKUP(G30,'투입인력 단가'!$C$10:$Y$49,22,FALSE),"")) ->  | CB30: =IF(COUNTIF(CA31:CA$44,CA30)=0,SUMIF(CA$15:CA$44,CA30,BZ$15:BZ$44),"") ->  | CH30: 0 | CI30: 0 | CJ30: 0 | CK30: 0 | CL30: 0 | CM30: 0 | CN30: 0 | CO30: 0 | CP30: 0 | CQ30: 0 | CR30: 0 | CS30: 0 | CT30: 0 | CU30: 0 | CV30: 0 | CW30: 0 | CX30: 0 | CY30: 0 | DA30: =$AZ$30*CH30+BB30 -> 0 | DB30: 0 | DC30: 0 | DD30: 0 | DE30: 0 | DF30: 0 | DG30: 0 | DH30: 0 | DI30: 0 | DJ30: 0 | DK30: 0 | DL30: 0 | DM30: 0 | DN30: 0 | DO30: 0 | DP30: 0 | DQ30: 0 | DR30: 0 | DT30: 0 | DU30: 0 | DV30: 0 | DW30: 0 | DX30: 0 | DY30: 0 | DZ30: 0 | EA30: 0 | EB30: 0 | EC30: 0 | ED30: 0 | EE30: 0 | EF30: 0 | EG30: 0 | EH30: 0 | EI30: 0 | EJ30: 0 | EK30: 0 | EM30: 0 | EN30: 0 | EO30: 0 | EP30: 0 | EQ30: 0 | ER30: 0 | ES30: 0 | ET30: 0 | EU30: 0 | EV30: 0 | EW30: 0 | EX30: 0 | EY30: 0 | EZ30: 0 | FA30: 0 | FB30: 0 | FC30: 0 | FD30: 0
D31: =IF( ISERROR(VLOOKUP(G31,'투입인력 단가'!$C$10:$E$49,3,FALSE)), "No Item", IF( VLOOKUP(G31,'투입인력 단가'!$C$10:$E$49,3,FALSE)="-", "투입취소", VLOOKUP(G31,'투입인력 단가'!$C$10:$E$49,3,FALSE))) -> No Item | G31: 17 | H31: =CLEAN(IFERROR(VLOOKUP(G31,'투입인력 단가'!$C$10:$Y$49,8,FALSE),"")) ->  | I31: =CLEAN(IFERROR(VLOOKUP(G31,'투입인력 단가'!$C$10:$Y$49,9,FALSE),"")) ->  | J31: =CLEAN(IFERROR(VLOOKUP(G31,'투입인력 단가'!$C$10:$Y$49,10,FALSE),"")) ->  | K31: =CLEAN(IFERROR(VLOOKUP(G31,'투입인력 단가'!$C$10:$Y$49,11,FALSE),"")) ->  | L31: =CLEAN(IFERROR(VLOOKUP(G31,'투입인력 단가'!$C$10:$Y$49,12,FALSE),"")) ->  | AW31: 0 | AX31: 0 | AY31: 0 | AZ31: =IFERROR(VLOOKUP(G31,'투입인력 단가'!$C$10:$Y$49,13,FALSE),0) -> 0 | BA31: 0 | BT31: =CLEAN(IFERROR(VLOOKUP(G31,'투입인력 단가'!$C$10:$Y$49,14,FALSE),"")) ->  | BU31: =CLEAN(IFERROR(VLOOKUP(G31,'투입인력 단가'!$C$10:$Y$49,15,FALSE),"")) ->  | BV31: =CLEAN(IFERROR(VLOOKUP(G31,'투입인력 단가'!$C$10:$Y$49,16,FALSE),"")) ->  | BW31: =IFERROR(VLOOKUP(G31,'투입인력 단가'!$C$10:$Y$49,17,FALSE),0) -> 0 | BX31: =IFERROR(VLOOKUP(G31,'투입인력 단가'!$C$10:$Y$49,18,FALSE),0) -> 0 | BZ31: =IF(BU31=MASTER!$D$4,AW31*BW31, IF(BV31=MASTER!$F$4,AW31*BX31,0)) -> 0 | CA31: =CLEAN(IFERROR(VLOOKUP(G31,'투입인력 단가'!$C$10:$Y$49,22,FALSE),"")) ->  | CB31: =IF(COUNTIF(CA32:CA$44,CA31)=0,SUMIF(CA$15:CA$44,CA31,BZ$15:BZ$44),"") ->  | CH31: 0 | CI31: 0 | CJ31: 0 | CK31: 0 | CL31: 0 | CM31: 0 | CN31: 0 | CO31: 0 | CP31: 0 | CQ31: 0 | CR31: 0 | CS31: 0 | CT31: 0 | CU31: 0 | CV31: 0 | CW31: 0 | CX31: 0 | CY31: 0 | DA31: =$AZ$31*CH31+BB31 -> 0 | DB31: 0 | DC31: 0 | DD31: 0 | DE31: 0 | DF31: 0 | DG31: 0 | DH31: 0 | DI31: 0 | DJ31: 0 | DK31: 0 | DL31: 0 | DM31: 0 | DN31: 0 | DO31: 0 | DP31: 0 | DQ31: 0 | DR31: 0 | DT31: 0 | DU31: 0 | DV31: 0 | DW31: 0 | DX31: 0 | DY31: 0 | DZ31: 0 | EA31: 0 | EB31: 0 | EC31: 0 | ED31: 0 | EE31: 0 | EF31: 0 | EG31: 0 | EH31: 0 | EI31: 0 | EJ31: 0 | EK31: 0 | EM31: 0 | EN31: 0 | EO31: 0 | EP31: 0 | EQ31: 0 | ER31: 0 | ES31: 0 | ET31: 0 | EU31: 0 | EV31: 0 | EW31: 0 | EX31: 0 | EY31: 0 | EZ31: 0 | FA31: 0 | FB31: 0 | FC31: 0 | FD31: 0
D32: =IF( ISERROR(VLOOKUP(G32,'투입인력 단가'!$C$10:$E$49,3,FALSE)), "No Item", IF( VLOOKUP(G32,'투입인력 단가'!$C$10:$E$49,3,FALSE)="-", "투입취소", VLOOKUP(G32,'투입인력 단가'!$C$10:$E$49,3,FALSE))) -> No Item | G32: 18 | H32: =CLEAN(IFERROR(VLOOKUP(G32,'투입인력 단가'!$C$10:$Y$49,8,FALSE),"")) ->  | I32: =CLEAN(IFERROR(VLOOKUP(G32,'투입인력 단가'!$C$10:$Y$49,9,FALSE),"")) ->  | J32: =CLEAN(IFERROR(VLOOKUP(G32,'투입인력 단가'!$C$10:$Y$49,10,FALSE),"")) ->  | K32: =CLEAN(IFERROR(VLOOKUP(G32,'투입인력 단가'!$C$10:$Y$49,11,FALSE),"")) ->  | L32: =CLEAN(IFERROR(VLOOKUP(G32,'투입인력 단가'!$C$10:$Y$49,12,FALSE),"")) ->  | AW32: 0 | AX32: 0 | AY32: 0 | AZ32: =IFERROR(VLOOKUP(G32,'투입인력 단가'!$C$10:$Y$49,13,FALSE),0) -> 0 | BA32: 0 | BT32: =CLEAN(IFERROR(VLOOKUP(G32,'투입인력 단가'!$C$10:$Y$49,14,FALSE),"")) ->  | BU32: =CLEAN(IFERROR(VLOOKUP(G32,'투입인력 단가'!$C$10:$Y$49,15,FALSE),"")) ->  | BV32: =CLEAN(IFERROR(VLOOKUP(G32,'투입인력 단가'!$C$10:$Y$49,16,FALSE),"")) ->  | BW32: =IFERROR(VLOOKUP(G32,'투입인력 단가'!$C$10:$Y$49,17,FALSE),0) -> 0 | BX32: =IFERROR(VLOOKUP(G32,'투입인력 단가'!$C$10:$Y$49,18,FALSE),0) -> 0 | BZ32: =IF(BU32=MASTER!$D$4,AW32*BW32, IF(BV32=MASTER!$F$4,AW32*BX32,0)) -> 0 | CA32: =CLEAN(IFERROR(VLOOKUP(G32,'투입인력 단가'!$C$10:$Y$49,22,FALSE),"")) ->  | CB32: =IF(COUNTIF(CA33:CA$44,CA32)=0,SUMIF(CA$15:CA$44,CA32,BZ$15:BZ$44),"") ->  | CH32: 0 | CI32: 0 | CJ32: 0 | CK32: 0 | CL32: 0 | CM32: 0 | CN32: 0 | CO32: 0 | CP32: 0 | CQ32: 0 | CR32: 0 | CS32: 0 | CT32: 0 | CU32: 0 | CV32: 0 | CW32: 0 | CX32: 0 | CY32: 0 | DA32: =$AZ$32*CH32+BB32 -> 0 | DB32: 0 | DC32: 0 | DD32: 0 | DE32: 0 | DF32: 0 | DG32: 0 | DH32: 0 | DI32: 0 | DJ32: 0 | DK32: 0 | DL32: 0 | DM32: 0 | DN32: 0 | DO32: 0 | DP32: 0 | DQ32: 0 | DR32: 0 | DT32: 0 | DU32: 0 | DV32: 0 | DW32: 0 | DX32: 0 | DY32: 0 | DZ32: 0 | EA32: 0 | EB32: 0 | EC32: 0 | ED32: 0 | EE32: 0 | EF32: 0 | EG32: 0 | EH32: 0 | EI32: 0 | EJ32: 0 | EK32: 0 | EM32: 0 | EN32: 0 | EO32: 0 | EP32: 0 | EQ32: 0 | ER32: 0 | ES32: 0 | ET32: 0 | EU32: 0 | EV32: 0 | EW32: 0 | EX32: 0 | EY32: 0 | EZ32: 0 | FA32: 0 | FB32: 0 | FC32: 0 | FD32: 0
D33: =IF( ISERROR(VLOOKUP(G33,'투입인력 단가'!$C$10:$E$49,3,FALSE)), "No Item", IF( VLOOKUP(G33,'투입인력 단가'!$C$10:$E$49,3,FALSE)="-", "투입취소", VLOOKUP(G33,'투입인력 단가'!$C$10:$E$49,3,FALSE))) -> No Item | G33: 19 | H33: =CLEAN(IFERROR(VLOOKUP(G33,'투입인력 단가'!$C$10:$Y$49,8,FALSE),"")) ->  | I33: =CLEAN(IFERROR(VLOOKUP(G33,'투입인력 단가'!$C$10:$Y$49,9,FALSE),"")) ->  | J33: =CLEAN(IFERROR(VLOOKUP(G33,'투입인력 단가'!$C$10:$Y$49,10,FALSE),"")) ->  | K33: =CLEAN(IFERROR(VLOOKUP(G33,'투입인력 단가'!$C$10:$Y$49,11,FALSE),"")) ->  | L33: =CLEAN(IFERROR(VLOOKUP(G33,'투입인력 단가'!$C$10:$Y$49,12,FALSE),"")) ->  | AW33: 0 | AX33: 0 | AY33: 0 | AZ33: =IFERROR(VLOOKUP(G33,'투입인력 단가'!$C$10:$Y$49,13,FALSE),0) -> 0 | BA33: 0 | BT33: =CLEAN(IFERROR(VLOOKUP(G33,'투입인력 단가'!$C$10:$Y$49,14,FALSE),"")) ->  | BU33: =CLEAN(IFERROR(VLOOKUP(G33,'투입인력 단가'!$C$10:$Y$49,15,FALSE),"")) ->  | BV33: =CLEAN(IFERROR(VLOOKUP(G33,'투입인력 단가'!$C$10:$Y$49,16,FALSE),"")) ->  | BW33: =IFERROR(VLOOKUP(G33,'투입인력 단가'!$C$10:$Y$49,17,FALSE),0) -> 0 | BX33: =IFERROR(VLOOKUP(G33,'투입인력 단가'!$C$10:$Y$49,18,FALSE),0) -> 0 | BZ33: =IF(BU33=MASTER!$D$4,AW33*BW33, IF(BV33=MASTER!$F$4,AW33*BX33,0)) -> 0 | CA33: =CLEAN(IFERROR(VLOOKUP(G33,'투입인력 단가'!$C$10:$Y$49,22,FALSE),"")) ->  | CB33: =IF(COUNTIF(CA34:CA$44,CA33)=0,SUMIF(CA$15:CA$44,CA33,BZ$15:BZ$44),"") ->  | CH33: 0 | CI33: 0 | CJ33: 0 | CK33: 0 | CL33: 0 | CM33: 0 | CN33: 0 | CO33: 0 | CP33: 0 | CQ33: 0 | CR33: 0 | CS33: 0 | CT33: 0 | CU33: 0 | CV33: 0 | CW33: 0 | CX33: 0 | CY33: 0 | DA33: =$AZ$33*CH33+BB33 -> 0 | DB33: 0 | DC33: 0 | DD33: 0 | DE33: 0 | DF33: 0 | DG33: 0 | DH33: 0 | DI33: 0 | DJ33: 0 | DK33: 0 | DL33: 0 | DM33: 0 | DN33: 0 | DO33: 0 | DP33: 0 | DQ33: 0 | DR33: 0 | DT33: 0 | DU33: 0 | DV33: 0 | DW33: 0 | DX33: 0 | DY33: 0 | DZ33: 0 | EA33: 0 | EB33: 0 | EC33: 0 | ED33: 0 | EE33: 0 | EF33: 0 | EG33: 0 | EH33: 0 | EI33: 0 | EJ33: 0 | EK33: 0 | EM33: 0 | EN33: 0 | EO33: 0 | EP33: 0 | EQ33: 0 | ER33: 0 | ES33: 0 | ET33: 0 | EU33: 0 | EV33: 0 | EW33: 0 | EX33: 0 | EY33: 0 | EZ33: 0 | FA33: 0 | FB33: 0 | FC33: 0 | FD33: 0
D34: =IF( ISERROR(VLOOKUP(G34,'투입인력 단가'!$C$10:$E$49,3,FALSE)), "No Item", IF( VLOOKUP(G34,'투입인력 단가'!$C$10:$E$49,3,FALSE)="-", "투입취소", VLOOKUP(G34,'투입인력 단가'!$C$10:$E$49,3,FALSE))) -> No Item | G34: 20 | H34: =CLEAN(IFERROR(VLOOKUP(G34,'투입인력 단가'!$C$10:$Y$49,8,FALSE),"")) ->  | I34: =CLEAN(IFERROR(VLOOKUP(G34,'투입인력 단가'!$C$10:$Y$49,9,FALSE),"")) ->  | J34: =CLEAN(IFERROR(VLOOKUP(G34,'투입인력 단가'!$C$10:$Y$49,10,FALSE),"")) ->  | K34: =CLEAN(IFERROR(VLOOKUP(G34,'투입인력 단가'!$C$10:$Y$49,11,FALSE),"")) ->  | L34: =CLEAN(IFERROR(VLOOKUP(G34,'투입인력 단가'!$C$10:$Y$49,12,FALSE),"")) ->  | AW34: 0 | AX34: 0 | AY34: 0 | AZ34: =IFERROR(VLOOKUP(G34,'투입인력 단가'!$C$10:$Y$49,13,FALSE),0) -> 0 | BA34: 0 | BT34: =CLEAN(IFERROR(VLOOKUP(G34,'투입인력 단가'!$C$10:$Y$49,14,FALSE),"")) ->  | BU34: =CLEAN(IFERROR(VLOOKUP(G34,'투입인력 단가'!$C$10:$Y$49,15,FALSE),"")) ->  | BV34: =CLEAN(IFERROR(VLOOKUP(G34,'투입인력 단가'!$C$10:$Y$49,16,FALSE),"")) ->  | BW34: =IFERROR(VLOOKUP(G34,'투입인력 단가'!$C$10:$Y$49,17,FALSE),0) -> 0 | BX34: =IFERROR(VLOOKUP(G34,'투입인력 단가'!$C$10:$Y$49,18,FALSE),0) -> 0 | BZ34: =IF(BU34=MASTER!$D$4,AW34*BW34, IF(BV34=MASTER!$F$4,AW34*BX34,0)) -> 0 | CA34: =CLEAN(IFERROR(VLOOKUP(G34,'투입인력 단가'!$C$10:$Y$49,22,FALSE),"")) ->  | CB34: =IF(COUNTIF(CA35:CA$44,CA34)=0,SUMIF(CA$15:CA$44,CA34,BZ$15:BZ$44),"") ->  | CH34: 0 | CI34: 0 | CJ34: 0 | CK34: 0 | CL34: 0 | CM34: 0 | CN34: 0 | CO34: 0 | CP34: 0 | CQ34: 0 | CR34: 0 | CS34: 0 | CT34: 0 | CU34: 0 | CV34: 0 | CW34: 0 | CX34: 0 | CY34: 0 | DA34: =$AZ$34*CH34+BB34 -> 0 | DB34: 0 | DC34: 0 | DD34: 0 | DE34: 0 | DF34: 0 | DG34: 0 | DH34: 0 | DI34: 0 | DJ34: 0 | DK34: 0 | DL34: 0 | DM34: 0 | DN34: 0 | DO34: 0 | DP34: 0 | DQ34: 0 | DR34: 0 | DT34: 0 | DU34: 0 | DV34: 0 | DW34: 0 | DX34: 0 | DY34: 0 | DZ34: 0 | EA34: 0 | EB34: 0 | EC34: 0 | ED34: 0 | EE34: 0 | EF34: 0 | EG34: 0 | EH34: 0 | EI34: 0 | EJ34: 0 | EK34: 0 | EM34: 0 | EN34: 0 | EO34: 0 | EP34: 0 | EQ34: 0 | ER34: 0 | ES34: 0 | ET34: 0 | EU34: 0 | EV34: 0 | EW34: 0 | EX34: 0 | EY34: 0 | EZ34: 0 | FA34: 0 | FB34: 0 | FC34: 0 | FD34: 0
D35: =IF( ISERROR(VLOOKUP(G35,'투입인력 단가'!$C$10:$E$49,3,FALSE)), "No Item", IF( VLOOKUP(G35,'투입인력 단가'!$C$10:$E$49,3,FALSE)="-", "투입취소", VLOOKUP(G35,'투입인력 단가'!$C$10:$E$49,3,FALSE))) -> No Item | G35: 21 | H35: =CLEAN(IFERROR(VLOOKUP(G35,'투입인력 단가'!$C$10:$Y$49,8,FALSE),"")) ->  | I35: =CLEAN(IFERROR(VLOOKUP(G35,'투입인력 단가'!$C$10:$Y$49,9,FALSE),"")) ->  | J35: =CLEAN(IFERROR(VLOOKUP(G35,'투입인력 단가'!$C$10:$Y$49,10,FALSE),"")) ->  | K35: =CLEAN(IFERROR(VLOOKUP(G35,'투입인력 단가'!$C$10:$Y$49,11,FALSE),"")) ->  | L35: =CLEAN(IFERROR(VLOOKUP(G35,'투입인력 단가'!$C$10:$Y$49,12,FALSE),"")) ->  | AW35: 0 | AX35: 0 | AY35: 0 | AZ35: =IFERROR(VLOOKUP(G35,'투입인력 단가'!$C$10:$Y$49,13,FALSE),0) -> 0 | BA35: 0 | BT35: =CLEAN(IFERROR(VLOOKUP(G35,'투입인력 단가'!$C$10:$Y$49,14,FALSE),"")) ->  | BU35: =CLEAN(IFERROR(VLOOKUP(G35,'투입인력 단가'!$C$10:$Y$49,15,FALSE),"")) ->  | BV35: =CLEAN(IFERROR(VLOOKUP(G35,'투입인력 단가'!$C$10:$Y$49,16,FALSE),"")) ->  | BW35: =IFERROR(VLOOKUP(G35,'투입인력 단가'!$C$10:$Y$49,17,FALSE),0) -> 0 | BX35: =IFERROR(VLOOKUP(G35,'투입인력 단가'!$C$10:$Y$49,18,FALSE),0) -> 0 | BZ35: =IF(BU35=MASTER!$D$4,AW35*BW35, IF(BV35=MASTER!$F$4,AW35*BX35,0)) -> 0 | CA35: =CLEAN(IFERROR(VLOOKUP(G35,'투입인력 단가'!$C$10:$Y$49,22,FALSE),"")) ->  | CB35: =IF(COUNTIF(CA36:CA$44,CA35)=0,SUMIF(CA$15:CA$44,CA35,BZ$15:BZ$44),"") ->  | CH35: 0 | CI35: 0 | CJ35: 0 | CK35: 0 | CL35: 0 | CM35: 0 | CN35: 0 | CO35: 0 | CP35: 0 | CQ35: 0 | CR35: 0 | CS35: 0 | CT35: 0 | CU35: 0 | CV35: 0 | CW35: 0 | CX35: 0 | CY35: 0 | DA35: =$AZ$35*CH35+BB35 -> 0 | DB35: 0 | DC35: 0 | DD35: 0 | DE35: 0 | DF35: 0 | DG35: 0 | DH35: 0 | DI35: 0 | DJ35: 0 | DK35: 0 | DL35: 0 | DM35: 0 | DN35: 0 | DO35: 0 | DP35: 0 | DQ35: 0 | DR35: 0 | DT35: 0 | DU35: 0 | DV35: 0 | DW35: 0 | DX35: 0 | DY35: 0 | DZ35: 0 | EA35: 0 | EB35: 0 | EC35: 0 | ED35: 0 | EE35: 0 | EF35: 0 | EG35: 0 | EH35: 0 | EI35: 0 | EJ35: 0 | EK35: 0 | EM35: 0 | EN35: 0 | EO35: 0 | EP35: 0 | EQ35: 0 | ER35: 0 | ES35: 0 | ET35: 0 | EU35: 0 | EV35: 0 | EW35: 0 | EX35: 0 | EY35: 0 | EZ35: 0 | FA35: 0 | FB35: 0 | FC35: 0 | FD35: 0
D36: =IF( ISERROR(VLOOKUP(G36,'투입인력 단가'!$C$10:$E$49,3,FALSE)), "No Item", IF( VLOOKUP(G36,'투입인력 단가'!$C$10:$E$49,3,FALSE)="-", "투입취소", VLOOKUP(G36,'투입인력 단가'!$C$10:$E$49,3,FALSE))) -> No Item | G36: 22 | H36: =CLEAN(IFERROR(VLOOKUP(G36,'투입인력 단가'!$C$10:$Y$49,8,FALSE),"")) ->  | I36: =CLEAN(IFERROR(VLOOKUP(G36,'투입인력 단가'!$C$10:$Y$49,9,FALSE),"")) ->  | J36: =CLEAN(IFERROR(VLOOKUP(G36,'투입인력 단가'!$C$10:$Y$49,10,FALSE),"")) ->  | K36: =CLEAN(IFERROR(VLOOKUP(G36,'투입인력 단가'!$C$10:$Y$49,11,FALSE),"")) ->  | L36: =CLEAN(IFERROR(VLOOKUP(G36,'투입인력 단가'!$C$10:$Y$49,12,FALSE),"")) ->  | AW36: 0 | AX36: 0 | AY36: 0 | AZ36: =IFERROR(VLOOKUP(G36,'투입인력 단가'!$C$10:$Y$49,13,FALSE),0) -> 0 | BA36: 0 | BT36: =CLEAN(IFERROR(VLOOKUP(G36,'투입인력 단가'!$C$10:$Y$49,14,FALSE),"")) ->  | BU36: =CLEAN(IFERROR(VLOOKUP(G36,'투입인력 단가'!$C$10:$Y$49,15,FALSE),"")) ->  | BV36: =CLEAN(IFERROR(VLOOKUP(G36,'투입인력 단가'!$C$10:$Y$49,16,FALSE),"")) ->  | BW36: =IFERROR(VLOOKUP(G36,'투입인력 단가'!$C$10:$Y$49,17,FALSE),0) -> 0 | BX36: =IFERROR(VLOOKUP(G36,'투입인력 단가'!$C$10:$Y$49,18,FALSE),0) -> 0 | BZ36: =IF(BU36=MASTER!$D$4,AW36*BW36, IF(BV36=MASTER!$F$4,AW36*BX36,0)) -> 0 | CA36: =CLEAN(IFERROR(VLOOKUP(G36,'투입인력 단가'!$C$10:$Y$49,22,FALSE),"")) ->  | CB36: =IF(COUNTIF(CA37:CA$44,CA36)=0,SUMIF(CA$15:CA$44,CA36,BZ$15:BZ$44),"") ->  | CH36: 0 | CI36: 0 | CJ36: 0 | CK36: 0 | CL36: 0 | CM36: 0 | CN36: 0 | CO36: 0 | CP36: 0 | CQ36: 0 | CR36: 0 | CS36: 0 | CT36: 0 | CU36: 0 | CV36: 0 | CW36: 0 | CX36: 0 | CY36: 0 | DA36: =$AZ$36*CH36+BB36 -> 0 | DB36: 0 | DC36: 0 | DD36: 0 | DE36: 0 | DF36: 0 | DG36: 0 | DH36: 0 | DI36: 0 | DJ36: 0 | DK36: 0 | DL36: 0 | DM36: 0 | DN36: 0 | DO36: 0 | DP36: 0 | DQ36: 0 | DR36: 0 | DT36: 0 | DU36: 0 | DV36: 0 | DW36: 0 | DX36: 0 | DY36: 0 | DZ36: 0 | EA36: 0 | EB36: 0 | EC36: 0 | ED36: 0 | EE36: 0 | EF36: 0 | EG36: 0 | EH36: 0 | EI36: 0 | EJ36: 0 | EK36: 0 | EM36: 0 | EN36: 0 | EO36: 0 | EP36: 0 | EQ36: 0 | ER36: 0 | ES36: 0 | ET36: 0 | EU36: 0 | EV36: 0 | EW36: 0 | EX36: 0 | EY36: 0 | EZ36: 0 | FA36: 0 | FB36: 0 | FC36: 0 | FD36: 0
D37: =IF( ISERROR(VLOOKUP(G37,'투입인력 단가'!$C$10:$E$49,3,FALSE)), "No Item", IF( VLOOKUP(G37,'투입인력 단가'!$C$10:$E$49,3,FALSE)="-", "투입취소", VLOOKUP(G37,'투입인력 단가'!$C$10:$E$49,3,FALSE))) -> No Item | G37: 23 | H37: =CLEAN(IFERROR(VLOOKUP(G37,'투입인력 단가'!$C$10:$Y$49,8,FALSE),"")) ->  | I37: =CLEAN(IFERROR(VLOOKUP(G37,'투입인력 단가'!$C$10:$Y$49,9,FALSE),"")) ->  | J37: =CLEAN(IFERROR(VLOOKUP(G37,'투입인력 단가'!$C$10:$Y$49,10,FALSE),"")) ->  | K37: =CLEAN(IFERROR(VLOOKUP(G37,'투입인력 단가'!$C$10:$Y$49,11,FALSE),"")) ->  | L37: =CLEAN(IFERROR(VLOOKUP(G37,'투입인력 단가'!$C$10:$Y$49,12,FALSE),"")) ->  | AW37: 0 | AX37: 0 | AY37: 0 | AZ37: =IFERROR(VLOOKUP(G37,'투입인력 단가'!$C$10:$Y$49,13,FALSE),0) -> 0 | BA37: 0 | BT37: =CLEAN(IFERROR(VLOOKUP(G37,'투입인력 단가'!$C$10:$Y$49,14,FALSE),"")) ->  | BU37: =CLEAN(IFERROR(VLOOKUP(G37,'투입인력 단가'!$C$10:$Y$49,15,FALSE),"")) ->  | BV37: =CLEAN(IFERROR(VLOOKUP(G37,'투입인력 단가'!$C$10:$Y$49,16,FALSE),"")) ->  | BW37: =IFERROR(VLOOKUP(G37,'투입인력 단가'!$C$10:$Y$49,17,FALSE),0) -> 0 | BX37: =IFERROR(VLOOKUP(G37,'투입인력 단가'!$C$10:$Y$49,18,FALSE),0) -> 0 | BZ37: =IF(BU37=MASTER!$D$4,AW37*BW37, IF(BV37=MASTER!$F$4,AW37*BX37,0)) -> 0 | CA37: =CLEAN(IFERROR(VLOOKUP(G37,'투입인력 단가'!$C$10:$Y$49,22,FALSE),"")) ->  | CB37: =IF(COUNTIF(CA38:CA$44,CA37)=0,SUMIF(CA$15:CA$44,CA37,BZ$15:BZ$44),"") ->  | CH37: 0 | CI37: 0 | CJ37: 0 | CK37: 0 | CL37: 0 | CM37: 0 | CN37: 0 | CO37: 0 | CP37: 0 | CQ37: 0 | CR37: 0 | CS37: 0 | CT37: 0 | CU37: 0 | CV37: 0 | CW37: 0 | CX37: 0 | CY37: 0 | DA37: =$AZ$37*CH37+BB37 -> 0 | DB37: 0 | DC37: 0 | DD37: 0 | DE37: 0 | DF37: 0 | DG37: 0 | DH37: 0 | DI37: 0 | DJ37: 0 | DK37: 0 | DL37: 0 | DM37: 0 | DN37: 0 | DO37: 0 | DP37: 0 | DQ37: 0 | DR37: 0 | DT37: 0 | DU37: 0 | DV37: 0 | DW37: 0 | DX37: 0 | DY37: 0 | DZ37: 0 | EA37: 0 | EB37: 0 | EC37: 0 | ED37: 0 | EE37: 0 | EF37: 0 | EG37: 0 | EH37: 0 | EI37: 0 | EJ37: 0 | EK37: 0 | EM37: 0 | EN37: 0 | EO37: 0 | EP37: 0 | EQ37: 0 | ER37: 0 | ES37: 0 | ET37: 0 | EU37: 0 | EV37: 0 | EW37: 0 | EX37: 0 | EY37: 0 | EZ37: 0 | FA37: 0 | FB37: 0 | FC37: 0 | FD37: 0
D38: =IF( ISERROR(VLOOKUP(G38,'투입인력 단가'!$C$10:$E$49,3,FALSE)), "No Item", IF( VLOOKUP(G38,'투입인력 단가'!$C$10:$E$49,3,FALSE)="-", "투입취소", VLOOKUP(G38,'투입인력 단가'!$C$10:$E$49,3,FALSE))) -> No Item | G38: 24 | H38: =CLEAN(IFERROR(VLOOKUP(G38,'투입인력 단가'!$C$10:$Y$49,8,FALSE),"")) ->  | I38: =CLEAN(IFERROR(VLOOKUP(G38,'투입인력 단가'!$C$10:$Y$49,9,FALSE),"")) ->  | J38: =CLEAN(IFERROR(VLOOKUP(G38,'투입인력 단가'!$C$10:$Y$49,10,FALSE),"")) ->  | K38: =CLEAN(IFERROR(VLOOKUP(G38,'투입인력 단가'!$C$10:$Y$49,11,FALSE),"")) ->  | L38: =CLEAN(IFERROR(VLOOKUP(G38,'투입인력 단가'!$C$10:$Y$49,12,FALSE),"")) ->  | AW38: 0 | AX38: 0 | AY38: 0 | AZ38: =IFERROR(VLOOKUP(G38,'투입인력 단가'!$C$10:$Y$49,13,FALSE),0) -> 0 | BA38: 0 | BT38: =CLEAN(IFERROR(VLOOKUP(G38,'투입인력 단가'!$C$10:$Y$49,14,FALSE),"")) ->  | BU38: =CLEAN(IFERROR(VLOOKUP(G38,'투입인력 단가'!$C$10:$Y$49,15,FALSE),"")) ->  | BV38: =CLEAN(IFERROR(VLOOKUP(G38,'투입인력 단가'!$C$10:$Y$49,16,FALSE),"")) ->  | BW38: =IFERROR(VLOOKUP(G38,'투입인력 단가'!$C$10:$Y$49,17,FALSE),0) -> 0 | BX38: =IFERROR(VLOOKUP(G38,'투입인력 단가'!$C$10:$Y$49,18,FALSE),0) -> 0 | BZ38: =IF(BU38=MASTER!$D$4,AW38*BW38, IF(BV38=MASTER!$F$4,AW38*BX38,0)) -> 0 | CA38: =CLEAN(IFERROR(VLOOKUP(G38,'투입인력 단가'!$C$10:$Y$49,22,FALSE),"")) ->  | CB38: =IF(COUNTIF(CA39:CA$44,CA38)=0,SUMIF(CA$15:CA$44,CA38,BZ$15:BZ$44),"") ->  | CH38: 0 | CI38: 0 | CJ38: 0 | CK38: 0 | CL38: 0 | CM38: 0 | CN38: 0 | CO38: 0 | CP38: 0 | CQ38: 0 | CR38: 0 | CS38: 0 | CT38: 0 | CU38: 0 | CV38: 0 | CW38: 0 | CX38: 0 | CY38: 0 | DA38: =$AZ$38*CH38+BB38 -> 0 | DB38: 0 | DC38: 0 | DD38: 0 | DE38: 0 | DF38: 0 | DG38: 0 | DH38: 0 | DI38: 0 | DJ38: 0 | DK38: 0 | DL38: 0 | DM38: 0 | DN38: 0 | DO38: 0 | DP38: 0 | DQ38: 0 | DR38: 0 | DT38: 0 | DU38: 0 | DV38: 0 | DW38: 0 | DX38: 0 | DY38: 0 | DZ38: 0 | EA38: 0 | EB38: 0 | EC38: 0 | ED38: 0 | EE38: 0 | EF38: 0 | EG38: 0 | EH38: 0 | EI38: 0 | EJ38: 0 | EK38: 0 | EM38: 0 | EN38: 0 | EO38: 0 | EP38: 0 | EQ38: 0 | ER38: 0 | ES38: 0 | ET38: 0 | EU38: 0 | EV38: 0 | EW38: 0 | EX38: 0 | EY38: 0 | EZ38: 0 | FA38: 0 | FB38: 0 | FC38: 0 | FD38: 0
D39: =IF( ISERROR(VLOOKUP(G39,'투입인력 단가'!$C$10:$E$49,3,FALSE)), "No Item", IF( VLOOKUP(G39,'투입인력 단가'!$C$10:$E$49,3,FALSE)="-", "투입취소", VLOOKUP(G39,'투입인력 단가'!$C$10:$E$49,3,FALSE))) -> No Item | G39: 25 | H39: =CLEAN(IFERROR(VLOOKUP(G39,'투입인력 단가'!$C$10:$Y$49,8,FALSE),"")) ->  | I39: =CLEAN(IFERROR(VLOOKUP(G39,'투입인력 단가'!$C$10:$Y$49,9,FALSE),"")) ->  | J39: =CLEAN(IFERROR(VLOOKUP(G39,'투입인력 단가'!$C$10:$Y$49,10,FALSE),"")) ->  | K39: =CLEAN(IFERROR(VLOOKUP(G39,'투입인력 단가'!$C$10:$Y$49,11,FALSE),"")) ->  | L39: =CLEAN(IFERROR(VLOOKUP(G39,'투입인력 단가'!$C$10:$Y$49,12,FALSE),"")) ->  | AW39: 0 | AX39: 0 | AY39: 0 | AZ39: =IFERROR(VLOOKUP(G39,'투입인력 단가'!$C$10:$Y$49,13,FALSE),0) -> 0 | BA39: 0 | BT39: =CLEAN(IFERROR(VLOOKUP(G39,'투입인력 단가'!$C$10:$Y$49,14,FALSE),"")) ->  | BU39: =CLEAN(IFERROR(VLOOKUP(G39,'투입인력 단가'!$C$10:$Y$49,15,FALSE),"")) ->  | BV39: =CLEAN(IFERROR(VLOOKUP(G39,'투입인력 단가'!$C$10:$Y$49,16,FALSE),"")) ->  | BW39: =IFERROR(VLOOKUP(G39,'투입인력 단가'!$C$10:$Y$49,17,FALSE),0) -> 0 | BX39: =IFERROR(VLOOKUP(G39,'투입인력 단가'!$C$10:$Y$49,18,FALSE),0) -> 0 | BZ39: =IF(BU39=MASTER!$D$4,AW39*BW39, IF(BV39=MASTER!$F$4,AW39*BX39,0)) -> 0 | CA39: =CLEAN(IFERROR(VLOOKUP(G39,'투입인력 단가'!$C$10:$Y$49,22,FALSE),"")) ->  | CB39: =IF(COUNTIF(CA40:CA$44,CA39)=0,SUMIF(CA$15:CA$44,CA39,BZ$15:BZ$44),"") ->  | CH39: 0 | CI39: 0 | CJ39: 0 | CK39: 0 | CL39: 0 | CM39: 0 | CN39: 0 | CO39: 0 | CP39: 0 | CQ39: 0 | CR39: 0 | CS39: 0 | CT39: 0 | CU39: 0 | CV39: 0 | CW39: 0 | CX39: 0 | CY39: 0 | DA39: =$AZ$39*CH39+BB39 -> 0 | DB39: 0 | DC39: 0 | DD39: 0 | DE39: 0 | DF39: 0 | DG39: 0 | DH39: 0 | DI39: 0 | DJ39: 0 | DK39: 0 | DL39: 0 | DM39: 0 | DN39: 0 | DO39: 0 | DP39: 0 | DQ39: 0 | DR39: 0 | DT39: 0 | DU39: 0 | DV39: 0 | DW39: 0 | DX39: 0 | DY39: 0 | DZ39: 0 | EA39: 0 | EB39: 0 | EC39: 0 | ED39: 0 | EE39: 0 | EF39: 0 | EG39: 0 | EH39: 0 | EI39: 0 | EJ39: 0 | EK39: 0 | EM39: 0 | EN39: 0 | EO39: 0 | EP39: 0 | EQ39: 0 | ER39: 0 | ES39: 0 | ET39: 0 | EU39: 0 | EV39: 0 | EW39: 0 | EX39: 0 | EY39: 0 | EZ39: 0 | FA39: 0 | FB39: 0 | FC39: 0 | FD39: 0
D40: =IF( ISERROR(VLOOKUP(G40,'투입인력 단가'!$C$10:$E$49,3,FALSE)), "No Item", IF( VLOOKUP(G40,'투입인력 단가'!$C$10:$E$49,3,FALSE)="-", "투입취소", VLOOKUP(G40,'투입인력 단가'!$C$10:$E$49,3,FALSE))) -> No Item | G40: 26 | H40: =CLEAN(IFERROR(VLOOKUP(G40,'투입인력 단가'!$C$10:$Y$49,8,FALSE),"")) ->  | I40: =CLEAN(IFERROR(VLOOKUP(G40,'투입인력 단가'!$C$10:$Y$49,9,FALSE),"")) ->  | J40: =CLEAN(IFERROR(VLOOKUP(G40,'투입인력 단가'!$C$10:$Y$49,10,FALSE),"")) ->  | K40: =CLEAN(IFERROR(VLOOKUP(G40,'투입인력 단가'!$C$10:$Y$49,11,FALSE),"")) ->  | L40: =CLEAN(IFERROR(VLOOKUP(G40,'투입인력 단가'!$C$10:$Y$49,12,FALSE),"")) ->  | AW40: 0 | AX40: 0 | AY40: 0 | AZ40: =IFERROR(VLOOKUP(G40,'투입인력 단가'!$C$10:$Y$49,13,FALSE),0) -> 0 | BA40: 0 | BT40: =CLEAN(IFERROR(VLOOKUP(G40,'투입인력 단가'!$C$10:$Y$49,14,FALSE),"")) ->  | BU40: =CLEAN(IFERROR(VLOOKUP(G40,'투입인력 단가'!$C$10:$Y$49,15,FALSE),"")) ->  | BV40: =CLEAN(IFERROR(VLOOKUP(G40,'투입인력 단가'!$C$10:$Y$49,16,FALSE),"")) ->  | BW40: =IFERROR(VLOOKUP(G40,'투입인력 단가'!$C$10:$Y$49,17,FALSE),0) -> 0 | BX40: =IFERROR(VLOOKUP(G40,'투입인력 단가'!$C$10:$Y$49,18,FALSE),0) -> 0 | BZ40: =IF(BU40=MASTER!$D$4,AW40*BW40, IF(BV40=MASTER!$F$4,AW40*BX40,0)) -> 0 | CA40: =CLEAN(IFERROR(VLOOKUP(G40,'투입인력 단가'!$C$10:$Y$49,22,FALSE),"")) ->  | CB40: =IF(COUNTIF(CA41:CA$44,CA40)=0,SUMIF(CA$15:CA$44,CA40,BZ$15:BZ$44),"") ->  | CH40: 0 | CI40: 0 | CJ40: 0 | CK40: 0 | CL40: 0 | CM40: 0 | CN40: 0 | CO40: 0 | CP40: 0 | CQ40: 0 | CR40: 0 | CS40: 0 | CT40: 0 | CU40: 0 | CV40: 0 | CW40: 0 | CX40: 0 | CY40: 0 | DA40: =$AZ$40*CH40+BB40 -> 0 | DB40: 0 | DC40: 0 | DD40: 0 | DE40: 0 | DF40: 0 | DG40: 0 | DH40: 0 | DI40: 0 | DJ40: 0 | DK40: 0 | DL40: 0 | DM40: 0 | DN40: 0 | DO40: 0 | DP40: 0 | DQ40: 0 | DR40: 0 | DT40: 0 | DU40: 0 | DV40: 0 | DW40: 0 | DX40: 0 | DY40: 0 | DZ40: 0 | EA40: 0 | EB40: 0 | EC40: 0 | ED40: 0 | EE40: 0 | EF40: 0 | EG40: 0 | EH40: 0 | EI40: 0 | EJ40: 0 | EK40: 0 | EM40: 0 | EN40: 0 | EO40: 0 | EP40: 0 | EQ40: 0 | ER40: 0 | ES40: 0 | ET40: 0 | EU40: 0 | EV40: 0 | EW40: 0 | EX40: 0 | EY40: 0 | EZ40: 0 | FA40: 0 | FB40: 0 | FC40: 0 | FD40: 0
D41: =IF( ISERROR(VLOOKUP(G41,'투입인력 단가'!$C$10:$E$49,3,FALSE)), "No Item", IF( VLOOKUP(G41,'투입인력 단가'!$C$10:$E$49,3,FALSE)="-", "투입취소", VLOOKUP(G41,'투입인력 단가'!$C$10:$E$49,3,FALSE))) -> No Item | G41: 27 | H41: =CLEAN(IFERROR(VLOOKUP(G41,'투입인력 단가'!$C$10:$Y$49,8,FALSE),"")) ->  | I41: =CLEAN(IFERROR(VLOOKUP(G41,'투입인력 단가'!$C$10:$Y$49,9,FALSE),"")) ->  | J41: =CLEAN(IFERROR(VLOOKUP(G41,'투입인력 단가'!$C$10:$Y$49,10,FALSE),"")) ->  | K41: =CLEAN(IFERROR(VLOOKUP(G41,'투입인력 단가'!$C$10:$Y$49,11,FALSE),"")) ->  | L41: =CLEAN(IFERROR(VLOOKUP(G41,'투입인력 단가'!$C$10:$Y$49,12,FALSE),"")) ->  | AW41: 0 | AX41: 0 | AY41: 0 | AZ41: =IFERROR(VLOOKUP(G41,'투입인력 단가'!$C$10:$Y$49,13,FALSE),0) -> 0 | BA41: 0 | BT41: =CLEAN(IFERROR(VLOOKUP(G41,'투입인력 단가'!$C$10:$Y$49,14,FALSE),"")) ->  | BU41: =CLEAN(IFERROR(VLOOKUP(G41,'투입인력 단가'!$C$10:$Y$49,15,FALSE),"")) ->  | BV41: =CLEAN(IFERROR(VLOOKUP(G41,'투입인력 단가'!$C$10:$Y$49,16,FALSE),"")) ->  | BW41: =IFERROR(VLOOKUP(G41,'투입인력 단가'!$C$10:$Y$49,17,FALSE),0) -> 0 | BX41: =IFERROR(VLOOKUP(G41,'투입인력 단가'!$C$10:$Y$49,18,FALSE),0) -> 0 | BZ41: =IF(BU41=MASTER!$D$4,AW41*BW41, IF(BV41=MASTER!$F$4,AW41*BX41,0)) -> 0 | CA41: =CLEAN(IFERROR(VLOOKUP(G41,'투입인력 단가'!$C$10:$Y$49,22,FALSE),"")) ->  | CB41: =IF(COUNTIF(CA42:CA$44,CA41)=0,SUMIF(CA$15:CA$44,CA41,BZ$15:BZ$44),"") ->  | CH41: 0 | CI41: 0 | CJ41: 0 | CK41: 0 | CL41: 0 | CM41: 0 | CN41: 0 | CO41: 0 | CP41: 0 | CQ41: 0 | CR41: 0 | CS41: 0 | CT41: 0 | CU41: 0 | CV41: 0 | CW41: 0 | CX41: 0 | CY41: 0 | DA41: =$AZ$41*CH41+BB41 -> 0 | DB41: 0 | DC41: 0 | DD41: 0 | DE41: 0 | DF41: 0 | DG41: 0 | DH41: 0 | DI41: 0 | DJ41: 0 | DK41: 0 | DL41: 0 | DM41: 0 | DN41: 0 | DO41: 0 | DP41: 0 | DQ41: 0 | DR41: 0 | DT41: 0 | DU41: 0 | DV41: 0 | DW41: 0 | DX41: 0 | DY41: 0 | DZ41: 0 | EA41: 0 | EB41: 0 | EC41: 0 | ED41: 0 | EE41: 0 | EF41: 0 | EG41: 0 | EH41: 0 | EI41: 0 | EJ41: 0 | EK41: 0 | EM41: 0 | EN41: 0 | EO41: 0 | EP41: 0 | EQ41: 0 | ER41: 0 | ES41: 0 | ET41: 0 | EU41: 0 | EV41: 0 | EW41: 0 | EX41: 0 | EY41: 0 | EZ41: 0 | FA41: 0 | FB41: 0 | FC41: 0 | FD41: 0
D42: =IF( ISERROR(VLOOKUP(G42,'투입인력 단가'!$C$10:$E$49,3,FALSE)), "No Item", IF( VLOOKUP(G42,'투입인력 단가'!$C$10:$E$49,3,FALSE)="-", "투입취소", VLOOKUP(G42,'투입인력 단가'!$C$10:$E$49,3,FALSE))) -> No Item | G42: 28 | H42: =CLEAN(IFERROR(VLOOKUP(G42,'투입인력 단가'!$C$10:$Y$49,8,FALSE),"")) ->  | I42: =CLEAN(IFERROR(VLOOKUP(G42,'투입인력 단가'!$C$10:$Y$49,9,FALSE),"")) ->  | J42: =CLEAN(IFERROR(VLOOKUP(G42,'투입인력 단가'!$C$10:$Y$49,10,FALSE),"")) ->  | K42: =CLEAN(IFERROR(VLOOKUP(G42,'투입인력 단가'!$C$10:$Y$49,11,FALSE),"")) ->  | L42: =CLEAN(IFERROR(VLOOKUP(G42,'투입인력 단가'!$C$10:$Y$49,12,FALSE),"")) ->  | AW42: 0 | AX42: 0 | AY42: 0 | AZ42: =IFERROR(VLOOKUP(G42,'투입인력 단가'!$C$10:$Y$49,13,FALSE),0) -> 0 | BA42: 0 | BT42: =CLEAN(IFERROR(VLOOKUP(G42,'투입인력 단가'!$C$10:$Y$49,14,FALSE),"")) ->  | BU42: =CLEAN(IFERROR(VLOOKUP(G42,'투입인력 단가'!$C$10:$Y$49,15,FALSE),"")) ->  | BV42: =CLEAN(IFERROR(VLOOKUP(G42,'투입인력 단가'!$C$10:$Y$49,16,FALSE),"")) ->  | BW42: =IFERROR(VLOOKUP(G42,'투입인력 단가'!$C$10:$Y$49,17,FALSE),0) -> 0 | BX42: =IFERROR(VLOOKUP(G42,'투입인력 단가'!$C$10:$Y$49,18,FALSE),0) -> 0 | BZ42: =IF(BU42=MASTER!$D$4,AW42*BW42, IF(BV42=MASTER!$F$4,AW42*BX42,0)) -> 0 | CA42: =CLEAN(IFERROR(VLOOKUP(G42,'투입인력 단가'!$C$10:$Y$49,22,FALSE),"")) ->  | CB42: =IF(COUNTIF(CA43:CA$44,CA42)=0,SUMIF(CA$15:CA$44,CA42,BZ$15:BZ$44),"") ->  | CH42: 0 | CI42: 0 | CJ42: 0 | CK42: 0 | CL42: 0 | CM42: 0 | CN42: 0 | CO42: 0 | CP42: 0 | CQ42: 0 | CR42: 0 | CS42: 0 | CT42: 0 | CU42: 0 | CV42: 0 | CW42: 0 | CX42: 0 | CY42: 0 | DA42: =$AZ$42*CH42+BB42 -> 0 | DB42: 0 | DC42: 0 | DD42: 0 | DE42: 0 | DF42: 0 | DG42: 0 | DH42: 0 | DI42: 0 | DJ42: 0 | DK42: 0 | DL42: 0 | DM42: 0 | DN42: 0 | DO42: 0 | DP42: 0 | DQ42: 0 | DR42: 0 | DT42: 0 | DU42: 0 | DV42: 0 | DW42: 0 | DX42: 0 | DY42: 0 | DZ42: 0 | EA42: 0 | EB42: 0 | EC42: 0 | ED42: 0 | EE42: 0 | EF42: 0 | EG42: 0 | EH42: 0 | EI42: 0 | EJ42: 0 | EK42: 0 | EM42: 0 | EN42: 0 | EO42: 0 | EP42: 0 | EQ42: 0 | ER42: 0 | ES42: 0 | ET42: 0 | EU42: 0 | EV42: 0 | EW42: 0 | EX42: 0 | EY42: 0 | EZ42: 0 | FA42: 0 | FB42: 0 | FC42: 0 | FD42: 0
D43: =IF( ISERROR(VLOOKUP(G43,'투입인력 단가'!$C$10:$E$49,3,FALSE)), "No Item", IF( VLOOKUP(G43,'투입인력 단가'!$C$10:$E$49,3,FALSE)="-", "투입취소", VLOOKUP(G43,'투입인력 단가'!$C$10:$E$49,3,FALSE))) -> No Item | G43: 29 | H43: =CLEAN(IFERROR(VLOOKUP(G43,'투입인력 단가'!$C$10:$Y$49,8,FALSE),"")) ->  | I43: =CLEAN(IFERROR(VLOOKUP(G43,'투입인력 단가'!$C$10:$Y$49,9,FALSE),"")) ->  | J43: =CLEAN(IFERROR(VLOOKUP(G43,'투입인력 단가'!$C$10:$Y$49,10,FALSE),"")) ->  | K43: =CLEAN(IFERROR(VLOOKUP(G43,'투입인력 단가'!$C$10:$Y$49,11,FALSE),"")) ->  | L43: =CLEAN(IFERROR(VLOOKUP(G43,'투입인력 단가'!$C$10:$Y$49,12,FALSE),"")) ->  | AW43: 0 | AX43: 0 | AY43: 0 | AZ43: =IFERROR(VLOOKUP(G43,'투입인력 단가'!$C$10:$Y$49,13,FALSE),0) -> 0 | BA43: 0 | BT43: =CLEAN(IFERROR(VLOOKUP(G43,'투입인력 단가'!$C$10:$Y$49,14,FALSE),"")) ->  | BU43: =CLEAN(IFERROR(VLOOKUP(G43,'투입인력 단가'!$C$10:$Y$49,15,FALSE),"")) ->  | BV43: =CLEAN(IFERROR(VLOOKUP(G43,'투입인력 단가'!$C$10:$Y$49,16,FALSE),"")) ->  | BW43: =IFERROR(VLOOKUP(G43,'투입인력 단가'!$C$10:$Y$49,17,FALSE),0) -> 0 | BX43: =IFERROR(VLOOKUP(G43,'투입인력 단가'!$C$10:$Y$49,18,FALSE),0) -> 0 | BZ43: =IF(BU43=MASTER!$D$4,AW43*BW43, IF(BV43=MASTER!$F$4,AW43*BX43,0)) -> 0 | CA43: =CLEAN(IFERROR(VLOOKUP(G43,'투입인력 단가'!$C$10:$Y$49,22,FALSE),"")) ->  | CB43: =IF(COUNTIF(CA44:CA$44,CA43)=0,SUMIF(CA$15:CA$44,CA43,BZ$15:BZ$44),"") ->  | CH43: 0 | CI43: 0 | CJ43: 0 | CK43: 0 | CL43: 0 | CM43: 0 | CN43: 0 | CO43: 0 | CP43: 0 | CQ43: 0 | CR43: 0 | CS43: 0 | CT43: 0 | CU43: 0 | CV43: 0 | CW43: 0 | CX43: 0 | CY43: 0 | DA43: =$AZ$43*CH43+BB43 -> 0 | DB43: 0 | DC43: 0 | DD43: 0 | DE43: 0 | DF43: 0 | DG43: 0 | DH43: 0 | DI43: 0 | DJ43: 0 | DK43: 0 | DL43: 0 | DM43: 0 | DN43: 0 | DO43: 0 | DP43: 0 | DQ43: 0 | DR43: 0 | DT43: 0 | DU43: 0 | DV43: 0 | DW43: 0 | DX43: 0 | DY43: 0 | DZ43: 0 | EA43: 0 | EB43: 0 | EC43: 0 | ED43: 0 | EE43: 0 | EF43: 0 | EG43: 0 | EH43: 0 | EI43: 0 | EJ43: 0 | EK43: 0 | EM43: 0 | EN43: 0 | EO43: 0 | EP43: 0 | EQ43: 0 | ER43: 0 | ES43: 0 | ET43: 0 | EU43: 0 | EV43: 0 | EW43: 0 | EX43: 0 | EY43: 0 | EZ43: 0 | FA43: 0 | FB43: 0 | FC43: 0 | FD43: 0
D44: =IF( ISERROR(VLOOKUP(G44,'투입인력 단가'!$C$10:$E$49,3,FALSE)), "No Item", IF( VLOOKUP(G44,'투입인력 단가'!$C$10:$E$49,3,FALSE)="-", "투입취소", VLOOKUP(G44,'투입인력 단가'!$C$10:$E$49,3,FALSE))) -> No Item | G44: 30 | H44: =CLEAN(IFERROR(VLOOKUP(G44,'투입인력 단가'!$C$10:$Y$49,8,FALSE),"")) ->  | I44: =CLEAN(IFERROR(VLOOKUP(G44,'투입인력 단가'!$C$10:$Y$49,9,FALSE),"")) ->  | J44: =CLEAN(IFERROR(VLOOKUP(G44,'투입인력 단가'!$C$10:$Y$49,10,FALSE),"")) ->  | K44: =CLEAN(IFERROR(VLOOKUP(G44,'투입인력 단가'!$C$10:$Y$49,11,FALSE),"")) ->  | L44: =CLEAN(IFERROR(VLOOKUP(G44,'투입인력 단가'!$C$10:$Y$49,12,FALSE),"")) ->  | AW44: 0 | AX44: 0 | AY44: =AW44-AX44 -> 0 | AZ44: =IFERROR(VLOOKUP(G44,'투입인력 단가'!$C$10:$Y$49,13,FALSE),0) -> 0 | BA44: 0 | BT44: =CLEAN(IFERROR(VLOOKUP(G44,'투입인력 단가'!$C$10:$Y$49,14,FALSE),"")) ->  | BU44: =CLEAN(IFERROR(VLOOKUP(G44,'투입인력 단가'!$C$10:$Y$49,15,FALSE),"")) ->  | BV44: =CLEAN(IFERROR(VLOOKUP(G44,'투입인력 단가'!$C$10:$Y$49,16,FALSE),"")) ->  | BW44: =IFERROR(VLOOKUP(G44,'투입인력 단가'!$C$10:$Y$49,17,FALSE),0) -> 0 | BX44: =IFERROR(VLOOKUP(G44,'투입인력 단가'!$C$10:$Y$49,18,FALSE),0) -> 0 | BZ44: =IF(BU44=MASTER!$D$4,AW44*BW44, IF(BV44=MASTER!$F$4,AW44*BX44,0)) -> 0 | CA44: =CLEAN(IFERROR(VLOOKUP(G44,'투입인력 단가'!$C$10:$Y$49,22,FALSE),"")) ->  | CB44: =IF(COUNTIF(CA$45:CA45,CA44)=0,SUMIF(CA$15:CA$44,CA44,BZ$15:BZ$44),"") -> 0 | CH44: 0 | CI44: 0 | CJ44: 0 | CK44: 0 | CL44: 0 | CM44: 0 | CN44: 0 | CO44: 0 | CP44: 0 | CQ44: 0 | CR44: 0 | CS44: 0 | CT44: 0 | CU44: 0 | CV44: 0 | CW44: 0 | CX44: 0 | CY44: 0 | DA44: =$AZ$44*CH44+BB44 -> 0 | DB44: 0 | DC44: 0 | DD44: 0 | DE44: 0 | DF44: 0 | DG44: 0 | DH44: 0 | DI44: 0 | DJ44: 0 | DK44: 0 | DL44: 0 | DM44: 0 | DN44: 0 | DO44: 0 | DP44: 0 | DQ44: 0 | DR44: 0 | DT44: 0 | DU44: 0 | DV44: 0 | DW44: 0 | DX44: 0 | DY44: 0 | DZ44: 0 | EA44: 0 | EB44: 0 | EC44: 0 | ED44: 0 | EE44: 0 | EF44: 0 | EG44: 0 | EH44: 0 | EI44: 0 | EJ44: 0 | EK44: 0 | EM44: 0 | EN44: 0 | EO44: 0 | EP44: 0 | EQ44: 0 | ER44: 0 | ES44: 0 | ET44: 0 | EU44: 0 | EV44: 0 | EW44: 0 | EX44: 0 | EY44: 0 | EZ44: 0 | FA44: 0 | FB44: 0 | FC44: 0 | FD44: 0
H45: Total | N45: =SUM(N15:N44) -> 34 | P45: =SUM(P15:P44) -> 60 | R45: 52 | T45: 40 | V45: 21 | X45: 0 | Z45: 0 | AB45: 0 | AD45: 0 | AF45: 0 | AH45: 0 | AJ45: 0 | AL45: 0 | AN45: 0 | AP45: =SUM(AP15:AP44) -> 0 | AR45: =SUM(AR15:AR44) -> 0 | AT45: =SUM(AT15:AT44) -> 0 | AV45: =SUM(AV15:AV44) -> 0 | AW45: =SUM(AW15:AW44) -> 207 | AX45: =SUM(AX15:AX44) -> 207 | AY45: =SUM(AY15:AY44) -> 0 | AZ45: =AVERAGEIF(AZ15:AZ44,">0") -> 757142.8571 | BA45: =SUM(BA15:BA44) -> 152550000 | BB45: =SUM(BB15:BB44) -> 0 | BC45: =SUM(BC15:BC44) -> 0 | BD45: =SUM(BD15:BD44) -> 0 | BE45: =SUM(BE15:BE44) -> 0 | BF45: =SUM(BF15:BF44) -> 0 | BG45: =SUM(BG15:BG44) -> 0 | BH45: =SUM(BH15:BH44) -> 0 | BI45: =SUM(BI15:BI44) -> 0 | BJ45: =SUM(BJ15:BJ44) -> 0 | BK45: =SUM(BK15:BK44) -> 0 | BL45: =SUM(BL15:BL44) -> 0 | BM45: =SUM(BM15:BM44) -> 0 | BN45: =SUM(BN15:BN44) -> 0 | BO45: =SUM(BO15:BO44) -> 0 | BP45: =SUM(BP15:BP44) -> 0 | BQ45: =SUM(BQ15:BQ44) -> 0 | BR45: =SUM(BR15:BR44) -> 0 | BS45: =SUM(BS15:BS44) -> 0 | BZ45: =SUM(BZ15:BZ44) -> 0 | CA45: TOTAL | CB45: =SUM(CB15:CB44) -> 0
H46: 월단위 매출액 (원) | M46: =SUMPRODUCT(CH15:CH44,$AZ$15:$AZ$44) -> 26150000 | O46: =SUMPRODUCT(CI15:CI44,$AZ$15:$AZ$44) -> 43800000 | Q46: =SUMPRODUCT(CJ15:CJ44,$AZ$15:$AZ$44) -> 38000000 | S46: =SUMPRODUCT(CK15:CK44,$AZ$15:$AZ$44) -> 29000000 | U46: =SUMPRODUCT(CL15:CL44,$AZ$15:$AZ$44) -> 15600000 | W46: =SUMPRODUCT(CM15:CM44,$AZ$15:$AZ$44) -> 0 | Y46: =SUMPRODUCT(CN15:CN44,$AZ$15:$AZ$44) -> 0 | AA46: =SUMPRODUCT(CO15:CO44,$AZ$15:$AZ$44) -> 0 | AC46: =SUMPRODUCT(CP15:CP44,$AZ$15:$AZ$44) -> 0 | AE46: =SUMPRODUCT(CQ15:CQ44,$AZ$15:$AZ$44) -> 0 | AG46: =SUMPRODUCT(CR15:CR44,$AZ$15:$AZ$44) -> 0 | AI46: =SUMPRODUCT(CS15:CS44,$AZ$15:$AZ$44) -> 0 | AK46: =SUMPRODUCT(CT15:CT44,$AZ$15:$AZ$44) -> 0 | AM46: =SUMPRODUCT(CU15:CU44,$AZ$15:$AZ$44) -> 0 | AO46: =SUMPRODUCT(CV15:CV44,$AZ$15:$AZ$44) -> 0 | AQ46: =SUMPRODUCT(CW15:CW44,$AZ$15:$AZ$44) -> 0 | AS46: =SUMPRODUCT(CX15:CX44,$AZ$15:$AZ$44) -> 0 | AU46: =SUMPRODUCT(CY15:CY44,$AZ$15:$AZ$44) -> 0 | BA46: =SUM(M46:AV46) -> 152550000
H47: (월 단위) 경비 매출액 (원) | M47: =BB45 -> 0 | O47: =BC45 -> 0 | Q47: =BD45 -> 0 | S47: =BE45 -> 0 | U47: =BF45 -> 0 | W47: =BG45 -> 0 | Y47: =BH45 -> 0 | AA47: =BI45 -> 0 | AC47: =BJ45 -> 0 | AE47: =BK45 -> 0 | AG47: =BL45 -> 0 | AI47: =BM45 -> 0 | AK47: =BN45 -> 0 | AM47: =BO45 -> 0 | AO47: =BP45 -> 0 | AQ47: =BQ45 -> 0 | AS47: =BR45 -> 0 | AU47: =BS45 -> 0 | BA47: =SUM(M47:AV47) -> 0
H48: Special D/C (원) | M48: ='Plan_매출액 배부'!F455 -> 437118.9774 | O48: ='Plan_매출액 배부'!G455 -> 732153.3923 | Q48: ='Plan_매출액 배부'!H455 -> 635201.5733 | S48: ='Plan_매출액 배부'!I455 -> 484759.0954 | U48: ='Plan_매출액 배부'!J455 -> 260766.9617 | W48: ='Plan_매출액 배부'!K455 -> 0 | Y48: ='Plan_매출액 배부'!L455 -> 0 | AA48: ='Plan_매출액 배부'!M455 -> 0 | AC48: ='Plan_매출액 배부'!N455 -> 0 | AE48: ='Plan_매출액 배부'!O455 -> 0 | AG48: ='Plan_매출액 배부'!P455 -> 0 | AI48: ='Plan_매출액 배부'!Q455 -> 0 | AK48: ='Plan_매출액 배부'!R455 -> 0 | AM48: ='Plan_매출액 배부'!S455 -> 0 | AO48: ='Plan_매출액 배부'!T455 -> 0 | AQ48: ='Plan_매출액 배부'!U455 -> 0 | AS48: ='Plan_매출액 배부'!V455 -> 0 | AU48: ='Plan_매출액 배부'!W455 -> 0 | AW48: Special D/C 금액 입력 ----> | BA48: 2550000
H49: 최종 월단위 매출액 (원) | M49: =M46+M47-M48 -> 25712881.02 | O49: =O46+O47-O48 -> 43067846.61 | Q49: =Q46+Q47-Q48 -> 37364798.43 | S49: =S46+S47-S48 -> 28515240.9 | U49: =U46+U47-U48 -> 15339233.04 | W49: =W46+W47-W48 -> 0 | Y49: =Y46+Y47-Y48 -> 0 | AA49: =AA46+AA47-AA48 -> 0 | AC49: =AC46+AC47-AC48 -> 0 | AE49: =AE46+AE47-AE48 -> 0 | AG49: =AG46+AG47-AG48 -> 0 | AI49: =AI46+AI47-AI48 -> 0 | AK49: =AK46+AK47-AK48 -> 0 | AM49: =AM46+AM47-AM48 -> 0 | AO49: =AO46+AO47-AO48 -> 0 | AQ49: =AQ46+AQ47-AQ48 -> 0 | AS49: =AS46+AS47-AS48 -> 0 | AU49: =AU46+AU47-AU48 -> 0 | BA49: =SUM(M49:AV49) -> 150000000

Sheet Actual_집계표
I2: 프로젝트 전체 Plan vs. Actual
H3: (단위: 원) | I3: Plan | J3: Actual | K3: Plan - Actual | O3: (Actual) Special D/C | S3: =BA53 -> 2550000
H4: 총 용역 매출액 | I4: ='Plan vs. Actual'!H10 -> 150000000 | J4: ='Plan vs. Actual'!I10 -> 150000000 | K4: ='Plan vs. Actual'!J10 -> 0
H5: 사외용역 원가 | I5: ='Plan vs. Actual'!H11 -> 0 | J5: ='Plan vs. Actual'!I11 -> 0 | K5: ='Plan vs. Actual'!J11 -> 0 | DA5: =IFERROR( DA60 * SUM(Plan_집계표!$DA15:$DR15) / SUM(Actual_집계표!DA60:$DR60), 0) -> 3200000 | DB5: =IFERROR( IF( AND( SUM(Actual_집계표!DB60:$DR60)=0, SUM($DA19:DA19)<>SUM(Plan_집계표!$DA15:$DR15), DB$18<>""), (SUM(Plan_집계표!$DA15:$DR15) - SUM($DA19:DA19)) / COUNT(DB$18:$DR$18), DB60 * (SUM(Plan_집계표!$DA15:$DR15) - SUM($DA19:DA19)) / SUM(Actual_집계표!DB60:$DR60)), 0) -> 3200000 | DC5: (항수 backup)
H6: 사내용역 원가 | I6: ='Plan vs. Actual'!H12 -> 0 | J6: ='Plan vs. Actual'!I12 -> 0 | K6: ='Plan vs. Actual'!J12 -> 0
AX8: * 마감되지 않은 month를 count함
N9: =IFERROR(IF(DATE(N17,N18,1)<=DATE(YEAR(TODAY()),MONTH(TODAY())-2,1),1,0),1) -> 0 | P9: =IFERROR(IF(DATE(P17,P18,1)<=DATE(YEAR(TODAY()),MONTH(TODAY())-2,1),1,0),1) -> 0 | R9: =IFERROR(IF(DATE(R17,R18,1)<=DATE(YEAR(TODAY()),MONTH(TODAY())-2,1),1,0),1) -> 0 | T9: =IFERROR(IF(DATE(T17,T18,1)<=DATE(YEAR(TODAY()),MONTH(TODAY())-2,1),1,0),1) -> 0 | V9: =IFERROR(IF(DATE(V17,V18,1)<=DATE(YEAR(TODAY()),MONTH(TODAY())-2,1),1,0),1) -> 0 | X9: =IFERROR(IF(DATE(X17,X18,1)<=DATE(YEAR(TODAY()),MONTH(TODAY())-2,1),1,0),1) -> 1 | Z9: =IFERROR(IF(DATE(Z17,Z18,1)<=DATE(YEAR(TODAY()),MONTH(TODAY())-2,1),1,0),1) -> 1 | AB9: =IFERROR(IF(DATE(AB17,AB18,1)<=DATE(YEAR(TODAY()),MONTH(TODAY())-2,1),1,0),1) -> 1 | AD9: =IFERROR(IF(DATE(AD17,AD18,1)<=DATE(YEAR(TODAY()),MONTH(TODAY())-2,1),1,0),1) -> 1 | AF9: =IFERROR(IF(DATE(AF17,AF18,1)<=DATE(YEAR(TODAY()),MONTH(TODAY())-2,1),1,0),1) -> 1 | AH9: =IFERROR(IF(DATE(AH17,AH18,1)<=DATE(YEAR(TODAY()),MONTH(TODAY())-2,1),1,0),1) -> 1 | AJ9: =IFERROR(IF(DATE(AJ17,AJ18,1)<=DATE(YEAR(TODAY()),MONTH(TODAY())-2,1),1,0),1) -> 1 | AL9: =IFERROR(IF(DATE(AL17,AL18,1)<=DATE(YEAR(TODAY()),MONTH(TODAY())-2,1),1,0),1) -> 1 | AN9: =IFERROR(IF(DATE(AN17,AN18,1)<=DATE(YEAR(TODAY()),MONTH(TODAY())-2,1),1,0),1) -> 1 | AP9: =IFERROR(IF(DATE(AP17,AP18,1)<=DATE(YEAR(TODAY()),MONTH(TODAY())-2,1),1,0),1) -> 1 | AR9: =IFERROR(IF(DATE(AR17,AR18,1)<=DATE(YEAR(TODAY()),MONTH(TODAY())-2,1),1,0),1) -> 1 | AT9: =IFERROR(IF(DATE(AT17,AT18,1)<=DATE(YEAR(TODAY()),MONTH(TODAY())-2,1),1,0),1) -> 1 | AV9: =IFERROR(IF(DATE(AV17,AV18,1)<=DATE(YEAR(TODAY()),MONTH(TODAY())-2,1),1,0),1) -> 1 | AX9: =COUNTIF(M9:AV9,0) -> 5
D10: 기 마감월 이내에 기 투입여부 확인 | H10: =Plan_집계표!S3 -> 2550000 | I10: Actual 수정 Flag ▶ | J10: 추가입력 | N10: * 마감월 여부 확인 (1=마감, 0=오픈)
D11: ▼
G15: No. | H15: 컨설팅 영역분류 | I15: 컨설팅 영역분류 | J15: Remarks | K15: 직급 (경력) (연차) | L15: 이름 | M15: 투입일정 (Man/Day) | AW15: Total 투입 M/D | AZ15: 계약 가격 | BB15: 프로젝트 경비 (원) | BT15: 매출 귀속 SBU | BU15: 인력 Sourcing MAIN 채널 | BV15: 인력 Sourcing SUB 채널 (MAIN 채널이 '내부거래'인경우) | BW15: [매출귀속 SBU <-> MAIN 채널] 내부거래/외주계약 단가 (원 / Day) | BX15: [MAIN 채널 <-> SUB 채널] 내부거래/외주계약 단가 (원 / Day) | BZ15: 외주계약 컨설턴트 지급금액 합계 (원) | CA15: 외주계약 컨설턴트 소속 조직 (거래처 명) | CB15: 거래처별 지급 비용 합계 (원) | CH15: 투입일정 (Man/Day) - Billable M/D 추출 | DA15: 전체 Project 용역 매출액 (원) = 용역 매출액 (단가 * Billable MD) + Project경비 | DT15: 1차 - 내부거래 / 외주계약 단가 기준 매출액 = 내부거래 단가 (or 외주계약 단가) * Billable MD | EM15: 2차 - 내부거래 / 외주계약 단가 기준 매출액 = 내부거래 단가 (or 외주계약 단가) * Billable MD
N16: M1 | P16: M2 | R16: M3 | T16: M4 | V16: M5 | X16: M6 | Z16: M7 | AB16: M8 | AD16: M9 | AF16: M10 | AH16: M11 | AJ16: M12 | AL16: M13 | AN16: M14 | AP16: M15 | AR16: M16 | AT16: M17 | AV16: M18 | AW16: Total | AX16: Billable | AY16: Non -Billable | AZ16: Daily 단가 (원) | BA16: 합계 (원) | BB16: M1 | BC16: M2 | BD16: M3 | BE16: M4 | BF16: M5 | BG16: M6 | BH16: M7 | BI16: M8 | BJ16: M9 | BK16: M10 | BL16: M11 | BM16: M12 | BN16: M13 | BO16: M14 | BP16: M15 | BQ16: M16 | BR16: M17 | BS16: M18 | CH16: M1 | CI16: M2 | CJ16: M3 | CK16: M4 | CL16: M5 | CM16: M6 | CN16: M7 | CO16: M8 | CP16: M9 | CQ16: M10 | CR16: M11 | CS16: M12 | CT16: M13 | CU16: M14 | CV16: M15 | CW16: M16 | CX16: M17 | CY16: M18 | DA16: M1 | DB16: M2 | DC16: M3 | DD16: M4 | DE16: M5 | DF16: M6 | DG16: M7 | DH16: M8 | DI16: M9 | DJ16: M10 | DK16: M11 | DL16: M12 | DM16: M13 | DN16: M14 | DO16: M15 | DP16: M16 | DQ16: M17 | DR16: M18 | DS16: FLAG | DT16: M1 | DU16: M2 | DV16: M3 | DW16: M4 | DX16: M5 | DY16: M6 | DZ16: M7 | EA16: M8 | EB16: M9 | EC16: M10 | ED16: M11 | EE16: M12 | EF16: M13 | EG16: M14 | EH16: M15 | EI16: M16 | EJ16: M17 | EK16: M18 | EM16: M1 | EN16: M2 | EO16: M3 | EP16: M4 | EQ16: M5 | ER16: M6 | ES16: M7 | ET16: M8 | EU16: M9 | EV16: M10 | EW16: M11 | EX16: M12 | EY16: M13 | EZ16: M14 | FA16: M15 | FB16: M16 | FC16: M17 | FD16: M18
H17: Level 1 | I17: Level 2 | N17: =YEAR('Project 관련 정보'!D16) -> 2022 | P17: =IF(OR(AND(N17=YEAR('Project 관련 정보'!$D$17),N18=MONTH('Project 관련 정보'!$D$17)),N17=""),"",YEAR(EDATE('Project 관련 정보'!$D$16,1))) -> 2022 | R17: =IF(OR(AND(P17=YEAR('Project 관련 정보'!$D$17),P18=MONTH('Project 관련 정보'!$D$17)),P17=""),"",YEAR(EDATE('Project 관련 정보'!$D$16,2))) -> 2022 | T17: =IF(OR(AND(R17=YEAR('Project 관련 정보'!$D$17),R18=MONTH('Project 관련 정보'!$D$17)),R17=""),"",YEAR(EDATE('Project 관련 정보'!$D$16,3))) -> 2022 | V17: =IF(OR(AND(T17=YEAR('Project 관련 정보'!$D$17),T18=MONTH('Project 관련 정보'!$D$17)),T17=""),"",YEAR(EDATE('Project 관련 정보'!$D$16,4))) -> 2023 | X17: =IF(OR(AND(V17=YEAR('Project 관련 정보'!$D$17),V18=MONTH('Project 관련 정보'!$D$17)),V17=""),"",YEAR(EDATE('Project 관련 정보'!$D$16,5))) ->  | Z17: =IF(OR(AND(X17=YEAR('Project 관련 정보'!$D$17),X18=MONTH('Project 관련 정보'!$D$17)),X17=""),"",YEAR(EDATE('Project 관련 정보'!$D$16,6))) ->  | AB17: =IF(OR(AND(Z17=YEAR('Project 관련 정보'!$D$17),Z18=MONTH('Project 관련 정보'!$D$17)),Z17=""),"",YEAR(EDATE('Project 관련 정보'!$D$16,7))) ->  | AD17: =IF(OR(AND(AB17=YEAR('Project 관련 정보'!$D$17),AB18=MONTH('Project 관련 정보'!$D$17)),AB17=""),"",YEAR(EDATE('Project 관련 정보'!$D$16,8))) ->  | AF17: =IF(OR(AND(AD17=YEAR('Project 관련 정보'!$D$17),AD18=MONTH('Project 관련 정보'!$D$17)),AD17=""),"",YEAR(EDATE('Project 관련 정보'!$D$16,9))) ->  | AH17: =IF(OR(AND(AF17=YEAR('Project 관련 정보'!$D$17),AF18=MONTH('Project 관련 정보'!$D$17)),AF17=""),"",YEAR(EDATE('Project 관련 정보'!$D$16,10))) ->  | AJ17: =IF(OR(AND(AH17=YEAR('Project 관련 정보'!$D$17),AH18=MONTH('Project 관련 정보'!$D$17)),AH17=""),"",YEAR(EDATE('Project 관련 정보'!$D$16,11))) ->  | AL17: =IF(OR(AND(AJ17=YEAR('Project 관련 정보'!$D$17),AJ18=MONTH('Project 관련 정보'!$D$17)),AJ17=""),"",YEAR(EDATE('Project 관련 정보'!$D$16,12))) ->  | AN17: =IF(OR(AND(AL17=YEAR('Project 관련 정보'!$D$17),AL18=MONTH('Project 관련 정보'!$D$17)),AL17=""),"",YEAR(EDATE('Project 관련 정보'!$D$16,13))) ->  | AP17: =IF(OR(AND(AN17=YEAR('Project 관련 정보'!$D$17),AN18=MONTH('Project 관련 정보'!$D$17)),AN17=""),"",YEAR(EDATE('Project 관련 정보'!$D$16,14))) ->  | AR17: =IF(OR(AND(AP17=YEAR('Project 관련 정보'!$D$17),AP18=MONTH('Project 관련 정보'!$D$17)),AP17=""),"",YEAR(EDATE('Project 관련 정보'!$D$16,15))) ->  | AT17: =IF(OR(AND(AR17=YEAR('Project 관련 정보'!$D$17),AR18=MONTH('Project 관련 정보'!$D$17)),AR17=""),"",YEAR(EDATE('Project 관련 정보'!$D$16,16))) ->  | AV17: =IF(OR(AND(AT17=YEAR('Project 관련 정보'!$D$17),AT18=MONTH('Project 관련 정보'!$D$17)),AT17=""),"",YEAR(EDATE('Project 관련 정보'!$D$16,17))) ->  | BB17: =N17 -> 2022 | BC17: =P17 -> 2022 | BD17: =R17 -> 2022 | BE17: =T17 -> 2022 | BF17: =V17 -> 2023 | BG17: =X17 ->  | BH17: =Z17 ->  | BI17: =AB17 ->  | BJ17: =AD17 ->  | BK17: =AF17 ->  | BL17: =AH17 ->  | BM17: =AJ17 ->  | BN17: =AL17 ->  | BO17: =AN17 ->  | BP17: =AP17 ->  | BQ17: =AR17 ->  | BR17: =AT17 ->  | BS17: =AV17 -> 
C18: 검색용cell | N18: =MONTH('Project 관련 정보'!D16) -> 9 | P18: =IF(OR(AND(N17=YEAR('Project 관련 정보'!$D$17),N18=MONTH('Project 관련 정보'!$D$17)),N18=""),"",MONTH(EDATE('Project 관련 정보'!$D$16,1))) -> 10 | R18: =IF(OR(AND(P17=YEAR('Project 관련 정보'!$D$17),P18=MONTH('Project 관련 정보'!$D$17)),P18=""),"",MONTH(EDATE('Project 관련 정보'!$D$16,2))) -> 11 | T18: =IF(OR(AND(R17=YEAR('Project 관련 정보'!$D$17),R18=MONTH('Project 관련 정보'!$D$17)),R18=""),"",MONTH(EDATE('Project 관련 정보'!$D$16,3))) -> 12 | V18: =IF(OR(AND(T17=YEAR('Project 관련 정보'!$D$17),T18=MONTH('Project 관련 정보'!$D$17)),T18=""),"",MONTH(EDATE('Project 관련 정보'!$D$16,4))) -> 1 | X18: =IF(OR(AND(V17=YEAR('Project 관련 정보'!$D$17),V18=MONTH('Project 관련 정보'!$D$17)),V18=""),"",MONTH(EDATE('Project 관련 정보'!$D$16,5))) ->  | Z18: =IF(OR(AND(X17=YEAR('Project 관련 정보'!$D$17),X18=MONTH('Project 관련 정보'!$D$17)),X18=""),"",MONTH(EDATE('Project 관련 정보'!$D$16,6))) ->  | AB18: =IF(OR(AND(Z17=YEAR('Project 관련 정보'!$D$17),Z18=MONTH('Project 관련 정보'!$D$17)),Z18=""),"",MONTH(EDATE('Project 관련 정보'!$D$16,7))) ->  | AD18: =IF(OR(AND(AB17=YEAR('Project 관련 정보'!$D$17),AB18=MONTH('Project 관련 정보'!$D$17)),AB18=""),"",MONTH(EDATE('Project 관련 정보'!$D$16,8))) ->  | AF18: =IF(OR(AND(AD17=YEAR('Project 관련 정보'!$D$17),AD18=MONTH('Project 관련 정보'!$D$17)),AD18=""),"",MONTH(EDATE('Project 관련 정보'!$D$16,9))) ->  | AH18: =IF(OR(AND(AF17=YEAR('Project 관련 정보'!$D$17),AF18=MONTH('Project 관련 정보'!$D$17)),AF18=""),"",MONTH(EDATE('Project 관련 정보'!$D$16,10))) ->  | AJ18: =IF(OR(AND(AH17=YEAR('Project 관련 정보'!$D$17),AH18=MONTH('Project 관련 정보'!$D$17)),AH18=""),"",MONTH(EDATE('Project 관련 정보'!$D$16,11))) ->  | AL18: =IF(OR(AND(AJ17=YEAR('Project 관련 정보'!$D$17),AJ18=MONTH('Project 관련 정보'!$D$17)),AJ18=""),"",MONTH(EDATE('Project 관련 정보'!$D$16,12))) ->  | AN18: =IF(OR(AND(AL17=YEAR('Project 관련 정보'!$D$17),AL18=MONTH('Project 관련 정보'!$D$17)),AL18=""),"",MONTH(EDATE('Project 관련 정보'!$D$16,13))) ->  | AP18: =IF(OR(AND(AN17=YEAR('Project 관련 정보'!$D$17),AN18=MONTH('Project 관련 정보'!$D$17)),AN18=""),"",MONTH(EDATE('Project 관련 정보'!$D$16,14))) ->  | AR18: =IF(OR(AND(AP17=YEAR('Project 관련 정보'!$D$17),AP18=MONTH('Project 관련 정보'!$D$17)),AP18=""),"",MONTH(EDATE('Project 관련 정보'!$D$16,15))) ->  | AT18: =IF(OR(AND(AR17=YEAR('Project 관련 정보'!$D$17),AR18=MONTH('Project 관련 정보'!$D$17)),AR18=""),"",MONTH(EDATE('Project 관련 정보'!$D$16,16))) ->  | AV18: =IF(OR(AND(AT17=YEAR('Project 관련 정보'!$D$17),AT18=MONTH('Project 관련 정보'!$D$17)),AT18=""),"",MONTH(EDATE('Project 관련 정보'!$D$16,17))) ->  | BB18: =N18 -> 9 | BC18: =P18 -> 10 | BD18: =R18 -> 11 | BE18: =T18 -> 12 | BF18: =V18 -> 1 | BG18: =X18 ->  | BH18: =Z18 ->  | BI18: =AB18 ->  | BJ18: =AD18 ->  | BK18: =AF18 ->  | BL18: =AH18 ->  | BM18: =AJ18 ->  | BN18: =AL18 ->  | BO18: =AN18 ->  | BP18: =AP18 ->  | BQ18: =AR18 ->  | BR18: =AT18 ->  | BS18: =AV18 ->  | DA18: =N18 -> 9 | DB18: =P18 -> 10 | DC18: =R18 -> 11 | DD18: =T18 -> 12 | DE18: =V18 -> 1 | DF18: =X18 ->  | DG18: =Z18 ->  | DH18: =AB18 ->  | DI18: =AD18 ->  | DJ18: =AF18 ->  | DK18: =AH18 ->  | DL18: =AJ18 ->  | DM18: =AL18 ->  | DN18: =AN18 ->  | DO18: =AP18 ->  | DP18: =AR18 ->  | DQ18: =AT18 ->  | DR18: =AV18 -> 
C19: 1 | D19: =SUMPRODUCT($M$9:$AV$9,M19:AV19) -> 0 | E19: =IF(D19=0,"투입NO","투입DONE") -> 투입NO | G19: 1 | H19: =CLEAN(IFERROR(VLOOKUP(G19,'투입인력 단가'!$D$10:$Y$49,7,FALSE),"")) -> AM | I19: =CLEAN(IFERROR(VLOOKUP(G19,'투입인력 단가'!$D$10:$Y$49,8,FALSE),"")) -> PM | J19: =CLEAN(IFERROR(VLOOKUP(G19,'투입인력 단가'!$D$10:$Y$49,9,FALSE),"")) -> 자사 | K19: =CLEAN(IFERROR(VLOOKUP(G19,'투입인력 단가'!$D$10:$Y$49,10,FALSE),"")) -> S부장 | L19: =CLEAN(IFERROR(VLOOKUP(G19,'투입인력 단가'!$D$10:$Y$49,11,FALSE),"")) -> 최종찬 | N19: 4 | P19: 4 | R19: 4 | T19: 4 | V19: 4 | AW19: =SUM(N19:AV19) -> 20 | AX19: =SUM(CH19:CY19) -> 20 | AY19: =AW19-AX19 -> 0 | AZ19: =IFERROR(VLOOKUP(G19,'투입인력 단가'!$D$10:$Y$49,12,FALSE),0) -> 800000 | BA19: =AX19*AZ19 -> 16000000 | BB19: =Plan_집계표!BB15 -> 0 | BC19: =Plan_집계표!BC15 -> 0 | BD19: =Plan_집계표!BD15 -> 0 | BE19: =Plan_집계표!BE15 -> 0 | BF19: =Plan_집계표!BF15 -> 0 | BG19: =Plan_집계표!BG15 -> 0 | BH19: =Plan_집계표!BH15 -> 0 | BI19: =Plan_집계표!BI15 -> 0 | BJ19: =Plan_집계표!BJ15 -> 0 | BK19: =Plan_집계표!BK15 -> 0 | BL19: =Plan_집계표!BL15 -> 0 | BM19: =Plan_집계표!BM15 -> 0 | BN19: =Plan_집계표!BN15 -> 0 | BO19: =Plan_집계표!BO15 -> 0 | BP19: =Plan_집계표!BP15 -> 0 | BQ19: =Plan_집계표!BQ15 -> 0 | BR19: =Plan_집계표!BR15 -> 0 | BS19: =Plan_집계표!BS15 -> 0 | BT19: =CLEAN(IFERROR(VLOOKUP(G19,'투입인력 단가'!$D$10:$Y$49,13,FALSE),"")) -> BP_OUTS | BU19: =CLEAN(IFERROR(VLOOKUP(G19,'투입인력 단가'!$D$10:$Y$49,14,FALSE),"")) -> 매출 귀속 SBU 자체 인력 | BV19: =CLEAN(IFERROR(VLOOKUP(G19,'투입인력 단가'!$D$10:$Y$49,15,FALSE),"")) ->  | BW19: =IFERROR(VLOOKUP(G19,'투입인력 단가'!$D$10:$Y$49,16,FALSE),0) -> 0 | BX19: =IFERROR(VLOOKUP(G19,'투입인력 단가'!$D$10:$Y$49,17,FALSE),0) -> 0 | BZ19: =IF(BU19=MASTER!$D$4,AW19*BW19, IF(BV19=MASTER!$F$4,AW19*BX19,0)) -> 0 | CA19: =CLEAN(IFERROR(VLOOKUP(G19,'투입인력 단가'!$D$10:$Y$49,21,FALSE),"")) ->  | CB19: =IF(COUNTIF(CA20:CA$48,CA19)=0,SUMIF(CA$19:CA$48,CA19,BZ$19:BZ$48),"") ->  | CH19: =IF(M19="N",0,N19) -> 4 | CI19: =IF(O19="N",0,P19) -> 4 | CJ19: =IF(Q19="N",0,R19) -> 4 | CK19: =IF(S19="N",0,T19) -> 4 | CL19: =IF(U19="N",0,V19) -> 4 | CM19: =IF(W19="N",0,X19) -> 0 | CN19: =IF(Y19="N",0,Z19) -> 0 | CO19: =IF(AA19="N",0,AB19) -> 0 | CP19: =IF(AC19="N",0,AD19) -> 0 | CQ19: =IF(AE19="N",0,AF19) -> 0 | CR19: =IF(AG19="N",0,AH19) -> 0 | CS19: =IF(AI19="N",0,AJ19) -> 0 | CT19: =IF(AK19="N",0,AL19) -> 0 | CU19: =IF(AM19="N",0,AN19) -> 0 | CV19: =IF(AO19="N",0,AP19) -> 0 | CW19: =IF(AQ19="N",0,AR19) -> 0 | CX19: =IF(AS19="N",0,AT19) -> 0 | CY19: =IF(AU19="N",0,AV19) -> 0 | DA19: =IFERROR( DA60 * SUM(Plan_집계표!$DA15:$DR15) / SUM(Actual_집계표!DA60:$DR60), 0) -> 3200000 | DB19: =IFERROR( IF( AND( SUM(Actual_집계표!DB60:$DR60)=0, SUM($DA19:DA19)<>SUM(Plan_집계표!$DA15:$DR15), DB$18<>""), (SUM(Plan_집계표!$DA15:$DR15) - SUM($DA19:DA19)) / COUNT(DB$18:$DR$18), DB60 * (SUM(Plan_집계표!$DA15:$DR15) - SUM($DA19:DA19)) / SUM(Actual_집계표!DB60:$DR60)), 0) -> 3200000 | DC19: =IFERROR( IF( AND( SUM(Actual_집계표!DC60:$DR60)=0, SUM($DA19:DB19)<>SUM(Plan_집계표!$DA15:$DR15), DC$18<>""), (SUM(Plan_집계표!$DA15:$DR15) - SUM($DA19:DB19)) / COUNT(DC$18:$DR$18), DC60 * (SUM(Plan_집계표!$DA15:$DR15) - SUM($DA19:DB19)) / SUM(Actual_집계표!DC60:$DR60)), 0) -> 3200000 | DD19: =IFERROR( IF( AND( SUM(Actual_집계표!DD60:$DR60)=0, SUM($DA19:DC19)<>SUM(Plan_집계표!$DA15:$DR15), DD$18<>""), (SUM(Plan_집계표!$DA15:$DR15) - SUM($DA19:DC19)) / COUNT(DD$18:$DR$18), DD60 * (SUM(Plan_집계표!$DA15:$DR15) - SUM($DA19:DC19)) / SUM(Actual_집계표!DD60:$DR60)), 0) -> 3200000 | DE19: =IFERROR( IF( AND( SUM(Actual_집계표!DE60:$DR60)=0, SUM($DA19:DD19)<>SUM(Plan_집계표!$DA15:$DR15), DE$18<>""), (SUM(Plan_집계표!$DA15:$DR15) - SUM($DA19:DD19)) / COUNT(DE$18:$DR$18), DE60 * (SUM(Plan_집계표!$DA15:$DR15) - SUM($DA19:DD19)) / SUM(Actual_집계표!DE60:$DR60)), 0) -> 3200000 | DF19: =IFERROR( IF( AND( SUM(Actual_집계표!DF60:$DR60)=0, SUM($DA19:DE19)<>SUM(Plan_집계표!$DA15:$DR15), DF$18<>""), (SUM(Plan_집계표!$DA15:$DR15) - SUM($DA19:DE19)) / COUNT(DF$18:$DR$18), DF60 * (SUM(Plan_집계표!$DA15:$DR15) - SUM($DA19:DE19)) / SUM(Actual_집계표!DF60:$DR60)), 0) -> 0 | DG19: =IFERROR( IF( AND( SUM(Actual_집계표!DG60:$DR60)=0, SUM($DA19:DF19)<>SUM(Plan_집계표!$DA15:$DR15), DG$18<>""), (SUM(Plan_집계표!$DA15:$DR15) - SUM($DA19:DF19)) / COUNT(DG$18:$DR$18), DG60 * (SUM(Plan_집계표!$DA15:$DR15) - SUM($DA19:DF19)) / SUM(Actual_집계표!DG60:$DR60)), 0) -> 0 | DH19: =IFERROR( IF( AND( SUM(Actual_집계표!DH60:$DR60)=0, SUM($DA19:DG19)<>SUM(Plan_집계표!$DA15:$DR15), DH$18<>""), (SUM(Plan_집계표!$DA15:$DR15) - SUM($DA19:DG19)) / COUNT(DH$18:$DR$18), DH60 * (SUM(Plan_집계표!$DA15:$DR15) - SUM($DA19:DG19)) / SUM(Actual_집계표!DH60:$DR60)), 0) -> 0 | DI19: =IFERROR( IF( AND( SUM(Actual_집계표!DI60:$DR60)=0, SUM($DA19:DH19)<>SUM(Plan_집계표!$DA15:$DR15), DI$18<>""), (SUM(Plan_집계표!$DA15:$DR15) - SUM($DA19:DH19)) / COUNT(DI$18:$DR$18), DI60 * (SUM(Plan_집계표!$DA15:$DR15) - SUM($DA19:DH19)) / SUM(Actual_집계표!DI60:$DR60)), 0) -> 0 | DJ19: =IFERROR( IF( AND( SUM(Actual_집계표!DJ60:$DR60)=0, SUM($DA19:DI19)<>SUM(Plan_집계표!$DA15:$DR15), DJ$18<>""), (SUM(Plan_집계표!$DA15:$DR15) - SUM($DA19:DI19)) / COUNT(DJ$18:$DR$18), DJ60 * (SUM(Plan_집계표!$DA15:$DR15) - SUM($DA19:DI19)) / SUM(Actual_집계표!DJ60:$DR60)), 0) -> 0 | DK19: =IFERROR( IF( AND( SUM(Actual_집계표!DK60:$DR60)=0, SUM($DA19:DJ19)<>SUM(Plan_집계표!$DA15:$DR15), DK$18<>""), (SUM(Plan_집계표!$DA15:$DR15) - SUM($DA19:DJ19)) / COUNT(DK$18:$DR$18), DK60 * (SUM(Plan_집계표!$DA15:$DR15) - SUM($DA19:DJ19)) / SUM(Actual_집계표!DK60:$DR60)), 0) -> 0 | DL19: =IFERROR( IF( AND( SUM(Actual_집계표!DL60:$DR60)=0, SUM($DA19:DK19)<>SUM(Plan_집계표!$DA15:$DR15), DL$18<>""), (SUM(Plan_집계표!$DA15:$DR15) - SUM($DA19:DK19)) / COUNT(DL$18:$DR$18), DL60 * (SUM(Plan_집계표!$DA15:$DR15) - SUM($DA19:DK19)) / SUM(Actual_집계표!DL60:$DR60)), 0) -> 0 | DM19: =IFERROR( IF( AND( SUM(Actual_집계표!DM60:$DR60)=0, SUM($DA19:DL19)<>SUM(Plan_집계표!$DA15:$DR15), DM$18<>""), (SUM(Plan_집계표!$DA15:$DR15) - SUM($DA19:DL19)) / COUNT(DM$18:$DR$18), DM60 * (SUM(Plan_집계표!$DA15:$DR15) - SUM($DA19:DL19)) / SUM(Actual_집계표!DM60:$DR60)), 0) -> 0 | DN19: =IFERROR( IF( AND( SUM(Actual_집계표!DN60:$DR60)=0, SUM($DA19:DM19)<>SUM(Plan_집계표!$DA15:$DR15), DN$18<>""), (SUM(Plan_집계표!$DA15:$DR15) - SUM($DA19:DM19)) / COUNT(DN$18:$DR$18), DN60 * (SUM(Plan_집계표!$DA15:$DR15) - SUM($DA19:DM19)) / SUM(Actual_집계표!DN60:$DR60)), 0) -> 0 | DO19: =IFERROR( IF( AND( SUM(Actual_집계표!DO60:$DR60)=0, SUM($DA19:DN19)<>SUM(Plan_집계표!$DA15:$DR15), DO$18<>""), (SUM(Plan_집계표!$DA15:$DR15) - SUM($DA19:DN19)) / COUNT(DO$18:$DR$18), DO60 * (SUM(Plan_집계표!$DA15:$DR15) - SUM($DA19:DN19)) / SUM(Actual_집계표!DO60:$DR60)), 0) -> 0 | DP19: =IFERROR( IF( AND( SUM(Actual_집계표!DP60:$DR60)=0, SUM($DA19:DO19)<>SUM(Plan_집계표!$DA15:$DR15), DP$18<>""), (SUM(Plan_집계표!$DA15:$DR15) - SUM($DA19:DO19)) / COUNT(DP$18:$DR$18), DP60 * (SUM(Plan_집계표!$DA15:$DR15) - SUM($DA19:DO19)) / SUM(Actual_집계표!DP60:$DR60)), 0) -> 0 | DQ19: =IFERROR( IF( AND( SUM(Actual_집계표!DQ60:$DR60)=0, SUM($DA19:DP19)<>SUM(Plan_집계표!$DA15:$DR15), DQ$18<>""), (SUM(Plan_집계표!$DA15:$DR15) - SUM($DA19:DP19)) / COUNT(DQ$18:$DR$18), DQ60 * (SUM(Plan_집계표!$DA15:$DR15) - SUM($DA19:DP19)) / SUM(Actual_집계표!DQ60:$DR60)), 0) -> 0 | DR19: =IFERROR( IF( AND( SUM(Actual_집계표!DR60:$DR60)=0, SUM($DA19:DQ19)<>SUM(Plan_집계표!$DA15:$DR15), DR$18<>""), (SUM(Plan_집계표!$DA15:$DR15) - SUM($DA19:DQ19)) / COUNT(DR$18:$DR$18), DR60 * (SUM(Plan_집계표!$DA15:$DR15) - SUM($DA19:DQ19)) / SUM(Actual_집계표!DR60:$DR60)), 0) -> 0 | DS19: =CONCATENATE(BT19,BU19,BV19,CA19) -> BP_OUTS매출 귀속 SBU 자체 인력 | DT19: =$BW19*N19 -> 0 | DU19: =$BW19*P19 -> 0 | DV19: =$BW19*R19 -> 0 | DW19: =$BW19*T19 -> 0 | DX19: =$BW19*V19 -> 0 | DY19: =$BW19*X19 -> 0 | DZ19: =$BW19*Z19 -> 0 | EA19: =$BW19*AB19 -> 0 | EB19: =$BW19*AD19 -> 0 | EC19: =$BW19*AF19 -> 0 | ED19: =$BW19*AH19 -> 0 | EE19: =$BW19*AJ19 -> 0 | EF19: =$BW19*AL19 -> 0 | EG19: =$BW19*AN19 -> 0 | EH19: =$BW19*AP19 -> 0 | EI19: =$BW19*AR19 -> 0 | EJ19: =$BW19*AT19 -> 0 | EK19: =$BW19*AV19 -> 0 | EM19: =$BX19*N19 -> 0 | EN19: =$BX19*P19 -> 0 | EO19: =$BX19*R19 -> 0 | EP19: =$BX19*T19 -> 0 | EQ19: =$BX19*V19 -> 0 | ER19: =$BX19*X19 -> 0 | ES19: =$BX19*Z19 -> 0 | ET19: =$BX19*AB19 -> 0 | EU19: =$BX19*AD19 -> 0 | EV19: =$BX19*AF19 -> 0 | EW19: =$BX19*AH19 -> 0 | EX19: =$BX19*AJ19 -> 0 | EY19: =$BX19*AL19 -> 0 | EZ19: =$BX19*AN19 -> 0 | FA19: =$BX19*AP19 -> 0 | FB19: =$BX19*AR19 -> 0 | FC19: =$BX19*AT19 -> 0 | FD19: =$BX19*AV19 -> 0
C20: 2 | D20: =SUMPRODUCT($M$9:$AV$9,M20:AV20) -> 0 | E20: =IF(D20=0,"투입NO","투입DONE") -> 투입NO | G20: 2 | H20: =CLEAN(IFERROR(VLOOKUP(G20,'투입인력 단가'!$D$10:$Y$49,7,FALSE),"")) -> 모듈 | I20: =CLEAN(IFERROR(VLOOKUP(G20,'투입인력 단가'!$D$10:$Y$49,8,FALSE),"")) -> MM | J20: =CLEAN(IFERROR(VLOOKUP(G20,'투입인력 단가'!$D$10:$Y$49,9,FALSE),"")) -> 자사 | K20: =CLEAN(IFERROR(VLOOKUP(G20,'투입인력 단가'!$D$10:$Y$49,10,FALSE),"")) -> 이사 | L20: =CLEAN(IFERROR(VLOOKUP(G20,'투입인력 단가'!$D$10:$Y$49,11,FALSE),"")) -> 김진영 | N20: 6 | P20: 4 | R20: 4 | T20: 4 | V20: 2 | AW20: =SUM(N20:AV20) -> 20 | AX20: =SUM(CH20:CY20) -> 20 | AY20: =AW20-AX20 -> 0 | AZ20: =IFERROR(VLOOKUP(G20,'투입인력 단가'!$D$10:$Y$49,12,FALSE),0) -> 800000 | BA20: =AX20*AZ20 -> 16000000 | BB20: =Plan_집계표!BB16 -> 0 | BC20: =Plan_집계표!BC16 -> 0 | BD20: =Plan_집계표!BD16 -> 0 | BE20: =Plan_집계표!BE16 -> 0 | BF20: =Plan_집계표!BF16 -> 0 | BG20: =Plan_집계표!BG16 -> 0 | BH20: =Plan_집계표!BH16 -> 0 | BI20: =Plan_집계표!BI16 -> 0 | BJ20: =Plan_집계표!BJ16 -> 0 | BK20: =Plan_집계표!BK16 -> 0 | BL20: =Plan_집계표!BL16 -> 0 | BM20: =Plan_집계표!BM16 -> 0 | BN20: =Plan_집계표!BN16 -> 0 | BO20: =Plan_집계표!BO16 -> 0 | BP20: =Plan_집계표!BP16 -> 0 | BQ20: =Plan_집계표!BQ16 -> 0 | BR20: =Plan_집계표!BR16 -> 0 | BS20: =Plan_집계표!BS16 -> 0 | BT20: =CLEAN(IFERROR(VLOOKUP(G20,'투입인력 단가'!$D$10:$Y$49,13,FALSE),"")) -> BP_OUTS | BU20: =CLEAN(IFERROR(VLOOKUP(G20,'투입인력 단가'!$D$10:$Y$49,14,FALSE),"")) -> 매출 귀속 SBU 자체 인력 | BV20: =CLEAN(IFERROR(VLOOKUP(G20,'투입인력 단가'!$D$10:$Y$49,15,FALSE),"")) ->  | BW20: =IFERROR(VLOOKUP(G20,'투입인력 단가'!$D$10:$Y$49,16,FALSE),0) -> 0 | BX20: =IFERROR(VLOOKUP(G20,'투입인력 단가'!$D$10:$Y$49,17,FALSE),0) -> 0 | BZ20: =IF(BU20=MASTER!$D$4,AW20*BW20, IF(BV20=MASTER!$F$4,AW20*BX20,0)) -> 0 | CA20: =CLEAN(IFERROR(VLOOKUP(G20,'투입인력 단가'!$D$10:$Y$49,21,FALSE),"")) ->  | CB20: =IF(COUNTIF(CA21:CA$48,CA20)=0,SUMIF(CA$19:CA$48,CA20,BZ$19:BZ$48),"") ->  | CH20: 6 | CI20: 4 | CJ20: 4 | CK20: 4 | CL20: 2 | CM20: 0 | CN20: 0 | CO20: 0 | CP20: 0 | CQ20: 0 | CR20: 0 | CS20: 0 | CT20: 0 | CU20: 0 | CV20: 0 | CW20: 0 | CX20: 0 | CY20: 0 | DA20: =IFERROR( DA61 * SUM(Plan_집계표!$DA16:$DR16) / SUM(Actual_집계표!DA61:$DR61), 0) -> 4800000 | DB20: =IFERROR( IF( AND( SUM(Actual_집계표!DB61:$DR61)=0, SUM($DA20:DA20)<>SUM(Plan_집계표!$DA16:$DR16), DB$18<>""), (SUM(Plan_집계표!$DA16:$DR16) - SUM($DA20:DA20)) / COUNT(DB$18:$DR$18), DB61 * (SUM(Plan_집계표!$DA16:$DR16) - SUM($DA20:DA20)) / SUM(Actual_집계표!DB61:$DR61)), 0) -> 3200000 | DC20: =IFERROR( IF( AND( SUM(Actual_집계표!DC61:$DR61)=0, SUM($DA20:DB20)<>SUM(Plan_집계표!$DA16:$DR16), DC$18<>""), (SUM(Plan_집계표!$DA16:$DR16) - SUM($DA20:DB20)) / COUNT(DC$18:$DR$18), DC61 * (SUM(Plan_집계표!$DA16:$DR16) - SUM($DA20:DB20)) / SUM(Actual_집계표!DC61:$DR61)), 0) -> 3200000 | DD20: =IFERROR( IF( AND( SUM(Actual_집계표!DD61:$DR61)=0, SUM($DA20:DC20)<>SUM(Plan_집계표!$DA16:$DR16), DD$18<>""), (SUM(Plan_집계표!$DA16:$DR16) - SUM($DA20:DC20)) / COUNT(DD$18:$DR$18), DD61 * (SUM(Plan_집계표!$DA16:$DR16) - SUM($DA20:DC20)) / SUM(Actual_집계표!DD61:$DR61)), 0) -> 3200000 | DE20: =IFERROR( IF( AND( SUM(Actual_집계표!DE61:$DR61)=0, SUM($DA20:DD20)<>SUM(Plan_집계표!$DA16:$DR16), DE$18<>""), (SUM(Plan_집계표!$DA16:$DR16) - SUM($DA20:DD20)) / COUNT(DE$18:$DR$18), DE61 * (SUM(Plan_집계표!$DA16:$DR16) - SUM($DA20:DD20)) / SUM(Actual_집계표!DE61:$DR61)), 0) -> 1600000 | DF20: =IFERROR( IF( AND( SUM(Actual_집계표!DF61:$DR61)=0, SUM($DA20:DE20)<>SUM(Plan_집계표!$DA16:$DR16), DF$18<>""), (SUM(Plan_집계표!$DA16:$DR16) - SUM($DA20:DE20)) / COUNT(DF$18:$DR$18), DF61 * (SUM(Plan_집계표!$DA16:$DR16) - SUM($DA20:DE20)) / SUM(Actual_집계표!DF61:$DR61)), 0) -> 0 | DG20: =IFERROR( IF( AND( SUM(Actual_집계표!DG61:$DR61)=0, SUM($DA20:DF20)<>SUM(Plan_집계표!$DA16:$DR16), DG$18<>""), (SUM(Plan_집계표!$DA16:$DR16) - SUM($DA20:DF20)) / COUNT(DG$18:$DR$18), DG61 * (SUM(Plan_집계표!$DA16:$DR16) - SUM($DA20:DF20)) / SUM(Actual_집계표!DG61:$DR61)), 0) -> 0 | DH20: =IFERROR( IF( AND( SUM(Actual_집계표!DH61:$DR61)=0, SUM($DA20:DG20)<>SUM(Plan_집계표!$DA16:$DR16), DH$18<>""), (SUM(Plan_집계표!$DA16:$DR16) - SUM($DA20:DG20)) / COUNT(DH$18:$DR$18), DH61 * (SUM(Plan_집계표!$DA16:$DR16) - SUM($DA20:DG20)) / SUM(Actual_집계표!DH61:$DR61)), 0) -> 0 | DI20: =IFERROR( IF( AND( SUM(Actual_집계표!DI61:$DR61)=0, SUM($DA20:DH20)<>SUM(Plan_집계표!$DA16:$DR16), DI$18<>""), (SUM(Plan_집계표!$DA16:$DR16) - SUM($DA20:DH20)) / COUNT(DI$18:$DR$18), DI61 * (SUM(Plan_집계표!$DA16:$DR16) - SUM($DA20:DH20)) / SUM(Actual_집계표!DI61:$DR61)), 0) -> 0 | DJ20: =IFERROR( IF( AND( SUM(Actual_집계표!DJ61:$DR61)=0, SUM($DA20:DI20)<>SUM(Plan_집계표!$DA16:$DR16), DJ$18<>""), (SUM(Plan_집계표!$DA16:$DR16) - SUM($DA20:DI20)) / COUNT(DJ$18:$DR$18), DJ61 * (SUM(Plan_집계표!$DA16:$DR16) - SUM($DA20:DI20)) / SUM(Actual_집계표!DJ61:$DR61)), 0) -> 0 | DK20: =IFERROR( IF( AND( SUM(Actual_집계표!DK61:$DR61)=0, SUM($DA20:DJ20)<>SUM(Plan_집계표!$DA16:$DR16), DK$18<>""), (SUM(Plan_집계표!$DA16:$DR16) - SUM($DA20:DJ20)) / COUNT(DK$18:$DR$18), DK61 * (SUM(Plan_집계표!$DA16:$DR16) - SUM($DA20:DJ20)) / SUM(Actual_집계표!DK61:$DR61)), 0) -> 0 | DL20: =IFERROR( IF( AND( SUM(Actual_집계표!DL61:$DR61)=0, SUM($DA20:DK20)<>SUM(Plan_집계표!$DA16:$DR16), DL$18<>""), (SUM(Plan_집계표!$DA16:$DR16) - SUM($DA20:DK20)) / COUNT(DL$18:$DR$18), DL61 * (SUM(Plan_집계표!$DA16:$DR16) - SUM($DA20:DK20)) / SUM(Actual_집계표!DL61:$DR61)), 0) -> 0 | DM20: =IFERROR( IF( AND( SUM(Actual_집계표!DM61:$DR61)=0, SUM($DA20:DL20)<>SUM(Plan_집계표!$DA16:$DR16), DM$18<>""), (SUM(Plan_집계표!$DA16:$DR16) - SUM($DA20:DL20)) / COUNT(DM$18:$DR$18), DM61 * (SUM(Plan_집계표!$DA16:$DR16) - SUM($DA20:DL20)) / SUM(Actual_집계표!DM61:$DR61)), 0) -> 0 | DN20: =IFERROR( IF( AND( SUM(Actual_집계표!DN61:$DR61)=0, SUM($DA20:DM20)<>SUM(Plan_집계표!$DA16:$DR16), DN$18<>""), (SUM(Plan_집계표!$DA16:$DR16) - SUM($DA20:DM20)) / COUNT(DN$18:$DR$18), DN61 * (SUM(Plan_집계표!$DA16:$DR16) - SUM($DA20:DM20)) / SUM(Actual_집계표!DN61:$DR61)), 0) -> 0 | DO20: =IFERROR( IF( AND( SUM(Actual_집계표!DO61:$DR61)=0, SUM($DA20:DN20)<>SUM(Plan_집계표!$DA16:$DR16), DO$18<>""), (SUM(Plan_집계표!$DA16:$DR16) - SUM($DA20:DN20)) / COUNT(DO$18:$DR$18), DO61 * (SUM(Plan_집계표!$DA16:$DR16) - SUM($DA20:DN20)) / SUM(Actual_집계표!DO61:$DR61)), 0) -> 0 | DP20: =IFERROR( IF( AND( SUM(Actual_집계표!DP61:$DR61)=0, SUM($DA20:DO20)<>SUM(Plan_집계표!$DA16:$DR16), DP$18<>""), (SUM(Plan_집계표!$DA16:$DR16) - SUM($DA20:DO20)) / COUNT(DP$18:$DR$18), DP61 * (SUM(Plan_집계표!$DA16:$DR16) - SUM($DA20:DO20)) / SUM(Actual_집계표!DP61:$DR61)), 0) -> 0 | DQ20: =IFERROR( IF( AND( SUM(Actual_집계표!DQ61:$DR61)=0, SUM($DA20:DP20)<>SUM(Plan_집계표!$DA16:$DR16), DQ$18<>""), (SUM(Plan_집계표!$DA16:$DR16) - SUM($DA20:DP20)) / COUNT(DQ$18:$DR$18), DQ61 * (SUM(Plan_집계표!$DA16:$DR16) - SUM($DA20:DP20)) / SUM(Actual_집계표!DQ61:$DR61)), 0) -> 0 | DR20: =IFERROR( IF( AND( SUM(Actual_집계표!DR61:$DR61)=0, SUM($DA20:DQ20)<>SUM(Plan_집계표!$DA16:$DR16), DR$18<>""), (SUM(Plan_집계표!$DA16:$DR16) - SUM($DA20:DQ20)) / COUNT(DR$18:$DR$18), DR61 * (SUM(Plan_집계표!$DA16:$DR16) - SUM($DA20:DQ20)) / SUM(Actual_집계표!DR61:$DR61)), 0) -> 0 | DS20: =CONCATENATE(BT20,BU20,BV20,CA20) -> BP_OUTS매출 귀속 SBU 자체 인력 | DT20: =$BW20*N20 -> 0 | DU20: =$BW20*P20 -> 0 | DV20: =$BW20*R20 -> 0 | DW20: =$BW20*T20 -> 0 | DX20: =$BW20*V20 -> 0 | DY20: =$BW20*X20 -> 0 | DZ20: =$BW20*Z20 -> 0 | EA20: =$BW20*AB20 -> 0 | EB20: =$BW20*AD20 -> 0 | EC20: =$BW20*AF20 -> 0 | ED20: =$BW20*AH20 -> 0 | EE20: =$BW20*AJ20 -> 0 | EF20: =$BW20*AL20 -> 0 | EG20: =$BW20*AN20 -> 0 | EH20: =$BW20*AP20 -> 0 | EI20: =$BW20*AR20 -> 0 | EJ20: =$BW20*AT20 -> 0 | EK20: =$BW20*AV20 -> 0 | EM20: =$BX20*N20 -> 0 | EN20: =$BX20*P20 -> 0 | EO20: =$BX20*R20 -> 0 | EP20: =$BX20*T20 -> 0 | EQ20: =$BX20*V20 -> 0 | ER20: =$BX20*X20 -> 0 | ES20: =$BX20*Z20 -> 0 | ET20: =$BX20*AB20 -> 0 | EU20: =$BX20*AD20 -> 0 | EV20: =$BX20*AF20 -> 0 | EW20: =$BX20*AH20 -> 0 | EX20: =$BX20*AJ20 -> 0 | EY20: =$BX20*AL20 -> 0 | EZ20: =$BX20*AN20 -> 0 | FA20: =$BX20*AP20 -> 0 | FB20: =$BX20*AR20 -> 0 | FC20: =$BX20*AT20 -> 0 | FD20: =$BX20*AV20 -> 0
C21: 3 | D21: 0 | E21: 투입NO | G21: 3 | H21: =CLEAN(IFERROR(VLOOKUP(G21,'투입인력 단가'!$D$10:$Y$49,7,FALSE),"")) -> 모듈 | I21: =CLEAN(IFERROR(VLOOKUP(G21,'투입인력 단가'!$D$10:$Y$49,8,FALSE),"")) -> SD | J21: =CLEAN(IFERROR(VLOOKUP(G21,'투입인력 단가'!$D$10:$Y$49,9,FALSE),"")) -> 자사 | K21: =CLEAN(IFERROR(VLOOKUP(G21,'투입인력 단가'!$D$10:$Y$49,10,FALSE),"")) -> S부장 | L21: =CLEAN(IFERROR(VLOOKUP(G21,'투입인력 단가'!$D$10:$Y$49,11,FALSE),"")) -> 김정훈 | N21: 9 | P21: 8 | R21: 8 | T21: 8 | V21: 5 | AW21: 38 | AX21: 38 | AY21: 0 | AZ21: =IFERROR(VLOOKUP(G21,'투입인력 단가'!$D$10:$Y$49,12,FALSE),0) -> 800000 | BA21: 30400000 | BB21: =Plan_집계표!BB17 -> 0 | BC21: =Plan_집계표!BC17 -> 0 | BD21: =Plan_집계표!BD17 -> 0 | BE21: =Plan_집계표!BE17 -> 0 | BF21: =Plan_집계표!BF17 -> 0 | BG21: =Plan_집계표!BG17 -> 0 | BH21: =Plan_집계표!BH17 -> 0 | BI21: =Plan_집계표!BI17 -> 0 | BJ21: =Plan_집계표!BJ17 -> 0 | BK21: =Plan_집계표!BK17 -> 0 | BL21: =Plan_집계표!BL17 -> 0 | BM21: =Plan_집계표!BM17 -> 0 | BN21: =Plan_집계표!BN17 -> 0 | BO21: =Plan_집계표!BO17 -> 0 | BP21: =Plan_집계표!BP17 -> 0 | BQ21: =Plan_집계표!BQ17 -> 0 | BR21: =Plan_집계표!BR17 -> 0 | BS21: =Plan_집계표!BS17 -> 0 | BT21: =CLEAN(IFERROR(VLOOKUP(G21,'투입인력 단가'!$D$10:$Y$49,13,FALSE),"")) -> BP_OUTS | BU21: =CLEAN(IFERROR(VLOOKUP(G21,'투입인력 단가'!$D$10:$Y$49,14,FALSE),"")) -> 매출 귀속 SBU 자체 인력 | BV21: =CLEAN(IFERROR(VLOOKUP(G21,'투입인력 단가'!$D$10:$Y$49,15,FALSE),"")) ->  | BW21: =IFERROR(VLOOKUP(G21,'투입인력 단가'!$D$10:$Y$49,16,FALSE),0) -> 0 | BX21: =IFERROR(VLOOKUP(G21,'투입인력 단가'!$D$10:$Y$49,17,FALSE),0) -> 0 | BZ21: =IF(BU21=MASTER!$D$4,AW21*BW21, IF(BV21=MASTER!$F$4,AW21*BX21,0)) -> 0 | CA21: =CLEAN(IFERROR(VLOOKUP(G21,'투입인력 단가'!$D$10:$Y$49,21,FALSE),"")) ->  | CB21: =IF(COUNTIF(CA22:CA$48,CA21)=0,SUMIF(CA$19:CA$48,CA21,BZ$19:BZ$48),"") ->  | CH21: 9 | CI21: 8 | CJ21: 8 | CK21: 8 | CL21: 5 | CM21: 0 | CN21: 0 | CO21: 0 | CP21: 0 | CQ21: 0 | CR21: 0 | CS21: 0 | CT21: 0 | CU21: 0 | CV21: 0 | CW21: 0 | CX21: 0 | CY21: 0 | DA21: =IFERROR( DA62 * SUM(Plan_집계표!$DA17:$DR17) / SUM(Actual_집계표!DA62:$DR62), 0) -> 7200000 | DB21: =IFERROR( IF( AND( SUM(Actual_집계표!DB62:$DR62)=0, SUM($DA21:DA21)<>SUM(Plan_집계표!$DA17:$DR17), DB$18<>""), (SUM(Plan_집계표!$DA17:$DR17) - SUM($DA21:DA21)) / COUNT(DB$18:$DR$18), DB62 * (SUM(Plan_집계표!$DA17:$DR17) - SUM($DA21:DA21)) / SUM(Actual_집계표!DB62:$DR62)), 0) -> 6400000 | DC21: =IFERROR( IF( AND( SUM(Actual_집계표!DC62:$DR62)=0, SUM($DA21:DB21)<>SUM(Plan_집계표!$DA17:$DR17), DC$18<>""), (SUM(Plan_집계표!$DA17:$DR17) - SUM($DA21:DB21)) / COUNT(DC$18:$DR$18), DC62 * (SUM(Plan_집계표!$DA17:$DR17) - SUM($DA21:DB21)) / SUM(Actual_집계표!DC62:$DR62)), 0) -> 6400000 | DD21: =IFERROR( IF( AND( SUM(Actual_집계표!DD62:$DR62)=0, SUM($DA21:DC21)<>SUM(Plan_집계표!$DA17:$DR17), DD$18<>""), (SUM(Plan_집계표!$DA17:$DR17) - SUM($DA21:DC21)) / COUNT(DD$18:$DR$18), DD62 * (SUM(Plan_집계표!$DA17:$DR17) - SUM($DA21:DC21)) / SUM(Actual_집계표!DD62:$DR62)), 0) -> 6400000 | DE21: =IFERROR( IF( AND( SUM(Actual_집계표!DE62:$DR62)=0, SUM($DA21:DD21)<>SUM(Plan_집계표!$DA17:$DR17), DE$18<>""), (SUM(Plan_집계표!$DA17:$DR17) - SUM($DA21:DD21)) / COUNT(DE$18:$DR$18), DE62 * (SUM(Plan_집계표!$DA17:$DR17) - SUM($DA21:DD21)) / SUM(Actual_집계표!DE62:$DR62)), 0) -> 4000000 | DF21: =IFERROR( IF( AND( SUM(Actual_집계표!DF62:$DR62)=0, SUM($DA21:DE21)<>SUM(Plan_집계표!$DA17:$DR17), DF$18<>""), (SUM(Plan_집계표!$DA17:$DR17) - SUM($DA21:DE21)) / COUNT(DF$18:$DR$18), DF62 * (SUM(Plan_집계표!$DA17:$DR17) - SUM($DA21:DE21)) / SUM(Actual_집계표!DF62:$DR62)), 0) -> 0 | DG21: =IFERROR( IF( AND( SUM(Actual_집계표!DG62:$DR62)=0, SUM($DA21:DF21)<>SUM(Plan_집계표!$DA17:$DR17), DG$18<>""), (SUM(Plan_집계표!$DA17:$DR17) - SUM($DA21:DF21)) / COUNT(DG$18:$DR$18), DG62 * (SUM(Plan_집계표!$DA17:$DR17) - SUM($DA21:DF21)) / SUM(Actual_집계표!DG62:$DR62)), 0) -> 0 | DH21: =IFERROR( IF( AND( SUM(Actual_집계표!DH62:$DR62)=0, SUM($DA21:DG21)<>SUM(Plan_집계표!$DA17:$DR17), DH$18<>""), (SUM(Plan_집계표!$DA17:$DR17) - SUM($DA21:DG21)) / COUNT(DH$18:$DR$18), DH62 * (SUM(Plan_집계표!$DA17:$DR17) - SUM($DA21:DG21)) / SUM(Actual_집계표!DH62:$DR62)), 0) -> 0 | DI21: =IFERROR( IF( AND( SUM(Actual_집계표!DI62:$DR62)=0, SUM($DA21:DH21)<>SUM(Plan_집계표!$DA17:$DR17), DI$18<>""), (SUM(Plan_집계표!$DA17:$DR17) - SUM($DA21:DH21)) / COUNT(DI$18:$DR$18), DI62 * (SUM(Plan_집계표!$DA17:$DR17) - SUM($DA21:DH21)) / SUM(Actual_집계표!DI62:$DR62)), 0) -> 0 | DJ21: =IFERROR( IF( AND( SUM(Actual_집계표!DJ62:$DR62)=0, SUM($DA21:DI21)<>SUM(Plan_집계표!$DA17:$DR17), DJ$18<>""), (SUM(Plan_집계표!$DA17:$DR17) - SUM($DA21:DI21)) / COUNT(DJ$18:$DR$18), DJ62 * (SUM(Plan_집계표!$DA17:$DR17) - SUM($DA21:DI21)) / SUM(Actual_집계표!DJ62:$DR62)), 0) -> 0 | DK21: =IFERROR( IF( AND( SUM(Actual_집계표!DK62:$DR62)=0, SUM($DA21:DJ21)<>SUM(Plan_집계표!$DA17:$DR17), DK$18<>""), (SUM(Plan_집계표!$DA17:$DR17) - SUM($DA21:DJ21)) / COUNT(DK$18:$DR$18), DK62 * (SUM(Plan_집계표!$DA17:$DR17) - SUM($DA21:DJ21)) / SUM(Actual_집계표!DK62:$DR62)), 0) -> 0 | DL21: =IFERROR( IF( AND( SUM(Actual_집계표!DL62:$DR62)=0, SUM($DA21:DK21)<>SUM(Plan_집계표!$DA17:$DR17), DL$18<>""), (SUM(Plan_집계표!$DA17:$DR17) - SUM($DA21:DK21)) / COUNT(DL$18:$DR$18), DL62 * (SUM(Plan_집계표!$DA17:$DR17) - SUM($DA21:DK21)) / SUM(Actual_집계표!DL62:$DR62)), 0) -> 0 | DM21: =IFERROR( IF( AND( SUM(Actual_집계표!DM62:$DR62)=0, SUM($DA21:DL21)<>SUM(Plan_집계표!$DA17:$DR17), DM$18<>""), (SUM(Plan_집계표!$DA17:$DR17) - SUM($DA21:DL21)) / COUNT(DM$18:$DR$18), DM62 * (SUM(Plan_집계표!$DA17:$DR17) - SUM($DA21:DL21)) / SUM(Actual_집계표!DM62:$DR62)), 0) -> 0 | DN21: =IFERROR( IF( AND( SUM(Actual_집계표!DN62:$DR62)=0, SUM($DA21:DM21)<>SUM(Plan_집계표!$DA17:$DR17), DN$18<>""), (SUM(Plan_집계표!$DA17:$DR17) - SUM($DA21:DM21)) / COUNT(DN$18:$DR$18), DN62 * (SUM(Plan_집계표!$DA17:$DR17) - SUM($DA21:DM21)) / SUM(Actual_집계표!DN62:$DR62)), 0) -> 0 | DO21: =IFERROR( IF( AND( SUM(Actual_집계표!DO62:$DR62)=0, SUM($DA21:DN21)<>SUM(Plan_집계표!$DA17:$DR17), DO$18<>""), (SUM(Plan_집계표!$DA17:$DR17) - SUM($DA21:DN21)) / COUNT(DO$18:$DR$18), DO62 * (SUM(Plan_집계표!$DA17:$DR17) - SUM($DA21:DN21)) / SUM(Actual_집계표!DO62:$DR62)), 0) -> 0 | DP21: =IFERROR( IF( AND( SUM(Actual_집계표!DP62:$DR62)=0, SUM($DA21:DO21)<>SUM(Plan_집계표!$DA17:$DR17), DP$18<>""), (SUM(Plan_집계표!$DA17:$DR17) - SUM($DA21:DO21)) / COUNT(DP$18:$DR$18), DP62 * (SUM(Plan_집계표!$DA17:$DR17) - SUM($DA21:DO21)) / SUM(Actual_집계표!DP62:$DR62)), 0) -> 0 | DQ21: =IFERROR( IF( AND( SUM(Actual_집계표!DQ62:$DR62)=0, SUM($DA21:DP21)<>SUM(Plan_집계표!$DA17:$DR17), DQ$18<>""), (SUM(Plan_집계표!$DA17:$DR17) - SUM($DA21:DP21)) / COUNT(DQ$18:$DR$18), DQ62 * (SUM(Plan_집계표!$DA17:$DR17) - SUM($DA21:DP21)) / SUM(Actual_집계표!DQ62:$DR62)), 0) -> 0 | DR21: =IFERROR( IF( AND( SUM(Actual_집계표!DR62:$DR62)=0, SUM($DA21:DQ21)<>SUM(Plan_집계표!$DA17:$DR17), DR$18<>""), (SUM(Plan_집계표!$DA17:$DR17) - SUM($DA21:DQ21)) / COUNT(DR$18:$DR$18), DR62 * (SUM(Plan_집계표!$DA17:$DR17) - SUM($DA21:DQ21)) / SUM(Actual_집계표!DR62:$DR62)), 0) -> 0 | DS21: BP_OUTS매출 귀속 SBU 자체 인력 | DT21: 0 | DU21: 0 | DV21: 0 | DW21: 0 | DX21: 0 | DY21: 0 | DZ21: 0 | EA21: 0 | EB21: 0 | EC21: 0 | ED21: 0 | EE21: 0 | EF21: 0 | EG21: 0 | EH21: 0 | EI21: 0 | EJ21: 0 | EK21: 0 | EM21: 0 | EN21: 0 | EO21: 0 | EP21: 0 | EQ21: 0 | ER21: 0 | ES21: 0 | ET21: 0 | EU21: 0 | EV21: 0 | EW21: 0 | EX21: 0 | EY21: 0 | EZ21: 0 | FA21: 0 | FB21: 0 | FC21: 0 | FD21: 0
C22: 4 | D22: 0 | E22: 투입NO | G22: 4 | H22: =CLEAN(IFERROR(VLOOKUP(G22,'투입인력 단가'!$D$10:$Y$49,7,FALSE),"")) -> 모듈 | I22: =CLEAN(IFERROR(VLOOKUP(G22,'투입인력 단가'!$D$10:$Y$49,8,FALSE),"")) -> FI | J22: =CLEAN(IFERROR(VLOOKUP(G22,'투입인력 단가'!$D$10:$Y$49,9,FALSE),"")) -> 자사 | K22: =CLEAN(IFERROR(VLOOKUP(G22,'투입인력 단가'!$D$10:$Y$49,10,FALSE),"")) -> S부장 | L22: =CLEAN(IFERROR(VLOOKUP(G22,'투입인력 단가'!$D$10:$Y$49,11,FALSE),"")) -> 한진웅 | N22: 6 | P22: 4 | R22: 4 | T22: 4 | V22: 2 | AW22: 20 | AX22: 20 | AY22: 0 | AZ22: =IFERROR(VLOOKUP(G22,'투입인력 단가'!$D$10:$Y$49,12,FALSE),0) -> 800000 | BA22: 16000000 | BB22: =Plan_집계표!BB18 -> 0 | BC22: =Plan_집계표!BC18 -> 0 | BD22: =Plan_집계표!BD18 -> 0 | BE22: =Plan_집계표!BE18 -> 0 | BF22: =Plan_집계표!BF18 -> 0 | BG22: =Plan_집계표!BG18 -> 0 | BH22: =Plan_집계표!BH18 -> 0 | BI22: =Plan_집계표!BI18 -> 0 | BJ22: =Plan_집계표!BJ18 -> 0 | BK22: =Plan_집계표!BK18 -> 0 | BL22: =Plan_집계표!BL18 -> 0 | BM22: =Plan_집계표!BM18 -> 0 | BN22: =Plan_집계표!BN18 -> 0 | BO22: =Plan_집계표!BO18 -> 0 | BP22: =Plan_집계표!BP18 -> 0 | BQ22: =Plan_집계표!BQ18 -> 0 | BR22: =Plan_집계표!BR18 -> 0 | BS22: =Plan_집계표!BS18 -> 0 | BT22: =CLEAN(IFERROR(VLOOKUP(G22,'투입인력 단가'!$D$10:$Y$49,13,FALSE),"")) -> BP_OUTS | BU22: =CLEAN(IFERROR(VLOOKUP(G22,'투입인력 단가'!$D$10:$Y$49,14,FALSE),"")) -> 매출 귀속 SBU 자체 인력 | BV22: =CLEAN(IFERROR(VLOOKUP(G22,'투입인력 단가'!$D$10:$Y$49,15,FALSE),"")) ->  | BW22: =IFERROR(VLOOKUP(G22,'투입인력 단가'!$D$10:$Y$49,16,FALSE),0) -> 0 | BX22: =IFERROR(VLOOKUP(G22,'투입인력 단가'!$D$10:$Y$49,17,FALSE),0) -> 0 | BZ22: =IF(BU22=MASTER!$D$4,AW22*BW22, IF(BV22=MASTER!$F$4,AW22*BX22,0)) -> 0 | CA22: =CLEAN(IFERROR(VLOOKUP(G22,'투입인력 단가'!$D$10:$Y$49,21,FALSE),"")) ->  | CB22: =IF(COUNTIF(CA23:CA$48,CA22)=0,SUMIF(CA$19:CA$48,CA22,BZ$19:BZ$48),"") ->  | CH22: 6 | CI22: 4 | CJ22: 4 | CK22: 4 | CL22: 2 | CM22: 0 | CN22: 0 | CO22: 0 | CP22: 0 | CQ22: 0 | CR22: 0 | CS22: 0 | CT22: 0 | CU22: 0 | CV22: 0 | CW22: 0 | CX22: 0 | CY22: 0 | DA22: =IFERROR( DA63 * SUM(Plan_집계표!$DA18:$DR18) / SUM(Actual_집계표!DA63:$DR63), 0) -> 4800000 | DB22: =IFERROR( IF( AND( SUM(Actual_집계표!DB63:$DR63)=0, SUM($DA22:DA22)<>SUM(Plan_집계표!$DA18:$DR18), DB$18<>""), (SUM(Plan_집계표!$DA18:$DR18) - SUM($DA22:DA22)) / COUNT(DB$18:$DR$18), DB63 * (SUM(Plan_집계표!$DA18:$DR18) - SUM($DA22:DA22)) / SUM(Actual_집계표!DB63:$DR63)), 0) -> 3200000 | DC22: =IFERROR( IF( AND( SUM(Actual_집계표!DC63:$DR63)=0, SUM($DA22:DB22)<>SUM(Plan_집계표!$DA18:$DR18), DC$18<>""), (SUM(Plan_집계표!$DA18:$DR18) - SUM($DA22:DB22)) / COUNT(DC$18:$DR$18), DC63 * (SUM(Plan_집계표!$DA18:$DR18) - SUM($DA22:DB22)) / SUM(Actual_집계표!DC63:$DR63)), 0) -> 3200000 | DD22: =IFERROR( IF( AND( SUM(Actual_집계표!DD63:$DR63)=0, SUM($DA22:DC22)<>SUM(Plan_집계표!$DA18:$DR18), DD$18<>""), (SUM(Plan_집계표!$DA18:$DR18) - SUM($DA22:DC22)) / COUNT(DD$18:$DR$18), DD63 * (SUM(Plan_집계표!$DA18:$DR18) - SUM($DA22:DC22)) / SUM(Actual_집계표!DD63:$DR63)), 0) -> 3200000 | DE22: =IFERROR( IF( AND( SUM(Actual_집계표!DE63:$DR63)=0, SUM($DA22:DD22)<>SUM(Plan_집계표!$DA18:$DR18), DE$18<>""), (SUM(Plan_집계표!$DA18:$DR18) - SUM($DA22:DD22)) / COUNT(DE$18:$DR$18), DE63 * (SUM(Plan_집계표!$DA18:$DR18) - SUM($DA22:DD22)) / SUM(Actual_집계표!DE63:$DR63)), 0) -> 1600000 | DF22: =IFERROR( IF( AND( SUM(Actual_집계표!DF63:$DR63)=0, SUM($DA22:DE22)<>SUM(Plan_집계표!$DA18:$DR18), DF$18<>""), (SUM(Plan_집계표!$DA18:$DR18) - SUM($DA22:DE22)) / COUNT(DF$18:$DR$18), DF63 * (SUM(Plan_집계표!$DA18:$DR18) - SUM($DA22:DE22)) / SUM(Actual_집계표!DF63:$DR63)), 0) -> 0 | DG22: =IFERROR( IF( AND( SUM(Actual_집계표!DG63:$DR63)=0, SUM($DA22:DF22)<>SUM(Plan_집계표!$DA18:$DR18), DG$18<>""), (SUM(Plan_집계표!$DA18:$DR18) - SUM($DA22:DF22)) / COUNT(DG$18:$DR$18), DG63 * (SUM(Plan_집계표!$DA18:$DR18) - SUM($DA22:DF22)) / SUM(Actual_집계표!DG63:$DR63)), 0) -> 0 | DH22: =IFERROR( IF( AND( SUM(Actual_집계표!DH63:$DR63)=0, SUM($DA22:DG22)<>SUM(Plan_집계표!$DA18:$DR18), DH$18<>""), (SUM(Plan_집계표!$DA18:$DR18) - SUM($DA22:DG22)) / COUNT(DH$18:$DR$18), DH63 * (SUM(Plan_집계표!$DA18:$DR18) - SUM($DA22:DG22)) / SUM(Actual_집계표!DH63:$DR63)), 0) -> 0 | DI22: =IFERROR( IF( AND( SUM(Actual_집계표!DI63:$DR63)=0, SUM($DA22:DH22)<>SUM(Plan_집계표!$DA18:$DR18), DI$18<>""), (SUM(Plan_집계표!$DA18:$DR18) - SUM($DA22:DH22)) / COUNT(DI$18:$DR$18), DI63 * (SUM(Plan_집계표!$DA18:$DR18) - SUM($DA22:DH22)) / SUM(Actual_집계표!DI63:$DR63)), 0) -> 0 | DJ22: =IFERROR( IF( AND( SUM(Actual_집계표!DJ63:$DR63)=0, SUM($DA22:DI22)<>SUM(Plan_집계표!$DA18:$DR18), DJ$18<>""), (SUM(Plan_집계표!$DA18:$DR18) - SUM($DA22:DI22)) / COUNT(DJ$18:$DR$18), DJ63 * (SUM(Plan_집계표!$DA18:$DR18) - SUM($DA22:DI22)) / SUM(Actual_집계표!DJ63:$DR63)), 0) -> 0 | DK22: =IFERROR( IF( AND( SUM(Actual_집계표!DK63:$DR63)=0, SUM($DA22:DJ22)<>SUM(Plan_집계표!$DA18:$DR18), DK$18<>""), (SUM(Plan_집계표!$DA18:$DR18) - SUM($DA22:DJ22)) / COUNT(DK$18:$DR$18), DK63 * (SUM(Plan_집계표!$DA18:$DR18) - SUM($DA22:DJ22)) / SUM(Actual_집계표!DK63:$DR63)), 0) -> 0 | DL22: =IFERROR( IF( AND( SUM(Actual_집계표!DL63:$DR63)=0, SUM($DA22:DK22)<>SUM(Plan_집계표!$DA18:$DR18), DL$18<>""), (SUM(Plan_집계표!$DA18:$DR18) - SUM($DA22:DK22)) / COUNT(DL$18:$DR$18), DL63 * (SUM(Plan_집계표!$DA18:$DR18) - SUM($DA22:DK22)) / SUM(Actual_집계표!DL63:$DR63)), 0) -> 0 | DM22: =IFERROR( IF( AND( SUM(Actual_집계표!DM63:$DR63)=0, SUM($DA22:DL22)<>SUM(Plan_집계표!$DA18:$DR18), DM$18<>""), (SUM(Plan_집계표!$DA18:$DR18) - SUM($DA22:DL22)) / COUNT(DM$18:$DR$18), DM63 * (SUM(Plan_집계표!$DA18:$DR18) - SUM($DA22:DL22)) / SUM(Actual_집계표!DM63:$DR63)), 0) -> 0 | DN22: =IFERROR( IF( AND( SUM(Actual_집계표!DN63:$DR63)=0, SUM($DA22:DM22)<>SUM(Plan_집계표!$DA18:$DR18), DN$18<>""), (SUM(Plan_집계표!$DA18:$DR18) - SUM($DA22:DM22)) / COUNT(DN$18:$DR$18), DN63 * (SUM(Plan_집계표!$DA18:$DR18) - SUM($DA22:DM22)) / SUM(Actual_집계표!DN63:$DR63)), 0) -> 0 | DO22: =IFERROR( IF( AND( SUM(Actual_집계표!DO63:$DR63)=0, SUM($DA22:DN22)<>SUM(Plan_집계표!$DA18:$DR18), DO$18<>""), (SUM(Plan_집계표!$DA18:$DR18) - SUM($DA22:DN22)) / COUNT(DO$18:$DR$18), DO63 * (SUM(Plan_집계표!$DA18:$DR18) - SUM($DA22:DN22)) / SUM(Actual_집계표!DO63:$DR63)), 0) -> 0 | DP22: =IFERROR( IF( AND( SUM(Actual_집계표!DP63:$DR63)=0, SUM($DA22:DO22)<>SUM(Plan_집계표!$DA18:$DR18), DP$18<>""), (SUM(Plan_집계표!$DA18:$DR18) - SUM($DA22:DO22)) / COUNT(DP$18:$DR$18), DP63 * (SUM(Plan_집계표!$DA18:$DR18) - SUM($DA22:DO22)) / SUM(Actual_집계표!DP63:$DR63)), 0) -> 0 | DQ22: =IFERROR( IF( AND( SUM(Actual_집계표!DQ63:$DR63)=0, SUM($DA22:DP22)<>SUM(Plan_집계표!$DA18:$DR18), DQ$18<>""), (SUM(Plan_집계표!$DA18:$DR18) - SUM($DA22:DP22)) / COUNT(DQ$18:$DR$18), DQ63 * (SUM(Plan_집계표!$DA18:$DR18) - SUM($DA22:DP22)) / SUM(Actual_집계표!DQ63:$DR63)), 0) -> 0 | DR22: =IFERROR( IF( AND( SUM(Actual_집계표!DR63:$DR63)=0, SUM($DA22:DQ22)<>SUM(Plan_집계표!$DA18:$DR18), DR$18<>""), (SUM(Plan_집계표!$DA18:$DR18) - SUM($DA22:DQ22)) / COUNT(DR$18:$DR$18), DR63 * (SUM(Plan_집계표!$DA18:$DR18) - SUM($DA22:DQ22)) / SUM(Actual_집계표!DR63:$DR63)), 0) -> 0 | DS22: BP_OUTS매출 귀속 SBU 자체 인력 | DT22: 0 | DU22: 0 | DV22: 0 | DW22: 0 | DX22: 0 | DY22: 0 | DZ22: 0 | EA22: 0 | EB22: 0 | EC22: 0 | ED22: 0 | EE22: 0 | EF22: 0 | EG22: 0 | EH22: 0 | EI22: 0 | EJ22: 0 | EK22: 0 | EM22: 0 | EN22: 0 | EO22: 0 | EP22: 0 | EQ22: 0 | ER22: 0 | ES22: 0 | ET22: 0 | EU22: 0 | EV22: 0 | EW22: 0 | EX22: 0 | EY22: 0 | EZ22: 0 | FA22: 0 | FB22: 0 | FC22: 0 | FD22: 0
C23: 5 | D23: 0 | E23: 투입NO | G23: 5 | H23: =CLEAN(IFERROR(VLOOKUP(G23,'투입인력 단가'!$D$10:$Y$49,7,FALSE),"")) -> 모듈 | I23: =CLEAN(IFERROR(VLOOKUP(G23,'투입인력 단가'!$D$10:$Y$49,8,FALSE),"")) -> PO | J23: =CLEAN(IFERROR(VLOOKUP(G23,'투입인력 단가'!$D$10:$Y$49,9,FALSE),"")) -> 자사 | K23: =CLEAN(IFERROR(VLOOKUP(G23,'투입인력 단가'!$D$10:$Y$49,10,FALSE),"")) -> S부장 | L23: =CLEAN(IFERROR(VLOOKUP(G23,'투입인력 단가'!$D$10:$Y$49,11,FALSE),"")) -> 장재국 | N23: 2 | P23: 12 | R23: 8 | AW23: 22 | AX23: 22 | AY23: 0 | AZ23: =IFERROR(VLOOKUP(G23,'투입인력 단가'!$D$10:$Y$49,12,FALSE),0) -> 800000 | BA23: 17600000 | BB23: =Plan_집계표!BB19 -> 0 | BC23: =Plan_집계표!BC19 -> 0 | BD23: =Plan_집계표!BD19 -> 0 | BE23: =Plan_집계표!BE19 -> 0 | BF23: =Plan_집계표!BF19 -> 0 | BG23: =Plan_집계표!BG19 -> 0 | BH23: =Plan_집계표!BH19 -> 0 | BI23: =Plan_집계표!BI19 -> 0 | BJ23: =Plan_집계표!BJ19 -> 0 | BK23: =Plan_집계표!BK19 -> 0 | BL23: =Plan_집계표!BL19 -> 0 | BM23: =Plan_집계표!BM19 -> 0 | BN23: =Plan_집계표!BN19 -> 0 | BO23: =Plan_집계표!BO19 -> 0 | BP23: =Plan_집계표!BP19 -> 0 | BQ23: =Plan_집계표!BQ19 -> 0 | BR23: =Plan_집계표!BR19 -> 0 | BS23: =Plan_집계표!BS19 -> 0 | BT23: =CLEAN(IFERROR(VLOOKUP(G23,'투입인력 단가'!$D$10:$Y$49,13,FALSE),"")) -> BP_OUTS | BU23: =CLEAN(IFERROR(VLOOKUP(G23,'투입인력 단가'!$D$10:$Y$49,14,FALSE),"")) -> 매출 귀속 SBU 자체 인력 | BV23: =CLEAN(IFERROR(VLOOKUP(G23,'투입인력 단가'!$D$10:$Y$49,15,FALSE),"")) ->  | BW23: =IFERROR(VLOOKUP(G23,'투입인력 단가'!$D$10:$Y$49,16,FALSE),0) -> 0 | BX23: =IFERROR(VLOOKUP(G23,'투입인력 단가'!$D$10:$Y$49,17,FALSE),0) -> 0 | BZ23: =IF(BU23=MASTER!$D$4,AW23*BW23, IF(BV23=MASTER!$F$4,AW23*BX23,0)) -> 0 | CA23: =CLEAN(IFERROR(VLOOKUP(G23,'투입인력 단가'!$D$10:$Y$49,21,FALSE),"")) ->  | CB23: =IF(COUNTIF(CA24:CA$48,CA23)=0,SUMIF(CA$19:CA$48,CA23,BZ$19:BZ$48),"") ->  | CH23: 2 | CI23: 12 | CJ23: 8 | CK23: 0 | CL23: 0 | CM23: 0 | CN23: 0 | CO23: 0 | CP23: 0 | CQ23: 0 | CR23: 0 | CS23: 0 | CT23: 0 | CU23: 0 | CV23: 0 | CW23: 0 | CX23: 0 | CY23: 0 | DA23: =IFERROR( DA64 * SUM(Plan_집계표!$DA19:$DR19) / SUM(Actual_집계표!DA64:$DR64), 0) -> 1600000 | DB23: =IFERROR( IF( AND( SUM(Actual_집계표!DB64:$DR64)=0, SUM($DA23:DA23)<>SUM(Plan_집계표!$DA19:$DR19), DB$18<>""), (SUM(Plan_집계표!$DA19:$DR19) - SUM($DA23:DA23)) / COUNT(DB$18:$DR$18), DB64 * (SUM(Plan_집계표!$DA19:$DR19) - SUM($DA23:DA23)) / SUM(Actual_집계표!DB64:$DR64)), 0) -> 9600000 | DC23: =IFERROR( IF( AND( SUM(Actual_집계표!DC64:$DR64)=0, SUM($DA23:DB23)<>SUM(Plan_집계표!$DA19:$DR19), DC$18<>""), (SUM(Plan_집계표!$DA19:$DR19) - SUM($DA23:DB23)) / COUNT(DC$18:$DR$18), DC64 * (SUM(Plan_집계표!$DA19:$DR19) - SUM($DA23:DB23)) / SUM(Actual_집계표!DC64:$DR64)), 0) -> 6400000 | DD23: =IFERROR( IF( AND( SUM(Actual_집계표!DD64:$DR64)=0, SUM($DA23:DC23)<>SUM(Plan_집계표!$DA19:$DR19), DD$18<>""), (SUM(Plan_집계표!$DA19:$DR19) - SUM($DA23:DC23)) / COUNT(DD$18:$DR$18), DD64 * (SUM(Plan_집계표!$DA19:$DR19) - SUM($DA23:DC23)) / SUM(Actual_집계표!DD64:$DR64)), 0) -> 0 | DE23: =IFERROR( IF( AND( SUM(Actual_집계표!DE64:$DR64)=0, SUM($DA23:DD23)<>SUM(Plan_집계표!$DA19:$DR19), DE$18<>""), (SUM(Plan_집계표!$DA19:$DR19) - SUM($DA23:DD23)) / COUNT(DE$18:$DR$18), DE64 * (SUM(Plan_집계표!$DA19:$DR19) - SUM($DA23:DD23)) / SUM(Actual_집계표!DE64:$DR64)), 0) -> 0 | DF23: =IFERROR( IF( AND( SUM(Actual_집계표!DF64:$DR64)=0, SUM($DA23:DE23)<>SUM(Plan_집계표!$DA19:$DR19), DF$18<>""), (SUM(Plan_집계표!$DA19:$DR19) - SUM($DA23:DE23)) / COUNT(DF$18:$DR$18), DF64 * (SUM(Plan_집계표!$DA19:$DR19) - SUM($DA23:DE23)) / SUM(Actual_집계표!DF64:$DR64)), 0) -> 0 | DG23: =IFERROR( IF( AND( SUM(Actual_집계표!DG64:$DR64)=0, SUM($DA23:DF23)<>SUM(Plan_집계표!$DA19:$DR19), DG$18<>""), (SUM(Plan_집계표!$DA19:$DR19) - SUM($DA23:DF23)) / COUNT(DG$18:$DR$18), DG64 * (SUM(Plan_집계표!$DA19:$DR19) - SUM($DA23:DF23)) / SUM(Actual_집계표!DG64:$DR64)), 0) -> 0 | DH23: =IFERROR( IF( AND( SUM(Actual_집계표!DH64:$DR64)=0, SUM($DA23:DG23)<>SUM(Plan_집계표!$DA19:$DR19), DH$18<>""), (SUM(Plan_집계표!$DA19:$DR19) - SUM($DA23:DG23)) / COUNT(DH$18:$DR$18), DH64 * (SUM(Plan_집계표!$DA19:$DR19) - SUM($DA23:DG23)) / SUM(Actual_집계표!DH64:$DR64)), 0) -> 0 | DI23: =IFERROR( IF( AND( SUM(Actual_집계표!DI64:$DR64)=0, SUM($DA23:DH23)<>SUM(Plan_집계표!$DA19:$DR19), DI$18<>""), (SUM(Plan_집계표!$DA19:$DR19) - SUM($DA23:DH23)) / COUNT(DI$18:$DR$18), DI64 * (SUM(Plan_집계표!$DA19:$DR19) - SUM($DA23:DH23)) / SUM(Actual_집계표!DI64:$DR64)), 0) -> 0 | DJ23: =IFERROR( IF( AND( SUM(Actual_집계표!DJ64:$DR64)=0, SUM($DA23:DI23)<>SUM(Plan_집계표!$DA19:$DR19), DJ$18<>""), (SUM(Plan_집계표!$DA19:$DR19) - SUM($DA23:DI23)) / COUNT(DJ$18:$DR$18), DJ64 * (SUM(Plan_집계표!$DA19:$DR19) - SUM($DA23:DI23)) / SUM(Actual_집계표!DJ64:$DR64)), 0) -> 0 | DK23: =IFERROR( IF( AND( SUM(Actual_집계표!DK64:$DR64)=0, SUM($DA23:DJ23)<>SUM(Plan_집계표!$DA19:$DR19), DK$18<>""), (SUM(Plan_집계표!$DA19:$DR19) - SUM($DA23:DJ23)) / COUNT(DK$18:$DR$18), DK64 * (SUM(Plan_집계표!$DA19:$DR19) - SUM($DA23:DJ23)) / SUM(Actual_집계표!DK64:$DR64)), 0) -> 0 | DL23: =IFERROR( IF( AND( SUM(Actual_집계표!DL64:$DR64)=0, SUM($DA23:DK23)<>SUM(Plan_집계표!$DA19:$DR19), DL$18<>""), (SUM(Plan_집계표!$DA19:$DR19) - SUM($DA23:DK23)) / COUNT(DL$18:$DR$18), DL64 * (SUM(Plan_집계표!$DA19:$DR19) - SUM($DA23:DK23)) / SUM(Actual_집계표!DL64:$DR64)), 0) -> 0 | DM23: =IFERROR( IF( AND( SUM(Actual_집계표!DM64:$DR64)=0, SUM($DA23:DL23)<>SUM(Plan_집계표!$DA19:$DR19), DM$18<>""), (SUM(Plan_집계표!$DA19:$DR19) - SUM($DA23:DL23)) / COUNT(DM$18:$DR$18), DM64 * (SUM(Plan_집계표!$DA19:$DR19) - SUM($DA23:DL23)) / SUM(Actual_집계표!DM64:$DR64)), 0) -> 0 | DN23: =IFERROR( IF( AND( SUM(Actual_집계표!DN64:$DR64)=0, SUM($DA23:DM23)<>SUM(Plan_집계표!$DA19:$DR19), DN$18<>""), (SUM(Plan_집계표!$DA19:$DR19) - SUM($DA23:DM23)) / COUNT(DN$18:$DR$18), DN64 * (SUM(Plan_집계표!$DA19:$DR19) - SUM($DA23:DM23)) / SUM(Actual_집계표!DN64:$DR64)), 0) -> 0 | DO23: =IFERROR( IF( AND( SUM(Actual_집계표!DO64:$DR64)=0, SUM($DA23:DN23)<>SUM(Plan_집계표!$DA19:$DR19), DO$18<>""), (SUM(Plan_집계표!$DA19:$DR19) - SUM($DA23:DN23)) / COUNT(DO$18:$DR$18), DO64 * (SUM(Plan_집계표!$DA19:$DR19) - SUM($DA23:DN23)) / SUM(Actual_집계표!DO64:$DR64)), 0) -> 0 | DP23: =IFERROR( IF( AND( SUM(Actual_집계표!DP64:$DR64)=0, SUM($DA23:DO23)<>SUM(Plan_집계표!$DA19:$DR19), DP$18<>""), (SUM(Plan_집계표!$DA19:$DR19) - SUM($DA23:DO23)) / COUNT(DP$18:$DR$18), DP64 * (SUM(Plan_집계표!$DA19:$DR19) - SUM($DA23:DO23)) / SUM(Actual_집계표!DP64:$DR64)), 0) -> 0 | DQ23: =IFERROR( IF( AND( SUM(Actual_집계표!DQ64:$DR64)=0, SUM($DA23:DP23)<>SUM(Plan_집계표!$DA19:$DR19), DQ$18<>""), (SUM(Plan_집계표!$DA19:$DR19) - SUM($DA23:DP23)) / COUNT(DQ$18:$DR$18), DQ64 * (SUM(Plan_집계표!$DA19:$DR19) - SUM($DA23:DP23)) / SUM(Actual_집계표!DQ64:$DR64)), 0) -> 0 | DR23: =IFERROR( IF( AND( SUM(Actual_집계표!DR64:$DR64)=0, SUM($DA23:DQ23)<>SUM(Plan_집계표!$DA19:$DR19), DR$18<>""), (SUM(Plan_집계표!$DA19:$DR19) - SUM($DA23:DQ23)) / COUNT(DR$18:$DR$18), DR64 * (SUM(Plan_집계표!$DA19:$DR19) - SUM($DA23:DQ23)) / SUM(Actual_집계표!DR64:$DR64)), 0) -> 0 | DS23: BP_OUTS매출 귀속 SBU 자체 인력 | DT23: 0 | DU23: 0 | DV23: 0 | DW23: 0 | DX23: 0 | DY23: 0 | DZ23: 0 | EA23: 0 | EB23: 0 | EC23: 0 | ED23: 0 | EE23: 0 | EF23: 0 | EG23: 0 | EH23: 0 | EI23: 0 | EJ23: 0 | EK23: 0 | EM23: 0 | EN23: 0 | EO23: 0 | EP23: 0 | EQ23: 0 | ER23: 0 | ES23: 0 | ET23: 0 | EU23: 0 | EV23: 0 | EW23: 0 | EX23: 0 | EY23: 0 | EZ23: 0 | FA23: 0 | FB23: 0 | FC23: 0 | FD23: 0
C24: 6 | D24: 0 | E24: 투입NO | G24: 6 | H24: =CLEAN(IFERROR(VLOOKUP(G24,'투입인력 단가'!$D$10:$Y$49,7,FALSE),"")) -> 모듈 | I24: =CLEAN(IFERROR(VLOOKUP(G24,'투입인력 단가'!$D$10:$Y$49,8,FALSE),"")) -> ABAP | J24: =CLEAN(IFERROR(VLOOKUP(G24,'투입인력 단가'!$D$10:$Y$49,9,FALSE),"")) -> 자사 | K24: =CLEAN(IFERROR(VLOOKUP(G24,'투입인력 단가'!$D$10:$Y$49,10,FALSE),"")) -> 과장 | L24: =CLEAN(IFERROR(VLOOKUP(G24,'투입인력 단가'!$D$10:$Y$49,11,FALSE),"")) -> 권순현 | N24: 5 | P24: 20 | R24: 18 | T24: 16 | V24: 7 | AW24: 66 | AX24: 66 | AY24: 0 | AZ24: =IFERROR(VLOOKUP(G24,'투입인력 단가'!$D$10:$Y$49,12,FALSE),0) -> 650000 | BA24: 42900000 | BB24: =Plan_집계표!BB20 -> 0 | BC24: =Plan_집계표!BC20 -> 0 | BD24: =Plan_집계표!BD20 -> 0 | BE24: =Plan_집계표!BE20 -> 0 | BF24: =Plan_집계표!BF20 -> 0 | BG24: =Plan_집계표!BG20 -> 0 | BH24: =Plan_집계표!BH20 -> 0 | BI24: =Plan_집계표!BI20 -> 0 | BJ24: =Plan_집계표!BJ20 -> 0 | BK24: =Plan_집계표!BK20 -> 0 | BL24: =Plan_집계표!BL20 -> 0 | BM24: =Plan_집계표!BM20 -> 0 | BN24: =Plan_집계표!BN20 -> 0 | BO24: =Plan_집계표!BO20 -> 0 | BP24: =Plan_집계표!BP20 -> 0 | BQ24: =Plan_집계표!BQ20 -> 0 | BR24: =Plan_집계표!BR20 -> 0 | BS24: =Plan_집계표!BS20 -> 0 | BT24: =CLEAN(IFERROR(VLOOKUP(G24,'투입인력 단가'!$D$10:$Y$49,13,FALSE),"")) -> BP_OUTS | BU24: =CLEAN(IFERROR(VLOOKUP(G24,'투입인력 단가'!$D$10:$Y$49,14,FALSE),"")) -> 매출 귀속 SBU 자체 인력 | BV24: =CLEAN(IFERROR(VLOOKUP(G24,'투입인력 단가'!$D$10:$Y$49,15,FALSE),"")) ->  | BW24: =IFERROR(VLOOKUP(G24,'투입인력 단가'!$D$10:$Y$49,16,FALSE),0) -> 0 | BX24: =IFERROR(VLOOKUP(G24,'투입인력 단가'!$D$10:$Y$49,17,FALSE),0) -> 0 | BZ24: =IF(BU24=MASTER!$D$4,AW24*BW24, IF(BV24=MASTER!$F$4,AW24*BX24,0)) -> 0 | CA24: =CLEAN(IFERROR(VLOOKUP(G24,'투입인력 단가'!$D$10:$Y$49,21,FALSE),"")) ->  | CB24: =IF(COUNTIF(CA25:CA$48,CA24)=0,SUMIF(CA$19:CA$48,CA24,BZ$19:BZ$48),"") ->  | CH24: 5 | CI24: 20 | CJ24: 18 | CK24: 16 | CL24: 7 | CM24: 0 | CN24: 0 | CO24: 0 | CP24: 0 | CQ24: 0 | CR24: 0 | CS24: 0 | CT24: 0 | CU24: 0 | CV24: 0 | CW24: 0 | CX24: 0 | CY24: 0 | DA24: =IFERROR( DA65 * SUM(Plan_집계표!$DA20:$DR20) / SUM(Actual_집계표!DA65:$DR65), 0) -> 3250000 | DB24: =IFERROR( IF( AND( SUM(Actual_집계표!DB65:$DR65)=0, SUM($DA24:DA24)<>SUM(Plan_집계표!$DA20:$DR20), DB$18<>""), (SUM(Plan_집계표!$DA20:$DR20) - SUM($DA24:DA24)) / COUNT(DB$18:$DR$18), DB65 * (SUM(Plan_집계표!$DA20:$DR20) - SUM($DA24:DA24)) / SUM(Actual_집계표!DB65:$DR65)), 0) -> 13000000 | DC24: =IFERROR( IF( AND( SUM(Actual_집계표!DC65:$DR65)=0, SUM($DA24:DB24)<>SUM(Plan_집계표!$DA20:$DR20), DC$18<>""), (SUM(Plan_집계표!$DA20:$DR20) - SUM($DA24:DB24)) / COUNT(DC$18:$DR$18), DC65 * (SUM(Plan_집계표!$DA20:$DR20) - SUM($DA24:DB24)) / SUM(Actual_집계표!DC65:$DR65)), 0) -> 11700000 | DD24: =IFERROR( IF( AND( SUM(Actual_집계표!DD65:$DR65)=0, SUM($DA24:DC24)<>SUM(Plan_집계표!$DA20:$DR20), DD$18<>""), (SUM(Plan_집계표!$DA20:$DR20) - SUM($DA24:DC24)) / COUNT(DD$18:$DR$18), DD65 * (SUM(Plan_집계표!$DA20:$DR20) - SUM($DA24:DC24)) / SUM(Actual_집계표!DD65:$DR65)), 0) -> 10400000 | DE24: =IFERROR( IF( AND( SUM(Actual_집계표!DE65:$DR65)=0, SUM($DA24:DD24)<>SUM(Plan_집계표!$DA20:$DR20), DE$18<>""), (SUM(Plan_집계표!$DA20:$DR20) - SUM($DA24:DD24)) / COUNT(DE$18:$DR$18), DE65 * (SUM(Plan_집계표!$DA20:$DR20) - SUM($DA24:DD24)) / SUM(Actual_집계표!DE65:$DR65)), 0) -> 4550000 | DF24: =IFERROR( IF( AND( SUM(Actual_집계표!DF65:$DR65)=0, SUM($DA24:DE24)<>SUM(Plan_집계표!$DA20:$DR20), DF$18<>""), (SUM(Plan_집계표!$DA20:$DR20) - SUM($DA24:DE24)) / COUNT(DF$18:$DR$18), DF65 * (SUM(Plan_집계표!$DA20:$DR20) - SUM($DA24:DE24)) / SUM(Actual_집계표!DF65:$DR65)), 0) -> 0 | DG24: =IFERROR( IF( AND( SUM(Actual_집계표!DG65:$DR65)=0, SUM($DA24:DF24)<>SUM(Plan_집계표!$DA20:$DR20), DG$18<>""), (SUM(Plan_집계표!$DA20:$DR20) - SUM($DA24:DF24)) / COUNT(DG$18:$DR$18), DG65 * (SUM(Plan_집계표!$DA20:$DR20) - SUM($DA24:DF24)) / SUM(Actual_집계표!DG65:$DR65)), 0) -> 0 | DH24: =IFERROR( IF( AND( SUM(Actual_집계표!DH65:$DR65)=0, SUM($DA24:DG24)<>SUM(Plan_집계표!$DA20:$DR20), DH$18<>""), (SUM(Plan_집계표!$DA20:$DR20) - SUM($DA24:DG24)) / COUNT(DH$18:$DR$18), DH65 * (SUM(Plan_집계표!$DA20:$DR20) - SUM($DA24:DG24)) / SUM(Actual_집계표!DH65:$DR65)), 0) -> 0 | DI24: =IFERROR( IF( AND( SUM(Actual_집계표!DI65:$DR65)=0, SUM($DA24:DH24)<>SUM(Plan_집계표!$DA20:$DR20), DI$18<>""), (SUM(Plan_집계표!$DA20:$DR20) - SUM($DA24:DH24)) / COUNT(DI$18:$DR$18), DI65 * (SUM(Plan_집계표!$DA20:$DR20) - SUM($DA24:DH24)) / SUM(Actual_집계표!DI65:$DR65)), 0) -> 0 | DJ24: =IFERROR( IF( AND( SUM(Actual_집계표!DJ65:$DR65)=0, SUM($DA24:DI24)<>SUM(Plan_집계표!$DA20:$DR20), DJ$18<>""), (SUM(Plan_집계표!$DA20:$DR20) - SUM($DA24:DI24)) / COUNT(DJ$18:$DR$18), DJ65 * (SUM(Plan_집계표!$DA20:$DR20) - SUM($DA24:DI24)) / SUM(Actual_집계표!DJ65:$DR65)), 0) -> 0 | DK24: =IFERROR( IF( AND( SUM(Actual_집계표!DK65:$DR65)=0, SUM($DA24:DJ24)<>SUM(Plan_집계표!$DA20:$DR20), DK$18<>""), (SUM(Plan_집계표!$DA20:$DR20) - SUM($DA24:DJ24)) / COUNT(DK$18:$DR$18), DK65 * (SUM(Plan_집계표!$DA20:$DR20) - SUM($DA24:DJ24)) / SUM(Actual_집계표!DK65:$DR65)), 0) -> 0 | DL24: =IFERROR( IF( AND( SUM(Actual_집계표!DL65:$DR65)=0, SUM($DA24:DK24)<>SUM(Plan_집계표!$DA20:$DR20), DL$18<>""), (SUM(Plan_집계표!$DA20:$DR20) - SUM($DA24:DK24)) / COUNT(DL$18:$DR$18), DL65 * (SUM(Plan_집계표!$DA20:$DR20) - SUM($DA24:DK24)) / SUM(Actual_집계표!DL65:$DR65)), 0) -> 0 | DM24: =IFERROR( IF( AND( SUM(Actual_집계표!DM65:$DR65)=0, SUM($DA24:DL24)<>SUM(Plan_집계표!$DA20:$DR20), DM$18<>""), (SUM(Plan_집계표!$DA20:$DR20) - SUM($DA24:DL24)) / COUNT(DM$18:$DR$18), DM65 * (SUM(Plan_집계표!$DA20:$DR20) - SUM($DA24:DL24)) / SUM(Actual_집계표!DM65:$DR65)), 0) -> 0 | DN24: =IFERROR( IF( AND( SUM(Actual_집계표!DN65:$DR65)=0, SUM($DA24:DM24)<>SUM(Plan_집계표!$DA20:$DR20), DN$18<>""), (SUM(Plan_집계표!$DA20:$DR20) - SUM($DA24:DM24)) / COUNT(DN$18:$DR$18), DN65 * (SUM(Plan_집계표!$DA20:$DR20) - SUM($DA24:DM24)) / SUM(Actual_집계표!DN65:$DR65)), 0) -> 0 | DO24: =IFERROR( IF( AND( SUM(Actual_집계표!DO65:$DR65)=0, SUM($DA24:DN24)<>SUM(Plan_집계표!$DA20:$DR20), DO$18<>""), (SUM(Plan_집계표!$DA20:$DR20) - SUM($DA24:DN24)) / COUNT(DO$18:$DR$18), DO65 * (SUM(Plan_집계표!$DA20:$DR20) - SUM($DA24:DN24)) / SUM(Actual_집계표!DO65:$DR65)), 0) -> 0 | DP24: =IFERROR( IF( AND( SUM(Actual_집계표!DP65:$DR65)=0, SUM($DA24:DO24)<>SUM(Plan_집계표!$DA20:$DR20), DP$18<>""), (SUM(Plan_집계표!$DA20:$DR20) - SUM($DA24:DO24)) / COUNT(DP$18:$DR$18), DP65 * (SUM(Plan_집계표!$DA20:$DR20) - SUM($DA24:DO24)) / SUM(Actual_집계표!DP65:$DR65)), 0) -> 0 | DQ24: =IFERROR( IF( AND( SUM(Actual_집계표!DQ65:$DR65)=0, SUM($DA24:DP24)<>SUM(Plan_집계표!$DA20:$DR20), DQ$18<>""), (SUM(Plan_집계표!$DA20:$DR20) - SUM($DA24:DP24)) / COUNT(DQ$18:$DR$18), DQ65 * (SUM(Plan_집계표!$DA20:$DR20) - SUM($DA24:DP24)) / SUM(Actual_집계표!DQ65:$DR65)), 0) -> 0 | DR24: =IFERROR( IF( AND( SUM(Actual_집계표!DR65:$DR65)=0, SUM($DA24:DQ24)<>SUM(Plan_집계표!$DA20:$DR20), DR$18<>""), (SUM(Plan_집계표!$DA20:$DR20) - SUM($DA24:DQ24)) / COUNT(DR$18:$DR$18), DR65 * (SUM(Plan_집계표!$DA20:$DR20) - SUM($DA24:DQ24)) / SUM(Actual_집계표!DR65:$DR65)), 0) -> 0 | DS24: BP_OUTS매출 귀속 SBU 자체 인력 | DT24: 0 | DU24: 0 | DV24: 0 | DW24: 0 | DX24: 0 | DY24: 0 | DZ24: 0 | EA24: 0 | EB24: 0 | EC24: 0 | ED24: 0 | EE24: 0 | EF24: 0 | EG24: 0 | EH24: 0 | EI24: 0 | EJ24: 0 | EK24: 0 | EM24: 0 | EN24: 0 | EO24: 0 | EP24: 0 | EQ24: 0 | ER24: 0 | ES24: 0 | ET24: 0 | EU24: 0 | EV24: 0 | EW24: 0 | EX24: 0 | EY24: 0 | EZ24: 0 | FA24: 0 | FB24: 0 | FC24: 0 | FD24: 0
C25: 7 | D25: 0 | E25: 투입NO | G25: 7 | H25: =CLEAN(IFERROR(VLOOKUP(G25,'투입인력 단가'!$D$10:$Y$49,7,FALSE),"")) -> 모듈 | I25: =CLEAN(IFERROR(VLOOKUP(G25,'투입인력 단가'!$D$10:$Y$49,8,FALSE),"")) -> ABAP | J25: =CLEAN(IFERROR(VLOOKUP(G25,'투입인력 단가'!$D$10:$Y$49,9,FALSE),"")) -> 자사 | K25: =CLEAN(IFERROR(VLOOKUP(G25,'투입인력 단가'!$D$10:$Y$49,10,FALSE),"")) -> S부장 | L25: =CLEAN(IFERROR(VLOOKUP(G25,'투입인력 단가'!$D$10:$Y$49,11,FALSE),"")) -> 이종석 | N25: 2 | P25: 8 | R25: 6 | T25: 4 | V25: 1 | AW25: 21 | AX25: 21 | AY25: 0 | AZ25: =IFERROR(VLOOKUP(G25,'투입인력 단가'!$D$10:$Y$49,12,FALSE),0) -> 650000 | BA25: 13650000 | BB25: =Plan_집계표!BB21 -> 0 | BC25: =Plan_집계표!BC21 -> 0 | BD25: =Plan_집계표!BD21 -> 0 | BE25: =Plan_집계표!BE21 -> 0 | BF25: =Plan_집계표!BF21 -> 0 | BG25: =Plan_집계표!BG21 -> 0 | BH25: =Plan_집계표!BH21 -> 0 | BI25: =Plan_집계표!BI21 -> 0 | BJ25: =Plan_집계표!BJ21 -> 0 | BK25: =Plan_집계표!BK21 -> 0 | BL25: =Plan_집계표!BL21 -> 0 | BM25: =Plan_집계표!BM21 -> 0 | BN25: =Plan_집계표!BN21 -> 0 | BO25: =Plan_집계표!BO21 -> 0 | BP25: =Plan_집계표!BP21 -> 0 | BQ25: =Plan_집계표!BQ21 -> 0 | BR25: =Plan_집계표!BR21 -> 0 | BS25: =Plan_집계표!BS21 -> 0 | BT25: =CLEAN(IFERROR(VLOOKUP(G25,'투입인력 단가'!$D$10:$Y$49,13,FALSE),"")) -> BP_OUTS | BU25: =CLEAN(IFERROR(VLOOKUP(G25,'투입인력 단가'!$D$10:$Y$49,14,FALSE),"")) -> 매출 귀속 SBU 자체 인력 | BV25: =CLEAN(IFERROR(VLOOKUP(G25,'투입인력 단가'!$D$10:$Y$49,15,FALSE),"")) ->  | BW25: =IFERROR(VLOOKUP(G25,'투입인력 단가'!$D$10:$Y$49,16,FALSE),0) -> 0 | BX25: =IFERROR(VLOOKUP(G25,'투입인력 단가'!$D$10:$Y$49,17,FALSE),0) -> 0 | BZ25: =IF(BU25=MASTER!$D$4,AW25*BW25, IF(BV25=MASTER!$F$4,AW25*BX25,0)) -> 0 | CA25: =CLEAN(IFERROR(VLOOKUP(G25,'투입인력 단가'!$D$10:$Y$49,21,FALSE),"")) ->  | CB25: =IF(COUNTIF(CA26:CA$48,CA25)=0,SUMIF(CA$19:CA$48,CA25,BZ$19:BZ$48),"") ->  | CH25: 2 | CI25: 8 | CJ25: 6 | CK25: 4 | CL25: 1 | CM25: 0 | CN25: 0 | CO25: 0 | CP25: 0 | CQ25: 0 | CR25: 0 | CS25: 0 | CT25: 0 | CU25: 0 | CV25: 0 | CW25: 0 | CX25: 0 | CY25: 0 | DA25: =IFERROR( DA66 * SUM(Plan_집계표!$DA21:$DR21) / SUM(Actual_집계표!DA66:$DR66), 0) -> 1300000 | DB25: =IFERROR( IF( AND( SUM(Actual_집계표!DB66:$DR66)=0, SUM($DA25:DA25)<>SUM(Plan_집계표!$DA21:$DR21), DB$18<>""), (SUM(Plan_집계표!$DA21:$DR21) - SUM($DA25:DA25)) / COUNT(DB$18:$DR$18), DB66 * (SUM(Plan_집계표!$DA21:$DR21) - SUM($DA25:DA25)) / SUM(Actual_집계표!DB66:$DR66)), 0) -> 5200000 | DC25: =IFERROR( IF( AND( SUM(Actual_집계표!DC66:$DR66)=0, SUM($DA25:DB25)<>SUM(Plan_집계표!$DA21:$DR21), DC$18<>""), (SUM(Plan_집계표!$DA21:$DR21) - SUM($DA25:DB25)) / COUNT(DC$18:$DR$18), DC66 * (SUM(Plan_집계표!$DA21:$DR21) - SUM($DA25:DB25)) / SUM(Actual_집계표!DC66:$DR66)), 0) -> 3900000 | DD25: =IFERROR( IF( AND( SUM(Actual_집계표!DD66:$DR66)=0, SUM($DA25:DC25)<>SUM(Plan_집계표!$DA21:$DR21), DD$18<>""), (SUM(Plan_집계표!$DA21:$DR21) - SUM($DA25:DC25)) / COUNT(DD$18:$DR$18), DD66 * (SUM(Plan_집계표!$DA21:$DR21) - SUM($DA25:DC25)) / SUM(Actual_집계표!DD66:$DR66)), 0) -> 2600000 | DE25: =IFERROR( IF( AND( SUM(Actual_집계표!DE66:$DR66)=0, SUM($DA25:DD25)<>SUM(Plan_집계표!$DA21:$DR21), DE$18<>""), (SUM(Plan_집계표!$DA21:$DR21) - SUM($DA25:DD25)) / COUNT(DE$18:$DR$18), DE66 * (SUM(Plan_집계표!$DA21:$DR21) - SUM($DA25:DD25)) / SUM(Actual_집계표!DE66:$DR66)), 0) -> 650000 | DF25: =IFERROR( IF( AND( SUM(Actual_집계표!DF66:$DR66)=0, SUM($DA25:DE25)<>SUM(Plan_집계표!$DA21:$DR21), DF$18<>""), (SUM(Plan_집계표!$DA21:$DR21) - SUM($DA25:DE25)) / COUNT(DF$18:$DR$18), DF66 * (SUM(Plan_집계표!$DA21:$DR21) - SUM($DA25:DE25)) / SUM(Actual_집계표!DF66:$DR66)), 0) -> 0 | DG25: =IFERROR( IF( AND( SUM(Actual_집계표!DG66:$DR66)=0, SUM($DA25:DF25)<>SUM(Plan_집계표!$DA21:$DR21), DG$18<>""), (SUM(Plan_집계표!$DA21:$DR21) - SUM($DA25:DF25)) / COUNT(DG$18:$DR$18), DG66 * (SUM(Plan_집계표!$DA21:$DR21) - SUM($DA25:DF25)) / SUM(Actual_집계표!DG66:$DR66)), 0) -> 0 | DH25: =IFERROR( IF( AND( SUM(Actual_집계표!DH66:$DR66)=0, SUM($DA25:DG25)<>SUM(Plan_집계표!$DA21:$DR21), DH$18<>""), (SUM(Plan_집계표!$DA21:$DR21) - SUM($DA25:DG25)) / COUNT(DH$18:$DR$18), DH66 * (SUM(Plan_집계표!$DA21:$DR21) - SUM($DA25:DG25)) / SUM(Actual_집계표!DH66:$DR66)), 0) -> 0 | DI25: =IFERROR( IF( AND( SUM(Actual_집계표!DI66:$DR66)=0, SUM($DA25:DH25)<>SUM(Plan_집계표!$DA21:$DR21), DI$18<>""), (SUM(Plan_집계표!$DA21:$DR21) - SUM($DA25:DH25)) / COUNT(DI$18:$DR$18), DI66 * (SUM(Plan_집계표!$DA21:$DR21) - SUM($DA25:DH25)) / SUM(Actual_집계표!DI66:$DR66)), 0) -> 0 | DJ25: =IFERROR( IF( AND( SUM(Actual_집계표!DJ66:$DR66)=0, SUM($DA25:DI25)<>SUM(Plan_집계표!$DA21:$DR21), DJ$18<>""), (SUM(Plan_집계표!$DA21:$DR21) - SUM($DA25:DI25)) / COUNT(DJ$18:$DR$18), DJ66 * (SUM(Plan_집계표!$DA21:$DR21) - SUM($DA25:DI25)) / SUM(Actual_집계표!DJ66:$DR66)), 0) -> 0 | DK25: =IFERROR( IF( AND( SUM(Actual_집계표!DK66:$DR66)=0, SUM($DA25:DJ25)<>SUM(Plan_집계표!$DA21:$DR21), DK$18<>""), (SUM(Plan_집계표!$DA21:$DR21) - SUM($DA25:DJ25)) / COUNT(DK$18:$DR$18), DK66 * (SUM(Plan_집계표!$DA21:$DR21) - SUM($DA25:DJ25)) / SUM(Actual_집계표!DK66:$DR66)), 0) -> 0 | DL25: =IFERROR( IF( AND( SUM(Actual_집계표!DL66:$DR66)=0, SUM($DA25:DK25)<>SUM(Plan_집계표!$DA21:$DR21), DL$18<>""), (SUM(Plan_집계표!$DA21:$DR21) - SUM($DA25:DK25)) / COUNT(DL$18:$DR$18), DL66 * (SUM(Plan_집계표!$DA21:$DR21) - SUM($DA25:DK25)) / SUM(Actual_집계표!DL66:$DR66)), 0) -> 0 | DM25: =IFERROR( IF( AND( SUM(Actual_집계표!DM66:$DR66)=0, SUM($DA25:DL25)<>SUM(Plan_집계표!$DA21:$DR21), DM$18<>""), (SUM(Plan_집계표!$DA21:$DR21) - SUM($DA25:DL25)) / COUNT(DM$18:$DR$18), DM66 * (SUM(Plan_집계표!$DA21:$DR21) - SUM($DA25:DL25)) / SUM(Actual_집계표!DM66:$DR66)), 0) -> 0 | DN25: =IFERROR( IF( AND( SUM(Actual_집계표!DN66:$DR66)=0, SUM($DA25:DM25)<>SUM(Plan_집계표!$DA21:$DR21), DN$18<>""), (SUM(Plan_집계표!$DA21:$DR21) - SUM($DA25:DM25)) / COUNT(DN$18:$DR$18), DN66 * (SUM(Plan_집계표!$DA21:$DR21) - SUM($DA25:DM25)) / SUM(Actual_집계표!DN66:$DR66)), 0) -> 0 | DO25: =IFERROR( IF( AND( SUM(Actual_집계표!DO66:$DR66)=0, SUM($DA25:DN25)<>SUM(Plan_집계표!$DA21:$DR21), DO$18<>""), (SUM(Plan_집계표!$DA21:$DR21) - SUM($DA25:DN25)) / COUNT(DO$18:$DR$18), DO66 * (SUM(Plan_집계표!$DA21:$DR21) - SUM($DA25:DN25)) / SUM(Actual_집계표!DO66:$DR66)), 0) -> 0 | DP25: =IFERROR( IF( AND( SUM(Actual_집계표!DP66:$DR66)=0, SUM($DA25:DO25)<>SUM(Plan_집계표!$DA21:$DR21), DP$18<>""), (SUM(Plan_집계표!$DA21:$DR21) - SUM($DA25:DO25)) / COUNT(DP$18:$DR$18), DP66 * (SUM(Plan_집계표!$DA21:$DR21) - SUM($DA25:DO25)) / SUM(Actual_집계표!DP66:$DR66)), 0) -> 0 | DQ25: =IFERROR( IF( AND( SUM(Actual_집계표!DQ66:$DR66)=0, SUM($DA25:DP25)<>SUM(Plan_집계표!$DA21:$DR21), DQ$18<>""), (SUM(Plan_집계표!$DA21:$DR21) - SUM($DA25:DP25)) / COUNT(DQ$18:$DR$18), DQ66 * (SUM(Plan_집계표!$DA21:$DR21) - SUM($DA25:DP25)) / SUM(Actual_집계표!DQ66:$DR66)), 0) -> 0 | DR25: =IFERROR( IF( AND( SUM(Actual_집계표!DR66:$DR66)=0, SUM($DA25:DQ25)<>SUM(Plan_집계표!$DA21:$DR21), DR$18<>""), (SUM(Plan_집계표!$DA21:$DR21) - SUM($DA25:DQ25)) / COUNT(DR$18:$DR$18), DR66 * (SUM(Plan_집계표!$DA21:$DR21) - SUM($DA25:DQ25)) / SUM(Actual_집계표!DR66:$DR66)), 0) -> 0 | DS25: BP_OUTS매출 귀속 SBU 자체 인력 | DT25: 0 | DU25: 0 | DV25: 0 | DW25: 0 | DX25: 0 | DY25: 0 | DZ25: 0 | EA25: 0 | EB25: 0 | EC25: 0 | ED25: 0 | EE25: 0 | EF25: 0 | EG25: 0 | EH25: 0 | EI25: 0 | EJ25: 0 | EK25: 0 | EM25: 0 | EN25: 0 | EO25: 0 | EP25: 0 | EQ25: 0 | ER25: 0 | ES25: 0 | ET25: 0 | EU25: 0 | EV25: 0 | EW25: 0 | EX25: 0 | EY25: 0 | EZ25: 0 | FA25: 0 | FB25: 0 | FC25: 0 | FD25: 0
C26: 8 | D26: 0 | E26: 투입NO | G26: 8 | H26: =CLEAN(IFERROR(VLOOKUP(G26,'투입인력 단가'!$D$10:$Y$49,7,FALSE),"")) ->  | I26: =CLEAN(IFERROR(VLOOKUP(G26,'투입인력 단가'!$D$10:$Y$49,8,FALSE),"")) ->  | J26: =CLEAN(IFERROR(VLOOKUP(G26,'투입인력 단가'!$D$10:$Y$49,9,FALSE),"")) ->  | K26: =CLEAN(IFERROR(VLOOKUP(G26,'투입인력 단가'!$D$10:$Y$49,10,FALSE),"")) ->  | L26: =CLEAN(IFERROR(VLOOKUP(G26,'투입인력 단가'!$D$10:$Y$49,11,FALSE),"")) ->  | AW26: 0 | AX26: 0 | AY26: 0 | AZ26: =IFERROR(VLOOKUP(G26,'투입인력 단가'!$D$10:$Y$49,12,FALSE),0) -> 0 | BA26: 0 | BB26: =Plan_집계표!BB22 -> 0 | BC26: =Plan_집계표!BC22 -> 0 | BD26: =Plan_집계표!BD22 -> 0 | BE26: =Plan_집계표!BE22 -> 0 | BF26: =Plan_집계표!BF22 -> 0 | BG26: =Plan_집계표!BG22 -> 0 | BH26: =Plan_집계표!BH22 -> 0 | BI26: =Plan_집계표!BI22 -> 0 | BJ26: =Plan_집계표!BJ22 -> 0 | BK26: =Plan_집계표!BK22 -> 0 | BL26: =Plan_집계표!BL22 -> 0 | BM26: =Plan_집계표!BM22 -> 0 | BN26: =Plan_집계표!BN22 -> 0 | BO26: =Plan_집계표!BO22 -> 0 | BP26: =Plan_집계표!BP22 -> 0 | BQ26: =Plan_집계표!BQ22 -> 0 | BR26: =Plan_집계표!BR22 -> 0 | BS26: =Plan_집계표!BS22 -> 0 | BT26: =CLEAN(IFERROR(VLOOKUP(G26,'투입인력 단가'!$D$10:$Y$49,13,FALSE),"")) ->  | BU26: =CLEAN(IFERROR(VLOOKUP(G26,'투입인력 단가'!$D$10:$Y$49,14,FALSE),"")) ->  | BV26: =CLEAN(IFERROR(VLOOKUP(G26,'투입인력 단가'!$D$10:$Y$49,15,FALSE),"")) ->  | BW26: =IFERROR(VLOOKUP(G26,'투입인력 단가'!$D$10:$Y$49,16,FALSE),0) -> 0 | BX26: =IFERROR(VLOOKUP(G26,'투입인력 단가'!$D$10:$Y$49,17,FALSE),0) -> 0 | BZ26: =IF(BU26=MASTER!$D$4,AW26*BW26, IF(BV26=MASTER!$F$4,AW26*BX26,0)) -> 0 | CA26: =CLEAN(IFERROR(VLOOKUP(G26,'투입인력 단가'!$D$10:$Y$49,21,FALSE),"")) ->  | CB26: =IF(COUNTIF(CA27:CA$48,CA26)=0,SUMIF(CA$19:CA$48,CA26,BZ$19:BZ$48),"") ->  | CH26: 0 | CI26: 0 | CJ26: 0 | CK26: 0 | CL26: 0 | CM26: 0 | CN26: 0 | CO26: 0 | CP26: 0 | CQ26: 0 | CR26: 0 | CS26: 0 | CT26: 0 | CU26: 0 | CV26: 0 | CW26: 0 | CX26: 0 | CY26: 0 | DA26: =IFERROR( DA67 * SUM(Plan_집계표!$DA22:$DR22) / SUM(Actual_집계표!DA67:$DR67), 0) -> 0 | DB26: =IFERROR( IF( AND( SUM(Actual_집계표!DB67:$DR67)=0, SUM($DA26:DA26)<>SUM(Plan_집계표!$DA22:$DR22), DB$18<>""), (SUM(Plan_집계표!$DA22:$DR22) - SUM($DA26:DA26)) / COUNT(DB$18:$DR$18), DB67 * (SUM(Plan_집계표!$DA22:$DR22) - SUM($DA26:DA26)) / SUM(Actual_집계표!DB67:$DR67)), 0) -> 0 | DC26: =IFERROR( IF( AND( SUM(Actual_집계표!DC67:$DR67)=0, SUM($DA26:DB26)<>SUM(Plan_집계표!$DA22:$DR22), DC$18<>""), (SUM(Plan_집계표!$DA22:$DR22) - SUM($DA26:DB26)) / COUNT(DC$18:$DR$18), DC67 * (SUM(Plan_집계표!$DA22:$DR22) - SUM($DA26:DB26)) / SUM(Actual_집계표!DC67:$DR67)), 0) -> 0 | DD26: =IFERROR( IF( AND( SUM(Actual_집계표!DD67:$DR67)=0, SUM($DA26:DC26)<>SUM(Plan_집계표!$DA22:$DR22), DD$18<>""), (SUM(Plan_집계표!$DA22:$DR22) - SUM($DA26:DC26)) / COUNT(DD$18:$DR$18), DD67 * (SUM(Plan_집계표!$DA22:$DR22) - SUM($DA26:DC26)) / SUM(Actual_집계표!DD67:$DR67)), 0) -> 0 | DE26: =IFERROR( IF( AND( SUM(Actual_집계표!DE67:$DR67)=0, SUM($DA26:DD26)<>SUM(Plan_집계표!$DA22:$DR22), DE$18<>""), (SUM(Plan_집계표!$DA22:$DR22) - SUM($DA26:DD26)) / COUNT(DE$18:$DR$18), DE67 * (SUM(Plan_집계표!$DA22:$DR22) - SUM($DA26:DD26)) / SUM(Actual_집계표!DE67:$DR67)), 0) -> 0 | DF26: =IFERROR( IF( AND( SUM(Actual_집계표!DF67:$DR67)=0, SUM($DA26:DE26)<>SUM(Plan_집계표!$DA22:$DR22), DF$18<>""), (SUM(Plan_집계표!$DA22:$DR22) - SUM($DA26:DE26)) / COUNT(DF$18:$DR$18), DF67 * (SUM(Plan_집계표!$DA22:$DR22) - SUM($DA26:DE26)) / SUM(Actual_집계표!DF67:$DR67)), 0) -> 0 | DG26: =IFERROR( IF( AND( SUM(Actual_집계표!DG67:$DR67)=0, SUM($DA26:DF26)<>SUM(Plan_집계표!$DA22:$DR22), DG$18<>""), (SUM(Plan_집계표!$DA22:$DR22) - SUM($DA26:DF26)) / COUNT(DG$18:$DR$18), DG67 * (SUM(Plan_집계표!$DA22:$DR22) - SUM($DA26:DF26)) / SUM(Actual_집계표!DG67:$DR67)), 0) -> 0 | DH26: =IFERROR( IF( AND( SUM(Actual_집계표!DH67:$DR67)=0, SUM($DA26:DG26)<>SUM(Plan_집계표!$DA22:$DR22), DH$18<>""), (SUM(Plan_집계표!$DA22:$DR22) - SUM($DA26:DG26)) / COUNT(DH$18:$DR$18), DH67 * (SUM(Plan_집계표!$DA22:$DR22) - SUM($DA26:DG26)) / SUM(Actual_집계표!DH67:$DR67)), 0) -> 0 | DI26: =IFERROR( IF( AND( SUM(Actual_집계표!DI67:$DR67)=0, SUM($DA26:DH26)<>SUM(Plan_집계표!$DA22:$DR22), DI$18<>""), (SUM(Plan_집계표!$DA22:$DR22) - SUM($DA26:DH26)) / COUNT(DI$18:$DR$18), DI67 * (SUM(Plan_집계표!$DA22:$DR22) - SUM($DA26:DH26)) / SUM(Actual_집계표!DI67:$DR67)), 0) -> 0 | DJ26: =IFERROR( IF( AND( SUM(Actual_집계표!DJ67:$DR67)=0, SUM($DA26:DI26)<>SUM(Plan_집계표!$DA22:$DR22), DJ$18<>""), (SUM(Plan_집계표!$DA22:$DR22) - SUM($DA26:DI26)) / COUNT(DJ$18:$DR$18), DJ67 * (SUM(Plan_집계표!$DA22:$DR22) - SUM($DA26:DI26)) / SUM(Actual_집계표!DJ67:$DR67)), 0) -> 0 | DK26: =IFERROR( IF( AND( SUM(Actual_집계표!DK67:$DR67)=0, SUM($DA26:DJ26)<>SUM(Plan_집계표!$DA22:$DR22), DK$18<>""), (SUM(Plan_집계표!$DA22:$DR22) - SUM($DA26:DJ26)) / COUNT(DK$18:$DR$18), DK67 * (SUM(Plan_집계표!$DA22:$DR22) - SUM($DA26:DJ26)) / SUM(Actual_집계표!DK67:$DR67)), 0) -> 0 | DL26: =IFERROR( IF( AND( SUM(Actual_집계표!DL67:$DR67)=0, SUM($DA26:DK26)<>SUM(Plan_집계표!$DA22:$DR22), DL$18<>""), (SUM(Plan_집계표!$DA22:$DR22) - SUM($DA26:DK26)) / COUNT(DL$18:$DR$18), DL67 * (SUM(Plan_집계표!$DA22:$DR22) - SUM($DA26:DK26)) / SUM(Actual_집계표!DL67:$DR67)), 0) -> 0 | DM26: =IFERROR( IF( AND( SUM(Actual_집계표!DM67:$DR67)=0, SUM($DA26:DL26)<>SUM(Plan_집계표!$DA22:$DR22), DM$18<>""), (SUM(Plan_집계표!$DA22:$DR22) - SUM($DA26:DL26)) / COUNT(DM$18:$DR$18), DM67 * (SUM(Plan_집계표!$DA22:$DR22) - SUM($DA26:DL26)) / SUM(Actual_집계표!DM67:$DR67)), 0) -> 0 | DN26: =IFERROR( IF( AND( SUM(Actual_집계표!DN67:$DR67)=0, SUM($DA26:DM26)<>SUM(Plan_집계표!$DA22:$DR22), DN$18<>""), (SUM(Plan_집계표!$DA22:$DR22) - SUM($DA26:DM26)) / COUNT(DN$18:$DR$18), DN67 * (SUM(Plan_집계표!$DA22:$DR22) - SUM($DA26:DM26)) / SUM(Actual_집계표!DN67:$DR67)), 0) -> 0 | DO26: =IFERROR( IF( AND( SUM(Actual_집계표!DO67:$DR67)=0, SUM($DA26:DN26)<>SUM(Plan_집계표!$DA22:$DR22), DO$18<>""), (SUM(Plan_집계표!$DA22:$DR22) - SUM($DA26:DN26)) / COUNT(DO$18:$DR$18), DO67 * (SUM(Plan_집계표!$DA22:$DR22) - SUM($DA26:DN26)) / SUM(Actual_집계표!DO67:$DR67)), 0) -> 0 | DP26: =IFERROR( IF( AND( SUM(Actual_집계표!DP67:$DR67)=0, SUM($DA26:DO26)<>SUM(Plan_집계표!$DA22:$DR22), DP$18<>""), (SUM(Plan_집계표!$DA22:$DR22) - SUM($DA26:DO26)) / COUNT(DP$18:$DR$18), DP67 * (SUM(Plan_집계표!$DA22:$DR22) - SUM($DA26:DO26)) / SUM(Actual_집계표!DP67:$DR67)), 0) -> 0 | DQ26: =IFERROR( IF( AND( SUM(Actual_집계표!DQ67:$DR67)=0, SUM($DA26:DP26)<>SUM(Plan_집계표!$DA22:$DR22), DQ$18<>""), (SUM(Plan_집계표!$DA22:$DR22) - SUM($DA26:DP26)) / COUNT(DQ$18:$DR$18), DQ67 * (SUM(Plan_집계표!$DA22:$DR22) - SUM($DA26:DP26)) / SUM(Actual_집계표!DQ67:$DR67)), 0) -> 0 | DR26: =IFERROR( IF( AND( SUM(Actual_집계표!DR67:$DR67)=0, SUM($DA26:DQ26)<>SUM(Plan_집계표!$DA22:$DR22), DR$18<>""), (SUM(Plan_집계표!$DA22:$DR22) - SUM($DA26:DQ26)) / COUNT(DR$18:$DR$18), DR67 * (SUM(Plan_집계표!$DA22:$DR22) - SUM($DA26:DQ26)) / SUM(Actual_집계표!DR67:$DR67)), 0) -> 0 | DT26: 0 | DU26: 0 | DV26: 0 | DW26: 0 | DX26: 0 | DY26: 0 | DZ26: 0 | EA26: 0 | EB26: 0 | EC26: 0 | ED26: 0 | EE26: 0 | EF26: 0 | EG26: 0 | EH26: 0 | EI26: 0 | EJ26: 0 | EK26: 0 | EM26: 0 | EN26: 0 | EO26: 0 | EP26: 0 | EQ26: 0 | ER26: 0 | ES26: 0 | ET26: 0 | EU26: 0 | EV26: 0 | EW26: 0 | EX26: 0 | EY26: 0 | EZ26: 0 | FA26: 0 | FB26: 0 | FC26: 0 | FD26: 0
C27: 9 | D27: 0 | E27: 투입NO | G27: 9 | H27: =CLEAN(IFERROR(VLOOKUP(G27,'투입인력 단가'!$D$10:$Y$49,7,FALSE),"")) ->  | I27: =CLEAN(IFERROR(VLOOKUP(G27,'투입인력 단가'!$D$10:$Y$49,8,FALSE),"")) ->  | J27: =CLEAN(IFERROR(VLOOKUP(G27,'투입인력 단가'!$D$10:$Y$49,9,FALSE),"")) ->  | K27: =CLEAN(IFERROR(VLOOKUP(G27,'투입인력 단가'!$D$10:$Y$49,10,FALSE),"")) ->  | L27: =CLEAN(IFERROR(VLOOKUP(G27,'투입인력 단가'!$D$10:$Y$49,11,FALSE),"")) ->  | AW27: 0 | AX27: 0 | AY27: 0 | AZ27: =IFERROR(VLOOKUP(G27,'투입인력 단가'!$D$10:$Y$49,12,FALSE),0) -> 0 | BA27: 0 | BB27: =Plan_집계표!BB23 -> 0 | BC27: =Plan_집계표!BC23 -> 0 | BD27: =Plan_집계표!BD23 -> 0 | BE27: =Plan_집계표!BE23 -> 0 | BF27: =Plan_집계표!BF23 -> 0 | BG27: =Plan_집계표!BG23 -> 0 | BH27: =Plan_집계표!BH23 -> 0 | BI27: =Plan_집계표!BI23 -> 0 | BJ27: =Plan_집계표!BJ23 -> 0 | BK27: =Plan_집계표!BK23 -> 0 | BL27: =Plan_집계표!BL23 -> 0 | BM27: =Plan_집계표!BM23 -> 0 | BN27: =Plan_집계표!BN23 -> 0 | BO27: =Plan_집계표!BO23 -> 0 | BP27: =Plan_집계표!BP23 -> 0 | BQ27: =Plan_집계표!BQ23 -> 0 | BR27: =Plan_집계표!BR23 -> 0 | BS27: =Plan_집계표!BS23 -> 0 | BT27: =CLEAN(IFERROR(VLOOKUP(G27,'투입인력 단가'!$D$10:$Y$49,13,FALSE),"")) ->  | BU27: =CLEAN(IFERROR(VLOOKUP(G27,'투입인력 단가'!$D$10:$Y$49,14,FALSE),"")) ->  | BV27: =CLEAN(IFERROR(VLOOKUP(G27,'투입인력 단가'!$D$10:$Y$49,15,FALSE),"")) ->  | BW27: =IFERROR(VLOOKUP(G27,'투입인력 단가'!$D$10:$Y$49,16,FALSE),0) -> 0 | BX27: =IFERROR(VLOOKUP(G27,'투입인력 단가'!$D$10:$Y$49,17,FALSE),0) -> 0 | BZ27: =IF(BU27=MASTER!$D$4,AW27*BW27, IF(BV27=MASTER!$F$4,AW27*BX27,0)) -> 0 | CA27: =CLEAN(IFERROR(VLOOKUP(G27,'투입인력 단가'!$D$10:$Y$49,21,FALSE),"")) ->  | CB27: =IF(COUNTIF(CA28:CA$48,CA27)=0,SUMIF(CA$19:CA$48,CA27,BZ$19:BZ$48),"") ->  | CH27: 0 | CI27: 0 | CJ27: 0 | CK27: 0 | CL27: 0 | CM27: 0 | CN27: 0 | CO27: 0 | CP27: 0 | CQ27: 0 | CR27: 0 | CS27: 0 | CT27: 0 | CU27: 0 | CV27: 0 | CW27: 0 | CX27: 0 | CY27: 0 | DA27: =IFERROR( DA68 * SUM(Plan_집계표!$DA23:$DR23) / SUM(Actual_집계표!DA68:$DR68), 0) -> 0 | DB27: =IFERROR( IF( AND( SUM(Actual_집계표!DB68:$DR68)=0, SUM($DA27:DA27)<>SUM(Plan_집계표!$DA23:$DR23), DB$18<>""), (SUM(Plan_집계표!$DA23:$DR23) - SUM($DA27:DA27)) / COUNT(DB$18:$DR$18), DB68 * (SUM(Plan_집계표!$DA23:$DR23) - SUM($DA27:DA27)) / SUM(Actual_집계표!DB68:$DR68)), 0) -> 0 | DC27: =IFERROR( IF( AND( SUM(Actual_집계표!DC68:$DR68)=0, SUM($DA27:DB27)<>SUM(Plan_집계표!$DA23:$DR23), DC$18<>""), (SUM(Plan_집계표!$DA23:$DR23) - SUM($DA27:DB27)) / COUNT(DC$18:$DR$18), DC68 * (SUM(Plan_집계표!$DA23:$DR23) - SUM($DA27:DB27)) / SUM(Actual_집계표!DC68:$DR68)), 0) -> 0 | DD27: =IFERROR( IF( AND( SUM(Actual_집계표!DD68:$DR68)=0, SUM($DA27:DC27)<>SUM(Plan_집계표!$DA23:$DR23), DD$18<>""), (SUM(Plan_집계표!$DA23:$DR23) - SUM($DA27:DC27)) / COUNT(DD$18:$DR$18), DD68 * (SUM(Plan_집계표!$DA23:$DR23) - SUM($DA27:DC27)) / SUM(Actual_집계표!DD68:$DR68)), 0) -> 0 | DE27: =IFERROR( IF( AND( SUM(Actual_집계표!DE68:$DR68)=0, SUM($DA27:DD27)<>SUM(Plan_집계표!$DA23:$DR23), DE$18<>""), (SUM(Plan_집계표!$DA23:$DR23) - SUM($DA27:DD27)) / COUNT(DE$18:$DR$18), DE68 * (SUM(Plan_집계표!$DA23:$DR23) - SUM($DA27:DD27)) / SUM(Actual_집계표!DE68:$DR68)), 0) -> 0 | DF27: =IFERROR( IF( AND( SUM(Actual_집계표!DF68:$DR68)=0, SUM($DA27:DE27)<>SUM(Plan_집계표!$DA23:$DR23), DF$18<>""), (SUM(Plan_집계표!$DA23:$DR23) - SUM($DA27:DE27)) / COUNT(DF$18:$DR$18), DF68 * (SUM(Plan_집계표!$DA23:$DR23) - SUM($DA27:DE27)) / SUM(Actual_집계표!DF68:$DR68)), 0) -> 0 | DG27: =IFERROR( IF( AND( SUM(Actual_집계표!DG68:$DR68)=0, SUM($DA27:DF27)<>SUM(Plan_집계표!$DA23:$DR23), DG$18<>""), (SUM(Plan_집계표!$DA23:$DR23) - SUM($DA27:DF27)) / COUNT(DG$18:$DR$18), DG68 * (SUM(Plan_집계표!$DA23:$DR23) - SUM($DA27:DF27)) / SUM(Actual_집계표!DG68:$DR68)), 0) -> 0 | DH27: =IFERROR( IF( AND( SUM(Actual_집계표!DH68:$DR68)=0, SUM($DA27:DG27)<>SUM(Plan_집계표!$DA23:$DR23), DH$18<>""), (SUM(Plan_집계표!$DA23:$DR23) - SUM($DA27:DG27)) / COUNT(DH$18:$DR$18), DH68 * (SUM(Plan_집계표!$DA23:$DR23) - SUM($DA27:DG27)) / SUM(Actual_집계표!DH68:$DR68)), 0) -> 0 | DI27: =IFERROR( IF( AND( SUM(Actual_집계표!DI68:$DR68)=0, SUM($DA27:DH27)<>SUM(Plan_집계표!$DA23:$DR23), DI$18<>""), (SUM(Plan_집계표!$DA23:$DR23) - SUM($DA27:DH27)) / COUNT(DI$18:$DR$18), DI68 * (SUM(Plan_집계표!$DA23:$DR23) - SUM($DA27:DH27)) / SUM(Actual_집계표!DI68:$DR68)), 0) -> 0 | DJ27: =IFERROR( IF( AND( SUM(Actual_집계표!DJ68:$DR68)=0, SUM($DA27:DI27)<>SUM(Plan_집계표!$DA23:$DR23), DJ$18<>""), (SUM(Plan_집계표!$DA23:$DR23) - SUM($DA27:DI27)) / COUNT(DJ$18:$DR$18), DJ68 * (SUM(Plan_집계표!$DA23:$DR23) - SUM($DA27:DI27)) / SUM(Actual_집계표!DJ68:$DR68)), 0) -> 0 | DK27: =IFERROR( IF( AND( SUM(Actual_집계표!DK68:$DR68)=0, SUM($DA27:DJ27)<>SUM(Plan_집계표!$DA23:$DR23), DK$18<>""), (SUM(Plan_집계표!$DA23:$DR23) - SUM($DA27:DJ27)) / COUNT(DK$18:$DR$18), DK68 * (SUM(Plan_집계표!$DA23:$DR23) - SUM($DA27:DJ27)) / SUM(Actual_집계표!DK68:$DR68)), 0) -> 0 | DL27: =IFERROR( IF( AND( SUM(Actual_집계표!DL68:$DR68)=0, SUM($DA27:DK27)<>SUM(Plan_집계표!$DA23:$DR23), DL$18<>""), (SUM(Plan_집계표!$DA23:$DR23) - SUM($DA27:DK27)) / COUNT(DL$18:$DR$18), DL68 * (SUM(Plan_집계표!$DA23:$DR23) - SUM($DA27:DK27)) / SUM(Actual_집계표!DL68:$DR68)), 0) -> 0 | DM27: =IFERROR( IF( AND( SUM(Actual_집계표!DM68:$DR68)=0, SUM($DA27:DL27)<>SUM(Plan_집계표!$DA23:$DR23), DM$18<>""), (SUM(Plan_집계표!$DA23:$DR23) - SUM($DA27:DL27)) / COUNT(DM$18:$DR$18), DM68 * (SUM(Plan_집계표!$DA23:$DR23) - SUM($DA27:DL27)) / SUM(Actual_집계표!DM68:$DR68)), 0) -> 0 | DN27: =IFERROR( IF( AND( SUM(Actual_집계표!DN68:$DR68)=0, SUM($DA27:DM27)<>SUM(Plan_집계표!$DA23:$DR23), DN$18<>""), (SUM(Plan_집계표!$DA23:$DR23) - SUM($DA27:DM27)) / COUNT(DN$18:$DR$18), DN68 * (SUM(Plan_집계표!$DA23:$DR23) - SUM($DA27:DM27)) / SUM(Actual_집계표!DN68:$DR68)), 0) -> 0 | DO27: =IFERROR( IF( AND( SUM(Actual_집계표!DO68:$DR68)=0, SUM($DA27:DN27)<>SUM(Plan_집계표!$DA23:$DR23), DO$18<>""), (SUM(Plan_집계표!$DA23:$DR23) - SUM($DA27:DN27)) / COUNT(DO$18:$DR$18), DO68 * (SUM(Plan_집계표!$DA23:$DR23) - SUM($DA27:DN27)) / SUM(Actual_집계표!DO68:$DR68)), 0) -> 0 | DP27: =IFERROR( IF( AND( SUM(Actual_집계표!DP68:$DR68)=0, SUM($DA27:DO27)<>SUM(Plan_집계표!$DA23:$DR23), DP$18<>""), (SUM(Plan_집계표!$DA23:$DR23) - SUM($DA27:DO27)) / COUNT(DP$18:$DR$18), DP68 * (SUM(Plan_집계표!$DA23:$DR23) - SUM($DA27:DO27)) / SUM(Actual_집계표!DP68:$DR68)), 0) -> 0 | DQ27: =IFERROR( IF( AND( SUM(Actual_집계표!DQ68:$DR68)=0, SUM($DA27:DP27)<>SUM(Plan_집계표!$DA23:$DR23), DQ$18<>""), (SUM(Plan_집계표!$DA23:$DR23) - SUM($DA27:DP27)) / COUNT(DQ$18:$DR$18), DQ68 * (SUM(Plan_집계표!$DA23:$DR23) - SUM($DA27:DP27)) / SUM(Actual_집계표!DQ68:$DR68)), 0) -> 0 | DR27: =IFERROR( IF( AND( SUM(Actual_집계표!DR68:$DR68)=0, SUM($DA27:DQ27)<>SUM(Plan_집계표!$DA23:$DR23), DR$18<>""), (SUM(Plan_집계표!$DA23:$DR23) - SUM($DA27:DQ27)) / COUNT(DR$18:$DR$18), DR68 * (SUM(Plan_집계표!$DA23:$DR23) - SUM($DA27:DQ27)) / SUM(Actual_집계표!DR68:$DR68)), 0) -> 0 | DT27: 0 | DU27: 0 | DV27: 0 | DW27: 0 | DX27: 0 | DY27: 0 | DZ27: 0 | EA27: 0 | EB27: 0 | EC27: 0 | ED27: 0 | EE27: 0 | EF27: 0 | EG27: 0 | EH27: 0 | EI27: 0 | EJ27: 0 | EK27: 0 | EM27: 0 | EN27: 0 | EO27: 0 | EP27: 0 | EQ27: 0 | ER27: 0 | ES27: 0 | ET27: 0 | EU27: 0 | EV27: 0 | EW27: 0 | EX27: 0 | EY27: 0 | EZ27: 0 | FA27: 0 | FB27: 0 | FC27: 0 | FD27: 0
C28: 10 | D28: 0 | E28: 투입NO | G28: 10 | H28: =CLEAN(IFERROR(VLOOKUP(G28,'투입인력 단가'!$D$10:$Y$49,7,FALSE),"")) ->  | I28: =CLEAN(IFERROR(VLOOKUP(G28,'투입인력 단가'!$D$10:$Y$49,8,FALSE),"")) ->  | J28: =CLEAN(IFERROR(VLOOKUP(G28,'투입인력 단가'!$D$10:$Y$49,9,FALSE),"")) ->  | K28: =CLEAN(IFERROR(VLOOKUP(G28,'투입인력 단가'!$D$10:$Y$49,10,FALSE),"")) ->  | L28: =CLEAN(IFERROR(VLOOKUP(G28,'투입인력 단가'!$D$10:$Y$49,11,FALSE),"")) ->  | AW28: 0 | AX28: 0 | AY28: 0 | AZ28: =IFERROR(VLOOKUP(G28,'투입인력 단가'!$D$10:$Y$49,12,FALSE),0) -> 0 | BA28: 0 | BB28: =Plan_집계표!BB24 -> 0 | BC28: =Plan_집계표!BC24 -> 0 | BD28: =Plan_집계표!BD24 -> 0 | BE28: =Plan_집계표!BE24 -> 0 | BF28: =Plan_집계표!BF24 -> 0 | BG28: =Plan_집계표!BG24 -> 0 | BH28: =Plan_집계표!BH24 -> 0 | BI28: =Plan_집계표!BI24 -> 0 | BJ28: =Plan_집계표!BJ24 -> 0 | BK28: =Plan_집계표!BK24 -> 0 | BL28: =Plan_집계표!BL24 -> 0 | BM28: =Plan_집계표!BM24 -> 0 | BN28: =Plan_집계표!BN24 -> 0 | BO28: =Plan_집계표!BO24 -> 0 | BP28: =Plan_집계표!BP24 -> 0 | BQ28: =Plan_집계표!BQ24 -> 0 | BR28: =Plan_집계표!BR24 -> 0 | BS28: =Plan_집계표!BS24 -> 0 | BT28: =CLEAN(IFERROR(VLOOKUP(G28,'투입인력 단가'!$D$10:$Y$49,13,FALSE),"")) ->  | BU28: =CLEAN(IFERROR(VLOOKUP(G28,'투입인력 단가'!$D$10:$Y$49,14,FALSE),"")) ->  | BV28: =CLEAN(IFERROR(VLOOKUP(G28,'투입인력 단가'!$D$10:$Y$49,15,FALSE),"")) ->  | BW28: =IFERROR(VLOOKUP(G28,'투입인력 단가'!$D$10:$Y$49,16,FALSE),0) -> 0 | BX28: =IFERROR(VLOOKUP(G28,'투입인력 단가'!$D$10:$Y$49,17,FALSE),0) -> 0 | BZ28: =IF(BU28=MASTER!$D$4,AW28*BW28, IF(BV28=MASTER!$F$4,AW28*BX28,0)) -> 0 | CA28: =CLEAN(IFERROR(VLOOKUP(G28,'투입인력 단가'!$D$10:$Y$49,21,FALSE),"")) ->  | CB28: =IF(COUNTIF(CA29:CA$48,CA28)=0,SUMIF(CA$19:CA$48,CA28,BZ$19:BZ$48),"") ->  | CH28: 0 | CI28: 0 | CJ28: 0 | CK28: 0 | CL28: 0 | CM28: 0 | CN28: 0 | CO28: 0 | CP28: 0 | CQ28: 0 | CR28: 0 | CS28: 0 | CT28: 0 | CU28: 0 | CV28: 0 | CW28: 0 | CX28: 0 | CY28: 0 | DA28: =IFERROR( DA69 * SUM(Plan_집계표!$DA24:$DR24) / SUM(Actual_집계표!DA69:$DR69), 0) -> 0 | DB28: =IFERROR( IF( AND( SUM(Actual_집계표!DB69:$DR69)=0, SUM($DA28:DA28)<>SUM(Plan_집계표!$DA24:$DR24), DB$18<>""), (SUM(Plan_집계표!$DA24:$DR24) - SUM($DA28:DA28)) / COUNT(DB$18:$DR$18), DB69 * (SUM(Plan_집계표!$DA24:$DR24) - SUM($DA28:DA28)) / SUM(Actual_집계표!DB69:$DR69)), 0) -> 0 | DC28: =IFERROR( IF( AND( SUM(Actual_집계표!DC69:$DR69)=0, SUM($DA28:DB28)<>SUM(Plan_집계표!$DA24:$DR24), DC$18<>""), (SUM(Plan_집계표!$DA24:$DR24) - SUM($DA28:DB28)) / COUNT(DC$18:$DR$18), DC69 * (SUM(Plan_집계표!$DA24:$DR24) - SUM($DA28:DB28)) / SUM(Actual_집계표!DC69:$DR69)), 0) -> 0 | DD28: =IFERROR( IF( AND( SUM(Actual_집계표!DD69:$DR69)=0, SUM($DA28:DC28)<>SUM(Plan_집계표!$DA24:$DR24), DD$18<>""), (SUM(Plan_집계표!$DA24:$DR24) - SUM($DA28:DC28)) / COUNT(DD$18:$DR$18), DD69 * (SUM(Plan_집계표!$DA24:$DR24) - SUM($DA28:DC28)) / SUM(Actual_집계표!DD69:$DR69)), 0) -> 0 | DE28: =IFERROR( IF( AND( SUM(Actual_집계표!DE69:$DR69)=0, SUM($DA28:DD28)<>SUM(Plan_집계표!$DA24:$DR24), DE$18<>""), (SUM(Plan_집계표!$DA24:$DR24) - SUM($DA28:DD28)) / COUNT(DE$18:$DR$18), DE69 * (SUM(Plan_집계표!$DA24:$DR24) - SUM($DA28:DD28)) / SUM(Actual_집계표!DE69:$DR69)), 0) -> 0 | DF28: =IFERROR( IF( AND( SUM(Actual_집계표!DF69:$DR69)=0, SUM($DA28:DE28)<>SUM(Plan_집계표!$DA24:$DR24), DF$18<>""), (SUM(Plan_집계표!$DA24:$DR24) - SUM($DA28:DE28)) / COUNT(DF$18:$DR$18), DF69 * (SUM(Plan_집계표!$DA24:$DR24) - SUM($DA28:DE28)) / SUM(Actual_집계표!DF69:$DR69)), 0) -> 0 | DG28: =IFERROR( IF( AND( SUM(Actual_집계표!DG69:$DR69)=0, SUM($DA28:DF28)<>SUM(Plan_집계표!$DA24:$DR24), DG$18<>""), (SUM(Plan_집계표!$DA24:$DR24) - SUM($DA28:DF28)) / COUNT(DG$18:$DR$18), DG69 * (SUM(Plan_집계표!$DA24:$DR24) - SUM($DA28:DF28)) / SUM(Actual_집계표!DG69:$DR69)), 0) -> 0 | DH28: =IFERROR( IF( AND( SUM(Actual_집계표!DH69:$DR69)=0, SUM($DA28:DG28)<>SUM(Plan_집계표!$DA24:$DR24), DH$18<>""), (SUM(Plan_집계표!$DA24:$DR24) - SUM($DA28:DG28)) / COUNT(DH$18:$DR$18), DH69 * (SUM(Plan_집계표!$DA24:$DR24) - SUM($DA28:DG28)) / SUM(Actual_집계표!DH69:$DR69)), 0) -> 0 | DI28: =IFERROR( IF( AND( SUM(Actual_집계표!DI69:$DR69)=0, SUM($DA28:DH28)<>SUM(Plan_집계표!$DA24:$DR24), DI$18<>""), (SUM(Plan_집계표!$DA24:$DR24) - SUM($DA28:DH28)) / COUNT(DI$18:$DR$18), DI69 * (SUM(Plan_집계표!$DA24:$DR24) - SUM($DA28:DH28)) / SUM(Actual_집계표!DI69:$DR69)), 0) -> 0 | DJ28: =IFERROR( IF( AND( SUM(Actual_집계표!DJ69:$DR69)=0, SUM($DA28:DI28)<>SUM(Plan_집계표!$DA24:$DR24), DJ$18<>""), (SUM(Plan_집계표!$DA24:$DR24) - SUM($DA28:DI28)) / COUNT(DJ$18:$DR$18), DJ69 * (SUM(Plan_집계표!$DA24:$DR24) - SUM($DA28:DI28)) / SUM(Actual_집계표!DJ69:$DR69)), 0) -> 0 | DK28: =IFERROR( IF( AND( SUM(Actual_집계표!DK69:$DR69)=0, SUM($DA28:DJ28)<>SUM(Plan_집계표!$DA24:$DR24), DK$18<>""), (SUM(Plan_집계표!$DA24:$DR24) - SUM($DA28:DJ28)) / COUNT(DK$18:$DR$18), DK69 * (SUM(Plan_집계표!$DA24:$DR24) - SUM($DA28:DJ28)) / SUM(Actual_집계표!DK69:$DR69)), 0) -> 0 | DL28: =IFERROR( IF( AND( SUM(Actual_집계표!DL69:$DR69)=0, SUM($DA28:DK28)<>SUM(Plan_집계표!$DA24:$DR24), DL$18<>""), (SUM(Plan_집계표!$DA24:$DR24) - SUM($DA28:DK28)) / COUNT(DL$18:$DR$18), DL69 * (SUM(Plan_집계표!$DA24:$DR24) - SUM($DA28:DK28)) / SUM(Actual_집계표!DL69:$DR69)), 0) -> 0 | DM28: =IFERROR( IF( AND( SUM(Actual_집계표!DM69:$DR69)=0, SUM($DA28:DL28)<>SUM(Plan_집계표!$DA24:$DR24), DM$18<>""), (SUM(Plan_집계표!$DA24:$DR24) - SUM($DA28:DL28)) / COUNT(DM$18:$DR$18), DM69 * (SUM(Plan_집계표!$DA24:$DR24) - SUM($DA28:DL28)) / SUM(Actual_집계표!DM69:$DR69)), 0) -> 0 | DN28: =IFERROR( IF( AND( SUM(Actual_집계표!DN69:$DR69)=0, SUM($DA28:DM28)<>SUM(Plan_집계표!$DA24:$DR24), DN$18<>""), (SUM(Plan_집계표!$DA24:$DR24) - SUM($DA28:DM28)) / COUNT(DN$18:$DR$18), DN69 * (SUM(Plan_집계표!$DA24:$DR24) - SUM($DA28:DM28)) / SUM(Actual_집계표!DN69:$DR69)), 0) -> 0 | DO28: =IFERROR( IF( AND( SUM(Actual_집계표!DO69:$DR69)=0, SUM($DA28:DN28)<>SUM(Plan_집계표!$DA24:$DR24), DO$18<>""), (SUM(Plan_집계표!$DA24:$DR24) - SUM($DA28:DN28)) / COUNT(DO$18:$DR$18), DO69 * (SUM(Plan_집계표!$DA24:$DR24) - SUM($DA28:DN28)) / SUM(Actual_집계표!DO69:$DR69)), 0) -> 0 | DP28: =IFERROR( IF( AND( SUM(Actual_집계표!DP69:$DR69)=0, SUM($DA28:DO28)<>SUM(Plan_집계표!$DA24:$DR24), DP$18<>""), (SUM(Plan_집계표!$DA24:$DR24) - SUM($DA28:DO28)) / COUNT(DP$18:$DR$18), DP69 * (SUM(Plan_집계표!$DA24:$DR24) - SUM($DA28:DO28)) / SUM(Actual_집계표!DP69:$DR69)), 0) -> 0 | DQ28: =IFERROR( IF( AND( SUM(Actual_집계표!DQ69:$DR69)=0, SUM($DA28:DP28)<>SUM(Plan_집계표!$DA24:$DR24), DQ$18<>""), (SUM(Plan_집계표!$DA24:$DR24) - SUM($DA28:DP28)) / COUNT(DQ$18:$DR$18), DQ69 * (SUM(Plan_집계표!$DA24:$DR24) - SUM($DA28:DP28)) / SUM(Actual_집계표!DQ69:$DR69)), 0) -> 0 | DR28: =IFERROR( IF( AND( SUM(Actual_집계표!DR69:$DR69)=0, SUM($DA28:DQ28)<>SUM(Plan_집계표!$DA24:$DR24), DR$18<>""), (SUM(Plan_집계표!$DA24:$DR24) - SUM($DA28:DQ28)) / COUNT(DR$18:$DR$18), DR69 * (SUM(Plan_집계표!$DA24:$DR24) - SUM($DA28:DQ28)) / SUM(Actual_집계표!DR69:$DR69)), 0) -> 0 | DT28: 0 | DU28: 0 | DV28: 0 | DW28: 0 | DX28: 0 | DY28: 0 | DZ28: 0 | EA28: 0 | EB28: 0 | EC28: 0 | ED28: 0 | EE28: 0 | EF28: 0 | EG28: 0 | EH28: 0 | EI28: 0 | EJ28: 0 | EK28: 0 | EM28: 0 | EN28: 0 | EO28: 0 | EP28: 0 | EQ28: 0 | ER28: 0 | ES28: 0 | ET28: 0 | EU28: 0 | EV28: 0 | EW28: 0 | EX28: 0 | EY28: 0 | EZ28: 0 | FA28: 0 | FB28: 0 | FC28: 0 | FD28: 0
C29: 11 | D29: 0 | E29: 투입NO | G29: 11 | H29: =CLEAN(IFERROR(VLOOKUP(G29,'투입인력 단가'!$D$10:$Y$49,7,FALSE),"")) ->  | I29: =CLEAN(IFERROR(VLOOKUP(G29,'투입인력 단가'!$D$10:$Y$49,8,FALSE),"")) ->  | J29: =CLEAN(IFERROR(VLOOKUP(G29,'투입인력 단가'!$D$10:$Y$49,9,FALSE),"")) ->  | K29: =CLEAN(IFERROR(VLOOKUP(G29,'투입인력 단가'!$D$10:$Y$49,10,FALSE),"")) ->  | L29: =CLEAN(IFERROR(VLOOKUP(G29,'투입인력 단가'!$D$10:$Y$49,11,FALSE),"")) ->  | AW29: 0 | AX29: 0 | AY29: 0 | AZ29: =IFERROR(VLOOKUP(G29,'투입인력 단가'!$D$10:$Y$49,12,FALSE),0) -> 0 | BA29: 0 | BB29: =Plan_집계표!BB25 -> 0 | BC29: =Plan_집계표!BC25 -> 0 | BD29: =Plan_집계표!BD25 -> 0 | BE29: =Plan_집계표!BE25 -> 0 | BF29: =Plan_집계표!BF25 -> 0 | BG29: =Plan_집계표!BG25 -> 0 | BH29: =Plan_집계표!BH25 -> 0 | BI29: =Plan_집계표!BI25 -> 0 | BJ29: =Plan_집계표!BJ25 -> 0 | BK29: =Plan_집계표!BK25 -> 0 | BL29: =Plan_집계표!BL25 -> 0 | BM29: =Plan_집계표!BM25 -> 0 | BN29: =Plan_집계표!BN25 -> 0 | BO29: =Plan_집계표!BO25 -> 0 | BP29: =Plan_집계표!BP25 -> 0 | BQ29: =Plan_집계표!BQ25 -> 0 | BR29: =Plan_집계표!BR25 -> 0 | BS29: =Plan_집계표!BS25 -> 0 | BT29: =CLEAN(IFERROR(VLOOKUP(G29,'투입인력 단가'!$D$10:$Y$49,13,FALSE),"")) ->  | BU29: =CLEAN(IFERROR(VLOOKUP(G29,'투입인력 단가'!$D$10:$Y$49,14,FALSE),"")) ->  | BV29: =CLEAN(IFERROR(VLOOKUP(G29,'투입인력 단가'!$D$10:$Y$49,15,FALSE),"")) ->  | BW29: =IFERROR(VLOOKUP(G29,'투입인력 단가'!$D$10:$Y$49,16,FALSE),0) -> 0 | BX29: =IFERROR(VLOOKUP(G29,'투입인력 단가'!$D$10:$Y$49,17,FALSE),0) -> 0 | BZ29: =IF(BU29=MASTER!$D$4,AW29*BW29, IF(BV29=MASTER!$F$4,AW29*BX29,0)) -> 0 | CA29: =CLEAN(IFERROR(VLOOKUP(G29,'투입인력 단가'!$D$10:$Y$49,21,FALSE),"")) ->  | CB29: =IF(COUNTIF(CA30:CA$48,CA29)=0,SUMIF(CA$19:CA$48,CA29,BZ$19:BZ$48),"") ->  | CH29: 0 | CI29: 0 | CJ29: 0 | CK29: 0 | CL29: 0 | CM29: 0 | CN29: 0 | CO29: 0 | CP29: 0 | CQ29: 0 | CR29: 0 | CS29: 0 | CT29: 0 | CU29: 0 | CV29: 0 | CW29: 0 | CX29: 0 | CY29: 0 | DA29: =IFERROR( DA70 * SUM(Plan_집계표!$DA25:$DR25) / SUM(Actual_집계표!DA70:$DR70), 0) -> 0 | DB29: =IFERROR( IF( AND( SUM(Actual_집계표!DB70:$DR70)=0, SUM($DA29:DA29)<>SUM(Plan_집계표!$DA25:$DR25), DB$18<>""), (SUM(Plan_집계표!$DA25:$DR25) - SUM($DA29:DA29)) / COUNT(DB$18:$DR$18), DB70 * (SUM(Plan_집계표!$DA25:$DR25) - SUM($DA29:DA29)) / SUM(Actual_집계표!DB70:$DR70)), 0) -> 0 | DC29: =IFERROR( IF( AND( SUM(Actual_집계표!DC70:$DR70)=0, SUM($DA29:DB29)<>SUM(Plan_집계표!$DA25:$DR25), DC$18<>""), (SUM(Plan_집계표!$DA25:$DR25) - SUM($DA29:DB29)) / COUNT(DC$18:$DR$18), DC70 * (SUM(Plan_집계표!$DA25:$DR25) - SUM($DA29:DB29)) / SUM(Actual_집계표!DC70:$DR70)), 0) -> 0 | DD29: =IFERROR( IF( AND( SUM(Actual_집계표!DD70:$DR70)=0, SUM($DA29:DC29)<>SUM(Plan_집계표!$DA25:$DR25), DD$18<>""), (SUM(Plan_집계표!$DA25:$DR25) - SUM($DA29:DC29)) / COUNT(DD$18:$DR$18), DD70 * (SUM(Plan_집계표!$DA25:$DR25) - SUM($DA29:DC29)) / SUM(Actual_집계표!DD70:$DR70)), 0) -> 0 | DE29: =IFERROR( IF( AND( SUM(Actual_집계표!DE70:$DR70)=0, SUM($DA29:DD29)<>SUM(Plan_집계표!$DA25:$DR25), DE$18<>""), (SUM(Plan_집계표!$DA25:$DR25) - SUM($DA29:DD29)) / COUNT(DE$18:$DR$18), DE70 * (SUM(Plan_집계표!$DA25:$DR25) - SUM($DA29:DD29)) / SUM(Actual_집계표!DE70:$DR70)), 0) -> 0 | DF29: =IFERROR( IF( AND( SUM(Actual_집계표!DF70:$DR70)=0, SUM($DA29:DE29)<>SUM(Plan_집계표!$DA25:$DR25), DF$18<>""), (SUM(Plan_집계표!$DA25:$DR25) - SUM($DA29:DE29)) / COUNT(DF$18:$DR$18), DF70 * (SUM(Plan_집계표!$DA25:$DR25) - SUM($DA29:DE29)) / SUM(Actual_집계표!DF70:$DR70)), 0) -> 0 | DG29: =IFERROR( IF( AND( SUM(Actual_집계표!DG70:$DR70)=0, SUM($DA29:DF29)<>SUM(Plan_집계표!$DA25:$DR25), DG$18<>""), (SUM(Plan_집계표!$DA25:$DR25) - SUM($DA29:DF29)) / COUNT(DG$18:$DR$18), DG70 * (SUM(Plan_집계표!$DA25:$DR25) - SUM($DA29:DF29)) / SUM(Actual_집계표!DG70:$DR70)), 0) -> 0 | DH29: =IFERROR( IF( AND( SUM(Actual_집계표!DH70:$DR70)=0, SUM($DA29:DG29)<>SUM(Plan_집계표!$DA25:$DR25), DH$18<>""), (SUM(Plan_집계표!$DA25:$DR25) - SUM($DA29:DG29)) / COUNT(DH$18:$DR$18), DH70 * (SUM(Plan_집계표!$DA25:$DR25) - SUM($DA29:DG29)) / SUM(Actual_집계표!DH70:$DR70)), 0) -> 0 | DI29: =IFERROR( IF( AND( SUM(Actual_집계표!DI70:$DR70)=0, SUM($DA29:DH29)<>SUM(Plan_집계표!$DA25:$DR25), DI$18<>""), (SUM(Plan_집계표!$DA25:$DR25) - SUM($DA29:DH29)) / COUNT(DI$18:$DR$18), DI70 * (SUM(Plan_집계표!$DA25:$DR25) - SUM($DA29:DH29)) / SUM(Actual_집계표!DI70:$DR70)), 0) -> 0 | DJ29: =IFERROR( IF( AND( SUM(Actual_집계표!DJ70:$DR70)=0, SUM($DA29:DI29)<>SUM(Plan_집계표!$DA25:$DR25), DJ$18<>""), (SUM(Plan_집계표!$DA25:$DR25) - SUM($DA29:DI29)) / COUNT(DJ$18:$DR$18), DJ70 * (SUM(Plan_집계표!$DA25:$DR25) - SUM($DA29:DI29)) / SUM(Actual_집계표!DJ70:$DR70)), 0) -> 0 | DK29: =IFERROR( IF( AND( SUM(Actual_집계표!DK70:$DR70)=0, SUM($DA29:DJ29)<>SUM(Plan_집계표!$DA25:$DR25), DK$18<>""), (SUM(Plan_집계표!$DA25:$DR25) - SUM($DA29:DJ29)) / COUNT(DK$18:$DR$18), DK70 * (SUM(Plan_집계표!$DA25:$DR25) - SUM($DA29:DJ29)) / SUM(Actual_집계표!DK70:$DR70)), 0) -> 0 | DL29: =IFERROR( IF( AND( SUM(Actual_집계표!DL70:$DR70)=0, SUM($DA29:DK29)<>SUM(Plan_집계표!$DA25:$DR25), DL$18<>""), (SUM(Plan_집계표!$DA25:$DR25) - SUM($DA29:DK29)) / COUNT(DL$18:$DR$18), DL70 * (SUM(Plan_집계표!$DA25:$DR25) - SUM($DA29:DK29)) / SUM(Actual_집계표!DL70:$DR70)), 0) -> 0 | DM29: =IFERROR( IF( AND( SUM(Actual_집계표!DM70:$DR70)=0, SUM($DA29:DL29)<>SUM(Plan_집계표!$DA25:$DR25), DM$18<>""), (SUM(Plan_집계표!$DA25:$DR25) - SUM($DA29:DL29)) / COUNT(DM$18:$DR$18), DM70 * (SUM(Plan_집계표!$DA25:$DR25) - SUM($DA29:DL29)) / SUM(Actual_집계표!DM70:$DR70)), 0) -> 0 | DN29: =IFERROR( IF( AND( SUM(Actual_집계표!DN70:$DR70)=0, SUM($DA29:DM29)<>SUM(Plan_집계표!$DA25:$DR25), DN$18<>""), (SUM(Plan_집계표!$DA25:$DR25) - SUM($DA29:DM29)) / COUNT(DN$18:$DR$18), DN70 * (SUM(Plan_집계표!$DA25:$DR25) - SUM($DA29:DM29)) / SUM(Actual_집계표!DN70:$DR70)), 0) -> 0 | DO29: =IFERROR( IF( AND( SUM(Actual_집계표!DO70:$DR70)=0, SUM($DA29:DN29)<>SUM(Plan_집계표!$DA25:$DR25), DO$18<>""), (SUM(Plan_집계표!$DA25:$DR25) - SUM($DA29:DN29)) / COUNT(DO$18:$DR$18), DO70 * (SUM(Plan_집계표!$DA25:$DR25) - SUM($DA29:DN29)) / SUM(Actual_집계표!DO70:$DR70)), 0) -> 0 | DP29: =IFERROR( IF( AND( SUM(Actual_집계표!DP70:$DR70)=0, SUM($DA29:DO29)<>SUM(Plan_집계표!$DA25:$DR25), DP$18<>""), (SUM(Plan_집계표!$DA25:$DR25) - SUM($DA29:DO29)) / COUNT(DP$18:$DR$18), DP70 * (SUM(Plan_집계표!$DA25:$DR25) - SUM($DA29:DO29)) / SUM(Actual_집계표!DP70:$DR70)), 0) -> 0 | DQ29: =IFERROR( IF( AND( SUM(Actual_집계표!DQ70:$DR70)=0, SUM($DA29:DP29)<>SUM(Plan_집계표!$DA25:$DR25), DQ$18<>""), (SUM(Plan_집계표!$DA25:$DR25) - SUM($DA29:DP29)) / COUNT(DQ$18:$DR$18), DQ70 * (SUM(Plan_집계표!$DA25:$DR25) - SUM($DA29:DP29)) / SUM(Actual_집계표!DQ70:$DR70)), 0) -> 0 | DR29: =IFERROR( IF( AND( SUM(Actual_집계표!DR70:$DR70)=0, SUM($DA29:DQ29)<>SUM(Plan_집계표!$DA25:$DR25), DR$18<>""), (SUM(Plan_집계표!$DA25:$DR25) - SUM($DA29:DQ29)) / COUNT(DR$18:$DR$18), DR70 * (SUM(Plan_집계표!$DA25:$DR25) - SUM($DA29:DQ29)) / SUM(Actual_집계표!DR70:$DR70)), 0) -> 0 | DT29: 0 | DU29: 0 | DV29: 0 | DW29: 0 | DX29: 0 | DY29: 0 | DZ29: 0 | EA29: 0 | EB29: 0 | EC29: 0 | ED29: 0 | EE29: 0 | EF29: 0 | EG29: 0 | EH29: 0 | EI29: 0 | EJ29: 0 | EK29: 0 | EM29: 0 | EN29: 0 | EO29: 0 | EP29: 0 | EQ29: 0 | ER29: 0 | ES29: 0 | ET29: 0 | EU29: 0 | EV29: 0 | EW29: 0 | EX29: 0 | EY29: 0 | EZ29: 0 | FA29: 0 | FB29: 0 | FC29: 0 | FD29: 0
C30: 12 | D30: 0 | E30: 투입NO | G30: 12 | H30: =CLEAN(IFERROR(VLOOKUP(G30,'투입인력 단가'!$D$10:$Y$49,7,FALSE),"")) ->  | I30: =CLEAN(IFERROR(VLOOKUP(G30,'투입인력 단가'!$D$10:$Y$49,8,FALSE),"")) ->  | J30: =CLEAN(IFERROR(VLOOKUP(G30,'투입인력 단가'!$D$10:$Y$49,9,FALSE),"")) ->  | K30: =CLEAN(IFERROR(VLOOKUP(G30,'투입인력 단가'!$D$10:$Y$49,10,FALSE),"")) ->  | L30: =CLEAN(IFERROR(VLOOKUP(G30,'투입인력 단가'!$D$10:$Y$49,11,FALSE),"")) ->  | AW30: 0 | AX30: 0 | AY30: 0 | AZ30: =IFERROR(VLOOKUP(G30,'투입인력 단가'!$D$10:$Y$49,12,FALSE),0) -> 0 | BA30: 0 | BB30: =Plan_집계표!BB26 -> 0 | BC30: =Plan_집계표!BC26 -> 0 | BD30: =Plan_집계표!BD26 -> 0 | BE30: =Plan_집계표!BE26 -> 0 | BF30: =Plan_집계표!BF26 -> 0 | BG30: =Plan_집계표!BG26 -> 0 | BH30: =Plan_집계표!BH26 -> 0 | BI30: =Plan_집계표!BI26 -> 0 | BJ30: =Plan_집계표!BJ26 -> 0 | BK30: =Plan_집계표!BK26 -> 0 | BL30: =Plan_집계표!BL26 -> 0 | BM30: =Plan_집계표!BM26 -> 0 | BN30: =Plan_집계표!BN26 -> 0 | BO30: =Plan_집계표!BO26 -> 0 | BP30: =Plan_집계표!BP26 -> 0 | BQ30: =Plan_집계표!BQ26 -> 0 | BR30: =Plan_집계표!BR26 -> 0 | BS30: =Plan_집계표!BS26 -> 0 | BT30: =CLEAN(IFERROR(VLOOKUP(G30,'투입인력 단가'!$D$10:$Y$49,13,FALSE),"")) ->  | BU30: =CLEAN(IFERROR(VLOOKUP(G30,'투입인력 단가'!$D$10:$Y$49,14,FALSE),"")) ->  | BV30: =CLEAN(IFERROR(VLOOKUP(G30,'투입인력 단가'!$D$10:$Y$49,15,FALSE),"")) ->  | BW30: =IFERROR(VLOOKUP(G30,'투입인력 단가'!$D$10:$Y$49,16,FALSE),0) -> 0 | BX30: =IFERROR(VLOOKUP(G30,'투입인력 단가'!$D$10:$Y$49,17,FALSE),0) -> 0 | BZ30: =IF(BU30=MASTER!$D$4,AW30*BW30, IF(BV30=MASTER!$F$4,AW30*BX30,0)) -> 0 | CA30: =CLEAN(IFERROR(VLOOKUP(G30,'투입인력 단가'!$D$10:$Y$49,21,FALSE),"")) ->  | CB30: =IF(COUNTIF(CA31:CA$48,CA30)=0,SUMIF(CA$19:CA$48,CA30,BZ$19:BZ$48),"") ->  | CH30: 0 | CI30: 0 | CJ30: 0 | CK30: 0 | CL30: 0 | CM30: 0 | CN30: 0 | CO30: 0 | CP30: 0 | CQ30: 0 | CR30: 0 | CS30: 0 | CT30: 0 | CU30: 0 | CV30: 0 | CW30: 0 | CX30: 0 | CY30: 0 | DA30: =IFERROR( DA71 * SUM(Plan_집계표!$DA26:$DR26) / SUM(Actual_집계표!DA71:$DR71), 0) -> 0 | DB30: =IFERROR( IF( AND( SUM(Actual_집계표!DB71:$DR71)=0, SUM($DA30:DA30)<>SUM(Plan_집계표!$DA26:$DR26), DB$18<>""), (SUM(Plan_집계표!$DA26:$DR26) - SUM($DA30:DA30)) / COUNT(DB$18:$DR$18), DB71 * (SUM(Plan_집계표!$DA26:$DR26) - SUM($DA30:DA30)) / SUM(Actual_집계표!DB71:$DR71)), 0) -> 0 | DC30: =IFERROR( IF( AND( SUM(Actual_집계표!DC71:$DR71)=0, SUM($DA30:DB30)<>SUM(Plan_집계표!$DA26:$DR26), DC$18<>""), (SUM(Plan_집계표!$DA26:$DR26) - SUM($DA30:DB30)) / COUNT(DC$18:$DR$18), DC71 * (SUM(Plan_집계표!$DA26:$DR26) - SUM($DA30:DB30)) / SUM(Actual_집계표!DC71:$DR71)), 0) -> 0 | DD30: =IFERROR( IF( AND( SUM(Actual_집계표!DD71:$DR71)=0, SUM($DA30:DC30)<>SUM(Plan_집계표!$DA26:$DR26), DD$18<>""), (SUM(Plan_집계표!$DA26:$DR26) - SUM($DA30:DC30)) / COUNT(DD$18:$DR$18), DD71 * (SUM(Plan_집계표!$DA26:$DR26) - SUM($DA30:DC30)) / SUM(Actual_집계표!DD71:$DR71)), 0) -> 0 | DE30: =IFERROR( IF( AND( SUM(Actual_집계표!DE71:$DR71)=0, SUM($DA30:DD30)<>SUM(Plan_집계표!$DA26:$DR26), DE$18<>""), (SUM(Plan_집계표!$DA26:$DR26) - SUM($DA30:DD30)) / COUNT(DE$18:$DR$18), DE71 * (SUM(Plan_집계표!$DA26:$DR26) - SUM($DA30:DD30)) / SUM(Actual_집계표!DE71:$DR71)), 0) -> 0 | DF30: =IFERROR( IF( AND( SUM(Actual_집계표!DF71:$DR71)=0, SUM($DA30:DE30)<>SUM(Plan_집계표!$DA26:$DR26), DF$18<>""), (SUM(Plan_집계표!$DA26:$DR26) - SUM($DA30:DE30)) / COUNT(DF$18:$DR$18), DF71 * (SUM(Plan_집계표!$DA26:$DR26) - SUM($DA30:DE30)) / SUM(Actual_집계표!DF71:$DR71)), 0) -> 0 | DG30: =IFERROR( IF( AND( SUM(Actual_집계표!DG71:$DR71)=0, SUM($DA30:DF30)<>SUM(Plan_집계표!$DA26:$DR26), DG$18<>""), (SUM(Plan_집계표!$DA26:$DR26) - SUM($DA30:DF30)) / COUNT(DG$18:$DR$18), DG71 * (SUM(Plan_집계표!$DA26:$DR26) - SUM($DA30:DF30)) / SUM(Actual_집계표!DG71:$DR71)), 0) -> 0 | DH30: =IFERROR( IF( AND( SUM(Actual_집계표!DH71:$DR71)=0, SUM($DA30:DG30)<>SUM(Plan_집계표!$DA26:$DR26), DH$18<>""), (SUM(Plan_집계표!$DA26:$DR26) - SUM($DA30:DG30)) / COUNT(DH$18:$DR$18), DH71 * (SUM(Plan_집계표!$DA26:$DR26) - SUM($DA30:DG30)) / SUM(Actual_집계표!DH71:$DR71)), 0) -> 0 | DI30: =IFERROR( IF( AND( SUM(Actual_집계표!DI71:$DR71)=0, SUM($DA30:DH30)<>SUM(Plan_집계표!$DA26:$DR26), DI$18<>""), (SUM(Plan_집계표!$DA26:$DR26) - SUM($DA30:DH30)) / COUNT(DI$18:$DR$18), DI71 * (SUM(Plan_집계표!$DA26:$DR26) - SUM($DA30:DH30)) / SUM(Actual_집계표!DI71:$DR71)), 0) -> 0 | DJ30: =IFERROR( IF( AND( SUM(Actual_집계표!DJ71:$DR71)=0, SUM($DA30:DI30)<>SUM(Plan_집계표!$DA26:$DR26), DJ$18<>""), (SUM(Plan_집계표!$DA26:$DR26) - SUM($DA30:DI30)) / COUNT(DJ$18:$DR$18), DJ71 * (SUM(Plan_집계표!$DA26:$DR26) - SUM($DA30:DI30)) / SUM(Actual_집계표!DJ71:$DR71)), 0) -> 0 | DK30: =IFERROR( IF( AND( SUM(Actual_집계표!DK71:$DR71)=0, SUM($DA30:DJ30)<>SUM(Plan_집계표!$DA26:$DR26), DK$18<>""), (SUM(Plan_집계표!$DA26:$DR26) - SUM($DA30:DJ30)) / COUNT(DK$18:$DR$18), DK71 * (SUM(Plan_집계표!$DA26:$DR26) - SUM($DA30:DJ30)) / SUM(Actual_집계표!DK71:$DR71)), 0) -> 0 | DL30: =IFERROR( IF( AND( SUM(Actual_집계표!DL71:$DR71)=0, SUM($DA30:DK30)<>SUM(Plan_집계표!$DA26:$DR26), DL$18<>""), (SUM(Plan_집계표!$DA26:$DR26) - SUM($DA30:DK30)) / COUNT(DL$18:$DR$18), DL71 * (SUM(Plan_집계표!$DA26:$DR26) - SUM($DA30:DK30)) / SUM(Actual_집계표!DL71:$DR71)), 0) -> 0 | DM30: =IFERROR( IF( AND( SUM(Actual_집계표!DM71:$DR71)=0, SUM($DA30:DL30)<>SUM(Plan_집계표!$DA26:$DR26), DM$18<>""), (SUM(Plan_집계표!$DA26:$DR26) - SUM($DA30:DL30)) / COUNT(DM$18:$DR$18), DM71 * (SUM(Plan_집계표!$DA26:$DR26) - SUM($DA30:DL30)) / SUM(Actual_집계표!DM71:$DR71)), 0) -> 0 | DN30: =IFERROR( IF( AND( SUM(Actual_집계표!DN71:$DR71)=0, SUM($DA30:DM30)<>SUM(Plan_집계표!$DA26:$DR26), DN$18<>""), (SUM(Plan_집계표!$DA26:$DR26) - SUM($DA30:DM30)) / COUNT(DN$18:$DR$18), DN71 * (SUM(Plan_집계표!$DA26:$DR26) - SUM($DA30:DM30)) / SUM(Actual_집계표!DN71:$DR71)), 0) -> 0 | DO30: =IFERROR( IF( AND( SUM(Actual_집계표!DO71:$DR71)=0, SUM($DA30:DN30)<>SUM(Plan_집계표!$DA26:$DR26), DO$18<>""), (SUM(Plan_집계표!$DA26:$DR26) - SUM($DA30:DN30)) / COUNT(DO$18:$DR$18), DO71 * (SUM(Plan_집계표!$DA26:$DR26) - SUM($DA30:DN30)) / SUM(Actual_집계표!DO71:$DR71)), 0) -> 0 | DP30: =IFERROR( IF( AND( SUM(Actual_집계표!DP71:$DR71)=0, SUM($DA30:DO30)<>SUM(Plan_집계표!$DA26:$DR26), DP$18<>""), (SUM(Plan_집계표!$DA26:$DR26) - SUM($DA30:DO30)) / COUNT(DP$18:$DR$18), DP71 * (SUM(Plan_집계표!$DA26:$DR26) - SUM($DA30:DO30)) / SUM(Actual_집계표!DP71:$DR71)), 0) -> 0 | DQ30: =IFERROR( IF( AND( SUM(Actual_집계표!DQ71:$DR71)=0, SUM($DA30:DP30)<>SUM(Plan_집계표!$DA26:$DR26), DQ$18<>""), (SUM(Plan_집계표!$DA26:$DR26) - SUM($DA30:DP30)) / COUNT(DQ$18:$DR$18), DQ71 * (SUM(Plan_집계표!$DA26:$DR26) - SUM($DA30:DP30)) / SUM(Actual_집계표!DQ71:$DR71)), 0) -> 0 | DR30: =IFERROR( IF( AND( SUM(Actual_집계표!DR71:$DR71)=0, SUM($DA30:DQ30)<>SUM(Plan_집계표!$DA26:$DR26), DR$18<>""), (SUM(Plan_집계표!$DA26:$DR26) - SUM($DA30:DQ30)) / COUNT(DR$18:$DR$18), DR71 * (SUM(Plan_집계표!$DA26:$DR26) - SUM($DA30:DQ30)) / SUM(Actual_집계표!DR71:$DR71)), 0) -> 0 | DT30: 0 | DU30: 0 | DV30: 0 | DW30: 0 | DX30: 0 | DY30: 0 | DZ30: 0 | EA30: 0 | EB30: 0 | EC30: 0 | ED30: 0 | EE30: 0 | EF30: 0 | EG30: 0 | EH30: 0 | EI30: 0 | EJ30: 0 | EK30: 0 | EM30: 0 | EN30: 0 | EO30: 0 | EP30: 0 | EQ30: 0 | ER30: 0 | ES30: 0 | ET30: 0 | EU30: 0 | EV30: 0 | EW30: 0 | EX30: 0 | EY30: 0 | EZ30: 0 | FA30: 0 | FB30: 0 | FC30: 0 | FD30: 0
C31: 13 | D31: 0 | E31: 투입NO | G31: 13 | H31: =CLEAN(IFERROR(VLOOKUP(G31,'투입인력 단가'!$D$10:$Y$49,7,FALSE),"")) ->  | I31: =CLEAN(IFERROR(VLOOKUP(G31,'투입인력 단가'!$D$10:$Y$49,8,FALSE),"")) ->  | J31: =CLEAN(IFERROR(VLOOKUP(G31,'투입인력 단가'!$D$10:$Y$49,9,FALSE),"")) ->  | K31: =CLEAN(IFERROR(VLOOKUP(G31,'투입인력 단가'!$D$10:$Y$49,10,FALSE),"")) ->  | L31: =CLEAN(IFERROR(VLOOKUP(G31,'투입인력 단가'!$D$10:$Y$49,11,FALSE),"")) ->  | AW31: 0 | AX31: 0 | AY31: 0 | AZ31: =IFERROR(VLOOKUP(G31,'투입인력 단가'!$D$10:$Y$49,12,FALSE),0) -> 0 | BA31: 0 | BB31: =Plan_집계표!BB27 -> 0 | BC31: =Plan_집계표!BC27 -> 0 | BD31: =Plan_집계표!BD27 -> 0 | BE31: =Plan_집계표!BE27 -> 0 | BF31: =Plan_집계표!BF27 -> 0 | BG31: =Plan_집계표!BG27 -> 0 | BH31: =Plan_집계표!BH27 -> 0 | BI31: =Plan_집계표!BI27 -> 0 | BJ31: =Plan_집계표!BJ27 -> 0 | BK31: =Plan_집계표!BK27 -> 0 | BL31: =Plan_집계표!BL27 -> 0 | BM31: =Plan_집계표!BM27 -> 0 | BN31: =Plan_집계표!BN27 -> 0 | BO31: =Plan_집계표!BO27 -> 0 | BP31: =Plan_집계표!BP27 -> 0 | BQ31: =Plan_집계표!BQ27 -> 0 | BR31: =Plan_집계표!BR27 -> 0 | BS31: =Plan_집계표!BS27 -> 0 | BT31: =CLEAN(IFERROR(VLOOKUP(G31,'투입인력 단가'!$D$10:$Y$49,13,FALSE),"")) ->  | BU31: =CLEAN(IFERROR(VLOOKUP(G31,'투입인력 단가'!$D$10:$Y$49,14,FALSE),"")) ->  | BV31: =CLEAN(IFERROR(VLOOKUP(G31,'투입인력 단가'!$D$10:$Y$49,15,FALSE),"")) ->  | BW31: =IFERROR(VLOOKUP(G31,'투입인력 단가'!$D$10:$Y$49,16,FALSE),0) -> 0 | BX31: =IFERROR(VLOOKUP(G31,'투입인력 단가'!$D$10:$Y$49,17,FALSE),0) -> 0 | BZ31: =IF(BU31=MASTER!$D$4,AW31*BW31, IF(BV31=MASTER!$F$4,AW31*BX31,0)) -> 0 | CA31: =CLEAN(IFERROR(VLOOKUP(G31,'투입인력 단가'!$D$10:$Y$49,21,FALSE),"")) ->  | CB31: =IF(COUNTIF(CA32:CA$48,CA31)=0,SUMIF(CA$19:CA$48,CA31,BZ$19:BZ$48),"") ->  | CH31: 0 | CI31: 0 | CJ31: 0 | CK31: 0 | CL31: 0 | CM31: 0 | CN31: 0 | CO31: 0 | CP31: 0 | CQ31: 0 | CR31: 0 | CS31: 0 | CT31: 0 | CU31: 0 | CV31: 0 | CW31: 0 | CX31: 0 | CY31: 0 | DA31: =IFERROR( DA72 * SUM(Plan_집계표!$DA27:$DR27) / SUM(Actual_집계표!DA72:$DR72), 0) -> 0 | DB31: =IFERROR( IF( AND( SUM(Actual_집계표!DB72:$DR72)=0, SUM($DA31:DA31)<>SUM(Plan_집계표!$DA27:$DR27), DB$18<>""), (SUM(Plan_집계표!$DA27:$DR27) - SUM($DA31:DA31)) / COUNT(DB$18:$DR$18), DB72 * (SUM(Plan_집계표!$DA27:$DR27) - SUM($DA31:DA31)) / SUM(Actual_집계표!DB72:$DR72)), 0) -> 0 | DC31: =IFERROR( IF( AND( SUM(Actual_집계표!DC72:$DR72)=0, SUM($DA31:DB31)<>SUM(Plan_집계표!$DA27:$DR27), DC$18<>""), (SUM(Plan_집계표!$DA27:$DR27) - SUM($DA31:DB31)) / COUNT(DC$18:$DR$18), DC72 * (SUM(Plan_집계표!$DA27:$DR27) - SUM($DA31:DB31)) / SUM(Actual_집계표!DC72:$DR72)), 0) -> 0 | DD31: =IFERROR( IF( AND( SUM(Actual_집계표!DD72:$DR72)=0, SUM($DA31:DC31)<>SUM(Plan_집계표!$DA27:$DR27), DD$18<>""), (SUM(Plan_집계표!$DA27:$DR27) - SUM($DA31:DC31)) / COUNT(DD$18:$DR$18), DD72 * (SUM(Plan_집계표!$DA27:$DR27) - SUM($DA31:DC31)) / SUM(Actual_집계표!DD72:$DR72)), 0) -> 0 | DE31: =IFERROR( IF( AND( SUM(Actual_집계표!DE72:$DR72)=0, SUM($DA31:DD31)<>SUM(Plan_집계표!$DA27:$DR27), DE$18<>""), (SUM(Plan_집계표!$DA27:$DR27) - SUM($DA31:DD31)) / COUNT(DE$18:$DR$18), DE72 * (SUM(Plan_집계표!$DA27:$DR27) - SUM($DA31:DD31)) / SUM(Actual_집계표!DE72:$DR72)), 0) -> 0 | DF31: =IFERROR( IF( AND( SUM(Actual_집계표!DF72:$DR72)=0, SUM($DA31:DE31)<>SUM(Plan_집계표!$DA27:$DR27), DF$18<>""), (SUM(Plan_집계표!$DA27:$DR27) - SUM($DA31:DE31)) / COUNT(DF$18:$DR$18), DF72 * (SUM(Plan_집계표!$DA27:$DR27) - SUM($DA31:DE31)) / SUM(Actual_집계표!DF72:$DR72)), 0) -> 0 | DG31: =IFERROR( IF( AND( SUM(Actual_집계표!DG72:$DR72)=0, SUM($DA31:DF31)<>SUM(Plan_집계표!$DA27:$DR27), DG$18<>""), (SUM(Plan_집계표!$DA27:$DR27) - SUM($DA31:DF31)) / COUNT(DG$18:$DR$18), DG72 * (SUM(Plan_집계표!$DA27:$DR27) - SUM($DA31:DF31)) / SUM(Actual_집계표!DG72:$DR72)), 0) -> 0 | DH31: =IFERROR( IF( AND( SUM(Actual_집계표!DH72:$DR72)=0, SUM($DA31:DG31)<>SUM(Plan_집계표!$DA27:$DR27), DH$18<>""), (SUM(Plan_집계표!$DA27:$DR27) - SUM($DA31:DG31)) / COUNT(DH$18:$DR$18), DH72 * (SUM(Plan_집계표!$DA27:$DR27) - SUM($DA31:DG31)) / SUM(Actual_집계표!DH72:$DR72)), 0) -> 0 | DI31: =IFERROR( IF( AND( SUM(Actual_집계표!DI72:$DR72)=0, SUM($DA31:DH31)<>SUM(Plan_집계표!$DA27:$DR27), DI$18<>""), (SUM(Plan_집계표!$DA27:$DR27) - SUM($DA31:DH31)) / COUNT(DI$18:$DR$18), DI72 * (SUM(Plan_집계표!$DA27:$DR27) - SUM($DA31:DH31)) / SUM(Actual_집계표!DI72:$DR72)), 0) -> 0 | DJ31: =IFERROR( IF( AND( SUM(Actual_집계표!DJ72:$DR72)=0, SUM($DA31:DI31)<>SUM(Plan_집계표!$DA27:$DR27), DJ$18<>""), (SUM(Plan_집계표!$DA27:$DR27) - SUM($DA31:DI31)) / COUNT(DJ$18:$DR$18), DJ72 * (SUM(Plan_집계표!$DA27:$DR27) - SUM($DA31:DI31)) / SUM(Actual_집계표!DJ72:$DR72)), 0) -> 0 | DK31: =IFERROR( IF( AND( SUM(Actual_집계표!DK72:$DR72)=0, SUM($DA31:DJ31)<>SUM(Plan_집계표!$DA27:$DR27), DK$18<>""), (SUM(Plan_집계표!$DA27:$DR27) - SUM($DA31:DJ31)) / COUNT(DK$18:$DR$18), DK72 * (SUM(Plan_집계표!$DA27:$DR27) - SUM($DA31:DJ31)) / SUM(Actual_집계표!DK72:$DR72)), 0) -> 0 | DL31: =IFERROR( IF( AND( SUM(Actual_집계표!DL72:$DR72)=0, SUM($DA31:DK31)<>SUM(Plan_집계표!$DA27:$DR27), DL$18<>""), (SUM(Plan_집계표!$DA27:$DR27) - SUM($DA31:DK31)) / COUNT(DL$18:$DR$18), DL72 * (SUM(Plan_집계표!$DA27:$DR27) - SUM($DA31:DK31)) / SUM(Actual_집계표!DL72:$DR72)), 0) -> 0 | DM31: =IFERROR( IF( AND( SUM(Actual_집계표!DM72:$DR72)=0, SUM($DA31:DL31)<>SUM(Plan_집계표!$DA27:$DR27), DM$18<>""), (SUM(Plan_집계표!$DA27:$DR27) - SUM($DA31:DL31)) / COUNT(DM$18:$DR$18), DM72 * (SUM(Plan_집계표!$DA27:$DR27) - SUM($DA31:DL31)) / SUM(Actual_집계표!DM72:$DR72)), 0) -> 0 | DN31: =IFERROR( IF( AND( SUM(Actual_집계표!DN72:$DR72)=0, SUM($DA31:DM31)<>SUM(Plan_집계표!$DA27:$DR27), DN$18<>""), (SUM(Plan_집계표!$DA27:$DR27) - SUM($DA31:DM31)) / COUNT(DN$18:$DR$18), DN72 * (SUM(Plan_집계표!$DA27:$DR27) - SUM($DA31:DM31)) / SUM(Actual_집계표!DN72:$DR72)), 0) -> 0 | DO31: =IFERROR( IF( AND( SUM(Actual_집계표!DO72:$DR72)=0, SUM($DA31:DN31)<>SUM(Plan_집계표!$DA27:$DR27), DO$18<>""), (SUM(Plan_집계표!$DA27:$DR27) - SUM($DA31:DN31)) / COUNT(DO$18:$DR$18), DO72 * (SUM(Plan_집계표!$DA27:$DR27) - SUM($DA31:DN31)) / SUM(Actual_집계표!DO72:$DR72)), 0) -> 0 | DP31: =IFERROR( IF( AND( SUM(Actual_집계표!DP72:$DR72)=0, SUM($DA31:DO31)<>SUM(Plan_집계표!$DA27:$DR27), DP$18<>""), (SUM(Plan_집계표!$DA27:$DR27) - SUM($DA31:DO31)) / COUNT(DP$18:$DR$18), DP72 * (SUM(Plan_집계표!$DA27:$DR27) - SUM($DA31:DO31)) / SUM(Actual_집계표!DP72:$DR72)), 0) -> 0 | DQ31: =IFERROR( IF( AND( SUM(Actual_집계표!DQ72:$DR72)=0, SUM($DA31:DP31)<>SUM(Plan_집계표!$DA27:$DR27), DQ$18<>""), (SUM(Plan_집계표!$DA27:$DR27) - SUM($DA31:DP31)) / COUNT(DQ$18:$DR$18), DQ72 * (SUM(Plan_집계표!$DA27:$DR27) - SUM($DA31:DP31)) / SUM(Actual_집계표!DQ72:$DR72)), 0) -> 0 | DR31: =IFERROR( IF( AND( SUM(Actual_집계표!DR72:$DR72)=0, SUM($DA31:DQ31)<>SUM(Plan_집계표!$DA27:$DR27), DR$18<>""), (SUM(Plan_집계표!$DA27:$DR27) - SUM($DA31:DQ31)) / COUNT(DR$18:$DR$18), DR72 * (SUM(Plan_집계표!$DA27:$DR27) - SUM($DA31:DQ31)) / SUM(Actual_집계표!DR72:$DR72)), 0) -> 0 | DT31: 0 | DU31: 0 | DV31: 0 | DW31: 0 | DX31: 0 | DY31: 0 | DZ31: 0 | EA31: 0 | EB31: 0 | EC31: 0 | ED31: 0 | EE31: 0 | EF31: 0 | EG31: 0 | EH31: 0 | EI31: 0 | EJ31: 0 | EK31: 0 | EM31: 0 | EN31: 0 | EO31: 0 | EP31: 0 | EQ31: 0 | ER31: 0 | ES31: 0 | ET31: 0 | EU31: 0 | EV31: 0 | EW31: 0 | EX31: 0 | EY31: 0 | EZ31: 0 | FA31: 0 | FB31: 0 | FC31: 0 | FD31: 0
C32: 14 | D32: 0 | E32: 투입NO | G32: 14 | H32: =CLEAN(IFERROR(VLOOKUP(G32,'투입인력 단가'!$D$10:$Y$49,7,FALSE),"")) ->  | I32: =CLEAN(IFERROR(VLOOKUP(G32,'투입인력 단가'!$D$10:$Y$49,8,FALSE),"")) ->  | J32: =CLEAN(IFERROR(VLOOKUP(G32,'투입인력 단가'!$D$10:$Y$49,9,FALSE),"")) ->  | K32: =CLEAN(IFERROR(VLOOKUP(G32,'투입인력 단가'!$D$10:$Y$49,10,FALSE),"")) ->  | L32: =CLEAN(IFERROR(VLOOKUP(G32,'투입인력 단가'!$D$10:$Y$49,11,FALSE),"")) ->  | AW32: 0 | AX32: 0 | AY32: 0 | AZ32: =IFERROR(VLOOKUP(G32,'투입인력 단가'!$D$10:$Y$49,12,FALSE),0) -> 0 | BA32: 0 | BB32: =Plan_집계표!BB28 -> 0 | BC32: =Plan_집계표!BC28 -> 0 | BD32: =Plan_집계표!BD28 -> 0 | BE32: =Plan_집계표!BE28 -> 0 | BF32: =Plan_집계표!BF28 -> 0 | BG32: =Plan_집계표!BG28 -> 0 | BH32: =Plan_집계표!BH28 -> 0 | BI32: =Plan_집계표!BI28 -> 0 | BJ32: =Plan_집계표!BJ28 -> 0 | BK32: =Plan_집계표!BK28 -> 0 | BL32: =Plan_집계표!BL28 -> 0 | BM32: =Plan_집계표!BM28 -> 0 | BN32: =Plan_집계표!BN28 -> 0 | BO32: =Plan_집계표!BO28 -> 0 | BP32: =Plan_집계표!BP28 -> 0 | BQ32: =Plan_집계표!BQ28 -> 0 | BR32: =Plan_집계표!BR28 -> 0 | BS32: =Plan_집계표!BS28 -> 0 | BT32: =CLEAN(IFERROR(VLOOKUP(G32,'투입인력 단가'!$D$10:$Y$49,13,FALSE),"")) ->  | BU32: =CLEAN(IFERROR(VLOOKUP(G32,'투입인력 단가'!$D$10:$Y$49,14,FALSE),"")) ->  | BV32: =CLEAN(IFERROR(VLOOKUP(G32,'투입인력 단가'!$D$10:$Y$49,15,FALSE),"")) ->  | BW32: =IFERROR(VLOOKUP(G32,'투입인력 단가'!$D$10:$Y$49,16,FALSE),0) -> 0 | BX32: =IFERROR(VLOOKUP(G32,'투입인력 단가'!$D$10:$Y$49,17,FALSE),0) -> 0 | BZ32: =IF(BU32=MASTER!$D$4,AW32*BW32, IF(BV32=MASTER!$F$4,AW32*BX32,0)) -> 0 | CA32: =CLEAN(IFERROR(VLOOKUP(G32,'투입인력 단가'!$D$10:$Y$49,21,FALSE),"")) ->  | CB32: =IF(COUNTIF(CA33:CA$48,CA32)=0,SUMIF(CA$19:CA$48,CA32,BZ$19:BZ$48),"") ->  | CH32: 0 | CI32: 0 | CJ32: 0 | CK32: 0 | CL32: 0 | CM32: 0 | CN32: 0 | CO32: 0 | CP32: 0 | CQ32: 0 | CR32: 0 | CS32: 0 | CT32: 0 | CU32: 0 | CV32: 0 | CW32: 0 | CX32: 0 | CY32: 0 | DA32: =IFERROR( DA73 * SUM(Plan_집계표!$DA28:$DR28) / SUM(Actual_집계표!DA73:$DR73), 0) -> 0 | DB32: =IFERROR( IF( AND( SUM(Actual_집계표!DB73:$DR73)=0, SUM($DA32:DA32)<>SUM(Plan_집계표!$DA28:$DR28), DB$18<>""), (SUM(Plan_집계표!$DA28:$DR28) - SUM($DA32:DA32)) / COUNT(DB$18:$DR$18), DB73 * (SUM(Plan_집계표!$DA28:$DR28) - SUM($DA32:DA32)) / SUM(Actual_집계표!DB73:$DR73)), 0) -> 0 | DC32: =IFERROR( IF( AND( SUM(Actual_집계표!DC73:$DR73)=0, SUM($DA32:DB32)<>SUM(Plan_집계표!$DA28:$DR28), DC$18<>""), (SUM(Plan_집계표!$DA28:$DR28) - SUM($DA32:DB32)) / COUNT(DC$18:$DR$18), DC73 * (SUM(Plan_집계표!$DA28:$DR28) - SUM($DA32:DB32)) / SUM(Actual_집계표!DC73:$DR73)), 0) -> 0 | DD32: =IFERROR( IF( AND( SUM(Actual_집계표!DD73:$DR73)=0, SUM($DA32:DC32)<>SUM(Plan_집계표!$DA28:$DR28), DD$18<>""), (SUM(Plan_집계표!$DA28:$DR28) - SUM($DA32:DC32)) / COUNT(DD$18:$DR$18), DD73 * (SUM(Plan_집계표!$DA28:$DR28) - SUM($DA32:DC32)) / SUM(Actual_집계표!DD73:$DR73)), 0) -> 0 | DE32: =IFERROR( IF( AND( SUM(Actual_집계표!DE73:$DR73)=0, SUM($DA32:DD32)<>SUM(Plan_집계표!$DA28:$DR28), DE$18<>""), (SUM(Plan_집계표!$DA28:$DR28) - SUM($DA32:DD32)) / COUNT(DE$18:$DR$18), DE73 * (SUM(Plan_집계표!$DA28:$DR28) - SUM($DA32:DD32)) / SUM(Actual_집계표!DE73:$DR73)), 0) -> 0 | DF32: =IFERROR( IF( AND( SUM(Actual_집계표!DF73:$DR73)=0, SUM($DA32:DE32)<>SUM(Plan_집계표!$DA28:$DR28), DF$18<>""), (SUM(Plan_집계표!$DA28:$DR28) - SUM($DA32:DE32)) / COUNT(DF$18:$DR$18), DF73 * (SUM(Plan_집계표!$DA28:$DR28) - SUM($DA32:DE32)) / SUM(Actual_집계표!DF73:$DR73)), 0) -> 0 | DG32: =IFERROR( IF( AND( SUM(Actual_집계표!DG73:$DR73)=0, SUM($DA32:DF32)<>SUM(Plan_집계표!$DA28:$DR28), DG$18<>""), (SUM(Plan_집계표!$DA28:$DR28) - SUM($DA32:DF32)) / COUNT(DG$18:$DR$18), DG73 * (SUM(Plan_집계표!$DA28:$DR28) - SUM($DA32:DF32)) / SUM(Actual_집계표!DG73:$DR73)), 0) -> 0 | DH32: =IFERROR( IF( AND( SUM(Actual_집계표!DH73:$DR73)=0, SUM($DA32:DG32)<>SUM(Plan_집계표!$DA28:$DR28), DH$18<>""), (SUM(Plan_집계표!$DA28:$DR28) - SUM($DA32:DG32)) / COUNT(DH$18:$DR$18), DH73 * (SUM(Plan_집계표!$DA28:$DR28) - SUM($DA32:DG32)) / SUM(Actual_집계표!DH73:$DR73)), 0) -> 0 | DI32: =IFERROR( IF( AND( SUM(Actual_집계표!DI73:$DR73)=0, SUM($DA32:DH32)<>SUM(Plan_집계표!$DA28:$DR28), DI$18<>""), (SUM(Plan_집계표!$DA28:$DR28) - SUM($DA32:DH32)) / COUNT(DI$18:$DR$18), DI73 * (SUM(Plan_집계표!$DA28:$DR28) - SUM($DA32:DH32)) / SUM(Actual_집계표!DI73:$DR73)), 0) -> 0 | DJ32: =IFERROR( IF( AND( SUM(Actual_집계표!DJ73:$DR73)=0, SUM($DA32:DI32)<>SUM(Plan_집계표!$DA28:$DR28), DJ$18<>""), (SUM(Plan_집계표!$DA28:$DR28) - SUM($DA32:DI32)) / COUNT(DJ$18:$DR$18), DJ73 * (SUM(Plan_집계표!$DA28:$DR28) - SUM($DA32:DI32)) / SUM(Actual_집계표!DJ73:$DR73)), 0) -> 0 | DK32: =IFERROR( IF( AND( SUM(Actual_집계표!DK73:$DR73)=0, SUM($DA32:DJ32)<>SUM(Plan_집계표!$DA28:$DR28), DK$18<>""), (SUM(Plan_집계표!$DA28:$DR28) - SUM($DA32:DJ32)) / COUNT(DK$18:$DR$18), DK73 * (SUM(Plan_집계표!$DA28:$DR28) - SUM($DA32:DJ32)) / SUM(Actual_집계표!DK73:$DR73)), 0) -> 0 | DL32: =IFERROR( IF( AND( SUM(Actual_집계표!DL73:$DR73)=0, SUM($DA32:DK32)<>SUM(Plan_집계표!$DA28:$DR28), DL$18<>""), (SUM(Plan_집계표!$DA28:$DR28) - SUM($DA32:DK32)) / COUNT(DL$18:$DR$18), DL73 * (SUM(Plan_집계표!$DA28:$DR28) - SUM($DA32:DK32)) / SUM(Actual_집계표!DL73:$DR73)), 0) -> 0 | DM32: =IFERROR( IF( AND( SUM(Actual_집계표!DM73:$DR73)=0, SUM($DA32:DL32)<>SUM(Plan_집계표!$DA28:$DR28), DM$18<>""), (SUM(Plan_집계표!$DA28:$DR28) - SUM($DA32:DL32)) / COUNT(DM$18:$DR$18), DM73 * (SUM(Plan_집계표!$DA28:$DR28) - SUM($DA32:DL32)) / SUM(Actual_집계표!DM73:$DR73)), 0) -> 0 | DN32: =IFERROR( IF( AND( SUM(Actual_집계표!DN73:$DR73)=0, SUM($DA32:DM32)<>SUM(Plan_집계표!$DA28:$DR28), DN$18<>""), (SUM(Plan_집계표!$DA28:$DR28) - SUM($DA32:DM32)) / COUNT(DN$18:$DR$18), DN73 * (SUM(Plan_집계표!$DA28:$DR28) - SUM($DA32:DM32)) / SUM(Actual_집계표!DN73:$DR73)), 0) -> 0 | DO32: =IFERROR( IF( AND( SUM(Actual_집계표!DO73:$DR73)=0, SUM($DA32:DN32)<>SUM(Plan_집계표!$DA28:$DR28), DO$18<>""), (SUM(Plan_집계표!$DA28:$DR28) - SUM($DA32:DN32)) / COUNT(DO$18:$DR$18), DO73 * (SUM(Plan_집계표!$DA28:$DR28) - SUM($DA32:DN32)) / SUM(Actual_집계표!DO73:$DR73)), 0) -> 0 | DP32: =IFERROR( IF( AND( SUM(Actual_집계표!DP73:$DR73)=0, SUM($DA32:DO32)<>SUM(Plan_집계표!$DA28:$DR28), DP$18<>""), (SUM(Plan_집계표!$DA28:$DR28) - SUM($DA32:DO32)) / COUNT(DP$18:$DR$18), DP73 * (SUM(Plan_집계표!$DA28:$DR28) - SUM($DA32:DO32)) / SUM(Actual_집계표!DP73:$DR73)), 0) -> 0 | DQ32: =IFERROR( IF( AND( SUM(Actual_집계표!DQ73:$DR73)=0, SUM($DA32:DP32)<>SUM(Plan_집계표!$DA28:$DR28), DQ$18<>""), (SUM(Plan_집계표!$DA28:$DR28) - SUM($DA32:DP32)) / COUNT(DQ$18:$DR$18), DQ73 * (SUM(Plan_집계표!$DA28:$DR28) - SUM($DA32:DP32)) / SUM(Actual_집계표!DQ73:$DR73)), 0) -> 0 | DR32: =IFERROR( IF( AND( SUM(Actual_집계표!DR73:$DR73)=0, SUM($DA32:DQ32)<>SUM(Plan_집계표!$DA28:$DR28), DR$18<>""), (SUM(Plan_집계표!$DA28:$DR28) - SUM($DA32:DQ32)) / COUNT(DR$18:$DR$18), DR73 * (SUM(Plan_집계표!$DA28:$DR28) - SUM($DA32:DQ32)) / SUM(Actual_집계표!DR73:$DR73)), 0) -> 0 | DT32: 0 | DU32: 0 | DV32: 0 | DW32: 0 | DX32: 0 | DY32: 0 | DZ32: 0 | EA32: 0 | EB32: 0 | EC32: 0 | ED32: 0 | EE32: 0 | EF32: 0 | EG32: 0 | EH32: 0 | EI32: 0 | EJ32: 0 | EK32: 0 | EM32: 0 | EN32: 0 | EO32: 0 | EP32: 0 | EQ32: 0 | ER32: 0 | ES32: 0 | ET32: 0 | EU32: 0 | EV32: 0 | EW32: 0 | EX32: 0 | EY32: 0 | EZ32: 0 | FA32: 0 | FB32: 0 | FC32: 0 | FD32: 0
C33: 15 | D33: 0 | E33: 투입NO | G33: 15 | H33: =CLEAN(IFERROR(VLOOKUP(G33,'투입인력 단가'!$D$10:$Y$49,7,FALSE),"")) ->  | I33: =CLEAN(IFERROR(VLOOKUP(G33,'투입인력 단가'!$D$10:$Y$49,8,FALSE),"")) ->  | J33: =CLEAN(IFERROR(VLOOKUP(G33,'투입인력 단가'!$D$10:$Y$49,9,FALSE),"")) ->  | K33: =CLEAN(IFERROR(VLOOKUP(G33,'투입인력 단가'!$D$10:$Y$49,10,FALSE),"")) ->  | L33: =CLEAN(IFERROR(VLOOKUP(G33,'투입인력 단가'!$D$10:$Y$49,11,FALSE),"")) ->  | AW33: 0 | AX33: 0 | AY33: 0 | AZ33: =IFERROR(VLOOKUP(G33,'투입인력 단가'!$D$10:$Y$49,12,FALSE),0) -> 0 | BA33: 0 | BB33: =Plan_집계표!BB29 -> 0 | BC33: =Plan_집계표!BC29 -> 0 | BD33: =Plan_집계표!BD29 -> 0 | BE33: =Plan_집계표!BE29 -> 0 | BF33: =Plan_집계표!BF29 -> 0 | BG33: =Plan_집계표!BG29 -> 0 | BH33: =Plan_집계표!BH29 -> 0 | BI33: =Plan_집계표!BI29 -> 0 | BJ33: =Plan_집계표!BJ29 -> 0 | BK33: =Plan_집계표!BK29 -> 0 | BL33: =Plan_집계표!BL29 -> 0 | BM33: =Plan_집계표!BM29 -> 0 | BN33: =Plan_집계표!BN29 -> 0 | BO33: =Plan_집계표!BO29 -> 0 | BP33: =Plan_집계표!BP29 -> 0 | BQ33: =Plan_집계표!BQ29 -> 0 | BR33: =Plan_집계표!BR29 -> 0 | BS33: =Plan_집계표!BS29 -> 0 | BT33: =CLEAN(IFERROR(VLOOKUP(G33,'투입인력 단가'!$D$10:$Y$49,13,FALSE),"")) ->  | BU33: =CLEAN(IFERROR(VLOOKUP(G33,'투입인력 단가'!$D$10:$Y$49,14,FALSE),"")) ->  | BV33: =CLEAN(IFERROR(VLOOKUP(G33,'투입인력 단가'!$D$10:$Y$49,15,FALSE),"")) ->  | BW33: =IFERROR(VLOOKUP(G33,'투입인력 단가'!$D$10:$Y$49,16,FALSE),0) -> 0 | BX33: =IFERROR(VLOOKUP(G33,'투입인력 단가'!$D$10:$Y$49,17,FALSE),0) -> 0 | BZ33: =IF(BU33=MASTER!$D$4,AW33*BW33, IF(BV33=MASTER!$F$4,AW33*BX33,0)) -> 0 | CA33: =CLEAN(IFERROR(VLOOKUP(G33,'투입인력 단가'!$D$10:$Y$49,21,FALSE),"")) ->  | CB33: =IF(COUNTIF(CA34:CA$48,CA33)=0,SUMIF(CA$19:CA$48,CA33,BZ$19:BZ$48),"") ->  | CH33: 0 | CI33: 0 | CJ33: 0 | CK33: 0 | CL33: 0 | CM33: 0 | CN33: 0 | CO33: 0 | CP33: 0 | CQ33: 0 | CR33: 0 | CS33: 0 | CT33: 0 | CU33: 0 | CV33: 0 | CW33: 0 | CX33: 0 | CY33: 0 | DA33: =IFERROR( DA74 * SUM(Plan_집계표!$DA29:$DR29) / SUM(Actual_집계표!DA74:$DR74), 0) -> 0 | DB33: =IFERROR( IF( AND( SUM(Actual_집계표!DB74:$DR74)=0, SUM($DA33:DA33)<>SUM(Plan_집계표!$DA29:$DR29), DB$18<>""), (SUM(Plan_집계표!$DA29:$DR29) - SUM($DA33:DA33)) / COUNT(DB$18:$DR$18), DB74 * (SUM(Plan_집계표!$DA29:$DR29) - SUM($DA33:DA33)) / SUM(Actual_집계표!DB74:$DR74)), 0) -> 0 | DC33: =IFERROR( IF( AND( SUM(Actual_집계표!DC74:$DR74)=0, SUM($DA33:DB33)<>SUM(Plan_집계표!$DA29:$DR29), DC$18<>""), (SUM(Plan_집계표!$DA29:$DR29) - SUM($DA33:DB33)) / COUNT(DC$18:$DR$18), DC74 * (SUM(Plan_집계표!$DA29:$DR29) - SUM($DA33:DB33)) / SUM(Actual_집계표!DC74:$DR74)), 0) -> 0 | DD33: =IFERROR( IF( AND( SUM(Actual_집계표!DD74:$DR74)=0, SUM($DA33:DC33)<>SUM(Plan_집계표!$DA29:$DR29), DD$18<>""), (SUM(Plan_집계표!$DA29:$DR29) - SUM($DA33:DC33)) / COUNT(DD$18:$DR$18), DD74 * (SUM(Plan_집계표!$DA29:$DR29) - SUM($DA33:DC33)) / SUM(Actual_집계표!DD74:$DR74)), 0) -> 0 | DE33: =IFERROR( IF( AND( SUM(Actual_집계표!DE74:$DR74)=0, SUM($DA33:DD33)<>SUM(Plan_집계표!$DA29:$DR29), DE$18<>""), (SUM(Plan_집계표!$DA29:$DR29) - SUM($DA33:DD33)) / COUNT(DE$18:$DR$18), DE74 * (SUM(Plan_집계표!$DA29:$DR29) - SUM($DA33:DD33)) / SUM(Actual_집계표!DE74:$DR74)), 0) -> 0 | DF33: =IFERROR( IF( AND( SUM(Actual_집계표!DF74:$DR74)=0, SUM($DA33:DE33)<>SUM(Plan_집계표!$DA29:$DR29), DF$18<>""), (SUM(Plan_집계표!$DA29:$DR29) - SUM($DA33:DE33)) / COUNT(DF$18:$DR$18), DF74 * (SUM(Plan_집계표!$DA29:$DR29) - SUM($DA33:DE33)) / SUM(Actual_집계표!DF74:$DR74)), 0) -> 0 | DG33: =IFERROR( IF( AND( SUM(Actual_집계표!DG74:$DR74)=0, SUM($DA33:DF33)<>SUM(Plan_집계표!$DA29:$DR29), DG$18<>""), (SUM(Plan_집계표!$DA29:$DR29) - SUM($DA33:DF33)) / COUNT(DG$18:$DR$18), DG74 * (SUM(Plan_집계표!$DA29:$DR29) - SUM($DA33:DF33)) / SUM(Actual_집계표!DG74:$DR74)), 0) -> 0 | DH33: =IFERROR( IF( AND( SUM(Actual_집계표!DH74:$DR74)=0, SUM($DA33:DG33)<>SUM(Plan_집계표!$DA29:$DR29), DH$18<>""), (SUM(Plan_집계표!$DA29:$DR29) - SUM($DA33:DG33)) / COUNT(DH$18:$DR$18), DH74 * (SUM(Plan_집계표!$DA29:$DR29) - SUM($DA33:DG33)) / SUM(Actual_집계표!DH74:$DR74)), 0) -> 0 | DI33: =IFERROR( IF( AND( SUM(Actual_집계표!DI74:$DR74)=0, SUM($DA33:DH33)<>SUM(Plan_집계표!$DA29:$DR29), DI$18<>""), (SUM(Plan_집계표!$DA29:$DR29) - SUM($DA33:DH33)) / COUNT(DI$18:$DR$18), DI74 * (SUM(Plan_집계표!$DA29:$DR29) - SUM($DA33:DH33)) / SUM(Actual_집계표!DI74:$DR74)), 0) -> 0 | DJ33: =IFERROR( IF( AND( SUM(Actual_집계표!DJ74:$DR74)=0, SUM($DA33:DI33)<>SUM(Plan_집계표!$DA29:$DR29), DJ$18<>""), (SUM(Plan_집계표!$DA29:$DR29) - SUM($DA33:DI33)) / COUNT(DJ$18:$DR$18), DJ74 * (SUM(Plan_집계표!$DA29:$DR29) - SUM($DA33:DI33)) / SUM(Actual_집계표!DJ74:$DR74)), 0) -> 0 | DK33: =IFERROR( IF( AND( SUM(Actual_집계표!DK74:$DR74)=0, SUM($DA33:DJ33)<>SUM(Plan_집계표!$DA29:$DR29), DK$18<>""), (SUM(Plan_집계표!$DA29:$DR29) - SUM($DA33:DJ33)) / COUNT(DK$18:$DR$18), DK74 * (SUM(Plan_집계표!$DA29:$DR29) - SUM($DA33:DJ33)) / SUM(Actual_집계표!DK74:$DR74)), 0) -> 0 | DL33: =IFERROR( IF( AND( SUM(Actual_집계표!DL74:$DR74)=0, SUM($DA33:DK33)<>SUM(Plan_집계표!$DA29:$DR29), DL$18<>""), (SUM(Plan_집계표!$DA29:$DR29) - SUM($DA33:DK33)) / COUNT(DL$18:$DR$18), DL74 * (SUM(Plan_집계표!$DA29:$DR29) - SUM($DA33:DK33)) / SUM(Actual_집계표!DL74:$DR74)), 0) -> 0 | DM33: =IFERROR( IF( AND( SUM(Actual_집계표!DM74:$DR74)=0, SUM($DA33:DL33)<>SUM(Plan_집계표!$DA29:$DR29), DM$18<>""), (SUM(Plan_집계표!$DA29:$DR29) - SUM($DA33:DL33)) / COUNT(DM$18:$DR$18), DM74 * (SUM(Plan_집계표!$DA29:$DR29) - SUM($DA33:DL33)) / SUM(Actual_집계표!DM74:$DR74)), 0) -> 0 | DN33: =IFERROR( IF( AND( SUM(Actual_집계표!DN74:$DR74)=0, SUM($DA33:DM33)<>SUM(Plan_집계표!$DA29:$DR29), DN$18<>""), (SUM(Plan_집계표!$DA29:$DR29) - SUM($DA33:DM33)) / COUNT(DN$18:$DR$18), DN74 * (SUM(Plan_집계표!$DA29:$DR29) - SUM($DA33:DM33)) / SUM(Actual_집계표!DN74:$DR74)), 0) -> 0 | DO33: =IFERROR( IF( AND( SUM(Actual_집계표!DO74:$DR74)=0, SUM($DA33:DN33)<>SUM(Plan_집계표!$DA29:$DR29), DO$18<>""), (SUM(Plan_집계표!$DA29:$DR29) - SUM($DA33:DN33)) / COUNT(DO$18:$DR$18), DO74 * (SUM(Plan_집계표!$DA29:$DR29) - SUM($DA33:DN33)) / SUM(Actual_집계표!DO74:$DR74)), 0) -> 0 | DP33: =IFERROR( IF( AND( SUM(Actual_집계표!DP74:$DR74)=0, SUM($DA33:DO33)<>SUM(Plan_집계표!$DA29:$DR29), DP$18<>""), (SUM(Plan_집계표!$DA29:$DR29) - SUM($DA33:DO33)) / COUNT(DP$18:$DR$18), DP74 * (SUM(Plan_집계표!$DA29:$DR29) - SUM($DA33:DO33)) / SUM(Actual_집계표!DP74:$DR74)), 0) -> 0 | DQ33: =IFERROR( IF( AND( SUM(Actual_집계표!DQ74:$DR74)=0, SUM($DA33:DP33)<>SUM(Plan_집계표!$DA29:$DR29), DQ$18<>""), (SUM(Plan_집계표!$DA29:$DR29) - SUM($DA33:DP33)) / COUNT(DQ$18:$DR$18), DQ74 * (SUM(Plan_집계표!$DA29:$DR29) - SUM($DA33:DP33)) / SUM(Actual_집계표!DQ74:$DR74)), 0) -> 0 | DR33: =IFERROR( IF( AND( SUM(Actual_집계표!DR74:$DR74)=0, SUM($DA33:DQ33)<>SUM(Plan_집계표!$DA29:$DR29), DR$18<>""), (SUM(Plan_집계표!$DA29:$DR29) - SUM($DA33:DQ33)) / COUNT(DR$18:$DR$18), DR74 * (SUM(Plan_집계표!$DA29:$DR29) - SUM($DA33:DQ33)) / SUM(Actual_집계표!DR74:$DR74)), 0) -> 0 | DT33: 0 | DU33: 0 | DV33: 0 | DW33: 0 | DX33: 0 | DY33: 0 | DZ33: 0 | EA33: 0 | EB33: 0 | EC33: 0 | ED33: 0 | EE33: 0 | EF33: 0 | EG33: 0 | EH33: 0 | EI33: 0 | EJ33: 0 | EK33: 0 | EM33: 0 | EN33: 0 | EO33: 0 | EP33: 0 | EQ33: 0 | ER33: 0 | ES33: 0 | ET33: 0 | EU33: 0 | EV33: 0 | EW33: 0 | EX33: 0 | EY33: 0 | EZ33: 0 | FA33: 0 | FB33: 0 | FC33: 0 | FD33: 0
C34: 16 | D34: 0 | E34: 투입NO | G34: 16 | H34: =CLEAN(IFERROR(VLOOKUP(G34,'투입인력 단가'!$D$10:$Y$49,7,FALSE),"")) ->  | I34: =CLEAN(IFERROR(VLOOKUP(G34,'투입인력 단가'!$D$10:$Y$49,8,FALSE),"")) ->  | J34: =CLEAN(IFERROR(VLOOKUP(G34,'투입인력 단가'!$D$10:$Y$49,9,FALSE),"")) ->  | K34: =CLEAN(IFERROR(VLOOKUP(G34,'투입인력 단가'!$D$10:$Y$49,10,FALSE),"")) ->  | L34: =CLEAN(IFERROR(VLOOKUP(G34,'투입인력 단가'!$D$10:$Y$49,11,FALSE),"")) ->  | AW34: 0 | AX34: 0 | AY34: 0 | AZ34: =IFERROR(VLOOKUP(G34,'투입인력 단가'!$D$10:$Y$49,12,FALSE),0) -> 0 | BA34: 0 | BB34: =Plan_집계표!BB30 -> 0 | BC34: =Plan_집계표!BC30 -> 0 | BD34: =Plan_집계표!BD30 -> 0 | BE34: =Plan_집계표!BE30 -> 0 | BF34: =Plan_집계표!BF30 -> 0 | BG34: =Plan_집계표!BG30 -> 0 | BH34: =Plan_집계표!BH30 -> 0 | BI34: =Plan_집계표!BI30 -> 0 | BJ34: =Plan_집계표!BJ30 -> 0 | BK34: =Plan_집계표!BK30 -> 0 | BL34: =Plan_집계표!BL30 -> 0 | BM34: =Plan_집계표!BM30 -> 0 | BN34: =Plan_집계표!BN30 -> 0 | BO34: =Plan_집계표!BO30 -> 0 | BP34: =Plan_집계표!BP30 -> 0 | BQ34: =Plan_집계표!BQ30 -> 0 | BR34: =Plan_집계표!BR30 -> 0 | BS34: =Plan_집계표!BS30 -> 0 | BT34: =CLEAN(IFERROR(VLOOKUP(G34,'투입인력 단가'!$D$10:$Y$49,13,FALSE),"")) ->  | BU34: =CLEAN(IFERROR(VLOOKUP(G34,'투입인력 단가'!$D$10:$Y$49,14,FALSE),"")) ->  | BV34: =CLEAN(IFERROR(VLOOKUP(G34,'투입인력 단가'!$D$10:$Y$49,15,FALSE),"")) ->  | BW34: =IFERROR(VLOOKUP(G34,'투입인력 단가'!$D$10:$Y$49,16,FALSE),0) -> 0 | BX34: =IFERROR(VLOOKUP(G34,'투입인력 단가'!$D$10:$Y$49,17,FALSE),0) -> 0 | BZ34: =IF(BU34=MASTER!$D$4,AW34*BW34, IF(BV34=MASTER!$F$4,AW34*BX34,0)) -> 0 | CA34: =CLEAN(IFERROR(VLOOKUP(G34,'투입인력 단가'!$D$10:$Y$49,21,FALSE),"")) ->  | CB34: =IF(COUNTIF(CA35:CA$48,CA34)=0,SUMIF(CA$19:CA$48,CA34,BZ$19:BZ$48),"") ->  | CH34: 0 | CI34: 0 | CJ34: 0 | CK34: 0 | CL34: 0 | CM34: 0 | CN34: 0 | CO34: 0 | CP34: 0 | CQ34: 0 | CR34: 0 | CS34: 0 | CT34: 0 | CU34: 0 | CV34: 0 | CW34: 0 | CX34: 0 | CY34: 0 | DA34: =IFERROR( DA75 * SUM(Plan_집계표!$DA30:$DR30) / SUM(Actual_집계표!DA75:$DR75), 0) -> 0 | DB34: =IFERROR( IF( AND( SUM(Actual_집계표!DB75:$DR75)=0, SUM($DA34:DA34)<>SUM(Plan_집계표!$DA30:$DR30), DB$18<>""), (SUM(Plan_집계표!$DA30:$DR30) - SUM($DA34:DA34)) / COUNT(DB$18:$DR$18), DB75 * (SUM(Plan_집계표!$DA30:$DR30) - SUM($DA34:DA34)) / SUM(Actual_집계표!DB75:$DR75)), 0) -> 0 | DC34: =IFERROR( IF( AND( SUM(Actual_집계표!DC75:$DR75)=0, SUM($DA34:DB34)<>SUM(Plan_집계표!$DA30:$DR30), DC$18<>""), (SUM(Plan_집계표!$DA30:$DR30) - SUM($DA34:DB34)) / COUNT(DC$18:$DR$18), DC75 * (SUM(Plan_집계표!$DA30:$DR30) - SUM($DA34:DB34)) / SUM(Actual_집계표!DC75:$DR75)), 0) -> 0 | DD34: =IFERROR( IF( AND( SUM(Actual_집계표!DD75:$DR75)=0, SUM($DA34:DC34)<>SUM(Plan_집계표!$DA30:$DR30), DD$18<>""), (SUM(Plan_집계표!$DA30:$DR30) - SUM($DA34:DC34)) / COUNT(DD$18:$DR$18), DD75 * (SUM(Plan_집계표!$DA30:$DR30) - SUM($DA34:DC34)) / SUM(Actual_집계표!DD75:$DR75)), 0) -> 0 | DE34: =IFERROR( IF( AND( SUM(Actual_집계표!DE75:$DR75)=0, SUM($DA34:DD34)<>SUM(Plan_집계표!$DA30:$DR30), DE$18<>""), (SUM(Plan_집계표!$DA30:$DR30) - SUM($DA34:DD34)) / COUNT(DE$18:$DR$18), DE75 * (SUM(Plan_집계표!$DA30:$DR30) - SUM($DA34:DD34)) / SUM(Actual_집계표!DE75:$DR75)), 0) -> 0 | DF34: =IFERROR( IF( AND( SUM(Actual_집계표!DF75:$DR75)=0, SUM($DA34:DE34)<>SUM(Plan_집계표!$DA30:$DR30), DF$18<>""), (SUM(Plan_집계표!$DA30:$DR30) - SUM($DA34:DE34)) / COUNT(DF$18:$DR$18), DF75 * (SUM(Plan_집계표!$DA30:$DR30) - SUM($DA34:DE34)) / SUM(Actual_집계표!DF75:$DR75)), 0) -> 0 | DG34: =IFERROR( IF( AND( SUM(Actual_집계표!DG75:$DR75)=0, SUM($DA34:DF34)<>SUM(Plan_집계표!$DA30:$DR30), DG$18<>""), (SUM(Plan_집계표!$DA30:$DR30) - SUM($DA34:DF34)) / COUNT(DG$18:$DR$18), DG75 * (SUM(Plan_집계표!$DA30:$DR30) - SUM($DA34:DF34)) / SUM(Actual_집계표!DG75:$DR75)), 0) -> 0 | DH34: =IFERROR( IF( AND( SUM(Actual_집계표!DH75:$DR75)=0, SUM($DA34:DG34)<>SUM(Plan_집계표!$DA30:$DR30), DH$18<>""), (SUM(Plan_집계표!$DA30:$DR30) - SUM($DA34:DG34)) / COUNT(DH$18:$DR$18), DH75 * (SUM(Plan_집계표!$DA30:$DR30) - SUM($DA34:DG34)) / SUM(Actual_집계표!DH75:$DR75)), 0) -> 0 | DI34: =IFERROR( IF( AND( SUM(Actual_집계표!DI75:$DR75)=0, SUM($DA34:DH34)<>SUM(Plan_집계표!$DA30:$DR30), DI$18<>""), (SUM(Plan_집계표!$DA30:$DR30) - SUM($DA34:DH34)) / COUNT(DI$18:$DR$18), DI75 * (SUM(Plan_집계표!$DA30:$DR30) - SUM($DA34:DH34)) / SUM(Actual_집계표!DI75:$DR75)), 0) -> 0 | DJ34: =IFERROR( IF( AND( SUM(Actual_집계표!DJ75:$DR75)=0, SUM($DA34:DI34)<>SUM(Plan_집계표!$DA30:$DR30), DJ$18<>""), (SUM(Plan_집계표!$DA30:$DR30) - SUM($DA34:DI34)) / COUNT(DJ$18:$DR$18), DJ75 * (SUM(Plan_집계표!$DA30:$DR30) - SUM($DA34:DI34)) / SUM(Actual_집계표!DJ75:$DR75)), 0) -> 0 | DK34: =IFERROR( IF( AND( SUM(Actual_집계표!DK75:$DR75)=0, SUM($DA34:DJ34)<>SUM(Plan_집계표!$DA30:$DR30), DK$18<>""), (SUM(Plan_집계표!$DA30:$DR30) - SUM($DA34:DJ34)) / COUNT(DK$18:$DR$18), DK75 * (SUM(Plan_집계표!$DA30:$DR30) - SUM($DA34:DJ34)) / SUM(Actual_집계표!DK75:$DR75)), 0) -> 0 | DL34: =IFERROR( IF( AND( SUM(Actual_집계표!DL75:$DR75)=0, SUM($DA34:DK34)<>SUM(Plan_집계표!$DA30:$DR30), DL$18<>""), (SUM(Plan_집계표!$DA30:$DR30) - SUM($DA34:DK34)) / COUNT(DL$18:$DR$18), DL75 * (SUM(Plan_집계표!$DA30:$DR30) - SUM($DA34:DK34)) / SUM(Actual_집계표!DL75:$DR75)), 0) -> 0 | DM34: =IFERROR( IF( AND( SUM(Actual_집계표!DM75:$DR75)=0, SUM($DA34:DL34)<>SUM(Plan_집계표!$DA30:$DR30), DM$18<>""), (SUM(Plan_집계표!$DA30:$DR30) - SUM($DA34:DL34)) / COUNT(DM$18:$DR$18), DM75 * (SUM(Plan_집계표!$DA30:$DR30) - SUM($DA34:DL34)) / SUM(Actual_집계표!DM75:$DR75)), 0) -> 0 | DN34: =IFERROR( IF( AND( SUM(Actual_집계표!DN75:$DR75)=0, SUM($DA34:DM34)<>SUM(Plan_집계표!$DA30:$DR30), DN$18<>""), (SUM(Plan_집계표!$DA30:$DR30) - SUM($DA34:DM34)) / COUNT(DN$18:$DR$18), DN75 * (SUM(Plan_집계표!$DA30:$DR30) - SUM($DA34:DM34)) / SUM(Actual_집계표!DN75:$DR75)), 0) -> 0 | DO34: =IFERROR( IF( AND( SUM(Actual_집계표!DO75:$DR75)=0, SUM($DA34:DN34)<>SUM(Plan_집계표!$DA30:$DR30), DO$18<>""), (SUM(Plan_집계표!$DA30:$DR30) - SUM($DA34:DN34)) / COUNT(DO$18:$DR$18), DO75 * (SUM(Plan_집계표!$DA30:$DR30) - SUM($DA34:DN34)) / SUM(Actual_집계표!DO75:$DR75)), 0) -> 0 | DP34: =IFERROR( IF( AND( SUM(Actual_집계표!DP75:$DR75)=0, SUM($DA34:DO34)<>SUM(Plan_집계표!$DA30:$DR30), DP$18<>""), (SUM(Plan_집계표!$DA30:$DR30) - SUM($DA34:DO34)) / COUNT(DP$18:$DR$18), DP75 * (SUM(Plan_집계표!$DA30:$DR30) - SUM($DA34:DO34)) / SUM(Actual_집계표!DP75:$DR75)), 0) -> 0 | DQ34: =IFERROR( IF( AND( SUM(Actual_집계표!DQ75:$DR75)=0, SUM($DA34:DP34)<>SUM(Plan_집계표!$DA30:$DR30), DQ$18<>""), (SUM(Plan_집계표!$DA30:$DR30) - SUM($DA34:DP34)) / COUNT(DQ$18:$DR$18), DQ75 * (SUM(Plan_집계표!$DA30:$DR30) - SUM($DA34:DP34)) / SUM(Actual_집계표!DQ75:$DR75)), 0) -> 0 | DR34: =IFERROR( IF( AND( SUM(Actual_집계표!DR75:$DR75)=0, SUM($DA34:DQ34)<>SUM(Plan_집계표!$DA30:$DR30), DR$18<>""), (SUM(Plan_집계표!$DA30:$DR30) - SUM($DA34:DQ34)) / COUNT(DR$18:$DR$18), DR75 * (SUM(Plan_집계표!$DA30:$DR30) - SUM($DA34:DQ34)) / SUM(Actual_집계표!DR75:$DR75)), 0) -> 0 | DT34: 0 | DU34: 0 | DV34: 0 | DW34: 0 | DX34: 0 | DY34: 0 | DZ34: 0 | EA34: 0 | EB34: 0 | EC34: 0 | ED34: 0 | EE34: 0 | EF34: 0 | EG34: 0 | EH34: 0 | EI34: 0 | EJ34: 0 | EK34: 0 | EM34: 0 | EN34: 0 | EO34: 0 | EP34: 0 | EQ34: 0 | ER34: 0 | ES34: 0 | ET34: 0 | EU34: 0 | EV34: 0 | EW34: 0 | EX34: 0 | EY34: 0 | EZ34: 0 | FA34: 0 | FB34: 0 | FC34: 0 | FD34: 0
C35: 17 | D35: 0 | E35: 투입NO | G35: 17 | H35: =CLEAN(IFERROR(VLOOKUP(G35,'투입인력 단가'!$D$10:$Y$49,7,FALSE),"")) ->  | I35: =CLEAN(IFERROR(VLOOKUP(G35,'투입인력 단가'!$D$10:$Y$49,8,FALSE),"")) ->  | J35: =CLEAN(IFERROR(VLOOKUP(G35,'투입인력 단가'!$D$10:$Y$49,9,FALSE),"")) ->  | K35: =CLEAN(IFERROR(VLOOKUP(G35,'투입인력 단가'!$D$10:$Y$49,10,FALSE),"")) ->  | L35: =CLEAN(IFERROR(VLOOKUP(G35,'투입인력 단가'!$D$10:$Y$49,11,FALSE),"")) ->  | AW35: 0 | AX35: 0 | AY35: 0 | AZ35: =IFERROR(VLOOKUP(G35,'투입인력 단가'!$D$10:$Y$49,12,FALSE),0) -> 0 | BA35: 0 | BB35: =Plan_집계표!BB31 -> 0 | BC35: =Plan_집계표!BC31 -> 0 | BD35: =Plan_집계표!BD31 -> 0 | BE35: =Plan_집계표!BE31 -> 0 | BF35: =Plan_집계표!BF31 -> 0 | BG35: =Plan_집계표!BG31 -> 0 | BH35: =Plan_집계표!BH31 -> 0 | BI35: =Plan_집계표!BI31 -> 0 | BJ35: =Plan_집계표!BJ31 -> 0 | BK35: =Plan_집계표!BK31 -> 0 | BL35: =Plan_집계표!BL31 -> 0 | BM35: =Plan_집계표!BM31 -> 0 | BN35: =Plan_집계표!BN31 -> 0 | BO35: =Plan_집계표!BO31 -> 0 | BP35: =Plan_집계표!BP31 -> 0 | BQ35: =Plan_집계표!BQ31 -> 0 | BR35: =Plan_집계표!BR31 -> 0 | BS35: =Plan_집계표!BS31 -> 0 | BT35: =CLEAN(IFERROR(VLOOKUP(G35,'투입인력 단가'!$D$10:$Y$49,13,FALSE),"")) ->  | BU35: =CLEAN(IFERROR(VLOOKUP(G35,'투입인력 단가'!$D$10:$Y$49,14,FALSE),"")) ->  | BV35: =CLEAN(IFERROR(VLOOKUP(G35,'투입인력 단가'!$D$10:$Y$49,15,FALSE),"")) ->  | BW35: =IFERROR(VLOOKUP(G35,'투입인력 단가'!$D$10:$Y$49,16,FALSE),0) -> 0 | BX35: =IFERROR(VLOOKUP(G35,'투입인력 단가'!$D$10:$Y$49,17,FALSE),0) -> 0 | BZ35: =IF(BU35=MASTER!$D$4,AW35*BW35, IF(BV35=MASTER!$F$4,AW35*BX35,0)) -> 0 | CA35: =CLEAN(IFERROR(VLOOKUP(G35,'투입인력 단가'!$D$10:$Y$49,21,FALSE),"")) ->  | CB35: =IF(COUNTIF(CA36:CA$48,CA35)=0,SUMIF(CA$19:CA$48,CA35,BZ$19:BZ$48),"") ->  | CH35: 0 | CI35: 0 | CJ35: 0 | CK35: 0 | CL35: 0 | CM35: 0 | CN35: 0 | CO35: 0 | CP35: 0 | CQ35: 0 | CR35: 0 | CS35: 0 | CT35: 0 | CU35: 0 | CV35: 0 | CW35: 0 | CX35: 0 | CY35: 0 | DA35: =IFERROR( DA76 * SUM(Plan_집계표!$DA31:$DR31) / SUM(Actual_집계표!DA76:$DR76), 0) -> 0 | DB35: =IFERROR( IF( AND( SUM(Actual_집계표!DB76:$DR76)=0, SUM($DA35:DA35)<>SUM(Plan_집계표!$DA31:$DR31), DB$18<>""), (SUM(Plan_집계표!$DA31:$DR31) - SUM($DA35:DA35)) / COUNT(DB$18:$DR$18), DB76 * (SUM(Plan_집계표!$DA31:$DR31) - SUM($DA35:DA35)) / SUM(Actual_집계표!DB76:$DR76)), 0) -> 0 | DC35: =IFERROR( IF( AND( SUM(Actual_집계표!DC76:$DR76)=0, SUM($DA35:DB35)<>SUM(Plan_집계표!$DA31:$DR31), DC$18<>""), (SUM(Plan_집계표!$DA31:$DR31) - SUM($DA35:DB35)) / COUNT(DC$18:$DR$18), DC76 * (SUM(Plan_집계표!$DA31:$DR31) - SUM($DA35:DB35)) / SUM(Actual_집계표!DC76:$DR76)), 0) -> 0 | DD35: =IFERROR( IF( AND( SUM(Actual_집계표!DD76:$DR76)=0, SUM($DA35:DC35)<>SUM(Plan_집계표!$DA31:$DR31), DD$18<>""), (SUM(Plan_집계표!$DA31:$DR31) - SUM($DA35:DC35)) / COUNT(DD$18:$DR$18), DD76 * (SUM(Plan_집계표!$DA31:$DR31) - SUM($DA35:DC35)) / SUM(Actual_집계표!DD76:$DR76)), 0) -> 0 | DE35: =IFERROR( IF( AND( SUM(Actual_집계표!DE76:$DR76)=0, SUM($DA35:DD35)<>SUM(Plan_집계표!$DA31:$DR31), DE$18<>""), (SUM(Plan_집계표!$DA31:$DR31) - SUM($DA35:DD35)) / COUNT(DE$18:$DR$18), DE76 * (SUM(Plan_집계표!$DA31:$DR31) - SUM($DA35:DD35)) / SUM(Actual_집계표!DE76:$DR76)), 0) -> 0 | DF35: =IFERROR( IF( AND( SUM(Actual_집계표!DF76:$DR76)=0, SUM($DA35:DE35)<>SUM(Plan_집계표!$DA31:$DR31), DF$18<>""), (SUM(Plan_집계표!$DA31:$DR31) - SUM($DA35:DE35)) / COUNT(DF$18:$DR$18), DF76 * (SUM(Plan_집계표!$DA31:$DR31) - SUM($DA35:DE35)) / SUM(Actual_집계표!DF76:$DR76)), 0) -> 0 | DG35: =IFERROR( IF( AND( SUM(Actual_집계표!DG76:$DR76)=0, SUM($DA35:DF35)<>SUM(Plan_집계표!$DA31:$DR31), DG$18<>""), (SUM(Plan_집계표!$DA31:$DR31) - SUM($DA35:DF35)) / COUNT(DG$18:$DR$18), DG76 * (SUM(Plan_집계표!$DA31:$DR31) - SUM($DA35:DF35)) / SUM(Actual_집계표!DG76:$DR76)), 0) -> 0 | DH35: =IFERROR( IF( AND( SUM(Actual_집계표!DH76:$DR76)=0, SUM($DA35:DG35)<>SUM(Plan_집계표!$DA31:$DR31), DH$18<>""), (SUM(Plan_집계표!$DA31:$DR31) - SUM($DA35:DG35)) / COUNT(DH$18:$DR$18), DH76 * (SUM(Plan_집계표!$DA31:$DR31) - SUM($DA35:DG35)) / SUM(Actual_집계표!DH76:$DR76)), 0) -> 0 | DI35: =IFERROR( IF( AND( SUM(Actual_집계표!DI76:$DR76)=0, SUM($DA35:DH35)<>SUM(Plan_집계표!$DA31:$DR31), DI$18<>""), (SUM(Plan_집계표!$DA31:$DR31) - SUM($DA35:DH35)) / COUNT(DI$18:$DR$18), DI76 * (SUM(Plan_집계표!$DA31:$DR31) - SUM($DA35:DH35)) / SUM(Actual_집계표!DI76:$DR76)), 0) -> 0 | DJ35: =IFERROR( IF( AND( SUM(Actual_집계표!DJ76:$DR76)=0, SUM($DA35:DI35)<>SUM(Plan_집계표!$DA31:$DR31), DJ$18<>""), (SUM(Plan_집계표!$DA31:$DR31) - SUM($DA35:DI35)) / COUNT(DJ$18:$DR$18), DJ76 * (SUM(Plan_집계표!$DA31:$DR31) - SUM($DA35:DI35)) / SUM(Actual_집계표!DJ76:$DR76)), 0) -> 0 | DK35: =IFERROR( IF( AND( SUM(Actual_집계표!DK76:$DR76)=0, SUM($DA35:DJ35)<>SUM(Plan_집계표!$DA31:$DR31), DK$18<>""), (SUM(Plan_집계표!$DA31:$DR31) - SUM($DA35:DJ35)) / COUNT(DK$18:$DR$18), DK76 * (SUM(Plan_집계표!$DA31:$DR31) - SUM($DA35:DJ35)) / SUM(Actual_집계표!DK76:$DR76)), 0) -> 0 | DL35: =IFERROR( IF( AND( SUM(Actual_집계표!DL76:$DR76)=0, SUM($DA35:DK35)<>SUM(Plan_집계표!$DA31:$DR31), DL$18<>""), (SUM(Plan_집계표!$DA31:$DR31) - SUM($DA35:DK35)) / COUNT(DL$18:$DR$18), DL76 * (SUM(Plan_집계표!$DA31:$DR31) - SUM($DA35:DK35)) / SUM(Actual_집계표!DL76:$DR76)), 0) -> 0 | DM35: =IFERROR( IF( AND( SUM(Actual_집계표!DM76:$DR76)=0, SUM($DA35:DL35)<>SUM(Plan_집계표!$DA31:$DR31), DM$18<>""), (SUM(Plan_집계표!$DA31:$DR31) - SUM($DA35:DL35)) / COUNT(DM$18:$DR$18), DM76 * (SUM(Plan_집계표!$DA31:$DR31) - SUM($DA35:DL35)) / SUM(Actual_집계표!DM76:$DR76)), 0) -> 0 | DN35: =IFERROR( IF( AND( SUM(Actual_집계표!DN76:$DR76)=0, SUM($DA35:DM35)<>SUM(Plan_집계표!$DA31:$DR31), DN$18<>""), (SUM(Plan_집계표!$DA31:$DR31) - SUM($DA35:DM35)) / COUNT(DN$18:$DR$18), DN76 * (SUM(Plan_집계표!$DA31:$DR31) - SUM($DA35:DM35)) / SUM(Actual_집계표!DN76:$DR76)), 0) -> 0 | DO35: =IFERROR( IF( AND( SUM(Actual_집계표!DO76:$DR76)=0, SUM($DA35:DN35)<>SUM(Plan_집계표!$DA31:$DR31), DO$18<>""), (SUM(Plan_집계표!$DA31:$DR31) - SUM($DA35:DN35)) / COUNT(DO$18:$DR$18), DO76 * (SUM(Plan_집계표!$DA31:$DR31) - SUM($DA35:DN35)) / SUM(Actual_집계표!DO76:$DR76)), 0) -> 0 | DP35: =IFERROR( IF( AND( SUM(Actual_집계표!DP76:$DR76)=0, SUM($DA35:DO35)<>SUM(Plan_집계표!$DA31:$DR31), DP$18<>""), (SUM(Plan_집계표!$DA31:$DR31) - SUM($DA35:DO35)) / COUNT(DP$18:$DR$18), DP76 * (SUM(Plan_집계표!$DA31:$DR31) - SUM($DA35:DO35)) / SUM(Actual_집계표!DP76:$DR76)), 0) -> 0 | DQ35: =IFERROR( IF( AND( SUM(Actual_집계표!DQ76:$DR76)=0, SUM($DA35:DP35)<>SUM(Plan_집계표!$DA31:$DR31), DQ$18<>""), (SUM(Plan_집계표!$DA31:$DR31) - SUM($DA35:DP35)) / COUNT(DQ$18:$DR$18), DQ76 * (SUM(Plan_집계표!$DA31:$DR31) - SUM($DA35:DP35)) / SUM(Actual_집계표!DQ76:$DR76)), 0) -> 0 | DR35: =IFERROR( IF( AND( SUM(Actual_집계표!DR76:$DR76)=0, SUM($DA35:DQ35)<>SUM(Plan_집계표!$DA31:$DR31), DR$18<>""), (SUM(Plan_집계표!$DA31:$DR31) - SUM($DA35:DQ35)) / COUNT(DR$18:$DR$18), DR76 * (SUM(Plan_집계표!$DA31:$DR31) - SUM($DA35:DQ35)) / SUM(Actual_집계표!DR76:$DR76)), 0) -> 0 | DT35: 0 | DU35: 0 | DV35: 0 | DW35: 0 | DX35: 0 | DY35: 0 | DZ35: 0 | EA35: 0 | EB35: 0 | EC35: 0 | ED35: 0 | EE35: 0 | EF35: 0 | EG35: 0 | EH35: 0 | EI35: 0 | EJ35: 0 | EK35: 0 | EM35: 0 | EN35: 0 | EO35: 0 | EP35: 0 | EQ35: 0 | ER35: 0 | ES35: 0 | ET35: 0 | EU35: 0 | EV35: 0 | EW35: 0 | EX35: 0 | EY35: 0 | EZ35: 0 | FA35: 0 | FB35: 0 | FC35: 0 | FD35: 0
C36: 18 | D36: 0 | E36: 투입NO | G36: 18 | H36: =CLEAN(IFERROR(VLOOKUP(G36,'투입인력 단가'!$D$10:$Y$49,7,FALSE),"")) ->  | I36: =CLEAN(IFERROR(VLOOKUP(G36,'투입인력 단가'!$D$10:$Y$49,8,FALSE),"")) ->  | J36: =CLEAN(IFERROR(VLOOKUP(G36,'투입인력 단가'!$D$10:$Y$49,9,FALSE),"")) ->  | K36: =CLEAN(IFERROR(VLOOKUP(G36,'투입인력 단가'!$D$10:$Y$49,10,FALSE),"")) ->  | L36: =CLEAN(IFERROR(VLOOKUP(G36,'투입인력 단가'!$D$10:$Y$49,11,FALSE),"")) ->  | AW36: 0 | AX36: 0 | AY36: 0 | AZ36: =IFERROR(VLOOKUP(G36,'투입인력 단가'!$D$10:$Y$49,12,FALSE),0) -> 0 | BA36: 0 | BB36: =Plan_집계표!BB32 -> 0 | BC36: =Plan_집계표!BC32 -> 0 | BD36: =Plan_집계표!BD32 -> 0 | BE36: =Plan_집계표!BE32 -> 0 | BF36: =Plan_집계표!BF32 -> 0 | BG36: =Plan_집계표!BG32 -> 0 | BH36: =Plan_집계표!BH32 -> 0 | BI36: =Plan_집계표!BI32 -> 0 | BJ36: =Plan_집계표!BJ32 -> 0 | BK36: =Plan_집계표!BK32 -> 0 | BL36: =Plan_집계표!BL32 -> 0 | BM36: =Plan_집계표!BM32 -> 0 | BN36: =Plan_집계표!BN32 -> 0 | BO36: =Plan_집계표!BO32 -> 0 | BP36: =Plan_집계표!BP32 -> 0 | BQ36: =Plan_집계표!BQ32 -> 0 | BR36: =Plan_집계표!BR32 -> 0 | BS36: =Plan_집계표!BS32 -> 0 | BT36: =CLEAN(IFERROR(VLOOKUP(G36,'투입인력 단가'!$D$10:$Y$49,13,FALSE),"")) ->  | BU36: =CLEAN(IFERROR(VLOOKUP(G36,'투입인력 단가'!$D$10:$Y$49,14,FALSE),"")) ->  | BV36: =CLEAN(IFERROR(VLOOKUP(G36,'투입인력 단가'!$D$10:$Y$49,15,FALSE),"")) ->  | BW36: =IFERROR(VLOOKUP(G36,'투입인력 단가'!$D$10:$Y$49,16,FALSE),0) -> 0 | BX36: =IFERROR(VLOOKUP(G36,'투입인력 단가'!$D$10:$Y$49,17,FALSE),0) -> 0 | BZ36: =IF(BU36=MASTER!$D$4,AW36*BW36, IF(BV36=MASTER!$F$4,AW36*BX36,0)) -> 0 | CA36: =CLEAN(IFERROR(VLOOKUP(G36,'투입인력 단가'!$D$10:$Y$49,21,FALSE),"")) ->  | CB36: =IF(COUNTIF(CA37:CA$48,CA36)=0,SUMIF(CA$19:CA$48,CA36,BZ$19:BZ$48),"") ->  | CH36: 0 | CI36: 0 | CJ36: 0 | CK36: 0 | CL36: 0 | CM36: 0 | CN36: 0 | CO36: 0 | CP36: 0 | CQ36: 0 | CR36: 0 | CS36: 0 | CT36: 0 | CU36: 0 | CV36: 0 | CW36: 0 | CX36: 0 | CY36: 0 | DA36: =IFERROR( DA77 * SUM(Plan_집계표!$DA32:$DR32) / SUM(Actual_집계표!DA77:$DR77), 0) -> 0 | DB36: =IFERROR( IF( AND( SUM(Actual_집계표!DB77:$DR77)=0, SUM($DA36:DA36)<>SUM(Plan_집계표!$DA32:$DR32), DB$18<>""), (SUM(Plan_집계표!$DA32:$DR32) - SUM($DA36:DA36)) / COUNT(DB$18:$DR$18), DB77 * (SUM(Plan_집계표!$DA32:$DR32) - SUM($DA36:DA36)) / SUM(Actual_집계표!DB77:$DR77)), 0) -> 0 | DC36: =IFERROR( IF( AND( SUM(Actual_집계표!DC77:$DR77)=0, SUM($DA36:DB36)<>SUM(Plan_집계표!$DA32:$DR32), DC$18<>""), (SUM(Plan_집계표!$DA32:$DR32) - SUM($DA36:DB36)) / COUNT(DC$18:$DR$18), DC77 * (SUM(Plan_집계표!$DA32:$DR32) - SUM($DA36:DB36)) / SUM(Actual_집계표!DC77:$DR77)), 0) -> 0 | DD36: =IFERROR( IF( AND( SUM(Actual_집계표!DD77:$DR77)=0, SUM($DA36:DC36)<>SUM(Plan_집계표!$DA32:$DR32), DD$18<>""), (SUM(Plan_집계표!$DA32:$DR32) - SUM($DA36:DC36)) / COUNT(DD$18:$DR$18), DD77 * (SUM(Plan_집계표!$DA32:$DR32) - SUM($DA36:DC36)) / SUM(Actual_집계표!DD77:$DR77)), 0) -> 0 | DE36: =IFERROR( IF( AND( SUM(Actual_집계표!DE77:$DR77)=0, SUM($DA36:DD36)<>SUM(Plan_집계표!$DA32:$DR32), DE$18<>""), (SUM(Plan_집계표!$DA32:$DR32) - SUM($DA36:DD36)) / COUNT(DE$18:$DR$18), DE77 * (SUM(Plan_집계표!$DA32:$DR32) - SUM($DA36:DD36)) / SUM(Actual_집계표!DE77:$DR77)), 0) -> 0 | DF36: =IFERROR( IF( AND( SUM(Actual_집계표!DF77:$DR77)=0, SUM($DA36:DE36)<>SUM(Plan_집계표!$DA32:$DR32), DF$18<>""), (SUM(Plan_집계표!$DA32:$DR32) - SUM($DA36:DE36)) / COUNT(DF$18:$DR$18), DF77 * (SUM(Plan_집계표!$DA32:$DR32) - SUM($DA36:DE36)) / SUM(Actual_집계표!DF77:$DR77)), 0) -> 0 | DG36: =IFERROR( IF( AND( SUM(Actual_집계표!DG77:$DR77)=0, SUM($DA36:DF36)<>SUM(Plan_집계표!$DA32:$DR32), DG$18<>""), (SUM(Plan_집계표!$DA32:$DR32) - SUM($DA36:DF36)) / COUNT(DG$18:$DR$18), DG77 * (SUM(Plan_집계표!$DA32:$DR32) - SUM($DA36:DF36)) / SUM(Actual_집계표!DG77:$DR77)), 0) -> 0 | DH36: =IFERROR( IF( AND( SUM(Actual_집계표!DH77:$DR77)=0, SUM($DA36:DG36)<>SUM(Plan_집계표!$DA32:$DR32), DH$18<>""), (SUM(Plan_집계표!$DA32:$DR32) - SUM($DA36:DG36)) / COUNT(DH$18:$DR$18), DH77 * (SUM(Plan_집계표!$DA32:$DR32) - SUM($DA36:DG36)) / SUM(Actual_집계표!DH77:$DR77)), 0) -> 0 | DI36: =IFERROR( IF( AND( SUM(Actual_집계표!DI77:$DR77)=0, SUM($DA36:DH36)<>SUM(Plan_집계표!$DA32:$DR32), DI$18<>""), (SUM(Plan_집계표!$DA32:$DR32) - SUM($DA36:DH36)) / COUNT(DI$18:$DR$18), DI77 * (SUM(Plan_집계표!$DA32:$DR32) - SUM($DA36:DH36)) / SUM(Actual_집계표!DI77:$DR77)), 0) -> 0 | DJ36: =IFERROR( IF( AND( SUM(Actual_집계표!DJ77:$DR77)=0, SUM($DA36:DI36)<>SUM(Plan_집계표!$DA32:$DR32), DJ$18<>""), (SUM(Plan_집계표!$DA32:$DR32) - SUM($DA36:DI36)) / COUNT(DJ$18:$DR$18), DJ77 * (SUM(Plan_집계표!$DA32:$DR32) - SUM($DA36:DI36)) / SUM(Actual_집계표!DJ77:$DR77)), 0) -> 0 | DK36: =IFERROR( IF( AND( SUM(Actual_집계표!DK77:$DR77)=0, SUM($DA36:DJ36)<>SUM(Plan_집계표!$DA32:$DR32), DK$18<>""), (SUM(Plan_집계표!$DA32:$DR32) - SUM($DA36:DJ36)) / COUNT(DK$18:$DR$18), DK77 * (SUM(Plan_집계표!$DA32:$DR32) - SUM($DA36:DJ36)) / SUM(Actual_집계표!DK77:$DR77)), 0) -> 0 | DL36: =IFERROR( IF( AND( SUM(Actual_집계표!DL77:$DR77)=0, SUM($DA36:DK36)<>SUM(Plan_집계표!$DA32:$DR32), DL$18<>""), (SUM(Plan_집계표!$DA32:$DR32) - SUM($DA36:DK36)) / COUNT(DL$18:$DR$18), DL77 * (SUM(Plan_집계표!$DA32:$DR32) - SUM($DA36:DK36)) / SUM(Actual_집계표!DL77:$DR77)), 0) -> 0 | DM36: =IFERROR( IF( AND( SUM(Actual_집계표!DM77:$DR77)=0, SUM($DA36:DL36)<>SUM(Plan_집계표!$DA32:$DR32), DM$18<>""), (SUM(Plan_집계표!$DA32:$DR32) - SUM($DA36:DL36)) / COUNT(DM$18:$DR$18), DM77 * (SUM(Plan_집계표!$DA32:$DR32) - SUM($DA36:DL36)) / SUM(Actual_집계표!DM77:$DR77)), 0) -> 0 | DN36: =IFERROR( IF( AND( SUM(Actual_집계표!DN77:$DR77)=0, SUM($DA36:DM36)<>SUM(Plan_집계표!$DA32:$DR32), DN$18<>""), (SUM(Plan_집계표!$DA32:$DR32) - SUM($DA36:DM36)) / COUNT(DN$18:$DR$18), DN77 * (SUM(Plan_집계표!$DA32:$DR32) - SUM($DA36:DM36)) / SUM(Actual_집계표!DN77:$DR77)), 0) -> 0 | DO36: =IFERROR( IF( AND( SUM(Actual_집계표!DO77:$DR77)=0, SUM($DA36:DN36)<>SUM(Plan_집계표!$DA32:$DR32), DO$18<>""), (SUM(Plan_집계표!$DA32:$DR32) - SUM($DA36:DN36)) / COUNT(DO$18:$DR$18), DO77 * (SUM(Plan_집계표!$DA32:$DR32) - SUM($DA36:DN36)) / SUM(Actual_집계표!DO77:$DR77)), 0) -> 0 | DP36: =IFERROR( IF( AND( SUM(Actual_집계표!DP77:$DR77)=0, SUM($DA36:DO36)<>SUM(Plan_집계표!$DA32:$DR32), DP$18<>""), (SUM(Plan_집계표!$DA32:$DR32) - SUM($DA36:DO36)) / COUNT(DP$18:$DR$18), DP77 * (SUM(Plan_집계표!$DA32:$DR32) - SUM($DA36:DO36)) / SUM(Actual_집계표!DP77:$DR77)), 0) -> 0 | DQ36: =IFERROR( IF( AND( SUM(Actual_집계표!DQ77:$DR77)=0, SUM($DA36:DP36)<>SUM(Plan_집계표!$DA32:$DR32), DQ$18<>""), (SUM(Plan_집계표!$DA32:$DR32) - SUM($DA36:DP36)) / COUNT(DQ$18:$DR$18), DQ77 * (SUM(Plan_집계표!$DA32:$DR32) - SUM($DA36:DP36)) / SUM(Actual_집계표!DQ77:$DR77)), 0) -> 0 | DR36: =IFERROR( IF( AND( SUM(Actual_집계표!DR77:$DR77)=0, SUM($DA36:DQ36)<>SUM(Plan_집계표!$DA32:$DR32), DR$18<>""), (SUM(Plan_집계표!$DA32:$DR32) - SUM($DA36:DQ36)) / COUNT(DR$18:$DR$18), DR77 * (SUM(Plan_집계표!$DA32:$DR32) - SUM($DA36:DQ36)) / SUM(Actual_집계표!DR77:$DR77)), 0) -> 0 | DT36: 0 | DU36: 0 | DV36: 0 | DW36: 0 | DX36: 0 | DY36: 0 | DZ36: 0 | EA36: 0 | EB36: 0 | EC36: 0 | ED36: 0 | EE36: 0 | EF36: 0 | EG36: 0 | EH36: 0 | EI36: 0 | EJ36: 0 | EK36: 0 | EM36: 0 | EN36: 0 | EO36: 0 | EP36: 0 | EQ36: 0 | ER36: 0 | ES36: 0 | ET36: 0 | EU36: 0 | EV36: 0 | EW36: 0 | EX36: 0 | EY36: 0 | EZ36: 0 | FA36: 0 | FB36: 0 | FC36: 0 | FD36: 0
C37: 19 | D37: 0 | E37: 투입NO | G37: 19 | H37: =CLEAN(IFERROR(VLOOKUP(G37,'투입인력 단가'!$D$10:$Y$49,7,FALSE),"")) ->  | I37: =CLEAN(IFERROR(VLOOKUP(G37,'투입인력 단가'!$D$10:$Y$49,8,FALSE),"")) ->  | J37: =CLEAN(IFERROR(VLOOKUP(G37,'투입인력 단가'!$D$10:$Y$49,9,FALSE),"")) ->  | K37: =CLEAN(IFERROR(VLOOKUP(G37,'투입인력 단가'!$D$10:$Y$49,10,FALSE),"")) ->  | L37: =CLEAN(IFERROR(VLOOKUP(G37,'투입인력 단가'!$D$10:$Y$49,11,FALSE),"")) ->  | AW37: 0 | AX37: 0 | AY37: 0 | AZ37: =IFERROR(VLOOKUP(G37,'투입인력 단가'!$D$10:$Y$49,12,FALSE),0) -> 0 | BA37: 0 | BB37: =Plan_집계표!BB33 -> 0 | BC37: =Plan_집계표!BC33 -> 0 | BD37: =Plan_집계표!BD33 -> 0 | BE37: =Plan_집계표!BE33 -> 0 | BF37: =Plan_집계표!BF33 -> 0 | BG37: =Plan_집계표!BG33 -> 0 | BH37: =Plan_집계표!BH33 -> 0 | BI37: =Plan_집계표!BI33 -> 0 | BJ37: =Plan_집계표!BJ33 -> 0 | BK37: =Plan_집계표!BK33 -> 0 | BL37: =Plan_집계표!BL33 -> 0 | BM37: =Plan_집계표!BM33 -> 0 | BN37: =Plan_집계표!BN33 -> 0 | BO37: =Plan_집계표!BO33 -> 0 | BP37: =Plan_집계표!BP33 -> 0 | BQ37: =Plan_집계표!BQ33 -> 0 | BR37: =Plan_집계표!BR33 -> 0 | BS37: =Plan_집계표!BS33 -> 0 | BT37: =CLEAN(IFERROR(VLOOKUP(G37,'투입인력 단가'!$D$10:$Y$49,13,FALSE),"")) ->  | BU37: =CLEAN(IFERROR(VLOOKUP(G37,'투입인력 단가'!$D$10:$Y$49,14,FALSE),"")) ->  | BV37: =CLEAN(IFERROR(VLOOKUP(G37,'투입인력 단가'!$D$10:$Y$49,15,FALSE),"")) ->  | BW37: =IFERROR(VLOOKUP(G37,'투입인력 단가'!$D$10:$Y$49,16,FALSE),0) -> 0 | BX37: =IFERROR(VLOOKUP(G37,'투입인력 단가'!$D$10:$Y$49,17,FALSE),0) -> 0 | BZ37: =IF(BU37=MASTER!$D$4,AW37*BW37, IF(BV37=MASTER!$F$4,AW37*BX37,0)) -> 0 | CA37: =CLEAN(IFERROR(VLOOKUP(G37,'투입인력 단가'!$D$10:$Y$49,21,FALSE),"")) ->  | CB37: =IF(COUNTIF(CA38:CA$48,CA37)=0,SUMIF(CA$19:CA$48,CA37,BZ$19:BZ$48),"") ->  | CH37: 0 | CI37: 0 | CJ37: 0 | CK37: 0 | CL37: 0 | CM37: 0 | CN37: 0 | CO37: 0 | CP37: 0 | CQ37: 0 | CR37: 0 | CS37: 0 | CT37: 0 | CU37: 0 | CV37: 0 | CW37: 0 | CX37: 0 | CY37: 0 | DA37: =IFERROR( DA78 * SUM(Plan_집계표!$DA33:$DR33) / SUM(Actual_집계표!DA78:$DR78), 0) -> 0 | DB37: =IFERROR( IF( AND( SUM(Actual_집계표!DB78:$DR78)=0, SUM($DA37:DA37)<>SUM(Plan_집계표!$DA33:$DR33), DB$18<>""), (SUM(Plan_집계표!$DA33:$DR33) - SUM($DA37:DA37)) / COUNT(DB$18:$DR$18), DB78 * (SUM(Plan_집계표!$DA33:$DR33) - SUM($DA37:DA37)) / SUM(Actual_집계표!DB78:$DR78)), 0) -> 0 | DC37: =IFERROR( IF( AND( SUM(Actual_집계표!DC78:$DR78)=0, SUM($DA37:DB37)<>SUM(Plan_집계표!$DA33:$DR33), DC$18<>""), (SUM(Plan_집계표!$DA33:$DR33) - SUM($DA37:DB37)) / COUNT(DC$18:$DR$18), DC78 * (SUM(Plan_집계표!$DA33:$DR33) - SUM($DA37:DB37)) / SUM(Actual_집계표!DC78:$DR78)), 0) -> 0 | DD37: =IFERROR( IF( AND( SUM(Actual_집계표!DD78:$DR78)=0, SUM($DA37:DC37)<>SUM(Plan_집계표!$DA33:$DR33), DD$18<>""), (SUM(Plan_집계표!$DA33:$DR33) - SUM($DA37:DC37)) / COUNT(DD$18:$DR$18), DD78 * (SUM(Plan_집계표!$DA33:$DR33) - SUM($DA37:DC37)) / SUM(Actual_집계표!DD78:$DR78)), 0) -> 0 | DE37: =IFERROR( IF( AND( SUM(Actual_집계표!DE78:$DR78)=0, SUM($DA37:DD37)<>SUM(Plan_집계표!$DA33:$DR33), DE$18<>""), (SUM(Plan_집계표!$DA33:$DR33) - SUM($DA37:DD37)) / COUNT(DE$18:$DR$18), DE78 * (SUM(Plan_집계표!$DA33:$DR33) - SUM($DA37:DD37)) / SUM(Actual_집계표!DE78:$DR78)), 0) -> 0 | DF37: =IFERROR( IF( AND( SUM(Actual_집계표!DF78:$DR78)=0, SUM($DA37:DE37)<>SUM(Plan_집계표!$DA33:$DR33), DF$18<>""), (SUM(Plan_집계표!$DA33:$DR33) - SUM($DA37:DE37)) / COUNT(DF$18:$DR$18), DF78 * (SUM(Plan_집계표!$DA33:$DR33) - SUM($DA37:DE37)) / SUM(Actual_집계표!DF78:$DR78)), 0) -> 0 | DG37: =IFERROR( IF( AND( SUM(Actual_집계표!DG78:$DR78)=0, SUM($DA37:DF37)<>SUM(Plan_집계표!$DA33:$DR33), DG$18<>""), (SUM(Plan_집계표!$DA33:$DR33) - SUM($DA37:DF37)) / COUNT(DG$18:$DR$18), DG78 * (SUM(Plan_집계표!$DA33:$DR33) - SUM($DA37:DF37)) / SUM(Actual_집계표!DG78:$DR78)), 0) -> 0 | DH37: =IFERROR( IF( AND( SUM(Actual_집계표!DH78:$DR78)=0, SUM($DA37:DG37)<>SUM(Plan_집계표!$DA33:$DR33), DH$18<>""), (SUM(Plan_집계표!$DA33:$DR33) - SUM($DA37:DG37)) / COUNT(DH$18:$DR$18), DH78 * (SUM(Plan_집계표!$DA33:$DR33) - SUM($DA37:DG37)) / SUM(Actual_집계표!DH78:$DR78)), 0) -> 0 | DI37: =IFERROR( IF( AND( SUM(Actual_집계표!DI78:$DR78)=0, SUM($DA37:DH37)<>SUM(Plan_집계표!$DA33:$DR33), DI$18<>""), (SUM(Plan_집계표!$DA33:$DR33) - SUM($DA37:DH37)) / COUNT(DI$18:$DR$18), DI78 * (SUM(Plan_집계표!$DA33:$DR33) - SUM($DA37:DH37)) / SUM(Actual_집계표!DI78:$DR78)), 0) -> 0 | DJ37: =IFERROR( IF( AND( SUM(Actual_집계표!DJ78:$DR78)=0, SUM($DA37:DI37)<>SUM(Plan_집계표!$DA33:$DR33), DJ$18<>""), (SUM(Plan_집계표!$DA33:$DR33) - SUM($DA37:DI37)) / COUNT(DJ$18:$DR$18), DJ78 * (SUM(Plan_집계표!$DA33:$DR33) - SUM($DA37:DI37)) / SUM(Actual_집계표!DJ78:$DR78)), 0) -> 0 | DK37: =IFERROR( IF( AND( SUM(Actual_집계표!DK78:$DR78)=0, SUM($DA37:DJ37)<>SUM(Plan_집계표!$DA33:$DR33), DK$18<>""), (SUM(Plan_집계표!$DA33:$DR33) - SUM($DA37:DJ37)) / COUNT(DK$18:$DR$18), DK78 * (SUM(Plan_집계표!$DA33:$DR33) - SUM($DA37:DJ37)) / SUM(Actual_집계표!DK78:$DR78)), 0) -> 0 | DL37: =IFERROR( IF( AND( SUM(Actual_집계표!DL78:$DR78)=0, SUM($DA37:DK37)<>SUM(Plan_집계표!$DA33:$DR33), DL$18<>""), (SUM(Plan_집계표!$DA33:$DR33) - SUM($DA37:DK37)) / COUNT(DL$18:$DR$18), DL78 * (SUM(Plan_집계표!$DA33:$DR33) - SUM($DA37:DK37)) / SUM(Actual_집계표!DL78:$DR78)), 0) -> 0 | DM37: =IFERROR( IF( AND( SUM(Actual_집계표!DM78:$DR78)=0, SUM($DA37:DL37)<>SUM(Plan_집계표!$DA33:$DR33), DM$18<>""), (SUM(Plan_집계표!$DA33:$DR33) - SUM($DA37:DL37)) / COUNT(DM$18:$DR$18), DM78 * (SUM(Plan_집계표!$DA33:$DR33) - SUM($DA37:DL37)) / SUM(Actual_집계표!DM78:$DR78)), 0) -> 0 | DN37: =IFERROR( IF( AND( SUM(Actual_집계표!DN78:$DR78)=0, SUM($DA37:DM37)<>SUM(Plan_집계표!$DA33:$DR33), DN$18<>""), (SUM(Plan_집계표!$DA33:$DR33) - SUM($DA37:DM37)) / COUNT(DN$18:$DR$18), DN78 * (SUM(Plan_집계표!$DA33:$DR33) - SUM($DA37:DM37)) / SUM(Actual_집계표!DN78:$DR78)), 0) -> 0 | DO37: =IFERROR( IF( AND( SUM(Actual_집계표!DO78:$DR78)=0, SUM($DA37:DN37)<>SUM(Plan_집계표!$DA33:$DR33), DO$18<>""), (SUM(Plan_집계표!$DA33:$DR33) - SUM($DA37:DN37)) / COUNT(DO$18:$DR$18), DO78 * (SUM(Plan_집계표!$DA33:$DR33) - SUM($DA37:DN37)) / SUM(Actual_집계표!DO78:$DR78)), 0) -> 0 | DP37: =IFERROR( IF( AND( SUM(Actual_집계표!DP78:$DR78)=0, SUM($DA37:DO37)<>SUM(Plan_집계표!$DA33:$DR33), DP$18<>""), (SUM(Plan_집계표!$DA33:$DR33) - SUM($DA37:DO37)) / COUNT(DP$18:$DR$18), DP78 * (SUM(Plan_집계표!$DA33:$DR33) - SUM($DA37:DO37)) / SUM(Actual_집계표!DP78:$DR78)), 0) -> 0 | DQ37: =IFERROR( IF( AND( SUM(Actual_집계표!DQ78:$DR78)=0, SUM($DA37:DP37)<>SUM(Plan_집계표!$DA33:$DR33), DQ$18<>""), (SUM(Plan_집계표!$DA33:$DR33) - SUM($DA37:DP37)) / COUNT(DQ$18:$DR$18), DQ78 * (SUM(Plan_집계표!$DA33:$DR33) - SUM($DA37:DP37)) / SUM(Actual_집계표!DQ78:$DR78)), 0) -> 0 | DR37: =IFERROR( IF( AND( SUM(Actual_집계표!DR78:$DR78)=0, SUM($DA37:DQ37)<>SUM(Plan_집계표!$DA33:$DR33), DR$18<>""), (SUM(Plan_집계표!$DA33:$DR33) - SUM($DA37:DQ37)) / COUNT(DR$18:$DR$18), DR78 * (SUM(Plan_집계표!$DA33:$DR33) - SUM($DA37:DQ37)) / SUM(Actual_집계표!DR78:$DR78)), 0) -> 0 | DT37: 0 | DU37: 0 | DV37: 0 | DW37: 0 | DX37: 0 | DY37: 0 | DZ37: 0 | EA37: 0 | EB37: 0 | EC37: 0 | ED37: 0 | EE37: 0 | EF37: 0 | EG37: 0 | EH37: 0 | EI37: 0 | EJ37: 0 | EK37: 0 | EM37: 0 | EN37: 0 | EO37: 0 | EP37: 0 | EQ37: 0 | ER37: 0 | ES37: 0 | ET37: 0 | EU37: 0 | EV37: 0 | EW37: 0 | EX37: 0 | EY37: 0 | EZ37: 0 | FA37: 0 | FB37: 0 | FC37: 0 | FD37: 0
C38: 20 | D38: 0 | E38: 투입NO | G38: 20 | H38: =CLEAN(IFERROR(VLOOKUP(G38,'투입인력 단가'!$D$10:$Y$49,7,FALSE),"")) ->  | I38: =CLEAN(IFERROR(VLOOKUP(G38,'투입인력 단가'!$D$10:$Y$49,8,FALSE),"")) ->  | J38: =CLEAN(IFERROR(VLOOKUP(G38,'투입인력 단가'!$D$10:$Y$49,9,FALSE),"")) ->  | K38: =CLEAN(IFERROR(VLOOKUP(G38,'투입인력 단가'!$D$10:$Y$49,10,FALSE),"")) ->  | L38: =CLEAN(IFERROR(VLOOKUP(G38,'투입인력 단가'!$D$10:$Y$49,11,FALSE),"")) ->  | AW38: 0 | AX38: 0 | AY38: 0 | AZ38: =IFERROR(VLOOKUP(G38,'투입인력 단가'!$D$10:$Y$49,12,FALSE),0) -> 0 | BA38: 0 | BB38: =Plan_집계표!BB34 -> 0 | BC38: =Plan_집계표!BC34 -> 0 | BD38: =Plan_집계표!BD34 -> 0 | BE38: =Plan_집계표!BE34 -> 0 | BF38: =Plan_집계표!BF34 -> 0 | BG38: =Plan_집계표!BG34 -> 0 | BH38: =Plan_집계표!BH34 -> 0 | BI38: =Plan_집계표!BI34 -> 0 | BJ38: =Plan_집계표!BJ34 -> 0 | BK38: =Plan_집계표!BK34 -> 0 | BL38: =Plan_집계표!BL34 -> 0 | BM38: =Plan_집계표!BM34 -> 0 | BN38: =Plan_집계표!BN34 -> 0 | BO38: =Plan_집계표!BO34 -> 0 | BP38: =Plan_집계표!BP34 -> 0 | BQ38: =Plan_집계표!BQ34 -> 0 | BR38: =Plan_집계표!BR34 -> 0 | BS38: =Plan_집계표!BS34 -> 0 | BT38: =CLEAN(IFERROR(VLOOKUP(G38,'투입인력 단가'!$D$10:$Y$49,13,FALSE),"")) ->  | BU38: =CLEAN(IFERROR(VLOOKUP(G38,'투입인력 단가'!$D$10:$Y$49,14,FALSE),"")) ->  | BV38: =CLEAN(IFERROR(VLOOKUP(G38,'투입인력 단가'!$D$10:$Y$49,15,FALSE),"")) ->  | BW38: =IFERROR(VLOOKUP(G38,'투입인력 단가'!$D$10:$Y$49,16,FALSE),0) -> 0 | BX38: =IFERROR(VLOOKUP(G38,'투입인력 단가'!$D$10:$Y$49,17,FALSE),0) -> 0 | BZ38: =IF(BU38=MASTER!$D$4,AW38*BW38, IF(BV38=MASTER!$F$4,AW38*BX38,0)) -> 0 | CA38: =CLEAN(IFERROR(VLOOKUP(G38,'투입인력 단가'!$D$10:$Y$49,21,FALSE),"")) ->  | CB38: =IF(COUNTIF(CA39:CA$48,CA38)=0,SUMIF(CA$19:CA$48,CA38,BZ$19:BZ$48),"") ->  | CH38: 0 | CI38: 0 | CJ38: 0 | CK38: 0 | CL38: 0 | CM38: 0 | CN38: 0 | CO38: 0 | CP38: 0 | CQ38: 0 | CR38: 0 | CS38: 0 | CT38: 0 | CU38: 0 | CV38: 0 | CW38: 0 | CX38: 0 | CY38: 0 | DA38: =IFERROR( DA79 * SUM(Plan_집계표!$DA34:$DR34) / SUM(Actual_집계표!DA79:$DR79), 0) -> 0 | DB38: =IFERROR( IF( AND( SUM(Actual_집계표!DB79:$DR79)=0, SUM($DA38:DA38)<>SUM(Plan_집계표!$DA34:$DR34), DB$18<>""), (SUM(Plan_집계표!$DA34:$DR34) - SUM($DA38:DA38)) / COUNT(DB$18:$DR$18), DB79 * (SUM(Plan_집계표!$DA34:$DR34) - SUM($DA38:DA38)) / SUM(Actual_집계표!DB79:$DR79)), 0) -> 0 | DC38: =IFERROR( IF( AND( SUM(Actual_집계표!DC79:$DR79)=0, SUM($DA38:DB38)<>SUM(Plan_집계표!$DA34:$DR34), DC$18<>""), (SUM(Plan_집계표!$DA34:$DR34) - SUM($DA38:DB38)) / COUNT(DC$18:$DR$18), DC79 * (SUM(Plan_집계표!$DA34:$DR34) - SUM($DA38:DB38)) / SUM(Actual_집계표!DC79:$DR79)), 0) -> 0 | DD38: =IFERROR( IF( AND( SUM(Actual_집계표!DD79:$DR79)=0, SUM($DA38:DC38)<>SUM(Plan_집계표!$DA34:$DR34), DD$18<>""), (SUM(Plan_집계표!$DA34:$DR34) - SUM($DA38:DC38)) / COUNT(DD$18:$DR$18), DD79 * (SUM(Plan_집계표!$DA34:$DR34) - SUM($DA38:DC38)) / SUM(Actual_집계표!DD79:$DR79)), 0) -> 0 | DE38: =IFERROR( IF( AND( SUM(Actual_집계표!DE79:$DR79)=0, SUM($DA38:DD38)<>SUM(Plan_집계표!$DA34:$DR34), DE$18<>""), (SUM(Plan_집계표!$DA34:$DR34) - SUM($DA38:DD38)) / COUNT(DE$18:$DR$18), DE79 * (SUM(Plan_집계표!$DA34:$DR34) - SUM($DA38:DD38)) / SUM(Actual_집계표!DE79:$DR79)), 0) -> 0 | DF38: =IFERROR( IF( AND( SUM(Actual_집계표!DF79:$DR79)=0, SUM($DA38:DE38)<>SUM(Plan_집계표!$DA34:$DR34), DF$18<>""), (SUM(Plan_집계표!$DA34:$DR34) - SUM($DA38:DE38)) / COUNT(DF$18:$DR$18), DF79 * (SUM(Plan_집계표!$DA34:$DR34) - SUM($DA38:DE38)) / SUM(Actual_집계표!DF79:$DR79)), 0) -> 0 | DG38: =IFERROR( IF( AND( SUM(Actual_집계표!DG79:$DR79)=0, SUM($DA38:DF38)<>SUM(Plan_집계표!$DA34:$DR34), DG$18<>""), (SUM(Plan_집계표!$DA34:$DR34) - SUM($DA38:DF38)) / COUNT(DG$18:$DR$18), DG79 * (SUM(Plan_집계표!$DA34:$DR34) - SUM($DA38:DF38)) / SUM(Actual_집계표!DG79:$DR79)), 0) -> 0 | DH38: =IFERROR( IF( AND( SUM(Actual_집계표!DH79:$DR79)=0, SUM($DA38:DG38)<>SUM(Plan_집계표!$DA34:$DR34), DH$18<>""), (SUM(Plan_집계표!$DA34:$DR34) - SUM($DA38:DG38)) / COUNT(DH$18:$DR$18), DH79 * (SUM(Plan_집계표!$DA34:$DR34) - SUM($DA38:DG38)) / SUM(Actual_집계표!DH79:$DR79)), 0) -> 0 | DI38: =IFERROR( IF( AND( SUM(Actual_집계표!DI79:$DR79)=0, SUM($DA38:DH38)<>SUM(Plan_집계표!$DA34:$DR34), DI$18<>""), (SUM(Plan_집계표!$DA34:$DR34) - SUM($DA38:DH38)) / COUNT(DI$18:$DR$18), DI79 * (SUM(Plan_집계표!$DA34:$DR34) - SUM($DA38:DH38)) / SUM(Actual_집계표!DI79:$DR79)), 0) -> 0 | DJ38: =IFERROR( IF( AND( SUM(Actual_집계표!DJ79:$DR79)=0, SUM($DA38:DI38)<>SUM(Plan_집계표!$DA34:$DR34), DJ$18<>""), (SUM(Plan_집계표!$DA34:$DR34) - SUM($DA38:DI38)) / COUNT(DJ$18:$DR$18), DJ79 * (SUM(Plan_집계표!$DA34:$DR34) - SUM($DA38:DI38)) / SUM(Actual_집계표!DJ79:$DR79)), 0) -> 0 | DK38: =IFERROR( IF( AND( SUM(Actual_집계표!DK79:$DR79)=0, SUM($DA38:DJ38)<>SUM(Plan_집계표!$DA34:$DR34), DK$18<>""), (SUM(Plan_집계표!$DA34:$DR34) - SUM($DA38:DJ38)) / COUNT(DK$18:$DR$18), DK79 * (SUM(Plan_집계표!$DA34:$DR34) - SUM($DA38:DJ38)) / SUM(Actual_집계표!DK79:$DR79)), 0) -> 0 | DL38: =IFERROR( IF( AND( SUM(Actual_집계표!DL79:$DR79)=0, SUM($DA38:DK38)<>SUM(Plan_집계표!$DA34:$DR34), DL$18<>""), (SUM(Plan_집계표!$DA34:$DR34) - SUM($DA38:DK38)) / COUNT(DL$18:$DR$18), DL79 * (SUM(Plan_집계표!$DA34:$DR34) - SUM($DA38:DK38)) / SUM(Actual_집계표!DL79:$DR79)), 0) -> 0 | DM38: =IFERROR( IF( AND( SUM(Actual_집계표!DM79:$DR79)=0, SUM($DA38:DL38)<>SUM(Plan_집계표!$DA34:$DR34), DM$18<>""), (SUM(Plan_집계표!$DA34:$DR34) - SUM($DA38:DL38)) / COUNT(DM$18:$DR$18), DM79 * (SUM(Plan_집계표!$DA34:$DR34) - SUM($DA38:DL38)) / SUM(Actual_집계표!DM79:$DR79)), 0) -> 0 | DN38: =IFERROR( IF( AND( SUM(Actual_집계표!DN79:$DR79)=0, SUM($DA38:DM38)<>SUM(Plan_집계표!$DA34:$DR34), DN$18<>""), (SUM(Plan_집계표!$DA34:$DR34) - SUM($DA38:DM38)) / COUNT(DN$18:$DR$18), DN79 * (SUM(Plan_집계표!$DA34:$DR34) - SUM($DA38:DM38)) / SUM(Actual_집계표!DN79:$DR79)), 0) -> 0 | DO38: =IFERROR( IF( AND( SUM(Actual_집계표!DO79:$DR79)=0, SUM($DA38:DN38)<>SUM(Plan_집계표!$DA34:$DR34), DO$18<>""), (SUM(Plan_집계표!$DA34:$DR34) - SUM($DA38:DN38)) / COUNT(DO$18:$DR$18), DO79 * (SUM(Plan_집계표!$DA34:$DR34) - SUM($DA38:DN38)) / SUM(Actual_집계표!DO79:$DR79)), 0) -> 0 | DP38: =IFERROR( IF( AND( SUM(Actual_집계표!DP79:$DR79)=0, SUM($DA38:DO38)<>SUM(Plan_집계표!$DA34:$DR34), DP$18<>""), (SUM(Plan_집계표!$DA34:$DR34) - SUM($DA38:DO38)) / COUNT(DP$18:$DR$18), DP79 * (SUM(Plan_집계표!$DA34:$DR34) - SUM($DA38:DO38)) / SUM(Actual_집계표!DP79:$DR79)), 0) -> 0 | DQ38: =IFERROR( IF( AND( SUM(Actual_집계표!DQ79:$DR79)=0, SUM($DA38:DP38)<>SUM(Plan_집계표!$DA34:$DR34), DQ$18<>""), (SUM(Plan_집계표!$DA34:$DR34) - SUM($DA38:DP38)) / COUNT(DQ$18:$DR$18), DQ79 * (SUM(Plan_집계표!$DA34:$DR34) - SUM($DA38:DP38)) / SUM(Actual_집계표!DQ79:$DR79)), 0) -> 0 | DR38: =IFERROR( IF( AND( SUM(Actual_집계표!DR79:$DR79)=0, SUM($DA38:DQ38)<>SUM(Plan_집계표!$DA34:$DR34), DR$18<>""), (SUM(Plan_집계표!$DA34:$DR34) - SUM($DA38:DQ38)) / COUNT(DR$18:$DR$18), DR79 * (SUM(Plan_집계표!$DA34:$DR34) - SUM($DA38:DQ38)) / SUM(Actual_집계표!DR79:$DR79)), 0) -> 0 | DT38: 0 | DU38: 0 | DV38: 0 | DW38: 0 | DX38: 0 | DY38: 0 | DZ38: 0 | EA38: 0 | EB38: 0 | EC38: 0 | ED38: 0 | EE38: 0 | EF38: 0 | EG38: 0 | EH38: 0 | EI38: 0 | EJ38: 0 | EK38: 0 | EM38: 0 | EN38: 0 | EO38: 0 | EP38: 0 | EQ38: 0 | ER38: 0 | ES38: 0 | ET38: 0 | EU38: 0 | EV38: 0 | EW38: 0 | EX38: 0 | EY38: 0 | EZ38: 0 | FA38: 0 | FB38: 0 | FC38: 0 | FD38: 0
C39: 21 | D39: 0 | E39: 투입NO | G39: 21 | H39: =CLEAN(IFERROR(VLOOKUP(G39,'투입인력 단가'!$D$10:$Y$49,7,FALSE),"")) ->  | I39: =CLEAN(IFERROR(VLOOKUP(G39,'투입인력 단가'!$D$10:$Y$49,8,FALSE),"")) ->  | J39: =CLEAN(IFERROR(VLOOKUP(G39,'투입인력 단가'!$D$10:$Y$49,9,FALSE),"")) ->  | K39: =CLEAN(IFERROR(VLOOKUP(G39,'투입인력 단가'!$D$10:$Y$49,10,FALSE),"")) ->  | L39: =CLEAN(IFERROR(VLOOKUP(G39,'투입인력 단가'!$D$10:$Y$49,11,FALSE),"")) ->  | AW39: 0 | AX39: 0 | AY39: 0 | AZ39: =IFERROR(VLOOKUP(G39,'투입인력 단가'!$D$10:$Y$49,12,FALSE),0) -> 0 | BA39: 0 | BB39: =Plan_집계표!BB35 -> 0 | BC39: =Plan_집계표!BC35 -> 0 | BD39: =Plan_집계표!BD35 -> 0 | BE39: =Plan_집계표!BE35 -> 0 | BF39: =Plan_집계표!BF35 -> 0 | BG39: =Plan_집계표!BG35 -> 0 | BH39: =Plan_집계표!BH35 -> 0 | BI39: =Plan_집계표!BI35 -> 0 | BJ39: =Plan_집계표!BJ35 -> 0 | BK39: =Plan_집계표!BK35 -> 0 | BL39: =Plan_집계표!BL35 -> 0 | BM39: =Plan_집계표!BM35 -> 0 | BN39: =Plan_집계표!BN35 -> 0 | BO39: =Plan_집계표!BO35 -> 0 | BP39: =Plan_집계표!BP35 -> 0 | BQ39: =Plan_집계표!BQ35 -> 0 | BR39: =Plan_집계표!BR35 -> 0 | BS39: =Plan_집계표!BS35 -> 0 | BT39: =CLEAN(IFERROR(VLOOKUP(G39,'투입인력 단가'!$D$10:$Y$49,13,FALSE),"")) ->  | BU39: =CLEAN(IFERROR(VLOOKUP(G39,'투입인력 단가'!$D$10:$Y$49,14,FALSE),"")) ->  | BV39: =CLEAN(IFERROR(VLOOKUP(G39,'투입인력 단가'!$D$10:$Y$49,15,FALSE),"")) ->  | BW39: =IFERROR(VLOOKUP(G39,'투입인력 단가'!$D$10:$Y$49,16,FALSE),0) -> 0 | BX39: =IFERROR(VLOOKUP(G39,'투입인력 단가'!$D$10:$Y$49,17,FALSE),0) -> 0 | BZ39: =IF(BU39=MASTER!$D$4,AW39*BW39, IF(BV39=MASTER!$F$4,AW39*BX39,0)) -> 0 | CA39: =CLEAN(IFERROR(VLOOKUP(G39,'투입인력 단가'!$D$10:$Y$49,21,FALSE),"")) ->  | CB39: =IF(COUNTIF(CA40:CA$48,CA39)=0,SUMIF(CA$19:CA$48,CA39,BZ$19:BZ$48),"") ->  | CH39: 0 | CI39: 0 | CJ39: 0 | CK39: 0 | CL39: 0 | CM39: 0 | CN39: 0 | CO39: 0 | CP39: 0 | CQ39: 0 | CR39: 0 | CS39: 0 | CT39: 0 | CU39: 0 | CV39: 0 | CW39: 0 | CX39: 0 | CY39: 0 | DA39: =IFERROR( DA80 * SUM(Plan_집계표!$DA35:$DR35) / SUM(Actual_집계표!DA80:$DR80), 0) -> 0 | DB39: =IFERROR( IF( AND( SUM(Actual_집계표!DB80:$DR80)=0, SUM($DA39:DA39)<>SUM(Plan_집계표!$DA35:$DR35), DB$18<>""), (SUM(Plan_집계표!$DA35:$DR35) - SUM($DA39:DA39)) / COUNT(DB$18:$DR$18), DB80 * (SUM(Plan_집계표!$DA35:$DR35) - SUM($DA39:DA39)) / SUM(Actual_집계표!DB80:$DR80)), 0) -> 0 | DC39: =IFERROR( IF( AND( SUM(Actual_집계표!DC80:$DR80)=0, SUM($DA39:DB39)<>SUM(Plan_집계표!$DA35:$DR35), DC$18<>""), (SUM(Plan_집계표!$DA35:$DR35) - SUM($DA39:DB39)) / COUNT(DC$18:$DR$18), DC80 * (SUM(Plan_집계표!$DA35:$DR35) - SUM($DA39:DB39)) / SUM(Actual_집계표!DC80:$DR80)), 0) -> 0 | DD39: =IFERROR( IF( AND( SUM(Actual_집계표!DD80:$DR80)=0, SUM($DA39:DC39)<>SUM(Plan_집계표!$DA35:$DR35), DD$18<>""), (SUM(Plan_집계표!$DA35:$DR35) - SUM($DA39:DC39)) / COUNT(DD$18:$DR$18), DD80 * (SUM(Plan_집계표!$DA35:$DR35) - SUM($DA39:DC39)) / SUM(Actual_집계표!DD80:$DR80)), 0) -> 0 | DE39: =IFERROR( IF( AND( SUM(Actual_집계표!DE80:$DR80)=0, SUM($DA39:DD39)<>SUM(Plan_집계표!$DA35:$DR35), DE$18<>""), (SUM(Plan_집계표!$DA35:$DR35) - SUM($DA39:DD39)) / COUNT(DE$18:$DR$18), DE80 * (SUM(Plan_집계표!$DA35:$DR35) - SUM($DA39:DD39)) / SUM(Actual_집계표!DE80:$DR80)), 0) -> 0 | DF39: =IFERROR( IF( AND( SUM(Actual_집계표!DF80:$DR80)=0, SUM($DA39:DE39)<>SUM(Plan_집계표!$DA35:$DR35), DF$18<>""), (SUM(Plan_집계표!$DA35:$DR35) - SUM($DA39:DE39)) / COUNT(DF$18:$DR$18), DF80 * (SUM(Plan_집계표!$DA35:$DR35) - SUM($DA39:DE39)) / SUM(Actual_집계표!DF80:$DR80)), 0) -> 0 | DG39: =IFERROR( IF( AND( SUM(Actual_집계표!DG80:$DR80)=0, SUM($DA39:DF39)<>SUM(Plan_집계표!$DA35:$DR35), DG$18<>""), (SUM(Plan_집계표!$DA35:$DR35) - SUM($DA39:DF39)) / COUNT(DG$18:$DR$18), DG80 * (SUM(Plan_집계표!$DA35:$DR35) - SUM($DA39:DF39)) / SUM(Actual_집계표!DG80:$DR80)), 0) -> 0 | DH39: =IFERROR( IF( AND( SUM(Actual_집계표!DH80:$DR80)=0, SUM($DA39:DG39)<>SUM(Plan_집계표!$DA35:$DR35), DH$18<>""), (SUM(Plan_집계표!$DA35:$DR35) - SUM($DA39:DG39)) / COUNT(DH$18:$DR$18), DH80 * (SUM(Plan_집계표!$DA35:$DR35) - SUM($DA39:DG39)) / SUM(Actual_집계표!DH80:$DR80)), 0) -> 0 | DI39: =IFERROR( IF( AND( SUM(Actual_집계표!DI80:$DR80)=0, SUM($DA39:DH39)<>SUM(Plan_집계표!$DA35:$DR35), DI$18<>""), (SUM(Plan_집계표!$DA35:$DR35) - SUM($DA39:DH39)) / COUNT(DI$18:$DR$18), DI80 * (SUM(Plan_집계표!$DA35:$DR35) - SUM($DA39:DH39)) / SUM(Actual_집계표!DI80:$DR80)), 0) -> 0 | DJ39: =IFERROR( IF( AND( SUM(Actual_집계표!DJ80:$DR80)=0, SUM($DA39:DI39)<>SUM(Plan_집계표!$DA35:$DR35), DJ$18<>""), (SUM(Plan_집계표!$DA35:$DR35) - SUM($DA39:DI39)) / COUNT(DJ$18:$DR$18), DJ80 * (SUM(Plan_집계표!$DA35:$DR35) - SUM($DA39:DI39)) / SUM(Actual_집계표!DJ80:$DR80)), 0) -> 0 | DK39: =IFERROR( IF( AND( SUM(Actual_집계표!DK80:$DR80)=0, SUM($DA39:DJ39)<>SUM(Plan_집계표!$DA35:$DR35), DK$18<>""), (SUM(Plan_집계표!$DA35:$DR35) - SUM($DA39:DJ39)) / COUNT(DK$18:$DR$18), DK80 * (SUM(Plan_집계표!$DA35:$DR35) - SUM($DA39:DJ39)) / SUM(Actual_집계표!DK80:$DR80)), 0) -> 0 | DL39: =IFERROR( IF( AND( SUM(Actual_집계표!DL80:$DR80)=0, SUM($DA39:DK39)<>SUM(Plan_집계표!$DA35:$DR35), DL$18<>""), (SUM(Plan_집계표!$DA35:$DR35) - SUM($DA39:DK39)) / COUNT(DL$18:$DR$18), DL80 * (SUM(Plan_집계표!$DA35:$DR35) - SUM($DA39:DK39)) / SUM(Actual_집계표!DL80:$DR80)), 0) -> 0 | DM39: =IFERROR( IF( AND( SUM(Actual_집계표!DM80:$DR80)=0, SUM($DA39:DL39)<>SUM(Plan_집계표!$DA35:$DR35), DM$18<>""), (SUM(Plan_집계표!$DA35:$DR35) - SUM($DA39:DL39)) / COUNT(DM$18:$DR$18), DM80 * (SUM(Plan_집계표!$DA35:$DR35) - SUM($DA39:DL39)) / SUM(Actual_집계표!DM80:$DR80)), 0) -> 0 | DN39: =IFERROR( IF( AND( SUM(Actual_집계표!DN80:$DR80)=0, SUM($DA39:DM39)<>SUM(Plan_집계표!$DA35:$DR35), DN$18<>""), (SUM(Plan_집계표!$DA35:$DR35) - SUM($DA39:DM39)) / COUNT(DN$18:$DR$18), DN80 * (SUM(Plan_집계표!$DA35:$DR35) - SUM($DA39:DM39)) / SUM(Actual_집계표!DN80:$DR80)), 0) -> 0 | DO39: =IFERROR( IF( AND( SUM(Actual_집계표!DO80:$DR80)=0, SUM($DA39:DN39)<>SUM(Plan_집계표!$DA35:$DR35), DO$18<>""), (SUM(Plan_집계표!$DA35:$DR35) - SUM($DA39:DN39)) / COUNT(DO$18:$DR$18), DO80 * (SUM(Plan_집계표!$DA35:$DR35) - SUM($DA39:DN39)) / SUM(Actual_집계표!DO80:$DR80)), 0) -> 0 | DP39: =IFERROR( IF( AND( SUM(Actual_집계표!DP80:$DR80)=0, SUM($DA39:DO39)<>SUM(Plan_집계표!$DA35:$DR35), DP$18<>""), (SUM(Plan_집계표!$DA35:$DR35) - SUM($DA39:DO39)) / COUNT(DP$18:$DR$18), DP80 * (SUM(Plan_집계표!$DA35:$DR35) - SUM($DA39:DO39)) / SUM(Actual_집계표!DP80:$DR80)), 0) -> 0 | DQ39: =IFERROR( IF( AND( SUM(Actual_집계표!DQ80:$DR80)=0, SUM($DA39:DP39)<>SUM(Plan_집계표!$DA35:$DR35), DQ$18<>""), (SUM(Plan_집계표!$DA35:$DR35) - SUM($DA39:DP39)) / COUNT(DQ$18:$DR$18), DQ80 * (SUM(Plan_집계표!$DA35:$DR35) - SUM($DA39:DP39)) / SUM(Actual_집계표!DQ80:$DR80)), 0) -> 0 | DR39: =IFERROR( IF( AND( SUM(Actual_집계표!DR80:$DR80)=0, SUM($DA39:DQ39)<>SUM(Plan_집계표!$DA35:$DR35), DR$18<>""), (SUM(Plan_집계표!$DA35:$DR35) - SUM($DA39:DQ39)) / COUNT(DR$18:$DR$18), DR80 * (SUM(Plan_집계표!$DA35:$DR35) - SUM($DA39:DQ39)) / SUM(Actual_집계표!DR80:$DR80)), 0) -> 0 | DT39: 0 | DU39: 0 | DV39: 0 | DW39: 0 | DX39: 0 | DY39: 0 | DZ39: 0 | EA39: 0 | EB39: 0 | EC39: 0 | ED39: 0 | EE39: 0 | EF39: 0 | EG39: 0 | EH39: 0 | EI39: 0 | EJ39: 0 | EK39: 0 | EM39: 0 | EN39: 0 | EO39: 0 | EP39: 0 | EQ39: 0 | ER39: 0 | ES39: 0 | ET39: 0 | EU39: 0 | EV39: 0 | EW39: 0 | EX39: 0 | EY39: 0 | EZ39: 0 | FA39: 0 | FB39: 0 | FC39: 0 | FD39: 0
C40: 22 | D40: 0 | E40: 투입NO | G40: 22 | H40: =CLEAN(IFERROR(VLOOKUP(G40,'투입인력 단가'!$D$10:$Y$49,7,FALSE),"")) ->  | I40: =CLEAN(IFERROR(VLOOKUP(G40,'투입인력 단가'!$D$10:$Y$49,8,FALSE),"")) ->  | J40: =CLEAN(IFERROR(VLOOKUP(G40,'투입인력 단가'!$D$10:$Y$49,9,FALSE),"")) ->  | K40: =CLEAN(IFERROR(VLOOKUP(G40,'투입인력 단가'!$D$10:$Y$49,10,FALSE),"")) ->  | L40: =CLEAN(IFERROR(VLOOKUP(G40,'투입인력 단가'!$D$10:$Y$49,11,FALSE),"")) ->  | AW40: 0 | AX40: 0 | AY40: 0 | AZ40: =IFERROR(VLOOKUP(G40,'투입인력 단가'!$D$10:$Y$49,12,FALSE),0) -> 0 | BA40: 0 | BB40: =Plan_집계표!BB36 -> 0 | BC40: =Plan_집계표!BC36 -> 0 | BD40: =Plan_집계표!BD36 -> 0 | BE40: =Plan_집계표!BE36 -> 0 | BF40: =Plan_집계표!BF36 -> 0 | BG40: =Plan_집계표!BG36 -> 0 | BH40: =Plan_집계표!BH36 -> 0 | BI40: =Plan_집계표!BI36 -> 0 | BJ40: =Plan_집계표!BJ36 -> 0 | BK40: =Plan_집계표!BK36 -> 0 | BL40: =Plan_집계표!BL36 -> 0 | BM40: =Plan_집계표!BM36 -> 0 | BN40: =Plan_집계표!BN36 -> 0 | BO40: =Plan_집계표!BO36 -> 0 | BP40: =Plan_집계표!BP36 -> 0 | BQ40: =Plan_집계표!BQ36 -> 0 | BR40: =Plan_집계표!BR36 -> 0 | BS40: =Plan_집계표!BS36 -> 0 | BT40: =CLEAN(IFERROR(VLOOKUP(G40,'투입인력 단가'!$D$10:$Y$49,13,FALSE),"")) ->  | BU40: =CLEAN(IFERROR(VLOOKUP(G40,'투입인력 단가'!$D$10:$Y$49,14,FALSE),"")) ->  | BV40: =CLEAN(IFERROR(VLOOKUP(G40,'투입인력 단가'!$D$10:$Y$49,15,FALSE),"")) ->  | BW40: =IFERROR(VLOOKUP(G40,'투입인력 단가'!$D$10:$Y$49,16,FALSE),0) -> 0 | BX40: =IFERROR(VLOOKUP(G40,'투입인력 단가'!$D$10:$Y$49,17,FALSE),0) -> 0 | BZ40: =IF(BU40=MASTER!$D$4,AW40*BW40, IF(BV40=MASTER!$F$4,AW40*BX40,0)) -> 0 | CA40: =CLEAN(IFERROR(VLOOKUP(G40,'투입인력 단가'!$D$10:$Y$49,21,FALSE),"")) ->  | CB40: =IF(COUNTIF(CA41:CA$48,CA40)=0,SUMIF(CA$19:CA$48,CA40,BZ$19:BZ$48),"") ->  | CH40: 0 | CI40: 0 | CJ40: 0 | CK40: 0 | CL40: 0 | CM40: 0 | CN40: 0 | CO40: 0 | CP40: 0 | CQ40: 0 | CR40: 0 | CS40: 0 | CT40: 0 | CU40: 0 | CV40: 0 | CW40: 0 | CX40: 0 | CY40: 0 | DA40: =IFERROR( DA81 * SUM(Plan_집계표!$DA36:$DR36) / SUM(Actual_집계표!DA81:$DR81), 0) -> 0 | DB40: =IFERROR( IF( AND( SUM(Actual_집계표!DB81:$DR81)=0, SUM($DA40:DA40)<>SUM(Plan_집계표!$DA36:$DR36), DB$18<>""), (SUM(Plan_집계표!$DA36:$DR36) - SUM($DA40:DA40)) / COUNT(DB$18:$DR$18), DB81 * (SUM(Plan_집계표!$DA36:$DR36) - SUM($DA40:DA40)) / SUM(Actual_집계표!DB81:$DR81)), 0) -> 0 | DC40: =IFERROR( IF( AND( SUM(Actual_집계표!DC81:$DR81)=0, SUM($DA40:DB40)<>SUM(Plan_집계표!$DA36:$DR36), DC$18<>""), (SUM(Plan_집계표!$DA36:$DR36) - SUM($DA40:DB40)) / COUNT(DC$18:$DR$18), DC81 * (SUM(Plan_집계표!$DA36:$DR36) - SUM($DA40:DB40)) / SUM(Actual_집계표!DC81:$DR81)), 0) -> 0 | DD40: =IFERROR( IF( AND( SUM(Actual_집계표!DD81:$DR81)=0, SUM($DA40:DC40)<>SUM(Plan_집계표!$DA36:$DR36), DD$18<>""), (SUM(Plan_집계표!$DA36:$DR36) - SUM($DA40:DC40)) / COUNT(DD$18:$DR$18), DD81 * (SUM(Plan_집계표!$DA36:$DR36) - SUM($DA40:DC40)) / SUM(Actual_집계표!DD81:$DR81)), 0) -> 0 | DE40: =IFERROR( IF( AND( SUM(Actual_집계표!DE81:$DR81)=0, SUM($DA40:DD40)<>SUM(Plan_집계표!$DA36:$DR36), DE$18<>""), (SUM(Plan_집계표!$DA36:$DR36) - SUM($DA40:DD40)) / COUNT(DE$18:$DR$18), DE81 * (SUM(Plan_집계표!$DA36:$DR36) - SUM($DA40:DD40)) / SUM(Actual_집계표!DE81:$DR81)), 0) -> 0 | DF40: =IFERROR( IF( AND( SUM(Actual_집계표!DF81:$DR81)=0, SUM($DA40:DE40)<>SUM(Plan_집계표!$DA36:$DR36), DF$18<>""), (SUM(Plan_집계표!$DA36:$DR36) - SUM($DA40:DE40)) / COUNT(DF$18:$DR$18), DF81 * (SUM(Plan_집계표!$DA36:$DR36) - SUM($DA40:DE40)) / SUM(Actual_집계표!DF81:$DR81)), 0) -> 0 | DG40: =IFERROR( IF( AND( SUM(Actual_집계표!DG81:$DR81)=0, SUM($DA40:DF40)<>SUM(Plan_집계표!$DA36:$DR36), DG$18<>""), (SUM(Plan_집계표!$DA36:$DR36) - SUM($DA40:DF40)) / COUNT(DG$18:$DR$18), DG81 * (SUM(Plan_집계표!$DA36:$DR36) - SUM($DA40:DF40)) / SUM(Actual_집계표!DG81:$DR81)), 0) -> 0 | DH40: =IFERROR( IF( AND( SUM(Actual_집계표!DH81:$DR81)=0, SUM($DA40:DG40)<>SUM(Plan_집계표!$DA36:$DR36), DH$18<>""), (SUM(Plan_집계표!$DA36:$DR36) - SUM($DA40:DG40)) / COUNT(DH$18:$DR$18), DH81 * (SUM(Plan_집계표!$DA36:$DR36) - SUM($DA40:DG40)) / SUM(Actual_집계표!DH81:$DR81)), 0) -> 0 | DI40: =IFERROR( IF( AND( SUM(Actual_집계표!DI81:$DR81)=0, SUM($DA40:DH40)<>SUM(Plan_집계표!$DA36:$DR36), DI$18<>""), (SUM(Plan_집계표!$DA36:$DR36) - SUM($DA40:DH40)) / COUNT(DI$18:$DR$18), DI81 * (SUM(Plan_집계표!$DA36:$DR36) - SUM($DA40:DH40)) / SUM(Actual_집계표!DI81:$DR81)), 0) -> 0 | DJ40: =IFERROR( IF( AND( SUM(Actual_집계표!DJ81:$DR81)=0, SUM($DA40:DI40)<>SUM(Plan_집계표!$DA36:$DR36), DJ$18<>""), (SUM(Plan_집계표!$DA36:$DR36) - SUM($DA40:DI40)) / COUNT(DJ$18:$DR$18), DJ81 * (SUM(Plan_집계표!$DA36:$DR36) - SUM($DA40:DI40)) / SUM(Actual_집계표!DJ81:$DR81)), 0) -> 0 | DK40: =IFERROR( IF( AND( SUM(Actual_집계표!DK81:$DR81)=0, SUM($DA40:DJ40)<>SUM(Plan_집계표!$DA36:$DR36), DK$18<>""), (SUM(Plan_집계표!$DA36:$DR36) - SUM($DA40:DJ40)) / COUNT(DK$18:$DR$18), DK81 * (SUM(Plan_집계표!$DA36:$DR36) - SUM($DA40:DJ40)) / SUM(Actual_집계표!DK81:$DR81)), 0) -> 0 | DL40: =IFERROR( IF( AND( SUM(Actual_집계표!DL81:$DR81)=0, SUM($DA40:DK40)<>SUM(Plan_집계표!$DA36:$DR36), DL$18<>""), (SUM(Plan_집계표!$DA36:$DR36) - SUM($DA40:DK40)) / COUNT(DL$18:$DR$18), DL81 * (SUM(Plan_집계표!$DA36:$DR36) - SUM($DA40:DK40)) / SUM(Actual_집계표!DL81:$DR81)), 0) -> 0 | DM40: =IFERROR( IF( AND( SUM(Actual_집계표!DM81:$DR81)=0, SUM($DA40:DL40)<>SUM(Plan_집계표!$DA36:$DR36), DM$18<>""), (SUM(Plan_집계표!$DA36:$DR36) - SUM($DA40:DL40)) / COUNT(DM$18:$DR$18), DM81 * (SUM(Plan_집계표!$DA36:$DR36) - SUM($DA40:DL40)) / SUM(Actual_집계표!DM81:$DR81)), 0) -> 0 | DN40: =IFERROR( IF( AND( SUM(Actual_집계표!DN81:$DR81)=0, SUM($DA40:DM40)<>SUM(Plan_집계표!$DA36:$DR36), DN$18<>""), (SUM(Plan_집계표!$DA36:$DR36) - SUM($DA40:DM40)) / COUNT(DN$18:$DR$18), DN81 * (SUM(Plan_집계표!$DA36:$DR36) - SUM($DA40:DM40)) / SUM(Actual_집계표!DN81:$DR81)), 0) -> 0 | DO40: =IFERROR( IF( AND( SUM(Actual_집계표!DO81:$DR81)=0, SUM($DA40:DN40)<>SUM(Plan_집계표!$DA36:$DR36), DO$18<>""), (SUM(Plan_집계표!$DA36:$DR36) - SUM($DA40:DN40)) / COUNT(DO$18:$DR$18), DO81 * (SUM(Plan_집계표!$DA36:$DR36) - SUM($DA40:DN40)) / SUM(Actual_집계표!DO81:$DR81)), 0) -> 0 | DP40: =IFERROR( IF( AND( SUM(Actual_집계표!DP81:$DR81)=0, SUM($DA40:DO40)<>SUM(Plan_집계표!$DA36:$DR36), DP$18<>""), (SUM(Plan_집계표!$DA36:$DR36) - SUM($DA40:DO40)) / COUNT(DP$18:$DR$18), DP81 * (SUM(Plan_집계표!$DA36:$DR36) - SUM($DA40:DO40)) / SUM(Actual_집계표!DP81:$DR81)), 0) -> 0 | DQ40: =IFERROR( IF( AND( SUM(Actual_집계표!DQ81:$DR81)=0, SUM($DA40:DP40)<>SUM(Plan_집계표!$DA36:$DR36), DQ$18<>""), (SUM(Plan_집계표!$DA36:$DR36) - SUM($DA40:DP40)) / COUNT(DQ$18:$DR$18), DQ81 * (SUM(Plan_집계표!$DA36:$DR36) - SUM($DA40:DP40)) / SUM(Actual_집계표!DQ81:$DR81)), 0) -> 0 | DR40: =IFERROR( IF( AND( SUM(Actual_집계표!DR81:$DR81)=0, SUM($DA40:DQ40)<>SUM(Plan_집계표!$DA36:$DR36), DR$18<>""), (SUM(Plan_집계표!$DA36:$DR36) - SUM($DA40:DQ40)) / COUNT(DR$18:$DR$18), DR81 * (SUM(Plan_집계표!$DA36:$DR36) - SUM($DA40:DQ40)) / SUM(Actual_집계표!DR81:$DR81)), 0) -> 0 | DT40: 0 | DU40: 0 | DV40: 0 | DW40: 0 | DX40: 0 | DY40: 0 | DZ40: 0 | EA40: 0 | EB40: 0 | EC40: 0 | ED40: 0 | EE40: 0 | EF40: 0 | EG40: 0 | EH40: 0 | EI40: 0 | EJ40: 0 | EK40: 0 | EM40: 0 | EN40: 0 | EO40: 0 | EP40: 0 | EQ40: 0 | ER40: 0 | ES40: 0 | ET40: 0 | EU40: 0 | EV40: 0 | EW40: 0 | EX40: 0 | EY40: 0 | EZ40: 0 | FA40: 0 | FB40: 0 | FC40: 0 | FD40: 0
C41: 23 | D41: 0 | E41: 투입NO | G41: 23 | H41: =CLEAN(IFERROR(VLOOKUP(G41,'투입인력 단가'!$D$10:$Y$49,7,FALSE),"")) ->  | I41: =CLEAN(IFERROR(VLOOKUP(G41,'투입인력 단가'!$D$10:$Y$49,8,FALSE),"")) ->  | J41: =CLEAN(IFERROR(VLOOKUP(G41,'투입인력 단가'!$D$10:$Y$49,9,FALSE),"")) ->  | K41: =CLEAN(IFERROR(VLOOKUP(G41,'투입인력 단가'!$D$10:$Y$49,10,FALSE),"")) ->  | L41: =CLEAN(IFERROR(VLOOKUP(G41,'투입인력 단가'!$D$10:$Y$49,11,FALSE),"")) ->  | AW41: 0 | AX41: 0 | AY41: 0 | AZ41: =IFERROR(VLOOKUP(G41,'투입인력 단가'!$D$10:$Y$49,12,FALSE),0) -> 0 | BA41: 0 | BB41: =Plan_집계표!BB37 -> 0 | BC41: =Plan_집계표!BC37 -> 0 | BD41: =Plan_집계표!BD37 -> 0 | BE41: =Plan_집계표!BE37 -> 0 | BF41: =Plan_집계표!BF37 -> 0 | BG41: =Plan_집계표!BG37 -> 0 | BH41: =Plan_집계표!BH37 -> 0 | BI41: =Plan_집계표!BI37 -> 0 | BJ41: =Plan_집계표!BJ37 -> 0 | BK41: =Plan_집계표!BK37 -> 0 | BL41: =Plan_집계표!BL37 -> 0 | BM41: =Plan_집계표!BM37 -> 0 | BN41: =Plan_집계표!BN37 -> 0 | BO41: =Plan_집계표!BO37 -> 0 | BP41: =Plan_집계표!BP37 -> 0 | BQ41: =Plan_집계표!BQ37 -> 0 | BR41: =Plan_집계표!BR37 -> 0 | BS41: =Plan_집계표!BS37 -> 0 | BT41: =CLEAN(IFERROR(VLOOKUP(G41,'투입인력 단가'!$D$10:$Y$49,13,FALSE),"")) ->  | BU41: =CLEAN(IFERROR(VLOOKUP(G41,'투입인력 단가'!$D$10:$Y$49,14,FALSE),"")) ->  | BV41: =CLEAN(IFERROR(VLOOKUP(G41,'투입인력 단가'!$D$10:$Y$49,15,FALSE),"")) ->  | BW41: =IFERROR(VLOOKUP(G41,'투입인력 단가'!$D$10:$Y$49,16,FALSE),0) -> 0 | BX41: =IFERROR(VLOOKUP(G41,'투입인력 단가'!$D$10:$Y$49,17,FALSE),0) -> 0 | BZ41: =IF(BU41=MASTER!$D$4,AW41*BW41, IF(BV41=MASTER!$F$4,AW41*BX41,0)) -> 0 | CA41: =CLEAN(IFERROR(VLOOKUP(G41,'투입인력 단가'!$D$10:$Y$49,21,FALSE),"")) ->  | CB41: =IF(COUNTIF(CA42:CA$48,CA41)=0,SUMIF(CA$19:CA$48,CA41,BZ$19:BZ$48),"") ->  | CH41: 0 | CI41: 0 | CJ41: 0 | CK41: 0 | CL41: 0 | CM41: 0 | CN41: 0 | CO41: 0 | CP41: 0 | CQ41: 0 | CR41: 0 | CS41: 0 | CT41: 0 | CU41: 0 | CV41: 0 | CW41: 0 | CX41: 0 | CY41: 0 | DA41: =IFERROR( DA82 * SUM(Plan_집계표!$DA37:$DR37) / SUM(Actual_집계표!DA82:$DR82), 0) -> 0 | DB41: =IFERROR( IF( AND( SUM(Actual_집계표!DB82:$DR82)=0, SUM($DA41:DA41)<>SUM(Plan_집계표!$DA37:$DR37), DB$18<>""), (SUM(Plan_집계표!$DA37:$DR37) - SUM($DA41:DA41)) / COUNT(DB$18:$DR$18), DB82 * (SUM(Plan_집계표!$DA37:$DR37) - SUM($DA41:DA41)) / SUM(Actual_집계표!DB82:$DR82)), 0) -> 0 | DC41: =IFERROR( IF( AND( SUM(Actual_집계표!DC82:$DR82)=0, SUM($DA41:DB41)<>SUM(Plan_집계표!$DA37:$DR37), DC$18<>""), (SUM(Plan_집계표!$DA37:$DR37) - SUM($DA41:DB41)) / COUNT(DC$18:$DR$18), DC82 * (SUM(Plan_집계표!$DA37:$DR37) - SUM($DA41:DB41)) / SUM(Actual_집계표!DC82:$DR82)), 0) -> 0 | DD41: =IFERROR( IF( AND( SUM(Actual_집계표!DD82:$DR82)=0, SUM($DA41:DC41)<>SUM(Plan_집계표!$DA37:$DR37), DD$18<>""), (SUM(Plan_집계표!$DA37:$DR37) - SUM($DA41:DC41)) / COUNT(DD$18:$DR$18), DD82 * (SUM(Plan_집계표!$DA37:$DR37) - SUM($DA41:DC41)) / SUM(Actual_집계표!DD82:$DR82)), 0) -> 0 | DE41: =IFERROR( IF( AND( SUM(Actual_집계표!DE82:$DR82)=0, SUM($DA41:DD41)<>SUM(Plan_집계표!$DA37:$DR37), DE$18<>""), (SUM(Plan_집계표!$DA37:$DR37) - SUM($DA41:DD41)) / COUNT(DE$18:$DR$18), DE82 * (SUM(Plan_집계표!$DA37:$DR37) - SUM($DA41:DD41)) / SUM(Actual_집계표!DE82:$DR82)), 0) -> 0 | DF41: =IFERROR( IF( AND( SUM(Actual_집계표!DF82:$DR82)=0, SUM($DA41:DE41)<>SUM(Plan_집계표!$DA37:$DR37), DF$18<>""), (SUM(Plan_집계표!$DA37:$DR37) - SUM($DA41:DE41)) / COUNT(DF$18:$DR$18), DF82 * (SUM(Plan_집계표!$DA37:$DR37) - SUM($DA41:DE41)) / SUM(Actual_집계표!DF82:$DR82)), 0) -> 0 | DG41: =IFERROR( IF( AND( SUM(Actual_집계표!DG82:$DR82)=0, SUM($DA41:DF41)<>SUM(Plan_집계표!$DA37:$DR37), DG$18<>""), (SUM(Plan_집계표!$DA37:$DR37) - SUM($DA41:DF41)) / COUNT(DG$18:$DR$18), DG82 * (SUM(Plan_집계표!$DA37:$DR37) - SUM($DA41:DF41)) / SUM(Actual_집계표!DG82:$DR82)), 0) -> 0 | DH41: =IFERROR( IF( AND( SUM(Actual_집계표!DH82:$DR82)=0, SUM($DA41:DG41)<>SUM(Plan_집계표!$DA37:$DR37), DH$18<>""), (SUM(Plan_집계표!$DA37:$DR37) - SUM($DA41:DG41)) / COUNT(DH$18:$DR$18), DH82 * (SUM(Plan_집계표!$DA37:$DR37) - SUM($DA41:DG41)) / SUM(Actual_집계표!DH82:$DR82)), 0) -> 0 | DI41: =IFERROR( IF( AND( SUM(Actual_집계표!DI82:$DR82)=0, SUM($DA41:DH41)<>SUM(Plan_집계표!$DA37:$DR37), DI$18<>""), (SUM(Plan_집계표!$DA37:$DR37) - SUM($DA41:DH41)) / COUNT(DI$18:$DR$18), DI82 * (SUM(Plan_집계표!$DA37:$DR37) - SUM($DA41:DH41)) / SUM(Actual_집계표!DI82:$DR82)), 0) -> 0 | DJ41: =IFERROR( IF( AND( SUM(Actual_집계표!DJ82:$DR82)=0, SUM($DA41:DI41)<>SUM(Plan_집계표!$DA37:$DR37), DJ$18<>""), (SUM(Plan_집계표!$DA37:$DR37) - SUM($DA41:DI41)) / COUNT(DJ$18:$DR$18), DJ82 * (SUM(Plan_집계표!$DA37:$DR37) - SUM($DA41:DI41)) / SUM(Actual_집계표!DJ82:$DR82)), 0) -> 0 | DK41: =IFERROR( IF( AND( SUM(Actual_집계표!DK82:$DR82)=0, SUM($DA41:DJ41)<>SUM(Plan_집계표!$DA37:$DR37), DK$18<>""), (SUM(Plan_집계표!$DA37:$DR37) - SUM($DA41:DJ41)) / COUNT(DK$18:$DR$18), DK82 * (SUM(Plan_집계표!$DA37:$DR37) - SUM($DA41:DJ41)) / SUM(Actual_집계표!DK82:$DR82)), 0) -> 0 | DL41: =IFERROR( IF( AND( SUM(Actual_집계표!DL82:$DR82)=0, SUM($DA41:DK41)<>SUM(Plan_집계표!$DA37:$DR37), DL$18<>""), (SUM(Plan_집계표!$DA37:$DR37) - SUM($DA41:DK41)) / COUNT(DL$18:$DR$18), DL82 * (SUM(Plan_집계표!$DA37:$DR37) - SUM($DA41:DK41)) / SUM(Actual_집계표!DL82:$DR82)), 0) -> 0 | DM41: =IFERROR( IF( AND( SUM(Actual_집계표!DM82:$DR82)=0, SUM($DA41:DL41)<>SUM(Plan_집계표!$DA37:$DR37), DM$18<>""), (SUM(Plan_집계표!$DA37:$DR37) - SUM($DA41:DL41)) / COUNT(DM$18:$DR$18), DM82 * (SUM(Plan_집계표!$DA37:$DR37) - SUM($DA41:DL41)) / SUM(Actual_집계표!DM82:$DR82)), 0) -> 0 | DN41: =IFERROR( IF( AND( SUM(Actual_집계표!DN82:$DR82)=0, SUM($DA41:DM41)<>SUM(Plan_집계표!$DA37:$DR37), DN$18<>""), (SUM(Plan_집계표!$DA37:$DR37) - SUM($DA41:DM41)) / COUNT(DN$18:$DR$18), DN82 * (SUM(Plan_집계표!$DA37:$DR37) - SUM($DA41:DM41)) / SUM(Actual_집계표!DN82:$DR82)), 0) -> 0 | DO41: =IFERROR( IF( AND( SUM(Actual_집계표!DO82:$DR82)=0, SUM($DA41:DN41)<>SUM(Plan_집계표!$DA37:$DR37), DO$18<>""), (SUM(Plan_집계표!$DA37:$DR37) - SUM($DA41:DN41)) / COUNT(DO$18:$DR$18), DO82 * (SUM(Plan_집계표!$DA37:$DR37) - SUM($DA41:DN41)) / SUM(Actual_집계표!DO82:$DR82)), 0) -> 0 | DP41: =IFERROR( IF( AND( SUM(Actual_집계표!DP82:$DR82)=0, SUM($DA41:DO41)<>SUM(Plan_집계표!$DA37:$DR37), DP$18<>""), (SUM(Plan_집계표!$DA37:$DR37) - SUM($DA41:DO41)) / COUNT(DP$18:$DR$18), DP82 * (SUM(Plan_집계표!$DA37:$DR37) - SUM($DA41:DO41)) / SUM(Actual_집계표!DP82:$DR82)), 0) -> 0 | DQ41: =IFERROR( IF( AND( SUM(Actual_집계표!DQ82:$DR82)=0, SUM($DA41:DP41)<>SUM(Plan_집계표!$DA37:$DR37), DQ$18<>""), (SUM(Plan_집계표!$DA37:$DR37) - SUM($DA41:DP41)) / COUNT(DQ$18:$DR$18), DQ82 * (SUM(Plan_집계표!$DA37:$DR37) - SUM($DA41:DP41)) / SUM(Actual_집계표!DQ82:$DR82)), 0) -> 0 | DR41: =IFERROR( IF( AND( SUM(Actual_집계표!DR82:$DR82)=0, SUM($DA41:DQ41)<>SUM(Plan_집계표!$DA37:$DR37), DR$18<>""), (SUM(Plan_집계표!$DA37:$DR37) - SUM($DA41:DQ41)) / COUNT(DR$18:$DR$18), DR82 * (SUM(Plan_집계표!$DA37:$DR37) - SUM($DA41:DQ41)) / SUM(Actual_집계표!DR82:$DR82)), 0) -> 0 | DT41: 0 | DU41: 0 | DV41: 0 | DW41: 0 | DX41: 0 | DY41: 0 | DZ41: 0 | EA41: 0 | EB41: 0 | EC41: 0 | ED41: 0 | EE41: 0 | EF41: 0 | EG41: 0 | EH41: 0 | EI41: 0 | EJ41: 0 | EK41: 0 | EM41: 0 | EN41: 0 | EO41: 0 | EP41: 0 | EQ41: 0 | ER41: 0 | ES41: 0 | ET41: 0 | EU41: 0 | EV41: 0 | EW41: 0 | EX41: 0 | EY41: 0 | EZ41: 0 | FA41: 0 | FB41: 0 | FC41: 0 | FD41: 0
C42: 24 | D42: 0 | E42: 투입NO | G42: 24 | H42: =CLEAN(IFERROR(VLOOKUP(G42,'투입인력 단가'!$D$10:$Y$49,7,FALSE),"")) ->  | I42: =CLEAN(IFERROR(VLOOKUP(G42,'투입인력 단가'!$D$10:$Y$49,8,FALSE),"")) ->  | J42: =CLEAN(IFERROR(VLOOKUP(G42,'투입인력 단가'!$D$10:$Y$49,9,FALSE),"")) ->  | K42: =CLEAN(IFERROR(VLOOKUP(G42,'투입인력 단가'!$D$10:$Y$49,10,FALSE),"")) ->  | L42: =CLEAN(IFERROR(VLOOKUP(G42,'투입인력 단가'!$D$10:$Y$49,11,FALSE),"")) ->  | AW42: 0 | AX42: 0 | AY42: 0 | AZ42: =IFERROR(VLOOKUP(G42,'투입인력 단가'!$D$10:$Y$49,12,FALSE),0) -> 0 | BA42: 0 | BB42: =Plan_집계표!BB38 -> 0 | BC42: =Plan_집계표!BC38 -> 0 | BD42: =Plan_집계표!BD38 -> 0 | BE42: =Plan_집계표!BE38 -> 0 | BF42: =Plan_집계표!BF38 -> 0 | BG42: =Plan_집계표!BG38 -> 0 | BH42: =Plan_집계표!BH38 -> 0 | BI42: =Plan_집계표!BI38 -> 0 | BJ42: =Plan_집계표!BJ38 -> 0 | BK42: =Plan_집계표!BK38 -> 0 | BL42: =Plan_집계표!BL38 -> 0 | BM42: =Plan_집계표!BM38 -> 0 | BN42: =Plan_집계표!BN38 -> 0 | BO42: =Plan_집계표!BO38 -> 0 | BP42: =Plan_집계표!BP38 -> 0 | BQ42: =Plan_집계표!BQ38 -> 0 | BR42: =Plan_집계표!BR38 -> 0 | BS42: =Plan_집계표!BS38 -> 0 | BT42: =CLEAN(IFERROR(VLOOKUP(G42,'투입인력 단가'!$D$10:$Y$49,13,FALSE),"")) ->  | BU42: =CLEAN(IFERROR(VLOOKUP(G42,'투입인력 단가'!$D$10:$Y$49,14,FALSE),"")) ->  | BV42: =CLEAN(IFERROR(VLOOKUP(G42,'투입인력 단가'!$D$10:$Y$49,15,FALSE),"")) ->  | BW42: =IFERROR(VLOOKUP(G42,'투입인력 단가'!$D$10:$Y$49,16,FALSE),0) -> 0 | BX42: =IFERROR(VLOOKUP(G42,'투입인력 단가'!$D$10:$Y$49,17,FALSE),0) -> 0 | BZ42: =IF(BU42=MASTER!$D$4,AW42*BW42, IF(BV42=MASTER!$F$4,AW42*BX42,0)) -> 0 | CA42: =CLEAN(IFERROR(VLOOKUP(G42,'투입인력 단가'!$D$10:$Y$49,21,FALSE),"")) ->  | CB42: =IF(COUNTIF(CA43:CA$48,CA42)=0,SUMIF(CA$19:CA$48,CA42,BZ$19:BZ$48),"") ->  | CH42: 0 | CI42: 0 | CJ42: 0 | CK42: 0 | CL42: 0 | CM42: 0 | CN42: 0 | CO42: 0 | CP42: 0 | CQ42: 0 | CR42: 0 | CS42: 0 | CT42: 0 | CU42: 0 | CV42: 0 | CW42: 0 | CX42: 0 | CY42: 0 | DA42: =IFERROR( DA83 * SUM(Plan_집계표!$DA38:$DR38) / SUM(Actual_집계표!DA83:$DR83), 0) -> 0 | DB42: =IFERROR( IF( AND( SUM(Actual_집계표!DB83:$DR83)=0, SUM($DA42:DA42)<>SUM(Plan_집계표!$DA38:$DR38), DB$18<>""), (SUM(Plan_집계표!$DA38:$DR38) - SUM($DA42:DA42)) / COUNT(DB$18:$DR$18), DB83 * (SUM(Plan_집계표!$DA38:$DR38) - SUM($DA42:DA42)) / SUM(Actual_집계표!DB83:$DR83)), 0) -> 0 | DC42: =IFERROR( IF( AND( SUM(Actual_집계표!DC83:$DR83)=0, SUM($DA42:DB42)<>SUM(Plan_집계표!$DA38:$DR38), DC$18<>""), (SUM(Plan_집계표!$DA38:$DR38) - SUM($DA42:DB42)) / COUNT(DC$18:$DR$18), DC83 * (SUM(Plan_집계표!$DA38:$DR38) - SUM($DA42:DB42)) / SUM(Actual_집계표!DC83:$DR83)), 0) -> 0 | DD42: =IFERROR( IF( AND( SUM(Actual_집계표!DD83:$DR83)=0, SUM($DA42:DC42)<>SUM(Plan_집계표!$DA38:$DR38), DD$18<>""), (SUM(Plan_집계표!$DA38:$DR38) - SUM($DA42:DC42)) / COUNT(DD$18:$DR$18), DD83 * (SUM(Plan_집계표!$DA38:$DR38) - SUM($DA42:DC42)) / SUM(Actual_집계표!DD83:$DR83)), 0) -> 0 | DE42: =IFERROR( IF( AND( SUM(Actual_집계표!DE83:$DR83)=0, SUM($DA42:DD42)<>SUM(Plan_집계표!$DA38:$DR38), DE$18<>""), (SUM(Plan_집계표!$DA38:$DR38) - SUM($DA42:DD42)) / COUNT(DE$18:$DR$18), DE83 * (SUM(Plan_집계표!$DA38:$DR38) - SUM($DA42:DD42)) / SUM(Actual_집계표!DE83:$DR83)), 0) -> 0 | DF42: =IFERROR( IF( AND( SUM(Actual_집계표!DF83:$DR83)=0, SUM($DA42:DE42)<>SUM(Plan_집계표!$DA38:$DR38), DF$18<>""), (SUM(Plan_집계표!$DA38:$DR38) - SUM($DA42:DE42)) / COUNT(DF$18:$DR$18), DF83 * (SUM(Plan_집계표!$DA38:$DR38) - SUM($DA42:DE42)) / SUM(Actual_집계표!DF83:$DR83)), 0) -> 0 | DG42: =IFERROR( IF( AND( SUM(Actual_집계표!DG83:$DR83)=0, SUM($DA42:DF42)<>SUM(Plan_집계표!$DA38:$DR38), DG$18<>""), (SUM(Plan_집계표!$DA38:$DR38) - SUM($DA42:DF42)) / COUNT(DG$18:$DR$18), DG83 * (SUM(Plan_집계표!$DA38:$DR38) - SUM($DA42:DF42)) / SUM(Actual_집계표!DG83:$DR83)), 0) -> 0 | DH42: =IFERROR( IF( AND( SUM(Actual_집계표!DH83:$DR83)=0, SUM($DA42:DG42)<>SUM(Plan_집계표!$DA38:$DR38), DH$18<>""), (SUM(Plan_집계표!$DA38:$DR38) - SUM($DA42:DG42)) / COUNT(DH$18:$DR$18), DH83 * (SUM(Plan_집계표!$DA38:$DR38) - SUM($DA42:DG42)) / SUM(Actual_집계표!DH83:$DR83)), 0) -> 0 | DI42: =IFERROR( IF( AND( SUM(Actual_집계표!DI83:$DR83)=0, SUM($DA42:DH42)<>SUM(Plan_집계표!$DA38:$DR38), DI$18<>""), (SUM(Plan_집계표!$DA38:$DR38) - SUM($DA42:DH42)) / COUNT(DI$18:$DR$18), DI83 * (SUM(Plan_집계표!$DA38:$DR38) - SUM($DA42:DH42)) / SUM(Actual_집계표!DI83:$DR83)), 0) -> 0 | DJ42: =IFERROR( IF( AND( SUM(Actual_집계표!DJ83:$DR83)=0, SUM($DA42:DI42)<>SUM(Plan_집계표!$DA38:$DR38), DJ$18<>""), (SUM(Plan_집계표!$DA38:$DR38) - SUM($DA42:DI42)) / COUNT(DJ$18:$DR$18), DJ83 * (SUM(Plan_집계표!$DA38:$DR38) - SUM($DA42:DI42)) / SUM(Actual_집계표!DJ83:$DR83)), 0) -> 0 | DK42: =IFERROR( IF( AND( SUM(Actual_집계표!DK83:$DR83)=0, SUM($DA42:DJ42)<>SUM(Plan_집계표!$DA38:$DR38), DK$18<>""), (SUM(Plan_집계표!$DA38:$DR38) - SUM($DA42:DJ42)) / COUNT(DK$18:$DR$18), DK83 * (SUM(Plan_집계표!$DA38:$DR38) - SUM($DA42:DJ42)) / SUM(Actual_집계표!DK83:$DR83)), 0) -> 0 | DL42: =IFERROR( IF( AND( SUM(Actual_집계표!DL83:$DR83)=0, SUM($DA42:DK42)<>SUM(Plan_집계표!$DA38:$DR38), DL$18<>""), (SUM(Plan_집계표!$DA38:$DR38) - SUM($DA42:DK42)) / COUNT(DL$18:$DR$18), DL83 * (SUM(Plan_집계표!$DA38:$DR38) - SUM($DA42:DK42)) / SUM(Actual_집계표!DL83:$DR83)), 0) -> 0 | DM42: =IFERROR( IF( AND( SUM(Actual_집계표!DM83:$DR83)=0, SUM($DA42:DL42)<>SUM(Plan_집계표!$DA38:$DR38), DM$18<>""), (SUM(Plan_집계표!$DA38:$DR38) - SUM($DA42:DL42)) / COUNT(DM$18:$DR$18), DM83 * (SUM(Plan_집계표!$DA38:$DR38) - SUM($DA42:DL42)) / SUM(Actual_집계표!DM83:$DR83)), 0) -> 0 | DN42: =IFERROR( IF( AND( SUM(Actual_집계표!DN83:$DR83)=0, SUM($DA42:DM42)<>SUM(Plan_집계표!$DA38:$DR38), DN$18<>""), (SUM(Plan_집계표!$DA38:$DR38) - SUM($DA42:DM42)) / COUNT(DN$18:$DR$18), DN83 * (SUM(Plan_집계표!$DA38:$DR38) - SUM($DA42:DM42)) / SUM(Actual_집계표!DN83:$DR83)), 0) -> 0 | DO42: =IFERROR( IF( AND( SUM(Actual_집계표!DO83:$DR83)=0, SUM($DA42:DN42)<>SUM(Plan_집계표!$DA38:$DR38), DO$18<>""), (SUM(Plan_집계표!$DA38:$DR38) - SUM($DA42:DN42)) / COUNT(DO$18:$DR$18), DO83 * (SUM(Plan_집계표!$DA38:$DR38) - SUM($DA42:DN42)) / SUM(Actual_집계표!DO83:$DR83)), 0) -> 0 | DP42: =IFERROR( IF( AND( SUM(Actual_집계표!DP83:$DR83)=0, SUM($DA42:DO42)<>SUM(Plan_집계표!$DA38:$DR38), DP$18<>""), (SUM(Plan_집계표!$DA38:$DR38) - SUM($DA42:DO42)) / COUNT(DP$18:$DR$18), DP83 * (SUM(Plan_집계표!$DA38:$DR38) - SUM($DA42:DO42)) / SUM(Actual_집계표!DP83:$DR83)), 0) -> 0 | DQ42: =IFERROR( IF( AND( SUM(Actual_집계표!DQ83:$DR83)=0, SUM($DA42:DP42)<>SUM(Plan_집계표!$DA38:$DR38), DQ$18<>""), (SUM(Plan_집계표!$DA38:$DR38) - SUM($DA42:DP42)) / COUNT(DQ$18:$DR$18), DQ83 * (SUM(Plan_집계표!$DA38:$DR38) - SUM($DA42:DP42)) / SUM(Actual_집계표!DQ83:$DR83)), 0) -> 0 | DR42: =IFERROR( IF( AND( SUM(Actual_집계표!DR83:$DR83)=0, SUM($DA42:DQ42)<>SUM(Plan_집계표!$DA38:$DR38), DR$18<>""), (SUM(Plan_집계표!$DA38:$DR38) - SUM($DA42:DQ42)) / COUNT(DR$18:$DR$18), DR83 * (SUM(Plan_집계표!$DA38:$DR38) - SUM($DA42:DQ42)) / SUM(Actual_집계표!DR83:$DR83)), 0) -> 0 | DT42: 0 | DU42: 0 | DV42: 0 | DW42: 0 | DX42: 0 | DY42: 0 | DZ42: 0 | EA42: 0 | EB42: 0 | EC42: 0 | ED42: 0 | EE42: 0 | EF42: 0 | EG42: 0 | EH42: 0 | EI42: 0 | EJ42: 0 | EK42: 0 | EM42: 0 | EN42: 0 | EO42: 0 | EP42: 0 | EQ42: 0 | ER42: 0 | ES42: 0 | ET42: 0 | EU42: 0 | EV42: 0 | EW42: 0 | EX42: 0 | EY42: 0 | EZ42: 0 | FA42: 0 | FB42: 0 | FC42: 0 | FD42: 0
C43: 25 | D43: 0 | E43: 투입NO | G43: 25 | H43: =CLEAN(IFERROR(VLOOKUP(G43,'투입인력 단가'!$D$10:$Y$49,7,FALSE),"")) ->  | I43: =CLEAN(IFERROR(VLOOKUP(G43,'투입인력 단가'!$D$10:$Y$49,8,FALSE),"")) ->  | J43: =CLEAN(IFERROR(VLOOKUP(G43,'투입인력 단가'!$D$10:$Y$49,9,FALSE),"")) ->  | K43: =CLEAN(IFERROR(VLOOKUP(G43,'투입인력 단가'!$D$10:$Y$49,10,FALSE),"")) ->  | L43: =CLEAN(IFERROR(VLOOKUP(G43,'투입인력 단가'!$D$10:$Y$49,11,FALSE),"")) ->  | AW43: 0 | AX43: 0 | AY43: 0 | AZ43: =IFERROR(VLOOKUP(G43,'투입인력 단가'!$D$10:$Y$49,12,FALSE),0) -> 0 | BA43: 0 | BB43: =Plan_집계표!BB39 -> 0 | BC43: =Plan_집계표!BC39 -> 0 | BD43: =Plan_집계표!BD39 -> 0 | BE43: =Plan_집계표!BE39 -> 0 | BF43: =Plan_집계표!BF39 -> 0 | BG43: =Plan_집계표!BG39 -> 0 | BH43: =Plan_집계표!BH39 -> 0 | BI43: =Plan_집계표!BI39 -> 0 | BJ43: =Plan_집계표!BJ39 -> 0 | BK43: =Plan_집계표!BK39 -> 0 | BL43: =Plan_집계표!BL39 -> 0 | BM43: =Plan_집계표!BM39 -> 0 | BN43: =Plan_집계표!BN39 -> 0 | BO43: =Plan_집계표!BO39 -> 0 | BP43: =Plan_집계표!BP39 -> 0 | BQ43: =Plan_집계표!BQ39 -> 0 | BR43: =Plan_집계표!BR39 -> 0 | BS43: =Plan_집계표!BS39 -> 0 | BT43: =CLEAN(IFERROR(VLOOKUP(G43,'투입인력 단가'!$D$10:$Y$49,13,FALSE),"")) ->  | BU43: =CLEAN(IFERROR(VLOOKUP(G43,'투입인력 단가'!$D$10:$Y$49,14,FALSE),"")) ->  | BV43: =CLEAN(IFERROR(VLOOKUP(G43,'투입인력 단가'!$D$10:$Y$49,15,FALSE),"")) ->  | BW43: =IFERROR(VLOOKUP(G43,'투입인력 단가'!$D$10:$Y$49,16,FALSE),0) -> 0 | BX43: =IFERROR(VLOOKUP(G43,'투입인력 단가'!$D$10:$Y$49,17,FALSE),0) -> 0 | BZ43: =IF(BU43=MASTER!$D$4,AW43*BW43, IF(BV43=MASTER!$F$4,AW43*BX43,0)) -> 0 | CA43: =CLEAN(IFERROR(VLOOKUP(G43,'투입인력 단가'!$D$10:$Y$49,21,FALSE),"")) ->  | CB43: =IF(COUNTIF(CA44:CA$48,CA43)=0,SUMIF(CA$19:CA$48,CA43,BZ$19:BZ$48),"") ->  | CH43: 0 | CI43: 0 | CJ43: 0 | CK43: 0 | CL43: 0 | CM43: 0 | CN43: 0 | CO43: 0 | CP43: 0 | CQ43: 0 | CR43: 0 | CS43: 0 | CT43: 0 | CU43: 0 | CV43: 0 | CW43: 0 | CX43: 0 | CY43: 0 | DA43: =IFERROR( DA84 * SUM(Plan_집계표!$DA39:$DR39) / SUM(Actual_집계표!DA84:$DR84), 0) -> 0 | DB43: =IFERROR( IF( AND( SUM(Actual_집계표!DB84:$DR84)=0, SUM($DA43:DA43)<>SUM(Plan_집계표!$DA39:$DR39), DB$18<>""), (SUM(Plan_집계표!$DA39:$DR39) - SUM($DA43:DA43)) / COUNT(DB$18:$DR$18), DB84 * (SUM(Plan_집계표!$DA39:$DR39) - SUM($DA43:DA43)) / SUM(Actual_집계표!DB84:$DR84)), 0) -> 0 | DC43: =IFERROR( IF( AND( SUM(Actual_집계표!DC84:$DR84)=0, SUM($DA43:DB43)<>SUM(Plan_집계표!$DA39:$DR39), DC$18<>""), (SUM(Plan_집계표!$DA39:$DR39) - SUM($DA43:DB43)) / COUNT(DC$18:$DR$18), DC84 * (SUM(Plan_집계표!$DA39:$DR39) - SUM($DA43:DB43)) / SUM(Actual_집계표!DC84:$DR84)), 0) -> 0 | DD43: =IFERROR( IF( AND( SUM(Actual_집계표!DD84:$DR84)=0, SUM($DA43:DC43)<>SUM(Plan_집계표!$DA39:$DR39), DD$18<>""), (SUM(Plan_집계표!$DA39:$DR39) - SUM($DA43:DC43)) / COUNT(DD$18:$DR$18), DD84 * (SUM(Plan_집계표!$DA39:$DR39) - SUM($DA43:DC43)) / SUM(Actual_집계표!DD84:$DR84)), 0) -> 0 | DE43: =IFERROR( IF( AND( SUM(Actual_집계표!DE84:$DR84)=0, SUM($DA43:DD43)<>SUM(Plan_집계표!$DA39:$DR39), DE$18<>""), (SUM(Plan_집계표!$DA39:$DR39) - SUM($DA43:DD43)) / COUNT(DE$18:$DR$18), DE84 * (SUM(Plan_집계표!$DA39:$DR39) - SUM($DA43:DD43)) / SUM(Actual_집계표!DE84:$DR84)), 0) -> 0 | DF43: =IFERROR( IF( AND( SUM(Actual_집계표!DF84:$DR84)=0, SUM($DA43:DE43)<>SUM(Plan_집계표!$DA39:$DR39), DF$18<>""), (SUM(Plan_집계표!$DA39:$DR39) - SUM($DA43:DE43)) / COUNT(DF$18:$DR$18), DF84 * (SUM(Plan_집계표!$DA39:$DR39) - SUM($DA43:DE43)) / SUM(Actual_집계표!DF84:$DR84)), 0) -> 0 | DG43: =IFERROR( IF( AND( SUM(Actual_집계표!DG84:$DR84)=0, SUM($DA43:DF43)<>SUM(Plan_집계표!$DA39:$DR39), DG$18<>""), (SUM(Plan_집계표!$DA39:$DR39) - SUM($DA43:DF43)) / COUNT(DG$18:$DR$18), DG84 * (SUM(Plan_집계표!$DA39:$DR39) - SUM($DA43:DF43)) / SUM(Actual_집계표!DG84:$DR84)), 0) -> 0 | DH43: =IFERROR( IF( AND( SUM(Actual_집계표!DH84:$DR84)=0, SUM($DA43:DG43)<>SUM(Plan_집계표!$DA39:$DR39), DH$18<>""), (SUM(Plan_집계표!$DA39:$DR39) - SUM($DA43:DG43)) / COUNT(DH$18:$DR$18), DH84 * (SUM(Plan_집계표!$DA39:$DR39) - SUM($DA43:DG43)) / SUM(Actual_집계표!DH84:$DR84)), 0) -> 0 | DI43: =IFERROR( IF( AND( SUM(Actual_집계표!DI84:$DR84)=0, SUM($DA43:DH43)<>SUM(Plan_집계표!$DA39:$DR39), DI$18<>""), (SUM(Plan_집계표!$DA39:$DR39) - SUM($DA43:DH43)) / COUNT(DI$18:$DR$18), DI84 * (SUM(Plan_집계표!$DA39:$DR39) - SUM($DA43:DH43)) / SUM(Actual_집계표!DI84:$DR84)), 0) -> 0 | DJ43: =IFERROR( IF( AND( SUM(Actual_집계표!DJ84:$DR84)=0, SUM($DA43:DI43)<>SUM(Plan_집계표!$DA39:$DR39), DJ$18<>""), (SUM(Plan_집계표!$DA39:$DR39) - SUM($DA43:DI43)) / COUNT(DJ$18:$DR$18), DJ84 * (SUM(Plan_집계표!$DA39:$DR39) - SUM($DA43:DI43)) / SUM(Actual_집계표!DJ84:$DR84)), 0) -> 0 | DK43: =IFERROR( IF( AND( SUM(Actual_집계표!DK84:$DR84)=0, SUM($DA43:DJ43)<>SUM(Plan_집계표!$DA39:$DR39), DK$18<>""), (SUM(Plan_집계표!$DA39:$DR39) - SUM($DA43:DJ43)) / COUNT(DK$18:$DR$18), DK84 * (SUM(Plan_집계표!$DA39:$DR39) - SUM($DA43:DJ43)) / SUM(Actual_집계표!DK84:$DR84)), 0) -> 0 | DL43: =IFERROR( IF( AND( SUM(Actual_집계표!DL84:$DR84)=0, SUM($DA43:DK43)<>SUM(Plan_집계표!$DA39:$DR39), DL$18<>""), (SUM(Plan_집계표!$DA39:$DR39) - SUM($DA43:DK43)) / COUNT(DL$18:$DR$18), DL84 * (SUM(Plan_집계표!$DA39:$DR39) - SUM($DA43:DK43)) / SUM(Actual_집계표!DL84:$DR84)), 0) -> 0 | DM43: =IFERROR( IF( AND( SUM(Actual_집계표!DM84:$DR84)=0, SUM($DA43:DL43)<>SUM(Plan_집계표!$DA39:$DR39), DM$18<>""), (SUM(Plan_집계표!$DA39:$DR39) - SUM($DA43:DL43)) / COUNT(DM$18:$DR$18), DM84 * (SUM(Plan_집계표!$DA39:$DR39) - SUM($DA43:DL43)) / SUM(Actual_집계표!DM84:$DR84)), 0) -> 0 | DN43: =IFERROR( IF( AND( SUM(Actual_집계표!DN84:$DR84)=0, SUM($DA43:DM43)<>SUM(Plan_집계표!$DA39:$DR39), DN$18<>""), (SUM(Plan_집계표!$DA39:$DR39) - SUM($DA43:DM43)) / COUNT(DN$18:$DR$18), DN84 * (SUM(Plan_집계표!$DA39:$DR39) - SUM($DA43:DM43)) / SUM(Actual_집계표!DN84:$DR84)), 0) -> 0 | DO43: =IFERROR( IF( AND( SUM(Actual_집계표!DO84:$DR84)=0, SUM($DA43:DN43)<>SUM(Plan_집계표!$DA39:$DR39), DO$18<>""), (SUM(Plan_집계표!$DA39:$DR39) - SUM($DA43:DN43)) / COUNT(DO$18:$DR$18), DO84 * (SUM(Plan_집계표!$DA39:$DR39) - SUM($DA43:DN43)) / SUM(Actual_집계표!DO84:$DR84)), 0) -> 0 | DP43: =IFERROR( IF( AND( SUM(Actual_집계표!DP84:$DR84)=0, SUM($DA43:DO43)<>SUM(Plan_집계표!$DA39:$DR39), DP$18<>""), (SUM(Plan_집계표!$DA39:$DR39) - SUM($DA43:DO43)) / COUNT(DP$18:$DR$18), DP84 * (SUM(Plan_집계표!$DA39:$DR39) - SUM($DA43:DO43)) / SUM(Actual_집계표!DP84:$DR84)), 0) -> 0 | DQ43: =IFERROR( IF( AND( SUM(Actual_집계표!DQ84:$DR84)=0, SUM($DA43:DP43)<>SUM(Plan_집계표!$DA39:$DR39), DQ$18<>""), (SUM(Plan_집계표!$DA39:$DR39) - SUM($DA43:DP43)) / COUNT(DQ$18:$DR$18), DQ84 * (SUM(Plan_집계표!$DA39:$DR39) - SUM($DA43:DP43)) / SUM(Actual_집계표!DQ84:$DR84)), 0) -> 0 | DR43: =IFERROR( IF( AND( SUM(Actual_집계표!DR84:$DR84)=0, SUM($DA43:DQ43)<>SUM(Plan_집계표!$DA39:$DR39), DR$18<>""), (SUM(Plan_집계표!$DA39:$DR39) - SUM($DA43:DQ43)) / COUNT(DR$18:$DR$18), DR84 * (SUM(Plan_집계표!$DA39:$DR39) - SUM($DA43:DQ43)) / SUM(Actual_집계표!DR84:$DR84)), 0) -> 0 | DT43: 0 | DU43: 0 | DV43: 0 | DW43: 0 | DX43: 0 | DY43: 0 | DZ43: 0 | EA43: 0 | EB43: 0 | EC43: 0 | ED43: 0 | EE43: 0 | EF43: 0 | EG43: 0 | EH43: 0 | EI43: 0 | EJ43: 0 | EK43: 0 | EM43: 0 | EN43: 0 | EO43: 0 | EP43: 0 | EQ43: 0 | ER43: 0 | ES43: 0 | ET43: 0 | EU43: 0 | EV43: 0 | EW43: 0 | EX43: 0 | EY43: 0 | EZ43: 0 | FA43: 0 | FB43: 0 | FC43: 0 | FD43: 0
C44: 26 | D44: 0 | E44: 투입NO | G44: 26 | H44: =CLEAN(IFERROR(VLOOKUP(G44,'투입인력 단가'!$D$10:$Y$49,7,FALSE),"")) ->  | I44: =CLEAN(IFERROR(VLOOKUP(G44,'투입인력 단가'!$D$10:$Y$49,8,FALSE),"")) ->  | J44: =CLEAN(IFERROR(VLOOKUP(G44,'투입인력 단가'!$D$10:$Y$49,9,FALSE),"")) ->  | K44: =CLEAN(IFERROR(VLOOKUP(G44,'투입인력 단가'!$D$10:$Y$49,10,FALSE),"")) ->  | L44: =CLEAN(IFERROR(VLOOKUP(G44,'투입인력 단가'!$D$10:$Y$49,11,FALSE),"")) ->  | AW44: 0 | AX44: 0 | AY44: 0 | AZ44: =IFERROR(VLOOKUP(G44,'투입인력 단가'!$D$10:$Y$49,12,FALSE),0) -> 0 | BA44: 0 | BB44: =Plan_집계표!BB40 -> 0 | BC44: =Plan_집계표!BC40 -> 0 | BD44: =Plan_집계표!BD40 -> 0 | BE44: =Plan_집계표!BE40 -> 0 | BF44: =Plan_집계표!BF40 -> 0 | BG44: =Plan_집계표!BG40 -> 0 | BH44: =Plan_집계표!BH40 -> 0 | BI44: =Plan_집계표!BI40 -> 0 | BJ44: =Plan_집계표!BJ40 -> 0 | BK44: =Plan_집계표!BK40 -> 0 | BL44: =Plan_집계표!BL40 -> 0 | BM44: =Plan_집계표!BM40 -> 0 | BN44: =Plan_집계표!BN40 -> 0 | BO44: =Plan_집계표!BO40 -> 0 | BP44: =Plan_집계표!BP40 -> 0 | BQ44: =Plan_집계표!BQ40 -> 0 | BR44: =Plan_집계표!BR40 -> 0 | BS44: =Plan_집계표!BS40 -> 0 | BT44: =CLEAN(IFERROR(VLOOKUP(G44,'투입인력 단가'!$D$10:$Y$49,13,FALSE),"")) ->  | BU44: =CLEAN(IFERROR(VLOOKUP(G44,'투입인력 단가'!$D$10:$Y$49,14,FALSE),"")) ->  | BV44: =CLEAN(IFERROR(VLOOKUP(G44,'투입인력 단가'!$D$10:$Y$49,15,FALSE),"")) ->  | BW44: =IFERROR(VLOOKUP(G44,'투입인력 단가'!$D$10:$Y$49,16,FALSE),0) -> 0 | BX44: =IFERROR(VLOOKUP(G44,'투입인력 단가'!$D$10:$Y$49,17,FALSE),0) -> 0 | BZ44: =IF(BU44=MASTER!$D$4,AW44*BW44, IF(BV44=MASTER!$F$4,AW44*BX44,0)) -> 0 | CA44: =CLEAN(IFERROR(VLOOKUP(G44,'투입인력 단가'!$D$10:$Y$49,21,FALSE),"")) ->  | CB44: =IF(COUNTIF(CA45:CA$48,CA44)=0,SUMIF(CA$19:CA$48,CA44,BZ$19:BZ$48),"") ->  | CH44: 0 | CI44: 0 | CJ44: 0 | CK44: 0 | CL44: 0 | CM44: 0 | CN44: 0 | CO44: 0 | CP44: 0 | CQ44: 0 | CR44: 0 | CS44: 0 | CT44: 0 | CU44: 0 | CV44: 0 | CW44: 0 | CX44: 0 | CY44: 0 | DA44: =IFERROR( DA85 * SUM(Plan_집계표!$DA40:$DR40) / SUM(Actual_집계표!DA85:$DR85), 0) -> 0 | DB44: =IFERROR( IF( AND( SUM(Actual_집계표!DB85:$DR85)=0, SUM($DA44:DA44)<>SUM(Plan_집계표!$DA40:$DR40), DB$18<>""), (SUM(Plan_집계표!$DA40:$DR40) - SUM($DA44:DA44)) / COUNT(DB$18:$DR$18), DB85 * (SUM(Plan_집계표!$DA40:$DR40) - SUM($DA44:DA44)) / SUM(Actual_집계표!DB85:$DR85)), 0) -> 0 | DC44: =IFERROR( IF( AND( SUM(Actual_집계표!DC85:$DR85)=0, SUM($DA44:DB44)<>SUM(Plan_집계표!$DA40:$DR40), DC$18<>""), (SUM(Plan_집계표!$DA40:$DR40) - SUM($DA44:DB44)) / COUNT(DC$18:$DR$18), DC85 * (SUM(Plan_집계표!$DA40:$DR40) - SUM($DA44:DB44)) / SUM(Actual_집계표!DC85:$DR85)), 0) -> 0 | DD44: =IFERROR( IF( AND( SUM(Actual_집계표!DD85:$DR85)=0, SUM($DA44:DC44)<>SUM(Plan_집계표!$DA40:$DR40), DD$18<>""), (SUM(Plan_집계표!$DA40:$DR40) - SUM($DA44:DC44)) / COUNT(DD$18:$DR$18), DD85 * (SUM(Plan_집계표!$DA40:$DR40) - SUM($DA44:DC44)) / SUM(Actual_집계표!DD85:$DR85)), 0) -> 0 | DE44: =IFERROR( IF( AND( SUM(Actual_집계표!DE85:$DR85)=0, SUM($DA44:DD44)<>SUM(Plan_집계표!$DA40:$DR40), DE$18<>""), (SUM(Plan_집계표!$DA40:$DR40) - SUM($DA44:DD44)) / COUNT(DE$18:$DR$18), DE85 * (SUM(Plan_집계표!$DA40:$DR40) - SUM($DA44:DD44)) / SUM(Actual_집계표!DE85:$DR85)), 0) -> 0 | DF44: =IFERROR( IF( AND( SUM(Actual_집계표!DF85:$DR85)=0, SUM($DA44:DE44)<>SUM(Plan_집계표!$DA40:$DR40), DF$18<>""), (SUM(Plan_집계표!$DA40:$DR40) - SUM($DA44:DE44)) / COUNT(DF$18:$DR$18), DF85 * (SUM(Plan_집계표!$DA40:$DR40) - SUM($DA44:DE44)) / SUM(Actual_집계표!DF85:$DR85)), 0) -> 0 | DG44: =IFERROR( IF( AND( SUM(Actual_집계표!DG85:$DR85)=0, SUM($DA44:DF44)<>SUM(Plan_집계표!$DA40:$DR40), DG$18<>""), (SUM(Plan_집계표!$DA40:$DR40) - SUM($DA44:DF44)) / COUNT(DG$18:$DR$18), DG85 * (SUM(Plan_집계표!$DA40:$DR40) - SUM($DA44:DF44)) / SUM(Actual_집계표!DG85:$DR85)), 0) -> 0 | DH44: =IFERROR( IF( AND( SUM(Actual_집계표!DH85:$DR85)=0, SUM($DA44:DG44)<>SUM(Plan_집계표!$DA40:$DR40), DH$18<>""), (SUM(Plan_집계표!$DA40:$DR40) - SUM($DA44:DG44)) / COUNT(DH$18:$DR$18), DH85 * (SUM(Plan_집계표!$DA40:$DR40) - SUM($DA44:DG44)) / SUM(Actual_집계표!DH85:$DR85)), 0) -> 0 | DI44: =IFERROR( IF( AND( SUM(Actual_집계표!DI85:$DR85)=0, SUM($DA44:DH44)<>SUM(Plan_집계표!$DA40:$DR40), DI$18<>""), (SUM(Plan_집계표!$DA40:$DR40) - SUM($DA44:DH44)) / COUNT(DI$18:$DR$18), DI85 * (SUM(Plan_집계표!$DA40:$DR40) - SUM($DA44:DH44)) / SUM(Actual_집계표!DI85:$DR85)), 0) -> 0 | DJ44: =IFERROR( IF( AND( SUM(Actual_집계표!DJ85:$DR85)=0, SUM($DA44:DI44)<>SUM(Plan_집계표!$DA40:$DR40), DJ$18<>""), (SUM(Plan_집계표!$DA40:$DR40) - SUM($DA44:DI44)) / COUNT(DJ$18:$DR$18), DJ85 * (SUM(Plan_집계표!$DA40:$DR40) - SUM($DA44:DI44)) / SUM(Actual_집계표!DJ85:$DR85)), 0) -> 0 | DK44: =IFERROR( IF( AND( SUM(Actual_집계표!DK85:$DR85)=0, SUM($DA44:DJ44)<>SUM(Plan_집계표!$DA40:$DR40), DK$18<>""), (SUM(Plan_집계표!$DA40:$DR40) - SUM($DA44:DJ44)) / COUNT(DK$18:$DR$18), DK85 * (SUM(Plan_집계표!$DA40:$DR40) - SUM($DA44:DJ44)) / SUM(Actual_집계표!DK85:$DR85)), 0) -> 0 | DL44: =IFERROR( IF( AND( SUM(Actual_집계표!DL85:$DR85)=0, SUM($DA44:DK44)<>SUM(Plan_집계표!$DA40:$DR40), DL$18<>""), (SUM(Plan_집계표!$DA40:$DR40) - SUM($DA44:DK44)) / COUNT(DL$18:$DR$18), DL85 * (SUM(Plan_집계표!$DA40:$DR40) - SUM($DA44:DK44)) / SUM(Actual_집계표!DL85:$DR85)), 0) -> 0 | DM44: =IFERROR( IF( AND( SUM(Actual_집계표!DM85:$DR85)=0, SUM($DA44:DL44)<>SUM(Plan_집계표!$DA40:$DR40), DM$18<>""), (SUM(Plan_집계표!$DA40:$DR40) - SUM($DA44:DL44)) / COUNT(DM$18:$DR$18), DM85 * (SUM(Plan_집계표!$DA40:$DR40) - SUM($DA44:DL44)) / SUM(Actual_집계표!DM85:$DR85)), 0) -> 0 | DN44: =IFERROR( IF( AND( SUM(Actual_집계표!DN85:$DR85)=0, SUM($DA44:DM44)<>SUM(Plan_집계표!$DA40:$DR40), DN$18<>""), (SUM(Plan_집계표!$DA40:$DR40) - SUM($DA44:DM44)) / COUNT(DN$18:$DR$18), DN85 * (SUM(Plan_집계표!$DA40:$DR40) - SUM($DA44:DM44)) / SUM(Actual_집계표!DN85:$DR85)), 0) -> 0 | DO44: =IFERROR( IF( AND( SUM(Actual_집계표!DO85:$DR85)=0, SUM($DA44:DN44)<>SUM(Plan_집계표!$DA40:$DR40), DO$18<>""), (SUM(Plan_집계표!$DA40:$DR40) - SUM($DA44:DN44)) / COUNT(DO$18:$DR$18), DO85 * (SUM(Plan_집계표!$DA40:$DR40) - SUM($DA44:DN44)) / SUM(Actual_집계표!DO85:$DR85)), 0) -> 0 | DP44: =IFERROR( IF( AND( SUM(Actual_집계표!DP85:$DR85)=0, SUM($DA44:DO44)<>SUM(Plan_집계표!$DA40:$DR40), DP$18<>""), (SUM(Plan_집계표!$DA40:$DR40) - SUM($DA44:DO44)) / COUNT(DP$18:$DR$18), DP85 * (SUM(Plan_집계표!$DA40:$DR40) - SUM($DA44:DO44)) / SUM(Actual_집계표!DP85:$DR85)), 0) -> 0 | DQ44: =IFERROR( IF( AND( SUM(Actual_집계표!DQ85:$DR85)=0, SUM($DA44:DP44)<>SUM(Plan_집계표!$DA40:$DR40), DQ$18<>""), (SUM(Plan_집계표!$DA40:$DR40) - SUM($DA44:DP44)) / COUNT(DQ$18:$DR$18), DQ85 * (SUM(Plan_집계표!$DA40:$DR40) - SUM($DA44:DP44)) / SUM(Actual_집계표!DQ85:$DR85)), 0) -> 0 | DR44: =IFERROR( IF( AND( SUM(Actual_집계표!DR85:$DR85)=0, SUM($DA44:DQ44)<>SUM(Plan_집계표!$DA40:$DR40), DR$18<>""), (SUM(Plan_집계표!$DA40:$DR40) - SUM($DA44:DQ44)) / COUNT(DR$18:$DR$18), DR85 * (SUM(Plan_집계표!$DA40:$DR40) - SUM($DA44:DQ44)) / SUM(Actual_집계표!DR85:$DR85)), 0) -> 0 | DT44: 0 | DU44: 0 | DV44: 0 | DW44: 0 | DX44: 0 | DY44: 0 | DZ44: 0 | EA44: 0 | EB44: 0 | EC44: 0 | ED44: 0 | EE44: 0 | EF44: 0 | EG44: 0 | EH44: 0 | EI44: 0 | EJ44: 0 | EK44: 0 | EM44: 0 | EN44: 0 | EO44: 0 | EP44: 0 | EQ44: 0 | ER44: 0 | ES44: 0 | ET44: 0 | EU44: 0 | EV44: 0 | EW44: 0 | EX44: 0 | EY44: 0 | EZ44: 0 | FA44: 0 | FB44: 0 | FC44: 0 | FD44: 0
C45: 27 | D45: 0 | E45: 투입NO | G45: 27 | H45: =CLEAN(IFERROR(VLOOKUP(G45,'투입인력 단가'!$D$10:$Y$49,7,FALSE),"")) ->  | I45: =CLEAN(IFERROR(VLOOKUP(G45,'투입인력 단가'!$D$10:$Y$49,8,FALSE),"")) ->  | J45: =CLEAN(IFERROR(VLOOKUP(G45,'투입인력 단가'!$D$10:$Y$49,9,FALSE),"")) ->  | K45: =CLEAN(IFERROR(VLOOKUP(G45,'투입인력 단가'!$D$10:$Y$49,10,FALSE),"")) ->  | L45: =CLEAN(IFERROR(VLOOKUP(G45,'투입인력 단가'!$D$10:$Y$49,11,FALSE),"")) ->  | AW45: 0 | AX45: 0 | AY45: 0 | AZ45: =IFERROR(VLOOKUP(G45,'투입인력 단가'!$D$10:$Y$49,12,FALSE),0) -> 0 | BA45: 0 | BB45: =Plan_집계표!BB41 -> 0 | BC45: =Plan_집계표!BC41 -> 0 | BD45: =Plan_집계표!BD41 -> 0 | BE45: =Plan_집계표!BE41 -> 0 | BF45: =Plan_집계표!BF41 -> 0 | BG45: =Plan_집계표!BG41 -> 0 | BH45: =Plan_집계표!BH41 -> 0 | BI45: =Plan_집계표!BI41 -> 0 | BJ45: =Plan_집계표!BJ41 -> 0 | BK45: =Plan_집계표!BK41 -> 0 | BL45: =Plan_집계표!BL41 -> 0 | BM45: =Plan_집계표!BM41 -> 0 | BN45: =Plan_집계표!BN41 -> 0 | BO45: =Plan_집계표!BO41 -> 0 | BP45: =Plan_집계표!BP41 -> 0 | BQ45: =Plan_집계표!BQ41 -> 0 | BR45: =Plan_집계표!BR41 -> 0 | BS45: =Plan_집계표!BS41 -> 0 | BT45: =CLEAN(IFERROR(VLOOKUP(G45,'투입인력 단가'!$D$10:$Y$49,13,FALSE),"")) ->  | BU45: =CLEAN(IFERROR(VLOOKUP(G45,'투입인력 단가'!$D$10:$Y$49,14,FALSE),"")) ->  | BV45: =CLEAN(IFERROR(VLOOKUP(G45,'투입인력 단가'!$D$10:$Y$49,15,FALSE),"")) ->  | BW45: =IFERROR(VLOOKUP(G45,'투입인력 단가'!$D$10:$Y$49,16,FALSE),0) -> 0 | BX45: =IFERROR(VLOOKUP(G45,'투입인력 단가'!$D$10:$Y$49,17,FALSE),0) -> 0 | BZ45: =IF(BU45=MASTER!$D$4,AW45*BW45, IF(BV45=MASTER!$F$4,AW45*BX45,0)) -> 0 | CA45: =CLEAN(IFERROR(VLOOKUP(G45,'투입인력 단가'!$D$10:$Y$49,21,FALSE),"")) ->  | CB45: =IF(COUNTIF(CA46:CA$48,CA45)=0,SUMIF(CA$19:CA$48,CA45,BZ$19:BZ$48),"") ->  | CH45: 0 | CI45: 0 | CJ45: 0 | CK45: 0 | CL45: 0 | CM45: 0 | CN45: 0 | CO45: 0 | CP45: 0 | CQ45: 0 | CR45: 0 | CS45: 0 | CT45: 0 | CU45: 0 | CV45: 0 | CW45: 0 | CX45: 0 | CY45: 0 | DA45: =IFERROR( DA86 * SUM(Plan_집계표!$DA41:$DR41) / SUM(Actual_집계표!DA86:$DR86), 0) -> 0 | DB45: =IFERROR( IF( AND( SUM(Actual_집계표!DB86:$DR86)=0, SUM($DA45:DA45)<>SUM(Plan_집계표!$DA41:$DR41), DB$18<>""), (SUM(Plan_집계표!$DA41:$DR41) - SUM($DA45:DA45)) / COUNT(DB$18:$DR$18), DB86 * (SUM(Plan_집계표!$DA41:$DR41) - SUM($DA45:DA45)) / SUM(Actual_집계표!DB86:$DR86)), 0) -> 0 | DC45: =IFERROR( IF( AND( SUM(Actual_집계표!DC86:$DR86)=0, SUM($DA45:DB45)<>SUM(Plan_집계표!$DA41:$DR41), DC$18<>""), (SUM(Plan_집계표!$DA41:$DR41) - SUM($DA45:DB45)) / COUNT(DC$18:$DR$18), DC86 * (SUM(Plan_집계표!$DA41:$DR41) - SUM($DA45:DB45)) / SUM(Actual_집계표!DC86:$DR86)), 0) -> 0 | DD45: =IFERROR( IF( AND( SUM(Actual_집계표!DD86:$DR86)=0, SUM($DA45:DC45)<>SUM(Plan_집계표!$DA41:$DR41), DD$18<>""), (SUM(Plan_집계표!$DA41:$DR41) - SUM($DA45:DC45)) / COUNT(DD$18:$DR$18), DD86 * (SUM(Plan_집계표!$DA41:$DR41) - SUM($DA45:DC45)) / SUM(Actual_집계표!DD86:$DR86)), 0) -> 0 | DE45: =IFERROR( IF( AND( SUM(Actual_집계표!DE86:$DR86)=0, SUM($DA45:DD45)<>SUM(Plan_집계표!$DA41:$DR41), DE$18<>""), (SUM(Plan_집계표!$DA41:$DR41) - SUM($DA45:DD45)) / COUNT(DE$18:$DR$18), DE86 * (SUM(Plan_집계표!$DA41:$DR41) - SUM($DA45:DD45)) / SUM(Actual_집계표!DE86:$DR86)), 0) -> 0 | DF45: =IFERROR( IF( AND( SUM(Actual_집계표!DF86:$DR86)=0, SUM($DA45:DE45)<>SUM(Plan_집계표!$DA41:$DR41), DF$18<>""), (SUM(Plan_집계표!$DA41:$DR41) - SUM($DA45:DE45)) / COUNT(DF$18:$DR$18), DF86 * (SUM(Plan_집계표!$DA41:$DR41) - SUM($DA45:DE45)) / SUM(Actual_집계표!DF86:$DR86)), 0) -> 0 | DG45: =IFERROR( IF( AND( SUM(Actual_집계표!DG86:$DR86)=0, SUM($DA45:DF45)<>SUM(Plan_집계표!$DA41:$DR41), DG$18<>""), (SUM(Plan_집계표!$DA41:$DR41) - SUM($DA45:DF45)) / COUNT(DG$18:$DR$18), DG86 * (SUM(Plan_집계표!$DA41:$DR41) - SUM($DA45:DF45)) / SUM(Actual_집계표!DG86:$DR86)), 0) -> 0 | DH45: =IFERROR( IF( AND( SUM(Actual_집계표!DH86:$DR86)=0, SUM($DA45:DG45)<>SUM(Plan_집계표!$DA41:$DR41), DH$18<>""), (SUM(Plan_집계표!$DA41:$DR41) - SUM($DA45:DG45)) / COUNT(DH$18:$DR$18), DH86 * (SUM(Plan_집계표!$DA41:$DR41) - SUM($DA45:DG45)) / SUM(Actual_집계표!DH86:$DR86)), 0) -> 0 | DI45: =IFERROR( IF( AND( SUM(Actual_집계표!DI86:$DR86)=0, SUM($DA45:DH45)<>SUM(Plan_집계표!$DA41:$DR41), DI$18<>""), (SUM(Plan_집계표!$DA41:$DR41) - SUM($DA45:DH45)) / COUNT(DI$18:$DR$18), DI86 * (SUM(Plan_집계표!$DA41:$DR41) - SUM($DA45:DH45)) / SUM(Actual_집계표!DI86:$DR86)), 0) -> 0 | DJ45: =IFERROR( IF( AND( SUM(Actual_집계표!DJ86:$DR86)=0, SUM($DA45:DI45)<>SUM(Plan_집계표!$DA41:$DR41), DJ$18<>""), (SUM(Plan_집계표!$DA41:$DR41) - SUM($DA45:DI45)) / COUNT(DJ$18:$DR$18), DJ86 * (SUM(Plan_집계표!$DA41:$DR41) - SUM($DA45:DI45)) / SUM(Actual_집계표!DJ86:$DR86)), 0) -> 0 | DK45: =IFERROR( IF( AND( SUM(Actual_집계표!DK86:$DR86)=0, SUM($DA45:DJ45)<>SUM(Plan_집계표!$DA41:$DR41), DK$18<>""), (SUM(Plan_집계표!$DA41:$DR41) - SUM($DA45:DJ45)) / COUNT(DK$18:$DR$18), DK86 * (SUM(Plan_집계표!$DA41:$DR41) - SUM($DA45:DJ45)) / SUM(Actual_집계표!DK86:$DR86)), 0) -> 0 | DL45: =IFERROR( IF( AND( SUM(Actual_집계표!DL86:$DR86)=0, SUM($DA45:DK45)<>SUM(Plan_집계표!$DA41:$DR41), DL$18<>""), (SUM(Plan_집계표!$DA41:$DR41) - SUM($DA45:DK45)) / COUNT(DL$18:$DR$18), DL86 * (SUM(Plan_집계표!$DA41:$DR41) - SUM($DA45:DK45)) / SUM(Actual_집계표!DL86:$DR86)), 0) -> 0 | DM45: =IFERROR( IF( AND( SUM(Actual_집계표!DM86:$DR86)=0, SUM($DA45:DL45)<>SUM(Plan_집계표!$DA41:$DR41), DM$18<>""), (SUM(Plan_집계표!$DA41:$DR41) - SUM($DA45:DL45)) / COUNT(DM$18:$DR$18), DM86 * (SUM(Plan_집계표!$DA41:$DR41) - SUM($DA45:DL45)) / SUM(Actual_집계표!DM86:$DR86)), 0) -> 0 | DN45: =IFERROR( IF( AND( SUM(Actual_집계표!DN86:$DR86)=0, SUM($DA45:DM45)<>SUM(Plan_집계표!$DA41:$DR41), DN$18<>""), (SUM(Plan_집계표!$DA41:$DR41) - SUM($DA45:DM45)) / COUNT(DN$18:$DR$18), DN86 * (SUM(Plan_집계표!$DA41:$DR41) - SUM($DA45:DM45)) / SUM(Actual_집계표!DN86:$DR86)), 0) -> 0 | DO45: =IFERROR( IF( AND( SUM(Actual_집계표!DO86:$DR86)=0, SUM($DA45:DN45)<>SUM(Plan_집계표!$DA41:$DR41), DO$18<>""), (SUM(Plan_집계표!$DA41:$DR41) - SUM($DA45:DN45)) / COUNT(DO$18:$DR$18), DO86 * (SUM(Plan_집계표!$DA41:$DR41) - SUM($DA45:DN45)) / SUM(Actual_집계표!DO86:$DR86)), 0) -> 0 | DP45: =IFERROR( IF( AND( SUM(Actual_집계표!DP86:$DR86)=0, SUM($DA45:DO45)<>SUM(Plan_집계표!$DA41:$DR41), DP$18<>""), (SUM(Plan_집계표!$DA41:$DR41) - SUM($DA45:DO45)) / COUNT(DP$18:$DR$18), DP86 * (SUM(Plan_집계표!$DA41:$DR41) - SUM($DA45:DO45)) / SUM(Actual_집계표!DP86:$DR86)), 0) -> 0 | DQ45: =IFERROR( IF( AND( SUM(Actual_집계표!DQ86:$DR86)=0, SUM($DA45:DP45)<>SUM(Plan_집계표!$DA41:$DR41), DQ$18<>""), (SUM(Plan_집계표!$DA41:$DR41) - SUM($DA45:DP45)) / COUNT(DQ$18:$DR$18), DQ86 * (SUM(Plan_집계표!$DA41:$DR41) - SUM($DA45:DP45)) / SUM(Actual_집계표!DQ86:$DR86)), 0) -> 0 | DR45: =IFERROR( IF( AND( SUM(Actual_집계표!DR86:$DR86)=0, SUM($DA45:DQ45)<>SUM(Plan_집계표!$DA41:$DR41), DR$18<>""), (SUM(Plan_집계표!$DA41:$DR41) - SUM($DA45:DQ45)) / COUNT(DR$18:$DR$18), DR86 * (SUM(Plan_집계표!$DA41:$DR41) - SUM($DA45:DQ45)) / SUM(Actual_집계표!DR86:$DR86)), 0) -> 0 | DT45: 0 | DU45: 0 | DV45: 0 | DW45: 0 | DX45: 0 | DY45: 0 | DZ45: 0 | EA45: 0 | EB45: 0 | EC45: 0 | ED45: 0 | EE45: 0 | EF45: 0 | EG45: 0 | EH45: 0 | EI45: 0 | EJ45: 0 | EK45: 0 | EM45: 0 | EN45: 0 | EO45: 0 | EP45: 0 | EQ45: 0 | ER45: 0 | ES45: 0 | ET45: 0 | EU45: 0 | EV45: 0 | EW45: 0 | EX45: 0 | EY45: 0 | EZ45: 0 | FA45: 0 | FB45: 0 | FC45: 0 | FD45: 0
